Workbook

Sheet Inf
C2: Processes Assesment Protocol - Important Information
C3: Pierre Philippot, Martine Bouvard, Céline Baeyens & Vincent Dethier
C4: This file contains several worksheets:
C5: The worksheet named "Inf" provides information regarding the use of this file.
C6: The Worksheets "QuestT1" and "QuestT2" allow the participant to fill in the questionnaires in directly the file. “QuestT1” collects the data at a time 1, and “QuestT2” at a time 2. The therapist has also the possibility to encode a paper version directly in each of the worksheets. Time 2 is optional and allows to measure changes across time. Please check that there are no missing answers before analyzing data. A red flag indicates missing answers.
C7: The worksheet named "Therapist" is to be filled by the therapist in charge. This information is very important for research purpose. If you use the worksheet "QuestT1", some data will be filled in automatically in the worksheet “therapist”.
C8: The following worksheets (DASS, REQ,...Self-Discr) relate to each of the questionnaires. It is possible to encode the data manually in the score column of each of the worksheets. Those worksheets provide means and percentiles of the various dimensions as well as graphs. In order to observe the results of the items of a specific dimension, you may click on the little arrow next to dimension (at the top) and select the dimension of interest.
C9: The worksheet named "Summary" allows to observe possible changes between time 1 and time 2 in regards to the therapeutic targets.
C10: In order to dislay all the worksheets (whenever a client/patient filled in "Quest T1" or "Quest T2"), please use the keyboard shortcut CTRL-D (Maintain CTRL and D simultaneously).
C11: In order to hide all worksheets except "Quest T1", please use the keyboard shortcut CTRL-H. This allows to send the file to the client/patient with preventing the client/patient to view the other worksheets.
C12: In order to hide all worksheets except "Quest T2", please use the keyboard shortcut CTRL-J.
C13: If you agree to participate in this research, please send the completed files to vincent.dethier@uclouvain.be. One time of measurement is sufficient to do so.
JX22: T2 (facultatif)
B23: Site | C23: N° identification | D23: Population | E23: Age | F23: Sexe | G23: Niveau d'étude | H23: Statut professionnel | I23: Statut familial | J23: Diag_1_code | K23: Diag_1_int | L23: Diag_2_code | M23: Diag_2_int | N23: Diag_3_code | O23: Diag_3_int | P23: OQ_1 | Q23: OQ_2 | R23: OQ_3 | S23: OQ_4 | T23: OQ_5 | U23: OQ_6 | V23: OQ_7 | W23: OQ_8 | X23: OQ_9 | Y23: OQ_10 | Z23: OQ_11 | AA23: OQ_12 | AB23: OQ_13 | AC23: OQ_14 | AD23: OQ_15 | AE23: OQ_16 | AF23: OQ_17 | AG23: OQ_18 | AH23: OQ_19 | AI23: OQ_20 | AJ23: OQ_21 | AK23: OQ_22 | AL23: OQ_23 | AM23: OQ_24 | AN23: OQ_25 | AO23: OQ_26 | AP23: OQ_27 | AQ23: OQ_28 | AR23: OQ_29 | AS23: OQ_30 | AT23: OQ_31 | AU23: OQ_32 | AV23: OQ_33 | AW23: OQ_34 | AX23: OQ_35 | AY23: OQ_36 | AZ23: OQ_37 | BA23: OQ_38 | BB23: OQ_39 | BC23: OQ_40 | BD23: OQ_41 | BE23: OQ_42 | BF23: OQ_43 | BG23: OQ_44 | BH23: OQ_45 | BI23: DASS_1 | BJ23: DASS_2 | BK23: DASS_3 | BL23: DASS_4 | BM23: DASS_5 | BN23: DASS_6 | BO23: DASS_7 | BP23: DASS_8 | BQ23: DASS_9 | BR23: DASS_10 | BS23: DASS_11 | BT23: DASS_12 | BU23: DASS_13 | BV23: DASS_14 | BW23: DASS_15 | BX23: DASS_16 | BY23: DASS_17 | BZ23: DASS_18 | CA23: DASS_19 | CB23: DASS_20 | CC23: DASS_21 | CD23: REQ_1 | CE23: REQ_2 | CF23: REQ_3 | CG23: REQ_4 | CH23: REQ_5 | CI23: REQ_6 | CJ23: REQ_7 | CK23: REQ_8 | CL23: REQ_9 | CM23: REQ_10 | CN23: REQ_11 | CO23: REQ_12 | CP23: REQ_13 | CQ23: REQ_14 | CR23: REQ_15 | CS23: REQ_16 | CT23: REQ_17 | CU23: REQ_18 | CV23: REQ_19 | CW23: REQ_20 | CX23: REQ_21 | CY23: MEAQ_1 | CZ23: MEAQ_2 | DA23: MEAQ_3 | DB23: MEAQ_4 | DC23: MEAQ_5 | DD23: MEAQ_6 | DE23: MEAQ_7 | DF23: MEAQ_8 | DG23: MEAQ_9 | DH23: MEAQ_10 | DI23: MEAQ_11 | DJ23: MEAQ_12 | DK23: MEAQ_13 | DL23: MEAQ_14 | DM23: MEAQ_15 | DN23: MEAQ_16 | DO23: MEAQ_17 | DP23: MEAQ_18 | DQ23: MEAQ_19 | DR23: MEAQ_20 | DS23: MEAQ_21 | DT23: MEAQ_22 | DU23: MEAQ_23 | DV23: MEAQ_24 | DW23: MEAQ_25 | DX23: MEAQ_26 | DY23: MEAQ_27 | DZ23: MEAQ_28 | EA23: MEAQ_29 | EB23: MEAQ_30 | EC23: MEAQ_31 | ED23: MEAQ_32 | EE23: MEAQ_33 | EF23: MEAQ_34 | EG23: MEAQ_35 | EH23: MEAQ_36 | EI23: MEAQ_37 | EJ23: MEAQ_38 | EK23: MEAQ_39 | EL23: MEAQ_40 | EM23: MEAQ_41 | EN23: MEAQ_42 | EO23: MEAQ_43 | EP23: MEAQ_44 | EQ23: MEAQ_45 | ER23: MEAQ_46 | ES23: MEAQ_47 | ET23: MEAQ_48 | EU23: MEAQ_49 | EV23: MEAQ_50 | EW23: MEAQ_51 | EX23: MEAQ_52 | EY23: MEAQ_53 | EZ23: MEAQ_54 | FA23: MEAQ_55 | FB23: MEAQ_56 | FC23: MEAQ_57 | FD23: MEAQ_58 | FE23: MEAQ_59 | FF23: MEAQ_60 | FG23: MEAQ_61 | FH23: MEAQ_62 | FI23: EII_1 | FJ23: EII_2 | FK23: EII_3 | FL23: EII_4 | FM23: EII_5 | FN23: EII_6 | FO23: EII_7 | FP23: EII_8 | FQ23: EII_9 | FR23: EII_10 | FS23: EII_11 | FT23: EII_12 | FU23: EII_13 | FV23: EII_14 | FW23: EII_15 | FX23: EII_16 | FY23: EII_17 | FZ23: EII_18 | GA23: EII_19 | GB23: EII_20 | GC23: EII_21 | GD23: EII_22 | GE23: EII_23 | GF23: EII_24 | GG23: EII_25 | GH23: EII_26 | GI23: EII_27 | GJ23: MCQ_1 | GK23: MCQ_2 | GL23: MCQ_3 | GM23: MCQ_4 | GN23: MCQ_5 | GO23: MCQ_6 | GP23: MCQ_7 | GQ23: MCQ_8 | GR23: MCQ_9 | GS23: MCQ_10 | GT23: MCQ_11 | GU23: MCQ_12 | GV23: MCQ_13 | GW23: MCQ_14 | GX23: MCQ_15 | GY23: MCQ_16 | GZ23: MCQ_17 | HA23: MCQ_18 | HB23: MCQ_19 | HC23: MCQ_20 | HD23: MCQ_21 | HE23: MCQ_22 | HF23: MCQ_23 | HG23: MCQ_24 | HH23: MCQ_25 | HI23: MCQ_26 | HJ23: MCQ_27 | HK23: MCQ_28 | HL23: MCQ_29 | HM23: MCQ_30 | HN23: CERTS_1 | HO23: CERTS_2 | HP23: CERTS_3 | HQ23: CERTS_4 | HR23: CERTS_5 | HS23: CERTS_6 | HT23: CERTS_7 | HU23: CERTS_8 | HV23: CERTS_9 | HW23: CERTS_10 | HX23: CERTS_11 | HY23: CERTS_12 | HZ23: CERTS_13 | IA23: CERTS_14 | IB23: CERTS_15 | IC23: CERTS_16 | ID23: SEP_1 | IE23: SEP_2 | IF23: SEP_3 | IG23: SEP_4 | IH23: SEP_5 | II23: SEP_6 | IJ23: SEP_7 | IK23: SEP_8 | IL23: SEP_9 | IM23: SEP_10 | IN23: % Car. Id.1 | IO23: % Car. Id.2 | IP23: % Car. Id.3 | IQ23: % Car. Id.4 | IR23: % Car. Id.5 | IS23: % Car. Id.6 | IT23: % Car. Id.7 | IU23: % Car. Id.8 | IV23: % Car. ~ Id.1 | IW23: % Car. ~ Id.2 | IX23: % Car. ~ Id.3 | IY23: % Car. ~ Id.4 | IZ23: % Car. ~ Id.5 | JA23: % Car. ~ Id.6 | JB23: % Car. ~ Id.7 | JC23: % Car. ~ Id.8 | JD23: Ecart idéal | JE23: Détresse(1) | JF23: % Car. Soc 1 | JG23: % Car. Soc 2 | JH23: % Car. Soc 3 | JI23: % Car. Soc 4 | JJ23: % Car. Soc 5 | JK23: % Car. Soc 6 | JL23: % Car. Soc 7 | JM23: % Car. Soc 8 | JN23: % Car.~ soc1 | JO23: % Car.~ soc2 | JP23: % Car.~ soc3 | JQ23: % Car.~ soc4 | JR23: % Car.~ soc5 | JS23: % Car.~ soc6 | JT23: % Car.~ soc7 | JU23: % Car.~ soc8 | JV23: Ecart soc | JW23: Détresse 2 | JX23: OQ_1 | JY23: OQ_2 | JZ23: OQ_3 | KA23: OQ_4 | KB23: OQ_5 | KC23: OQ_6 | KD23: OQ_7 | KE23: OQ_8 | KF23: OQ_9 | KG23: OQ_10 | KH23: OQ_11 | KI23: OQ_12 | KJ23: OQ_13 | KK23: OQ_14 | KL23: OQ_15 | KM23: OQ_16 | KN23: OQ_17 | KO23: OQ_18 | KP23: OQ_19 | KQ23: OQ_20 | KR23: OQ_21 | KS23: OQ_22 | KT23: OQ_23 | KU23: OQ_24 | KV23: OQ_25 | KW23: OQ_26 | KX23: OQ_27 | KY23: OQ_28 | KZ23: OQ_29 | LA23: OQ_30 | LB23: OQ_31 | LC23: OQ_32 | LD23: OQ_33 | LE23: OQ_34 | LF23: OQ_35 | LG23: OQ_36 | LH23: OQ_37 | LI23: OQ_38 | LJ23: OQ_39 | LK23: OQ_40 | LL23: OQ_41 | LM23: OQ_42 | LN23: OQ_43 | LO23: OQ_44 | LP23: OQ_45 | LQ23: DASS_1 | LR23: DASS_2 | LS23: DASS_3 | LT23: DASS_4 | LU23: DASS_5 | LV23: DASS_6 | LW23: DASS_7 | LX23: DASS_8 | LY23: DASS_9 | LZ23: DASS_10 | MA23: DASS_11 | MB23: DASS_12 | MC23: DASS_13 | MD23: DASS_14 | ME23: DASS_15 | MF23: DASS_16 | MG23: DASS_17 | MH23: DASS_18 | MI23: DASS_19 | MJ23: DASS_20 | MK23: DASS_21 | ML23: REQ_1 | MM23: REQ_2 | MN23: REQ_3 | MO23: REQ_4 | MP23: REQ_5 | MQ23: REQ_6 | MR23: REQ_7 | MS23: REQ_8 | MT23: REQ_9 | MU23: REQ_10 | MV23: REQ_11 | MW23: REQ_12 | MX23: REQ_13 | MY23: REQ_14 | MZ23: REQ_15 | NA23: REQ_16 | NB23: REQ_17 | NC23: REQ_18 | ND23: REQ_19 | NE23: REQ_20 | NF23: REQ_21 | NG23: MEAQ_1 | NH23: MEAQ_2 | NI23: MEAQ_3 | NJ23: MEAQ_4 | NK23: MEAQ_5 | NL23: MEAQ_6 | NM23: MEAQ_7 | NN23: MEAQ_8 | NO23: MEAQ_9 | NP23: MEAQ_10 | NQ23: MEAQ_11 | NR23: MEAQ_12 | NS23: MEAQ_13 | NT23: MEAQ_14 | NU23: MEAQ_15 | NV23: MEAQ_16 | NW23: MEAQ_17 | NX23: MEAQ_18 | NY23: MEAQ_19 | NZ23: MEAQ_20 | OA23: MEAQ_21 | OB23: MEAQ_22 | OC23: MEAQ_23 | OD23: MEAQ_24 | OE23: MEAQ_25 | OF23: MEAQ_26 | OG23: MEAQ_27 | OH23: MEAQ_28 | OI23: MEAQ_29 | OJ23: MEAQ_30 | OK23: MEAQ_31 | OL23: MEAQ_32 | OM23: MEAQ_33 | ON23: MEAQ_34 | OO23: MEAQ_35 | OP23: MEAQ_36 | OQ23: MEAQ_37 | OR23: MEAQ_38 | OS23: MEAQ_39 | OT23: MEAQ_40 | OU23: MEAQ_41 | OV23: MEAQ_42 | OW23: MEAQ_43 | OX23: MEAQ_44 | OY23: MEAQ_45 | OZ23: MEAQ_46 | PA23: MEAQ_47 | PB23: MEAQ_48 | PC23: MEAQ_49 | PD23: MEAQ_50 | PE23: MEAQ_51 | PF23: MEAQ_52 | PG23: MEAQ_53 | PH23: MEAQ_54 | PI23: MEAQ_55 | PJ23: MEAQ_56 | PK23: MEAQ_57 | PL23: MEAQ_58 | PM23: MEAQ_59 | PN23: MEAQ_60 | PO23: MEAQ_61 | PP23: MEAQ_62 | PQ23: EII_1 | PR23: EII_2 | PS23: EII_3 | PT23: EII_4 | PU23: EII_5 | PV23: EII_6 | PW23: EII_7 | PX23: EII_8 | PY23: EII_9 | PZ23: EII_10 | QA23: EII_11 | QB23: EII_12 | QC23: EII_13 | QD23: EII_14 | QE23: EII_15 | QF23: EII_16 | QG23: EII_17 | QH23: EII_18 | QI23: EII_19 | QJ23: EII_20 | QK23: EII_21 | QL23: EII_22 | QM23: EII_23 | QN23: EII_24 | QO23: EII_25 | QP23: EII_26 | QQ23: EII_27 | QR23: MCQ_1 | QS23: MCQ_2 | QT23: MCQ_3 | QU23: MCQ_4 | QV23: MCQ_5 | QW23: MCQ_6 | QX23: MCQ_7 | QY23: MCQ_8 | QZ23: MCQ_9 | RA23: MCQ_10 | RB23: MCQ_11 | RC23: MCQ_12 | RD23: MCQ_13 | RE23: MCQ_14 | RF23: MCQ_15 | RG23: MCQ_16 | RH23: MCQ_17 | RI23: MCQ_18 | RJ23: MCQ_19 | RK23: MCQ_20 | RL23: MCQ_21 | RM23: MCQ_22 | RN23: MCQ_23 | RO23: MCQ_24 | RP23: MCQ_25 | RQ23: MCQ_26 | RR23: MCQ_27 | RS23: MCQ_28 | RT23: MCQ_29 | RU23: MCQ_30 | RV23: CERTS_1 | RW23: CERTS_2 | RX23: CERTS_3 | RY23: CERTS_4 | RZ23: CERTS_5 | SA23: CERTS_6 | SB23: CERTS_7 | SC23: CERTS_8 | SD23: CERTS_9 | SE23: CERTS_10 | SF23: CERTS_11 | SG23: CERTS_12 | SH23: CERTS_13 | SI23: CERTS_14 | SJ23: CERTS_15 | SK23: CERTS_16 | SL23: SEP_1 | SM23: SEP_2 | SN23: SEP_3 | SO23: SEP_4 | SP23: SEP_5 | SQ23: SEP_6 | SR23: SEP_7 | SS23: SEP_8 | ST23: SEP_9 | SU23: SEP_10 | SV23: % Car. Id.1 | SW23: % Car. Id.2 | SX23: % Car. Id.3 | SY23: % Car. Id.4 | SZ23: % Car. Id.5 | TA23: % Car. Id.6 | TB23: % Car. Id.7 | TC23: % Car. Id.8 | TD23: % Car. ~ Id.1 | TE23: % Car. ~ Id.2 | TF23: % Car. ~ Id.3 | TG23: % Car. ~ Id.4 | TH23: % Car. ~ Id.5 | TI23: % Car. ~ Id.6 | TJ23: % Car. ~ Id.7 | TK23: % Car. ~ Id.8 | TL23: Ecart idéal | TM23: Détresse(1) | TN23: % Car. Soc 1 | TO23: % Car. Soc 2 | TP23: % Car. Soc 3 | TQ23: % Car. Soc 4 | TR23: % Car. Soc 5 | TS23: % Car. Soc 6 | TT23: % Car. Soc 7 | TU23: % Car. Soc 8 | TV23: % Car.~ soc1 | TW23: % Car.~ soc2 | TX23: % Car.~ soc3 | TY23: % Car.~ soc4 | TZ23: % Car.~ soc5 | UA23: % Car.~ soc6 | UB23: % Car.~ soc7 | UC23: % Car.~ soc8 | UD23: Ecart soc | UE23: Détresse 2
B24: =Therapist!R19 -> MANQUANT | C24: =Therapist!R23 -> MANQUANT | D24: =Therapist!R27 -> 1 | E24: ='Quest T1'!N7 -> 33 | F24: ='Quest T1'!N10 -> 0 | G24: ='Quest T1'!N13 -> 5 | H24: ='Quest T1'!N16 -> 3 | I24: ='Quest T1'!N19 -> 3 | J24: =Therapist!R30 -> 300.21 | K24: =Therapist!R31 -> 5 | L24: =Therapist!R32 -> MANQUANT | M24: =Therapist!R33 -> MANQUANT | N24: =Therapist!R34 -> MANQUANT | O24: =Therapist!R35 -> MANQUANT | P24: =#REF! ->  | Q24: =#REF! ->  | R24: =#REF! ->  | S24: =#REF! ->  | T24: =#REF! ->  | U24: =#REF! ->  | V24: =#REF! ->  | W24: =#REF! ->  | X24: =#REF! ->  | Y24: =#REF! ->  | Z24: =#REF! ->  | AA24: =#REF! ->  | AB24: =#REF! ->  | AC24: =#REF! ->  | AD24: =#REF! ->  | AE24: =#REF! ->  | AF24: =#REF! ->  | AG24: =#REF! ->  | AH24: =#REF! ->  | AI24: =#REF! ->  | AJ24: =#REF! ->  | AK24: =#REF! ->  | AL24: =#REF! ->  | AM24: =#REF! ->  | AN24: =#REF! ->  | AO24: =#REF! ->  | AP24: =#REF! ->  | AQ24: =#REF! ->  | AR24: =#REF! ->  | AS24: =#REF! ->  | AT24: =#REF! ->  | AU24: =#REF! ->  | AV24: =#REF! ->  | AW24: =#REF! ->  | AX24: =#REF! ->  | AY24: =#REF! ->  | AZ24: =#REF! ->  | BA24: =#REF! ->  | BB24: =#REF! ->  | BC24: =#REF! ->  | BD24: =#REF! ->  | BE24: =#REF! ->  | BF24: =#REF! ->  | BG24: =#REF! ->  | BH24: =#REF! ->  | BI24: =DASS!G11 -> 2 | BJ24: =DASS!G12 -> 1 | BK24: =DASS!G13 -> 0 | BL24: =DASS!G14 -> 0 | BM24: =DASS!G15 -> 0 | BN24: =DASS!G16 -> 1 | BO24: =DASS!G17 -> 0 | BP24: =DASS!G18 -> 2 | BQ24: =DASS!G19 -> 2 | BR24: =DASS!G20 -> 0 | BS24: =DASS!G21 -> 1 | BT24: =DASS!G22 -> 2 | BU24: =DASS!G23 -> 1 | BV24: =DASS!G24 -> 1 | BW24: =DASS!G25 -> 1 | BX24: =DASS!G26 -> 0 | BY24: =DASS!G27 -> 0 | BZ24: =DASS!G28 -> 1 | CA24: =DASS!G29 -> 1 | CB24: =DASS!G30 -> 1 | CC24: =DASS!G31 -> 0 | CD24: =REQ!E8 -> 3 | CE24: =REQ!E9 -> 2 | CF24: =REQ!E10 -> 2 | CG24: =REQ!E11 -> 3 | CH24: =REQ!E12 -> 2 | CI24: =REQ!E13 -> 2 | CJ24: =REQ!E14 -> 4 | CK24: =REQ!E15 -> 3 | CL24: =REQ!E16 -> 2 | CM24: =REQ!E17 -> 1 | CN24: =REQ!E18 -> 3 | CO24: =REQ!E19 -> 1 | CP24: =REQ!E20 -> 2 | CQ24: =REQ!E21 -> 2 | CR24: =REQ!E22 -> 2 | CS24: =REQ!E23 -> 3 | CT24: =REQ!E24 -> 1 | CU24: =REQ!E25 -> 1 | CV24: =REQ!E26 -> 1 | CW24: =REQ!E27 -> 2 | CX24: =REQ!E28 -> 3 | CY24: =MEAQ!H8 -> 6 | CZ24: =MEAQ!H9 -> 6 | DA24: =MEAQ!H10 -> 1 | DB24: =MEAQ!H11 -> 4 | DC24: =MEAQ!H12 -> 2 | DD24: =MEAQ!H13 -> 4 | DE24: =MEAQ!H14 -> 1 | DF24: =MEAQ!H15 -> 2 | DG24: =MEAQ!H16 -> 4 | DH24: =MEAQ!H17 -> 1 | DI24: =MEAQ!H18 -> 2 | DJ24: =MEAQ!H19 -> 5 | DK24: =MEAQ!H20 -> 2 | DL24: =MEAQ!H21 -> 2 | DM24: =MEAQ!H22 -> 2 | DN24: =MEAQ!H23 -> 1 | DO24: =MEAQ!H24 -> 2 | DP24: =MEAQ!H25 -> 5 | DQ24: =MEAQ!H26 -> 4 | DR24: =MEAQ!H27 -> 6 | DS24: =MEAQ!H28 -> 1 | DT24: =MEAQ!H29 -> 4 | DU24: =MEAQ!H30 -> 4 | DV24: =MEAQ!H31 -> 6 | DW24: =MEAQ!H32 -> 2 | DX24: =MEAQ!H33 -> 3 | DY24: =MEAQ!H34 -> 4 | DZ24: =MEAQ!H35 -> 2 | EA24: =MEAQ!H36 -> 1 | EB24: =MEAQ!H37 -> 5 | EC24: =MEAQ!H38 -> 6 | ED24: =MEAQ!H39 -> 2 | EE24: =MEAQ!H40 -> 3 | EF24: =MEAQ!H41 -> 1 | EG24: =MEAQ!H42 -> 1 | EH24: =MEAQ!H43 -> 2 | EI24: =MEAQ!H44 -> 5 | EJ24: =MEAQ!H45 -> 5 | EK24: =MEAQ!H46 -> 4 | EL24: =MEAQ!H47 -> 4 | EM24: =MEAQ!H48 -> 3 | EN24: =MEAQ!H49 -> 1 | EO24: =MEAQ!H50 -> 5 | EP24: =MEAQ!H51 -> 2 | EQ24: =MEAQ!H52 -> 4 | ER24: =MEAQ!H53 -> 1 | ES24: =MEAQ!H54 -> 1 | ET24: =MEAQ!H55 -> 3 | EU24: =MEAQ!H56 -> 1 | EV24: =MEAQ!H57 -> 2 | EW24: =MEAQ!H58 -> 1 | EX24: =MEAQ!H59 -> 3 | EY24: =MEAQ!H60 -> 4 | EZ24: =MEAQ!H61 -> 5 | FA24: =MEAQ!H62 -> 3 | FB24: =MEAQ!H63 -> 1 | FC24: =MEAQ!H64 -> 5 | FD24: =MEAQ!H65 -> 1 | FE24: =MEAQ!H66 -> 2 | FF24: =MEAQ!H67 -> 1 | FG24: =MEAQ!H68 -> 3 | FH24: =MEAQ!H69 -> 6 | FI24: =IUS!H8 -> 3 | FJ24: =IUS!H9 -> 1 | FK24: =IUS!H10 -> 2 | FL24: =IUS!H11 -> 2 | FM24: =IUS!H12 -> 1 | FN24: =IUS!H13 -> 1 | FO24: =IUS!H14 -> 2 | FP24: =IUS!H15 -> 1 | FQ24: =IUS!H16 -> 1 | FR24: =IUS!H17 -> 1 | FS24: =IUS!H18 -> 3 | FT24: =IUS!H19 -> 1 | FU24: =IUS!H20 -> 1 | FV24: =IUS!H21 -> 1 | FW24: =IUS!H22 -> 1 | FX24: =IUS!H23 -> 1 | FY24: =IUS!H24 -> 1 | FZ24: =IUS!H25 -> 2 | GA24: =IUS!H26 -> 1 | GB24: =IUS!H27 -> 1 | GC24: =IUS!H28 -> 1 | GD24: =IUS!H29 -> 1 | GE24: =IUS!H30 -> 1 | GF24: =IUS!H31 -> 1 | GG24: =IUS!H32 -> 1 | GH24: =IUS!H33 -> 2 | GI24: =IUS!H34 -> 1 | GJ24: =MCQ!I8 -> 3 | GK24: =MCQ!I9 -> 2 | GL24: =MCQ!I10 -> 1 | GM24: =MCQ!I11 -> 2 | GN24: =MCQ!I12 -> 1 | GO24: =MCQ!I13 -> 4 | GP24: =MCQ!I14 -> 2 | GQ24: =MCQ!I15 -> 1 | GR24: =MCQ!I16 -> 4 | GS24: =MCQ!I17 -> 2 | GT24: =MCQ!I18 -> 4 | GU24: =MCQ!I19 -> 1 | GV24: =MCQ!I20 -> 2 | GW24: =MCQ!I21 -> 4 | GX24: =MCQ!I22 -> 2 | GY24: =MCQ!I23 -> 1 | GZ24: =MCQ!I24 -> 4 | HA24: =MCQ!I25 -> 2 | HB24: =MCQ!I26 -> 1 | HC24: =MCQ!I27 -> 2 | HD24: =MCQ!I28 -> 1 | HE24: =MCQ!I29 -> 3 | HF24: =MCQ!I30 -> 1 | HG24: =MCQ!I31 -> 1 | HH24: =MCQ!I32 -> 1 | HI24: =MCQ!I33 -> 4 | HJ24: =MCQ!I34 -> 4 | HK24: =MCQ!I35 -> 2 | HL24: =MCQ!I36 -> 1 | HM24: =MCQ!I37 -> 1 | HN24: =CERTS!J6 -> 3 | HO24: =CERTS!J7 -> 3 | HP24: =CERTS!J8 -> 4 | HQ24: =CERTS!J9 -> 2 | HR24: =CERTS!J10 -> 3 | HS24: =CERTS!J11 -> 2 | HT24: =CERTS!J12 -> 1 | HU24: =CERTS!J13 -> 1 | HV24: =CERTS!J14 -> 2 | HW24: =CERTS!J15 -> 2 | HX24: =CERTS!J16 -> 3 | HY24: =CERTS!J17 -> 4 | HZ24: =CERTS!J18 -> 1 | IA24: =CERTS!J19 -> 3 | IB24: =CERTS!J20 -> 4 | IC24: =CERTS!J21 -> 2 | ID24: =SE!C5 -> 25 | IE24: =SE!C6 -> 75 | IF24: =SE!C7 -> 60 | IG24: =SE!C8 -> 60 | IH24: =SE!C9 -> 80 | II24: =SE!C10 -> 50 | IJ24: =SE!C11 -> 75 | IK24: =SE!C12 -> 20 | IL24: =SE!C13 -> 10 | IM24: =SE!C14 -> 20 | IN24: ='Self-Discr'!D6 -> 0.3 | IO24: ='Self-Discr'!D7 -> 0.4 | IP24: ='Self-Discr'!D8 -> 0.5 | IQ24: ='Self-Discr'!D9 ->  | IR24: ='Self-Discr'!D10 ->  | IS24: ='Self-Discr'!D11 ->  | IT24: ='Self-Discr'!D12 ->  | IU24: ='Self-Discr'!D13 ->  | IV24: ='Self-Discr'!H6 -> 0.1 | IW24: ='Self-Discr'!H7 ->  | IX24: ='Self-Discr'!H8 -> 0.05 | IY24: ='Self-Discr'!H9 ->  | IZ24: ='Self-Discr'!H10 ->  | JA24: ='Self-Discr'!H11 ->  | JB24: ='Self-Discr'!H12 ->  | JC24: ='Self-Discr'!H13 ->  | JD24: ='Self-Discr'!C39 -> 6 | JE24: ='Self-Discr'!C40 -> 4 | JF24: ='Self-Discr'!D19 -> 0.3 | JG24: ='Self-Discr'!D20 -> 0.9 | JH24: ='Self-Discr'!D21 -> 0.5 | JI24: ='Self-Discr'!D22 ->  | JJ24: ='Self-Discr'!D23 ->  | JK24: ='Self-Discr'!D24 ->  | JL24: ='Self-Discr'!D25 ->  | JM24: ='Self-Discr'!D26 ->  | JN24: ='Self-Discr'!H19 -> 0.1 | JO24: ='Self-Discr'!H20 -> 0.05 | JP24: ='Self-Discr'!H21 -> 0.2 | JQ24: ='Self-Discr'!H22 ->  | JR24: ='Self-Discr'!H23 ->  | JS24: ='Self-Discr'!H24 ->  | JT24: ='Self-Discr'!H25 ->  | JU24: ='Self-Discr'!H26 ->  | JV24: ='Self-Discr'!C41 -> 5 | JW24: ='Self-Discr'!C42 -> 5 | JX24: =#REF! ->  | JY24: =#REF! ->  | JZ24: =#REF! ->  | KA24: =#REF! ->  | KB24: =#REF! ->  | KC24: =#REF! ->  | KD24: =#REF! ->  | KE24: =#REF! ->  | KF24: =#REF! ->  | KG24: =#REF! ->  | KH24: =#REF! ->  | KI24: =#REF! ->  | KJ24: =#REF! ->  | KK24: =#REF! ->  | KL24: =#REF! ->  | KM24: =#REF! ->  | KN24: =#REF! ->  | KO24: =#REF! ->  | KP24: =#REF! ->  | KQ24: =#REF! ->  | KR24: =#REF! ->  | KS24: =#REF! ->  | KT24: =#REF! ->  | KU24: =#REF! ->  | KV24: =#REF! ->  | KW24: =#REF! ->  | KX24: =#REF! ->  | KY24: =#REF! ->  | KZ24: =#REF! ->  | LA24: =#REF! ->  | LB24: =#REF! ->  | LC24: =#REF! ->  | LD24: =#REF! ->  | LE24: =#REF! ->  | LF24: =#REF! ->  | LG24: =#REF! ->  | LH24: =#REF! ->  | LI24: =#REF! ->  | LJ24: =#REF! ->  | LK24: =#REF! ->  | LL24: =#REF! ->  | LM24: =#REF! ->  | LN24: =#REF! ->  | LO24: =#REF! ->  | LP24: =#REF! ->  | LQ24: =DASS!H11 -> 1 | LR24: =DASS!H12 -> 0 | LS24: =DASS!H13 -> 0 | LT24: =DASS!H14 -> 0 | LU24: =DASS!H15 -> 0 | LV24: =DASS!H16 -> 1 | LW24: =DASS!H17 -> 0 | LX24: =DASS!H18 -> 1 | LY24: =DASS!H19 -> 2 | LZ24: =DASS!H20 -> 0 | MA24: =DASS!H21 -> 1 | MB24: =DASS!H22 -> 1 | MC24: =DASS!H23 -> 1 | MD24: =DASS!H24 -> 0 | ME24: =DASS!H25 -> 1 | MF24: =DASS!H26 -> 0 | MG24: =DASS!H27 -> 0 | MH24: =DASS!H28 -> 1 | MI24: =DASS!H29 -> 0 | MJ24: =DASS!H30 -> 1 | MK24: =DASS!H31 -> 0 | ML24: =REQ!F8 -> 3 | MM24: =REQ!F9 -> 2 | MN24: =REQ!F10 -> 1 | MO24: =REQ!F11 -> 4 | MP24: =REQ!F12 -> 1 | MQ24: =REQ!F13 -> 1 | MR24: =REQ!F14 -> 3 | MS24: =REQ!F15 -> 3 | MT24: =REQ!F16 -> 2 | MU24: =REQ!F17 -> 1 | MV24: =REQ!F18 -> 2 | MW24: =REQ!F19 -> 2 | MX24: =REQ!F20 -> 1 | MY24: =REQ!F21 -> 1 | MZ24: =REQ!F22 -> 2 | NA24: =REQ!F23 -> 3 | NB24: =REQ!F24 -> 1 | NC24: =REQ!F25 -> 1 | ND24: =REQ!F26 -> 1 | NE24: =REQ!F27 -> 2 | NF24: =REQ!F28 -> 3 | NG24: =MEAQ!I8 -> 2 | NH24: =MEAQ!I9 -> 5 | NI24: =MEAQ!I10 -> 1 | NJ24: =MEAQ!I11 -> 2 | NK24: =MEAQ!I12 -> 1 | NL24: =MEAQ!I13 -> 5 | NM24: =MEAQ!I14 -> 1 | NN24: =MEAQ!I15 -> 2 | NO24: =MEAQ!I16 -> 2 | NP24: =MEAQ!I17 -> 1 | NQ24: =MEAQ!I18 -> 2 | NR24: =MEAQ!I19 -> 5 | NS24: =MEAQ!I20 -> 4 | NT24: =MEAQ!I21 -> 3 | NU24: =MEAQ!I22 -> 2 | NV24: =MEAQ!I23 -> 1 | NW24: =MEAQ!I24 -> 2 | NX24: =MEAQ!I25 -> 3 | NY24: =MEAQ!I26 -> 4 | NZ24: =MEAQ!I27 -> 3 | OA24: =MEAQ!I28 -> 1 | OB24: =MEAQ!I29 -> 2 | OC24: =MEAQ!I30 -> 2 | OD24: =MEAQ!I31 -> 4 | OE24: =MEAQ!I32 -> 1 | OF24: =MEAQ!I33 -> 1 | OG24: =MEAQ!I34 -> 3 | OH24: =MEAQ!I35 -> 1 | OI24: =MEAQ!I36 -> 1 | OJ24: =MEAQ!I37 -> 4 | OK24: =MEAQ!I38 -> 5 | OL24: =MEAQ!I39 -> 2 | OM24: =MEAQ!I40 -> 2 | ON24: =MEAQ!I41 -> 2 | OO24: =MEAQ!I42 -> 1 | OP24: =MEAQ!I43 -> 2 | OQ24: =MEAQ!I44 -> 5 | OR24: =MEAQ!I45 -> 5 | OS24: =MEAQ!I46 -> 2 | OT24: =MEAQ!I47 -> 2 | OU24: =MEAQ!I48 -> 4 | OV24: =MEAQ!I49 -> 1 | OW24: =MEAQ!I50 -> 2 | OX24: =MEAQ!I51 -> 2 | OY24: =MEAQ!I52 -> 3 | OZ24: =MEAQ!I53 -> 1 | PA24: =MEAQ!I54 -> 1 | PB24: =MEAQ!I55 -> 4 | PC24: =MEAQ!I56 -> 1 | PD24: =MEAQ!I57 -> 3 | PE24: =MEAQ!I58 -> 1 | PF24: =MEAQ!I59 -> 2 | PG24: =MEAQ!I60 -> 4 | PH24: =MEAQ!I61 -> 4 | PI24: =MEAQ!I62 -> 3 | PJ24: =MEAQ!I63 -> 1 | PK24: =MEAQ!I64 -> 6 | PL24: =MEAQ!I65 -> 1 | PM24: =MEAQ!I66 -> 1 | PN24: =MEAQ!I67 -> 1 | PO24: =MEAQ!I68 -> 2 | PP24: =MEAQ!I69 -> 6 | PQ24: =IUS!I8 -> 3 | PR24: =IUS!I9 -> 1 | PS24: =IUS!I10 -> 1 | PT24: =IUS!I11 -> 1 | PU24: =IUS!I12 -> 1 | PV24: =IUS!I13 -> 1 | PW24: =IUS!I14 -> 1 | PX24: =IUS!I15 -> 1 | PY24: =IUS!I16 -> 1 | PZ24: =IUS!I17 -> 1 | QA24: =IUS!I18 -> 4 | QB24: =IUS!I19 -> 1 | QC24: =IUS!I20 -> 1 | QD24: =IUS!I21 -> 1 | QE24: =IUS!I22 -> 1 | QF24: =IUS!I23 -> 1 | QG24: =IUS!I24 -> 1 | QH24: =IUS!I25 -> 1 | QI24: =IUS!I26 -> 2 | QJ24: =IUS!I27 -> 1 | QK24: =IUS!I28 -> 2 | QL24: =IUS!I29 -> 1 | QM24: =IUS!I30 -> 1 | QN24: =IUS!I31 -> 1 | QO24: =IUS!I32 -> 1 | QP24: =IUS!I33 -> 1 | QQ24: =IUS!I34 -> 2 | QR24: =MCQ!J8 -> 2 | QS24: =MCQ!J9 -> 2 | QT24: =MCQ!J10 -> 1 | QU24: =MCQ!J11 -> 2 | QV24: =MCQ!J12 -> 1 | QW24: =MCQ!J13 -> 3 | QX24: =MCQ!J14 -> 2 | QY24: =MCQ!J15 -> 3 | QZ24: =MCQ!J16 -> 2 | RA24: =MCQ!J17 -> 2 | RB24: =MCQ!J18 -> 2 | RC24: =MCQ!J19 -> 1 | RD24: =MCQ!J20 -> 1 | RE24: =MCQ!J21 -> 2 | RF24: =MCQ!J22 -> 1 | RG24: =MCQ!J23 -> 2 | RH24: =MCQ!J24 -> 1 | RI24: =MCQ!J25 -> 2 | RJ24: =MCQ!J26 -> 2 | RK24: =MCQ!J27 -> 1 | RL24: =MCQ!J28 -> 1 | RM24: =MCQ!J29 -> 1 | RN24: =MCQ!J30 -> 2 | RO24: =MCQ!J31 -> 1 | RP24: =MCQ!J32 -> 1 | RQ24: =MCQ!J33 -> 2 | RR24: =MCQ!J34 -> 2 | RS24: =MCQ!J35 -> 2 | RT24: =MCQ!J36 -> 1 | RU24: =MCQ!J37 -> 1 | RV24: =CERTS!K6 -> 2 | RW24: =CERTS!K7 -> 2 | RX24: =CERTS!K8 -> 3 | RY24: =CERTS!K9 -> 1 | RZ24: =CERTS!K10 -> 4 | SA24: =CERTS!K11 -> 2 | SB24: =CERTS!K12 -> 2 | SC24: =CERTS!K13 -> 2 | SD24: =CERTS!K14 -> 2 | SE24: =CERTS!K15 -> 1 | SF24: =CERTS!K16 -> 3 | SG24: =CERTS!K17 -> 3 | SH24: =CERTS!K18 -> 2 | SI24: =CERTS!K19 -> 2 | SJ24: =CERTS!K20 -> 3 | SK24: =CERTS!K21 -> 2 | SL24: =SE!D5 -> 20 | SM24: =SE!D6 -> 75 | SN24: =SE!D7 -> 60 | SO24: =SE!D8 -> 60 | SP24: =SE!D9 -> 85 | SQ24: =SE!D10 -> 75 | SR24: =SE!D11 -> 65 | SS24: =SE!D12 -> 10 | ST24: =SE!D13 -> 20 | SU24: =SE!D14 -> 85 | SV24: ='Self-Discr'!L6 -> 0.25 | SW24: ='Self-Discr'!L7 -> 0.35 | SX24: ='Self-Discr'!L8 -> 0.5 | SY24: ='Self-Discr'!L9 -> 0.4 | SZ24: ='Self-Discr'!L10 -> 0.7 | TA24: ='Self-Discr'!L11 ->  | TB24: ='Self-Discr'!L12 ->  | TC24: ='Self-Discr'!L13 ->  | TD24: ='Self-Discr'!P6 -> 0.1 | TE24: ='Self-Discr'!P7 -> 0.01 | TF24: ='Self-Discr'!P8 -> 0.1 | TG24: ='Self-Discr'!P9 -> 0.4 | TH24: ='Self-Discr'!P10 -> 0.1 | TI24: ='Self-Discr'!P11 ->  | TJ24: ='Self-Discr'!P12 ->  | TK24: ='Self-Discr'!P13 ->  | TL24: ='Self-Discr'!E39 -> 4 | TM24: ='Self-Discr'!E40 -> 3 | TN24: ='Self-Discr'!L19 -> 0.3 | TO24: ='Self-Discr'!L20 -> 0.8 | TP24: ='Self-Discr'!L21 -> 0.4 | TQ24: ='Self-Discr'!L22 -> 0.6 | TR24: ='Self-Discr'!L23 -> 0.5 | TS24: ='Self-Discr'!L24 ->  | TT24: ='Self-Discr'!L25 ->  | TU24: ='Self-Discr'!L26 ->  | TV24: ='Self-Discr'!P19 -> 0.05 | TW24: ='Self-Discr'!P20 -> 0.15 | TX24: ='Self-Discr'!P21 -> 0.1 | TY24: ='Self-Discr'!P22 -> 0.2 | TZ24: ='Self-Discr'!P23 -> 0.7 | UA24: ='Self-Discr'!P24 ->  | UB24: ='Self-Discr'!P25 ->  | UC24: ='Self-Discr'!P26 ->  | UD24: ='Self-Discr'!E41 -> 5 | UE24: ='Self-Discr'!E42 -> 4

Sheet Quest T1
N1: Réponse
B2: PROCESSES ASSESMENT PROTOCOL - T1
B4: This page contains several questionnaires that measure psychological processes. Those questionnaires don't aim at assessing categorical diagnosis but intend to measure your way of functionning. Please answer those questions the most sincerely. In answering those questionnaires, you give your informed consent that your data may me used for research purpose. The data will be treated anonymously.
P5: Please select | S5: Please select
P6: Female | Q6: 0 | S6: Single | T6: 1
B7: =IF(E7=1,1,0) -> 0 | C7: Age | E7: 34 | N7: =IF(E7=1,"MISSING",E7- 1) -> 33 | P7: Male | Q7: 1 | S7: Cohabitation– in a couple | T7: 2
S8: Married | T8: 3
C9: Sex | P9: Please select | S9: Separated | T9: 4
B10: =IF(C10=1,1,0) -> 0 | C10: 2 | N10: =IF(C10=1,"MISSING",C10- 2) -> 0 | P10: Elementary school degree | Q10: 1 | S10: Divorced | T10: 5
P11: Middle school degree | Q11: 2 | S11: Widowed | T11: 6
C12: Education | P12: High school degree | Q12: 3
B13: =IF(C13=1,1,0) -> 0 | C13: 6 | N13: =IF(C13=1,"MISSING",C13- 1) -> 5 | P13: College degree | Q13: 4 | S13: Please select
P14: University degree | Q14: 5 | S14: Unemployed | T14: 1
C15: Employment status | S15: Worker | T15: 2
B16: =IF(C16=1,1,0) -> 0 | C16: 4 | N16: =IF(C16=1,"MISSING",C16- 1) -> 3 | S16: Employee | T16: 3
S17: Executive | T17: 4
C18: Family status | S18: Freelancer | T18: 5
B19: =IF(C19=1,1,0) -> 0 | C19: 4 | N19: =IF(C19=1,"MISSING",C19- 1) -> 3 | S19: Liberal Profession | T19: 6
S20: Student | T20: 7
B24: DASS-21
B25: Please read each statement and circle a number 0, 1, 2 or 3 which indicates how much the statement applied to you over the past week. There are no right or wrong answers. Do not spend too much time on any statement.
A26: =IF(H26=1,1,0) -> 0 | B26: 1 | C26: I found it hard to wind down. | H26: 4 | N26: =IF(H26=1,"MISSING", H26-2) -> 2 | P26: Please select | U26: Please select
A27: =IF(H27=1,1,0) -> 0 | B27: 2 | C27: I was aware of dryness of my mouth. | H27: 3 | N27: 1 | P27: 0 Did not apply to me at all | U27: 1
A28: 0 | B28: 3 | C28: I couldn’t seem to experience any positive feeling at all. | H28: 2 | N28: 0 | P28: 1 Applied to me to some degree, or some of the time | U28: 2
A29: 0 | B29: 4 | C29: I experienced breathing difficulty (eg, excessively rapid breathing, Breathlessness in the absence of physical exertion). | H29: 2 | N29: 0 | P29: 2 Applied to me to a considerable degree, or a good part of time | U29: 3
A30: 0 | B30: 5 | C30: I found it difficult to work up the initiative to do things. | H30: 2 | N30: 0 | P30: 3 Applied to me very much, or most of the time | U30: 4
A31: 0 | B31: 6 | C31: I tended to over-react to situations. | H31: 3 | N31: 1 | U31: 5
A32: 0 | B32: 7 | C32: I experienced trembling (e.g., in the hands). | H32: 2 | N32: 0 | U32: 6
A33: 0 | B33: 8 | C33: I felt that I was using a lot of nervous energy. | H33: 4 | N33: 2 | U33: 7
A34: 0 | B34: 9 | C34: I was worried about situations in which I might panic and make a fool of myself. | H34: 4 | N34: 2 | U34: 8
A35: 0 | B35: 10 | C35: I felt that I had nothing to look forward to. | H35: 2 | N35: 0 | U35: 9
A36: 0 | B36: 11 | C36: I found myself getting agitated. | H36: 3 | N36: 1 | U36: 10
A37: 0 | B37: 12 | C37: I found it difficult to relax. | H37: 4 | N37: 2 | U37: 11
A38: 0 | B38: 13 | C38: I felt down-hearted and blue. | H38: 3 | N38: 1 | U38: 12
A39: 0 | B39: 14 | C39: I was intolerant of anything that kept me from getting on with what I was doing. | H39: 3 | N39: 1 | U39: 13
A40: 0 | B40: 15 | C40: I felt I was close to panic. | H40: 3 | N40: 1 | U40: 14
A41: 0 | B41: 16 | C41: I was unable to become enthusiastic about anything. | H41: 2 | N41: 0 | U41: 15
A42: 0 | B42: 17 | C42: I felt I wasn’t worth much as a person. | H42: 2 | N42: 0 | U42: 16
A43: 0 | B43: 18 | C43: I felt that I was rather touchy. | H43: 3 | N43: 1 | U43: 17
A44: 0 | B44: 19 | C44: I was aware of the action of my heart in the absence of physical exertion (e.g. sense of heart increase, heart missing a beat). | H44: 3 | N44: 1 | U44: 18
A45: 0 | B45: 20 | C45: I felt scared without any good reason. | H45: 3 | N45: 1 | U45: 19
A46: 0 | B46: 21 | C46: I felt that life was meaningless. | H46: 2 | N46: 0 | U46: 20
U47: 21
U48: 22
B49: REQ-21 | U49: 23
B50: We all experience many different feelings or emotions. For example, different things in our lives make us happy, sad, angry, etc. The following questionnaire asks you about how often you do certain things in response to your emotions. You do not have to think about specific emotions but just how often you generally do the things listed below. Please tick the box corresponding to the answer that fits best. We all respond to our emotions in different ways so there are no right or wrong answers. | U50: 24
A51: =IF(H51=1,1,0) -> 0 | B51: 1. I talk to someone about how I feel | H51: 4 | N51: =IF(H51=1,"MISSING", H51-1) -> 3 | P51: Please select | U51: 25
A52: 0 | B52: 2. I take my feelings out on others verbally (e.g., shouting, arguing). | H52: 3 | N52: 2 | P52: Never | Q52: 1 | U52: 26
A53: 0 | B53: 3. I seek physical contact from friends of family (e.g., a hug, hold hands). | H53: 3 | N53: 2 | P53: Seldom | Q53: 2 | U53: 27
A54: 0 | B54: 4. I reviews (rethink) my thoughts or beliefs. | H54: 4 | N54: 3 | P54: Often | Q54: 3 | U54: 28
A55: 0 | B55: 5. I harm or punish myself in some way. | H55: 3 | N55: 2 | P55: Very often | Q55: 4 | U55: 29
A56: 0 | B56: 6. I do something energetic (e.g., play sport, go for a walk). | H56: 3 | N56: 2 | P56: Always | Q56: 5 | U56: 30
A57: 0 | B57: 7. I dwell on my thoughts and feelings (e.g., It goes round and round in my head and I can’t stop it). | H57: 5 | N57: 4 | U57: 31
A58: 0 | B58: 8. I ask others for advice. | H58: 4 | N58: 3 | U58: 32
A59: 0 | B59: 9. I review (rethink) my goals or plans. | H59: 3 | N59: 2 | U59: 33
A60: 0 | B60: 10. I take my feelings out on others physically (e.g., fighting, lashing out). | H60: 2 | N60: 1 | U60: 34
A61: 0 | B61: 11. I put the situation into perspective. | H61: 4 | N61: 3 | U61: 35
A62: 0 | B62: 12. I concentrate on a pleasant activity. | H62: 2 | N62: 1 | U62: 36
A63: 0 | B63: 13. I try to make others feel bad (e.g., being rude, ignoring them). | H63: 3 | N63: 2 | U63: 37
A64: 0 | B64: 14. I think about people better off and make myself feel worse. | H64: 3 | N64: 2 | U64: 38
A65: 0 | B65: 15. I keep the feeling locked up inside. | H65: 3 | N65: 2 | U65: 39
A66: 0 | B66: 16. I plan what I could do better next time. | H66: 4 | N66: 3 | U66: 40
A67: 0 | B67: 17. I bully other people (e.g. saying nasty things to them, hitting them) | H67: 2 | N67: 1 | U67: 41
A68: 0 | B68: 18. I take my feelings out on objects around me (e.g., deliberately causing damage to my house, school or outdoor things). | H68: 2 | N68: 1 | U68: 42
A69: 0 | B69: 19. Things feel unreal (e.g., I feel strange, things around me feel strange, I daydream). | H69: 2 | N69: 1 | U69: 43
A70: 0 | B70: 20. I telephone friends or family. | H70: 3 | N70: 2 | U70: 44
A71: 0 | B71: 21. I go out and do something nice (e.g., cinema, shopping, go for a meal, meet people). | H71: 4 | N71: 3 | U71: 45
U72: 46
U73: 47
B74: MEAQ | U74: 48
B75: Please indicate the extent to which you agree or disagree with each of the following statements | U75: 49
A76: =IF(H76=1,1,0) -> 0 | B76: 1-I won’t do something if I think it will make me uncomfortable. | H76: 7 | N76: =IF(H76=1,"MISSING", H76-1) -> 6 | P76: Please select | U76: 50
A77: 0 | B77: 2-If I could magically remove all of my painful memories, I would. | H77: 7 | N77: 6 | P77: 1 Strongly disagree | Q77: 1 | U77: 51
A78: 0 | B78: 3-When something upsetting comes up, I try very hard to stop thinking about it. | H78: 2 | N78: 1 | P78: 2 Moderately disagree | Q78: 2 | U78: 52
A79: 0 | B79: 4-I sometimes have difficulty identifying how I feel. | H79: 5 | N79: 4 | P79: 3 Slightly disagree | Q79: 3 | U79: 53
A80: 0 | B80: 5-I tend to put off unpleasant things that need to get done. | H80: 3 | N80: 2 | P80: 4 Slightly agree | Q80: 4 | U80: 54
A81: 0 | B81: 6-People should face their fears. | H81: 5 | N81: 4 | P81: 5 Moderatly agree | Q81: 5 | U81: 55
A82: 0 | B82: 7-Happiness means never feeling any pain or disappointment. | H82: 2 | N82: 1 | P82: 6 Strongly agree | Q82: 6 | U82: 56
A83: 0 | B83: 8-I avoid activities if there is even a small possibility of getting hurt. | H83: 3 | N83: 2 | U83: 57
A84: 0 | B84: 9-When negative thoughts come up, I try to fill my head with something else. | H84: 5 | N84: 4 | U84: 58
A85: 0 | B85: 10-At times, people have told me I’m in denial. | H85: 2 | N85: 1 | U85: 59
A86: 0 | B86: 11-I sometimes procrastinate to avoid facing challenges. | H86: 3 | N86: 2 | U86: 60
A87: 0 | B87: 12-Even when I feel uncomfortable, I don’t give up working toward things I value. | H87: 6 | N87: 5 | U87: 61
A88: 0 | B88: 13-When I am hurting, I would do anything to feel better. | H88: 3 | N88: 2 | U88: 62
A89: 0 | B89: 14-I rarely do something if there is a chance that it will upset me. | H89: 3 | N89: 2 | U89: 63
A90: 0 | B90: 15-I usually try to distract myself when I feel something painful. | H90: 3 | N90: 2 | U90: 64
A91: 0 | B91: 16-I am able to « turn off » my emotions when I don’t want to feel. | H91: 2 | N91: 1 | U91: 65
A92: 0 | B92: 17-When I have something important to do I find myself doing a lot of other things instead. | H92: 3 | N92: 2 | U92: 66
A93: 0 | B93: 18-I am willing to put up with pain and discomfort to get what I want. | H93: 6 | N93: 5 | U93: 67
A94: 0 | B94: 19-Happiness involves getting rid of negative thoughts. | H94: 5 | N94: 4 | U94: 68
A95: 0 | B95: 20-I work hard to avoid situations that might bring up unpleasant thoughts and feelings in me. | H95: 7 | N95: 6 | U95: 69
A96: 0 | B96: 21-I don’t realize I’m anxious until other people tell me. | H96: 2 | N96: 1 | U96: 70
A97: 0 | B97: 22-When upsetting memories come up, I try to focus on other things. | H97: 5 | N97: 4 | U97: 71
A98: 0 | B98: 23-I am in touch with my emotions. | H98: 5 | N98: 4 | U98: 72
A99: 0 | B99: 24-I am willing to suffer for the things that matter to me. | H99: 7 | N99: 6 | U99: 73
A100: 0 | B100: 25-One of my big goals is to be free from painful emotions. | H100: 3 | N100: 2 | U100: 74
A101: 0 | B101: 26-I prefer to stick to what I am comfortable with, rather than try new activities. | H101: 4 | N101: 3 | U101: 75
A102: 0 | B102: 27-I work hard to keep out upsetting feelings. | H102: 5 | N102: 4 | U102: 76
A103: 0 | B103: 28-People have said that I don’t own up to my problems. | H103: 3 | N103: 2 | U103: 77
A104: 0 | B104: 29-Fear or anxiety won’t stop me from doing something important. | H104: 2 | N104: 1 | U104: 78
A105: 0 | B105: 30-I try to deal with problems right away. | H105: 6 | N105: 5 | U105: 79
A106: 0 | B106: 31-I’d do anything to feel less stressed. | H106: 7 | N106: 6 | U106: 80
A107: 0 | B107: 32-If I have any doubts about doing something, I just won’t do it. | H107: 3 | N107: 2 | U107: 81
A108: 0 | B108: 33-When unpleasant memories come to me, I try to put them out of my mind. | H108: 4 | N108: =IF(H108=1,"MISSING", H108-1) -> 3 | U108: 82
A109: 0 | B109: 34-In this day and age people should not have to suffer. | H109: 2 | N109: 1 | U109: 83
A110: 0 | B110: 35-Others have told me that I suppress my feelings. | H110: 2 | N110: 1 | U110: 84
A111: 0 | B111: 36-I try to put off unpleasant tasks for as long as possible. | H111: 3 | N111: 2 | U111: 85
A112: 0 | B112: 37-When I am hurting, I still do what needs to be done. | H112: 6 | N112: 5 | U112: 86
A113: 0 | B113: 38-My life would be great if I never felt anxious. | H113: 6 | N113: 5 | U113: 87
A114: 0 | B114: 39-If I am starting to feel trapped, I leave the situation immediately. | H114: 5 | N114: 4 | U114: 88
A115: 0 | B115: 40-When a negative thought comes up, I immediately try to think of something else. | H115: 5 | N115: 4 | U115: 89
A116: 0 | B116: 41-It’s hard for me to know what I’m feeling. | H116: 4 | N116: 3 | U116: 90
A117: 0 | B117: 42-I won’t do something until I absolutely have to. | H117: 2 | N117: 1 | U117: 91
A118: 0 | B118: 43-I don’t let pain and discomfort stop me from getting what I want. | H118: 6 | N118: 5 | U118: 92
A119: 0 | B119: 44-I would give up a lot not to feel bad. | H119: 3 | N119: 2 | U119: 93
A120: 0 | B120: 45-I go out of my way to avoid uncomfortable situations. | H120: 5 | N120: 4 | U120: 94
A121: 0 | B121: 46-I can numb my feelings when they are too intense. | H121: 2 | N121: 1 | U121: 95
A122: 0 | B122: 47-Why do today what you can put off until tomorrow. | H122: 2 | N122: 1 | U122: 96
A123: 0 | B123: 48-I am willing to put up with sadness to get what I want. | H123: 4 | N123: 3 | U123: 97
A124: 0 | B124: 49-Some people have told me that I “hide my head in the sand ». | H124: 2 | N124: 1 | U124: 98
A125: 0 | B125: 50-Pain always leads to suffering. | H125: 3 | N125: 2 | U125: 99
A126: 0 | B126: 51-If I am in a slightly uncomfortable situation, I try to leave right away. | H126: 2 | N126: 1 | U126: 100
A127: 0 | B127: 52-It takes me awhile to realize when I’m feeling bad. | H127: 4 | N127: 3 | U127: 101
A128: 0 | B128: 53-I continue working toward my goals even if I have doubts. | H128: 5 | N128: 4 | U128: 102
A129: 0 | B129: 54-I wish I could get rid of all of my negative emotions. | H129: 6 | N129: 5 | U129: 103
A130: 0 | B130: 55-I avoid situations if there is a chance that I’ll feel nervous. | H130: 4 | N130: 3 | U130: 104
A131: 0 | B131: 56-I feel disconnected from my emotions. | H131: 2 | N131: 1 | U131: 105
A132: 0 | B132: 57-I don’t let gloomy thoughts stop me from doing what I want. | H132: 6 | N132: 5 | U132: 106
A133: 0 | B133: 58-The key to a good life is never feeling any pain. | H133: 2 | N133: 1 | U133: 107
A134: 0 | B134: 59-I’m quick to leave any situation that makes me feel uneasy. | H134: 3 | N134: 2 | U134: 108
A135: 0 | B135: 60-People have told me that I’m not aware of my problems. | H135: 2 | N135: 1 | U135: 109
A136: 0 | B136: 61-I hope to live without any sadness and disappointment. | H136: 4 | N136: 3 | U136: 110
A137: 0 | B137: 62-When working on something important, I won’t quit even if things get difficult. | H137: 7 | N137: 6 | U137: 111
U138: 112
U139: 113
B140: UIS | U140: 114
B141: You will find below a series of statements which describe how people may react to the uncertainties of life. Please use the scale below to describe to what extent each item is characteristic of you. | U141: 115
A142: =IF(H142=1,1,0) -> 0 | B142: 1. Uncertainty stops me from having a strong opinion. | H142: 4 | N142: =IF(H142=1,"MISSING", H142-1) -> 3 | P142: Please select | U142: 116
A143: 0 | B143: 2. Being uncertain means that a person is disorganized. | H143: 2 | N143: 1 | P143: 1 Not at all characteristic of me | Q143: 1 | U143: 117
A144: 0 | B144: 3. Uncertainty makes life intolerable. | H144: 3 | N144: 2 | P144: 2 A few characteristic of me | Q144: 2 | U144: 118
A145: 0 | B145: 4. It’s unfair having no guarantees in life. | H145: 3 | N145: 2 | P145: 3 Somewhat characteristic of me | Q145: 3 | U145: 119
A146: 0 | B146: 5. My mind can’t be relaxed if I don’t know what will happen tomorrow. | H146: 2 | N146: 1 | P146: 4 Very characteristic of me | Q146: 4 | U146: 120
A147: 0 | B147: 6. Uncertainty makes me uneasy, anxious, or stressed. | H147: 2 | N147: 1 | P147: 5 Entirely characteristic of me | Q147: 5 | U147: 121
A148: 0 | B148: 7. Unforeseen events upset me greatly. | H148: 3 | N148: 2 | U148: 122
A149: 0 | B149: 8. It frustrates me not having all the information I need. | H149: 2 | N149: 1 | U149: 123
A150: 0 | B150: 9. Uncertainty keeps me from living a full life. | H150: 2 | N150: 1 | U150: 124
A151: 0 | B151: 10. One should always look ahead so as to avoid surprises. | H151: 2 | N151: 1 | U151: 125
A152: 0 | B152: 11. As mall unforeseen event can spoil everything, even with the best planning. | H152: 4 | N152: 3
A153: 0 | B153: 12. When it’s time to act, uncertainty paralyses me. | H153: 2 | N153: 1
A154: 0 | B154: 13. Being uncertain means that I am not first rate. | H154: 2 | N154: 1
A155: 0 | B155: 14. When I am uncertain, I can’t go forward. | H155: 2 | N155: 1
A156: 0 | B156: 15. When I am uncertain, I can’t function very well. | H156: 2 | N156: 1
A157: 0 | B157: 16. Unlike me, others seem to know where they are going with their lives. | H157: 2 | N157: 1
A158: 0 | B158: 17. Uncertainty makes me vulnerable, unhappy, or sad. | H158: 2 | N158: 1
A159: 0 | B159: 18. I always want to know what the future has in store for me. | H159: 3 | N159: 2
A160: 0 | B160: 19. I can’t stand being taken by surprise. | H160: 2 | N160: 1
A161: 0 | B161: 20. The smallest doubt can stop me from acting. | H161: 2 | N161: 1
A162: 0 | B162: 21. I should be able to organize everything in advance. | H162: 2 | N162: 1
A163: 0 | B163: 22. Being uncertain means that I lack confidence. | H163: 2 | N163: 1
A164: 0 | B164: 23. I think it’s unfair that other people seem to be sure about their future. | H164: 2 | N164: 1
A165: 0 | B165: 24. Uncertainty keeps me from sleeping soundly. | H165: 2 | N165: 1
A166: 0 | B166: 25. I must get away from all uncertain situations. | H166: 2 | N166: 1
A167: 0 | B167: 26. The ambiguities in life stress me. | H167: 3 | N167: 2
A168: 0 | B168: 27. I can’t stand being undecided about my future. | H168: 2 | N168: 1
B171: MCQ-30
B172: This questionnaire is concerned with beliefs people have about their thinking. Listed below are a number of beliefs that people have expressed. Please read each item and say how much you generally agree with it by selecting the appropriate answer. Please respond to all the items, there are no right or wrong answers.
A173: =IF(H173=1,1,0) -> 0 | B173: 1 | C173: Worrying helps me to avoid problems in the future | H173: 4 | N173: =IF(H173=1,"MISSING", H173-1) -> 3 | P173: Please select
A174: 0 | B174: 2 | C174: My worrying is dangerous for me | H174: 3 | N174: 2 | P174: 1 Do not agree | Q174: 1
A175: 0 | B175: 3 | C175: I think a lot about my thoughts | H175: 2 | N175: 1 | P175: 2 Agree slightly | Q175: 2
A176: 0 | B176: 4 | C176: I could make myself sick with worrying | H176: 3 | N176: 2 | P176: 3 Agree moderately | Q176: 3
A177: 0 | B177: 5 | C177: I am aware of the way my mind works when I am thinking through a problem | H177: 2 | N177: 1 | P177: 4 Agree very much | Q177: 4
A178: 0 | B178: 6 | C178: If I did not control a worrying thought, and then it happened, it would be my fault | H178: 5 | N178: 4
A179: 0 | B179: 7 | C179: I need to worry in order to remain organized | H179: 3 | N179: 2
A180: 0 | B180: 8 | C180: I have little confidence in my memory for words and names | H180: 2 | N180: 1
A181: 0 | B181: 9 | C181: My worrying thoughts persist, no matter how I try to stop them | H181: 5 | N181: 4
A182: 0 | B182: 10 | C182: Worrying helps me to get things sorted out in my mind | H182: 3 | N182: 2
A183: 0 | B183: 11 | C183: I cannot ignore my worrying thoughts | H183: 5 | N183: 4
A184: 0 | B184: 12 | C184: I monitor my thoughts | H184: 2 | N184: 1
A185: 0 | B185: 13 | C185: I should be in control of my thoughts all of the time | H185: 3 | N185: 2
A186: 0 | B186: 14 | C186: My memory can mislead me at times | H186: 5 | N186: 4
A187: 0 | B187: 15 | C187: My worrying could make me go mad | H187: 3 | N187: 2
A188: 0 | B188: 16 | C188: I am constantly aware of my thinking | H188: 2 | N188: 1
A189: 0 | B189: 17 | C189: I have a poor memory | H189: 5 | N189: 4
A190: 0 | B190: 18 | C190: I pay close attention to the way my mind works | H190: 3 | N190: 2
A191: 0 | B191: 19 | C191: Worrying helps me to cope | H191: 2 | N191: 1
A192: 0 | B192: 20 | C192: Not being able to control my thoughts is a sign of weakness | H192: 3 | N192: 2
A193: 0 | B193: 21 | C193: If I could not control my thoughts, I would not be able to function | H193: 2 | N193: 1
A194: 0 | B194: 22 | C194: When I start worrying, I cannot stop | H194: 4 | N194: 3
A195: 0 | B195: 23 | C195: I will be punished for not controlling certain thoughts | H195: 2 | N195: 1
A196: 0 | B196: 24 | C196: Worrying helps me to solve problems | H196: 2 | N196: 1
A197: 0 | B197: 25 | C197: I have little confidence in my memory for places | H197: 2 | N197: 1
A198: 0 | B198: 26 | C198: It is bad to think certain thoughts | H198: 5 | N198: 4
A199: 0 | B199: 27 | C199: I do not trust my memory | H199: 5 | N199: 4
A200: 0 | B200: 28 | C200: I need to worry in order to work well | H200: 3 | N200: 2
A201: 0 | B201: 29 | C201: I have little confidence in my memory for actions | H201: 2 | N201: 1
A202: 0 | B202: 30 | C202: I constantly examine my thoughts | H202: 2 | N202: 1
B205: Mini-CERTS
B206: Read each item and then decide how you generally respond. Please put ONE tick for each row. Don’t agonise over individual answers, give the first response to each line that comes to mind.
B207: « When thoughts about myself, feelings, situations or events do come to mind … »
A208: =IF(H208=1,1,0) -> 0 | B208: 1. My thinking tends to get stuck in a rut, involving only a few themes. | H208: 4 | N208: =IF(H208=1,"MISSING", H208-1) -> 3 | P208: Please select
... 59 more rows

Sheet Quest T2
N1: Réponse
B2: PROCESSES ASSESMENT PROTOCOL - T2
B4: This page contains several questionnaires that measure psychological processes. Those questionnaires don't aim at assessing categorical diagnosis but intend to measure your way of functionning. Please answer those questions the most sincerely. In answering those questionnaires, you give your informed consent that your data may me used for research purpose. The data will be treated anonymously.
B9: DASS-21
B10: Please read each statement and circle a number 0, 1, 2 or 3 which indicates how much the statement applied to you over the past week. There are no right or wrong answers. Do not spend too much time on any statement.
A11: =IF(H11=1,1,0) -> 0 | B11: 1 | C11: I found it hard to wind down. | H11: 3 | N11: =IF(H11=1,"MISSING", H11-2) -> 1 | P11: Please select
A12: =IF(H12=1,1,0) -> 0 | B12: 2 | C12: I was aware of dryness of my mouth. | H12: 2 | N12: 0 | P12: 0 Did not apply to me at all
A13: 0 | B13: 3 | C13: I couldn’t seem to experience any positive feeling at all. | H13: 2 | N13: 0 | P13: 1 Applied to me to some degree, or some of the time
A14: 0 | B14: 4 | C14: I experienced breathing difficulty (eg, excessively rapid breathing, Breathlessness in the absence of physical exertion) | H14: 2 | N14: 0 | P14: 2 Applied to me to a considerable degree, or a good part of time
A15: 0 | B15: 5 | C15: I found it difficult to work up the initiative to do things. | H15: 2 | N15: 0 | P15: 3 Applied to me very much, or most of the time
A16: 0 | B16: 6 | C16: I tended to over-react to situations. | H16: 3 | N16: 1
A17: 0 | B17: 7 | C17: I experienced trembling (e.g., in the hands). | H17: 2 | N17: 0
A18: 0 | B18: 8 | C18: I felt that I was using a lot of nervous energy | H18: 3 | N18: 1
A19: 0 | B19: 9 | C19: I was worried about situations in which I might panic and make a fool of myself. | H19: 4 | N19: 2
A20: 0 | B20: 10 | C20: I felt that I had nothing to look forward to. | H20: 2 | N20: 0
A21: 0 | B21: 11 | C21: I found myself getting agitated. | H21: 3 | N21: 1
A22: 0 | B22: 12 | C22: I found it difficult to relax. | H22: 3 | N22: 1
A23: 0 | B23: 13 | C23: I felt down-hearted and blue. | H23: 3 | N23: 1
A24: 0 | B24: 14 | C24: I was intolerant of anything that kept me from getting on with what I was doing | H24: 2 | N24: 0
A25: 0 | B25: 15 | C25: I felt I was close to panic. | H25: 3 | N25: 1
A26: 0 | B26: 16 | C26: I was unable to become enthusiastic about anything. | H26: 2 | N26: 0
A27: 0 | B27: 17 | C27: I felt I wasn’t worth much as a person. | H27: 2 | N27: 0
A28: 0 | B28: 18 | C28: I felt that I was rather touchy. | H28: 3 | N28: 1
A29: 0 | B29: 19 | C29: I was aware of the action of my heart in the absence of physical exertion (e.g. sense of heart increase, heart missing a beat). | H29: 2 | N29: 0
A30: 0 | B30: 20 | C30: I felt scared without any good reason. | H30: 3 | N30: 1
A31: 0 | B31: 21 | C31: I felt that life was meaningless. | H31: 2 | N31: 0
B34: REQ-21
B35: We all experience many different feelings or emotions. For example, different things in our lives make us happy, sad, angry, etc. The following questionnaire asks you about how often you do certain things in response to your emotions. You do not have to think about specific emotions but just how often you generally do the things listed below. Please tick the box corresponding to the answer that fits best. We all respond to our emotions in different ways so there are no right or wrong answers.
A36: =IF(H36=1,1,0) -> 0 | B36: 1. I talk to someone about how I feel | H36: 4 | N36: =IF(H36=1,"MISSING", H36-1) -> 3 | P36: Please select
A37: 0 | B37: 2. I take my feelings out on others verbally (e.g., shouting, arguing). | H37: 3 | N37: 2 | P37: Never | Q37: 1
A38: 0 | B38: 3. I seek physical contact from friends of family (e.g., a hug, hold hands). | H38: 2 | N38: 1 | P38: Seldom | Q38: 2
A39: 0 | B39: 4. I reviews (rethink) my thoughts or beliefs. | H39: 5 | N39: 4 | P39: Often | Q39: 3
A40: 0 | B40: 5. I harm or punish myself in some way. | H40: 2 | N40: 1 | P40: Very often | Q40: 4
A41: 0 | B41: 6. I do something energetic (e.g., play sport, go for a walk). | H41: 2 | N41: 1 | P41: Always | Q41: 5
A42: 0 | B42: 7. I dwell on my thoughts and feelings (e.g., It goes round and round in my head and I can’t stop it). | H42: 4 | N42: 3
A43: 0 | B43: 8. I ask others for advice. | H43: 4 | N43: 3
A44: 0 | B44: 9. I review (rethink) my goals or plans. | H44: 3 | N44: 2
A45: 0 | B45: 10. I take my feelings out on others physically (e.g., fighting, lashing out). | H45: 2 | N45: 1
A46: 0 | B46: 11. I put the situation into perspective. | H46: 3 | N46: 2
A47: 0 | B47: 12. I concentrate on a pleasant activity. | H47: 3 | N47: 2
A48: 0 | B48: 13. I try to make others feel bad (e.g., being rude, ignoring them). | H48: 2 | N48: 1
A49: 0 | B49: 14. I think about people better off and make myself feel worse. | H49: 2 | N49: 1
A50: 0 | B50: 15. I keep the feeling locked up inside. | H50: 3 | N50: 2
A51: 0 | B51: 16. I plan what I could do better next time. | H51: 4 | N51: 3
A52: 0 | B52: 17. I bully other people (e.g. saying nasty things to them, hitting them) | H52: 2 | N52: 1
A53: 0 | B53: 18. I take my feelings out on objects around me (e.g., deliberately causing damage to my house, school or outdoor things). | H53: 2 | N53: 1
A54: 0 | B54: 19. Things feel unreal (e.g., I feel strange, things around me feel strange, I daydream). | H54: 2 | N54: 1
A55: 0 | B55: 20. I telephone friends or family. | H55: 3 | N55: 2
A56: 0 | B56: 21. I go out and do something nice (e.g., cinema, shopping, go for a meal, meet people). | H56: 4 | N56: 3
B59: MEAQ
B60: Please indicate the extent to which you agree or disagree with each of the following statements
A61: =IF(H61=1,1,0) -> 0 | B61: 1-I won’t do something if I think it will make me uncomfortable. | H61: 3 | N61: =IF(H61=1,"MISSING", H61-1) -> 2 | P61: Please select
A62: 0 | B62: 2-If I could magically remove all of my painful memories, I would. | H62: 6 | N62: 5 | P62: Strongly disagree | Q62: 1
A63: 0 | B63: 3-When something upsetting comes up, I try very hard to stop thinking about it. | H63: 2 | N63: 1 | P63: Moderately disagree | Q63: 2
A64: 0 | B64: 4-I sometimes have difficulty identifying how I feel. | H64: 3 | N64: 2 | P64: Slightly disagree | Q64: 3
A65: 0 | B65: 5-I tend to put off unpleasant things that need to get done. | H65: 2 | N65: 1 | P65: Slightly agree | Q65: 4
A66: 0 | B66: 6-People should face their fears. | H66: 6 | N66: 5 | P66: Moderatly agree | Q66: 5
A67: 0 | B67: 7-Happiness means never feeling any pain or disappointment. | H67: 2 | N67: 1 | P67: Strongly agree | Q67: 6
A68: 0 | B68: 8-I avoid activities if there is even a small possibility of getting hurt. | H68: 3 | N68: 2
A69: 0 | B69: 9-When negative thoughts come up, I try to fill my head with something else. | H69: 3 | N69: 2
A70: 0 | B70: 10-At times, people have told me I’m in denial. | H70: 2 | N70: 1
A71: 0 | B71: 11-I sometimes procrastinate to avoid facing challenges. | H71: 3 | N71: 2
A72: 0 | B72: 12-Even when I feel uncomfortable, I don’t give up working toward things I value. | H72: 6 | N72: 5
A73: 0 | B73: 13-When I am hurting, I would do anything to feel better. | H73: 5 | N73: 4
A74: 0 | B74: 14-I rarely do something if there is a chance that it will upset me. | H74: 4 | N74: 3
A75: 0 | B75: 15-I usually try to distract myself when I feel something painful. | H75: 3 | N75: 2
A76: 0 | B76: 16-I am able to « turn off » my emotions when I don’t want to feel. | H76: 2 | N76: 1
A77: 0 | B77: 17-When I have something important to do I find myself doing a lot of other things instead. | H77: 3 | N77: 2
A78: 0 | B78: 18-I am willing to put up with pain and discomfort to get what I want. | H78: 4 | N78: 3
A79: 0 | B79: 19-Happiness involves getting rid of negative thoughts. | H79: 5 | N79: 4
A80: 0 | B80: 20-I work hard to avoid situations that might bring up unpleasant thoughts and feelings in me. | H80: 4 | N80: 3
A81: 0 | B81: 21-I don’t realize I’m anxious until other people tell me. | H81: 2 | N81: 1
A82: 0 | B82: 22-When upsetting memories come up, I try to focus on other things. | H82: 3 | N82: 2
A83: 0 | B83: 23-I am in touch with my emotions. | H83: 3 | N83: 2
A84: 0 | B84: 24-I am willing to suffer for the things that matter to me. | H84: 5 | N84: 4
A85: 0 | B85: 25-One of my big goals is to be free from painful emotions. | H85: 2 | N85: 1
A86: 0 | B86: 26-I prefer to stick to what I am comfortable with, rather than try new activities. | H86: 2 | N86: 1
A87: 0 | B87: 27-I work hard to keep out upsetting feelings. | H87: 4 | N87: 3
A88: 0 | B88: 28-People have said that I don’t own up to my problems. | H88: 2 | N88: 1
A89: 0 | B89: 29-Fear or anxiety won’t stop me from doing something important. | H89: 2 | N89: 1
A90: 0 | B90: 30-I try to deal with problems right away. | H90: 5 | N90: 4
A91: 0 | B91: 31-I’d do anything to feel less stressed. | H91: 6 | N91: 5
A92: 0 | B92: 32-If I have any doubts about doing something, I just won’t do it. | H92: 3 | N92: 2
A93: 0 | B93: 33-When unpleasant memories come to me, I try to put them out of my mind. | H93: 3 | N93: =IF(H93=1,"MISSING", H93-1) -> 2
A94: 0 | B94: 34-In this day and age people should not have to suffer. | H94: 3 | N94: 2
A95: 0 | B95: 35-Others have told me that I suppress my feelings. | H95: 2 | N95: 1
A96: 0 | B96: 36-I try to put off unpleasant tasks for as long as possible. | H96: 3 | N96: 2
A97: 0 | B97: 37-When I am hurting, I still do what needs to be done. | H97: 6 | N97: 5
A98: 0 | B98: 38-My life would be great if I never felt anxious. | H98: 6 | N98: 5
A99: 0 | B99: 39-If I am starting to feel trapped, I leave the situation immediately. | H99: 3 | N99: 2
A100: 0 | B100: 40-When a negative thought comes up, I immediately try to think of something else. | H100: 3 | N100: 2
A101: 0 | B101: 41-It’s hard for me to know what I’m feeling. | H101: 5 | N101: 4
A102: 0 | B102: 42-I won’t do something until I absolutely have to. | H102: 2 | N102: 1
A103: 0 | B103: 43-I don’t let pain and discomfort stop me from getting what I want. | H103: 3 | N103: 2
A104: 0 | B104: 44-I would give up a lot not to feel bad. | H104: 3 | N104: 2
A105: 0 | B105: 45-I go out of my way to avoid uncomfortable situations. | H105: 4 | N105: 3
A106: 0 | B106: 46-I can numb my feelings when they are too intense. | H106: 2 | N106: 1
A107: 0 | B107: 47-Why do today what you can put off until tomorrow. | H107: 2 | N107: 1
A108: 0 | B108: 48-I am willing to put up with sadness to get what I want. | H108: 5 | N108: 4
A109: 0 | B109: 49-Some people have told me that I “hide my head in the sand ». | H109: 2 | N109: 1
A110: 0 | B110: 50-Pain always leads to suffering. | H110: 4 | N110: 3
A111: 0 | B111: 51-If I am in a slightly uncomfortable situation, I try to leave right away. | H111: 2 | N111: 1
A112: 0 | B112: 52-It takes me awhile to realize when I’m feeling bad. | H112: 3 | N112: 2
A113: 0 | B113: 53-I continue working toward my goals even if I have doubts. | H113: 5 | N113: 4
A114: 0 | B114: 54-I wish I could get rid of all of my negative emotions. | H114: 5 | N114: 4
A115: 0 | B115: 55-I avoid situations if there is a chance that I’ll feel nervous. | H115: 4 | N115: 3
A116: 0 | B116: 56-I feel disconnected from my emotions. | H116: 2 | N116: 1
A117: 0 | B117: 57-I don’t let gloomy thoughts stop me from doing what I want. | H117: 7 | N117: 6
A118: 0 | B118: 58-The key to a good life is never feeling any pain. | H118: 2 | N118: 1
A119: 0 | B119: 59-I’m quick to leave any situation that makes me feel uneasy. | H119: 2 | N119: 1
A120: 0 | B120: 60-People have told me that I’m not aware of my problems. | H120: 2 | N120: 1
A121: 0 | B121: 61-I hope to live without any sadness and disappointment. | H121: 3 | N121: 2
A122: 0 | B122: 62-When working on something important, I won’t quit even if things get difficult. | H122: 7 | N122: 6
B125: UIS
B126: You will find below a series of statements which describe how people may react to the uncertainties of life. Please use the scale below to describe to what extent each item is characteristic of you.
A127: =IF(H127=1,1,0) -> 0 | B127: 1. Uncertainty stops me from having a strong opinion. | H127: 4 | N127: =IF(H127=1,"MISSING", H127-1) -> 3 | P127: Please select
A128: 0 | B128: 2. Being uncertain means that a person is disorganized. | H128: 2 | N128: 1 | P128: Not at all characteristic of me | Q128: 1
A129: 0 | B129: 3. Uncertainty makes life intolerable. | H129: 2 | N129: 1 | P129: A few characteristic of me | Q129: 2
A130: 0 | B130: 4. It’s unfair having no guarantees in life. | H130: 2 | N130: 1 | P130: Somewhat characteristic of me | Q130: 3
A131: 0 | B131: 5. My mind can’t be relaxed if I don’t know what will happen tomorrow. | H131: 2 | N131: 1 | P131: Very characteristic of me | Q131: 4
A132: 0 | B132: 6. Uncertainty makes me uneasy, anxious, or stressed. | H132: 2 | N132: 1 | P132: Entirely characteristic of me | Q132: 5
A133: 0 | B133: 7. Unforeseen events upset me greatly. | H133: 2 | N133: 1
A134: 0 | B134: 8. It frustrates me not having all the information I need. | H134: 2 | N134: 1
A135: 0 | B135: 9. Uncertainty keeps me from living a full life. | H135: 2 | N135: 1
A136: 0 | B136: 10. One should always look ahead so as to avoid surprises. | H136: 2 | N136: 1
A137: 0 | B137: 11. As mall unforeseen event can spoil everything, even with the best planning. | H137: 5 | N137: 4
A138: 0 | B138: 12. When it’s time to act, uncertainty paralyses me. | H138: 2 | N138: 1
A139: 0 | B139: 13. Being uncertain means that I am not first rate. | H139: 2 | N139: 1
A140: 0 | B140: 14. When I am uncertain, I can’t go forward. | H140: 2 | N140: 1
A141: 0 | B141: 15. When I am uncertain, I can’t function very well. | H141: 2 | N141: 1
A142: 0 | B142: 16. Unlike me, others seem to know where they are going with their lives. | H142: 2 | N142: 1
A143: 0 | B143: 17. Uncertainty makes me vulnerable, unhappy, or sad. | H143: 2 | N143: 1
A144: 0 | B144: 18. I always want to know what the future has in store for me. | H144: 2 | N144: 1
A145: 0 | B145: 19. I can’t stand being taken by surprise. | H145: 3 | N145: 2
A146: 0 | B146: 20. The smallest doubt can stop me from acting. | H146: 2 | N146: 1
A147: 0 | B147: 21. I should be able to organize everything in advance. | H147: 3 | N147: 2
A148: 0 | B148: 22. Being uncertain means that I lack confidence. | H148: 2 | N148: 1
A149: 0 | B149: 23. I think it’s unfair that other people seem to be sure about their future. | H149: 2 | N149: 1
A150: 0 | B150: 24. Uncertainty keeps me from sleeping soundly. | H150: 2 | N150: 1
A151: 0 | B151: 25. I must get away from all uncertain situations. | H151: 2 | N151: 1
A152: 0 | B152: 26. The ambiguities in life stress me. | H152: 2 | N152: 1
A153: 0 | B153: 27. I can’t stand being undecided about my future. | H153: 3 | N153: 2
B156: MCQ-30
B157: This questionnaire is concerned with beliefs people have about their thinking. Listed below are a number of beliefs that people have expressed. Please read each item and say how much you generally agree with it by selecting the appropriate answer. Please respond to all the items, there are no right or wrong answers.
A158: =IF(H158=1,1,0) -> 0 | B158: 1 | C158: Worrying helps me to avoid problems in the future | H158: 3 | N158: =IF(H158=1,"MISSING", H158-1) -> 2 | P158: Please select
A159: 0 | B159: 2 | C159: My worrying is dangerous for me | H159: 3 | N159: 2 | P159: Do not agree | Q159: 1
A160: 0 | B160: 3 | C160: I think a lot about my thoughts | H160: 2 | N160: 1 | P160: Agree slightly | Q160: 2
A161: 0 | B161: 4 | C161: I could make myself sick with worrying | H161: 3 | N161: 2 | P161: Agree moderately | Q161: 3
A162: 0 | B162: 5 | C162: I am aware of the way my mind works when I am thinking through a problem | H162: 2 | N162: 1 | P162: Agree very much | Q162: 4
A163: 0 | B163: 6 | C163: If I did not control a worrying thought, and then it happened, it would be my fault | H163: 4 | N163: 3
A164: 0 | B164: 7 | C164: I need to worry in order to remain organized | H164: 3 | N164: 2
A165: 0 | B165: 8 | C165: I have little confidence in my memory for words and names | H165: 4 | N165: 3
A166: 0 | B166: 9 | C166: My worrying thoughts persist, no matter how I try to stop them | H166: 3 | N166: 2
A167: 0 | B167: 10 | C167: Worrying helps me to get things sorted out in my mind | H167: 3 | N167: 2
A168: 0 | B168: 11 | C168: I cannot ignore my worrying thoughts | H168: 3 | N168: 2
A169: 0 | B169: 12 | C169: I monitor my thoughts | H169: 2 | N169: 1
A170: 0 | B170: 13 | C170: I should be in control of my thoughts all of the time | H170: 2 | N170: 1
A171: 0 | B171: 14 | C171: My memory can mislead me at times | H171: 3 | N171: 2
A172: 0 | B172: 15 | C172: My worrying could make me go mad | H172: 2 | N172: 1
A173: 0 | B173: 16 | C173: I am constantly aware of my thinking | H173: 3 | N173: 2
A174: 0 | B174: 17 | C174: I have a poor memory | H174: 2 | N174: 1
A175: 0 | B175: 18 | C175: I pay close attention to the way my mind works | H175: 3 | N175: 2
A176: 0 | B176: 19 | C176: Worrying helps me to cope | H176: 3 | N176: 2
A177: 0 | B177: 20 | C177: Not being able to control my thoughts is a sign of weakness | H177: 2 | N177: 1
A178: 0 | B178: 21 | C178: If I could not control my thoughts, I would not be able to function | H178: 2 | N178: 1
A179: 0 | B179: 22 | C179: When I start worrying, I cannot stop | H179: 2 | N179: 1
A180: 0 | B180: 23 | C180: I will be punished for not controlling certain thoughts | H180: 3 | N180: 2
A181: 0 | B181: 24 | C181: Worrying helps me to solve problems | H181: 2 | N181: 1
A182: 0 | B182: 25 | C182: I have little confidence in my memory for places | H182: 2 | N182: 1
A183: 0 | B183: 26 | C183: It is bad to think certain thoughts | H183: 3 | N183: 2
A184: 0 | B184: 27 | C184: I do not trust my memory | H184: 3 | N184: 2
A185: 0 | B185: 28 | C185: I need to worry in order to work well | H185: 3 | N185: 2
A186: 0 | B186: 29 | C186: I have little confidence in my memory for actions | H186: 2 | N186: 1
A187: 0 | B187: 30 | C187: I constantly examine my thoughts | H187: 2 | N187: 1
B190: Mini-CERTS
B191: Read each item and then decide how you generally respond. Please put ONE tick for each row. Don’t agonise over individual answers, give the first response to each line that comes to mind.
B192: « When thoughts about myself, feelings, situations or events do come to mind … »
A193: =IF(H193=1,1,0) -> 0 | B193: 1. My thinking tends to get stuck in a rut, involving only a few themes. | H193: 3 | N193: =IF(H193=1,"MISSING", H193-1) -> 2 | P193: Please select
A194: 0 | B194: 2. I can grasp and respond to changes in the world around me without having to analyze the details | H194: 3 | N194: 2 | P194: Almost never
A195: 0 | B195: 3. I compare myself to other people | H195: 4 | N195: 3 | P195: Sometimes
A196: 0 | B196: 4. My thinking tends to become open, loose, expansive and creative | H196: 2 | N196: 1 | P196: Often
A197: 0 | B197: 5. I judge myself against my own standards and beliefs | H197: 5 | N197: 4 | P197: Almost Always
A198: 0 | B198: 6. I focus on why things happened the way they did | H198: 3 | N198: 2
A199: 0 | B199: 7. I think about why I can’t get started on something | H199: 3 | N199: 2
A200: 0 | B200: 8. My thoughts move in new and interesting directions | H200: 3 | N200: 2
A201: 0 | B201: 9. I seem to be engaged in and directly in touch with what is going on around me | H201: 3 | N201: 2
A202: 0 | B202: 10. I think I’m no good at all | H202: 2 | N202: 1
A203: 0 | B203: 11. I’m relaxed about going with the flow of what comes to mind | H203: 4 | N203: 3
A204: 0 | B204: 12. I feel under pressure to stop my worse fears happening | H204: 4 | N204: 3
A205: 0 | B205: 13. I focus on exploring and playing with ideas, curious about where it will lead | H205: 3 | N205: 2
A206: 0 | B206: 14. My thinking tends to spiral out from one specific event to broader, general aspects of my life | H206: 3 | N206: 2
A207: 0 | B207: 15. I am concerned about what other people might think of me | H207: 4 | N207: 3
A208: 0 | B208: 16. I have very rapid impressions and intuitions of what is happening around me | H208: 3 | N208: 2
B211: SE
B212: Each of us develops beliefs about our capacity and skills in different areas. For the various areas below (as well as others that may seem relevant to you), indicate the level of confidence with which you think you can handle things with the following scale:
B214: To handle things means doing what needs to be done, to have the right attitude, to be able to cope.
B215: I have confidence in my ability to handle things … | H215: Please fill in a number between 0 and 100 in the boxes below.Veuillez remplir un chiffre allant de 0 à 100 dans les cases ci-dessous. If this area is not relevant to you, simply note N / A for not applicable.
A216: =IF(ISBLANK(H216),1,0) -> 0 | B216: …in the relationships within family | H216: 20 | N216: =(IF(ISBLANK(H216),"MISSING",H216)) -> 20
A217: =IF(ISBLANK(H217),1,0) -> 0 | B217: …in the relationships within my couple | H217: 75 | N217: 75
A218: 0 | B218: …in the relationships with my friends | H218: 60 | N218: 60
... 41 more rows

Sheet Therapist
B2: To be filled in by the therapist:
R3: Réponse
A4: =IF('Quest T1'!E7=1,1,0) -> 0 | B4: Age | D4: 1 | R4: =IF('Quest T1'!E7=1,"MANQUANT", 'Quest T1'!E7-1) -> 33
B6: Sex
A7: =IF('Quest T1'!C10=1,1,0) -> 0 | B7: 1 | R7: =IF('Quest T1'!C10=1,"MANQUANT", 'Quest T1'!C10-2) -> 0
B9: Niveau d’étude
A10: =IF('Quest T1'!C13=1,1,0) -> 0 | B10: 1 | R10: =IF('Quest T1'!C13=1,"MANQUANT", 'Quest T1'!C13-1) -> 5
B12: Statut professionnel
A13: =IF('Quest T1'!C16=1,1,0) -> 0 | B13: 1 | R13: =IF('Quest T1'!C16=1,"MANQUANT", 'Quest T1'!C16-1) -> 3
B15: Statut familial
A16: =IF('Quest T1'!C19=1,1,0) -> 0 | B16: 1 | R16: =IF('Quest T1'!C19=1,"MANQUANT", 'Quest T1'!C19-1) -> 3
A18: =IF(OR(ISBLANK(C19),ISBLANK(C20)),1,0) -> 1 | B18: Place of Counselling
A19: =IF(B19=1,1,0) -> 0 | B19: Country | R19: =IF(OR(ISBLANK(C19),ISBLANK(C20)),"MANQUANT", CONCATENATE(C19,"; ",C20,"; ",C21)) -> MANQUANT
B20: City
B21: Institution
A23: =IF(ISBLANK(D23),1,0) -> 1 | B23: Identification number | R23: =IF(ISBLANK(D23),"MANQUANT", D23) -> MANQUANT
B24: (optional)
B26: Population
A27: =IF(B27=1,1,0) -> 0 | B27: 3 | R27: =IF(B27=1,"MANQUANT", B27-2) -> 1 | V27: Please select
V28: Control | W28: 0
B29: Diagnosis (DSM-IV-TR) | V29: Clinic | W29: 1
A30: =IF(D30=1,1,0) -> 0 | B30: Primaire | C30: Code | D30: 213 | H30: 1 | R30: =IF(D30=1,"MANQUANT",VLOOKUP(D30-1,$AB$33:$AD$453,3)) -> 300.21
A31: 0 | C31: Intensité | D31: 7 | R31: =IF(D31=1,"MANQUANT", D31-2) -> 5 | V31: Please select the intensity of the disorder
A32: 1 | B32: Secondaire | C32: Code | D32: 1 | R32: =IF(D32=1,"MANQUANT",VLOOKUP(D32-1,$AB$33:$AD$453,3)) -> MANQUANT | U32: 0 | V32: 0 : the disorder doesn't cause any impairement | AC32: Please select the DSM code
A33: 1 | C33: Intensité | D33: 1 | R33: =IF(D33=1,"MANQUANT", D33-2) -> MANQUANT | U33: 1 | V33: 1 | AB33: 1 | AC33: 290.40 - Vascular Dementia, Uncomplicated | AD33: 290.40
A34: 1 | B34: Tertiaire | C34: Code | D34: 1 | R34: =IF(D34=1,"MANQUANT",VLOOKUP(D34-1,$AB$33:$AD$453,3)) -> MANQUANT | U34: 2 | V34: 2 : the disorder slighly interferes with some professional, social or familial activities; it causes dyscomfort for the individual. | AB34: 2 | AC34: 290.41 - Vascular Dementia, With Delirium | AD34: 290.41
A35: 1 | C35: Intensité | D35: 1 | R35: =IF(D35=1,"MANQUANT", D35-2) -> MANQUANT | U35: 3 | V35: 3 | AB35: 3 | AC35: 290.42 - Vascular Dementia, With Delusions | AD35: 290.42
U36: 4 | V36: 4 : the disorder is an obstacle for some important professional, social or familial activities; it causes suffering to the individual and his/her relatives. | AB36: 4 | AC36: 290.43 - Vascular Dementia, With Depressed Mood | AD36: 290.43
U37: 5 | V37: 5 | AB37: 5 | AC37: 291.0 - Alcohol Intoxication Delirium | AD37: 291.0
B38: List of diagnosis (You can click on the arrow on the right to search. Then fill in the fields above. Don't click on cancel) | U38: 6 | V38: 6 : the disorder prevent the individual to realize important professional, social of familial activities; it causes important suffering to the individuel and his/her relatives | AB38: 6 | AC38: 291.0 - Alcohol Withdrawal Delirium | AD38: 291.0
B39: 290.40 - Vascular Dementia, Uncomplicated | U39: 7 | V39: 7 | AB39: 7 | AC39: 291.1 - Alcohol-Induced Persisting Amnestic Disorder | AD39: 291.1
B40: 290.41 - Vascular Dementia, With Delirium | U40: 8 | V40: 8 : the disorder requires hospitalization or institutional placement | AB40: 8 | AC40: 291.2 - Alcohol-Induced Persisting Dementia | AD40: 291.2
B41: 290.42 - Vascular Dementia, With Delusions | AB41: 9 | AC41: 291.3 - Alcohol-Induced Induced Psychotic Disorder, WithHallucinations | AD41: 291.3
B42: 290.43 - Vascular Dementia, With Depressed Mood | AB42: 10 | AC42: 291.5 - Alcohol-Induced Psychotic Disorder, With Delusions | AD42: 291.5
B43: 291.0 - Alcohol Intoxication Delirium | AB43: 11 | AC43: 291.81 - Alcohol Withdrawal (new code as of 10/01/96) | AD43: 291.81
B44: 291.0 - Alcohol Withdrawal Delirium | AB44: 12 | AC44: 291.82 - Alcohol-Induced Sleep Disorder (new code as of 10.01.2005) | AD44: 291.82
B45: 291.1 - Alcohol-Induced Persisting Amnestic Disorder | AB45: 13 | AC45: 291.89 - Alcohol-Induced Anxiety Disorder (new code as of 10/01/96) | AD45: 291.89
B46: 291.2 - Alcohol-Induced Persisting Dementia | AB46: 14 | AC46: 291.89 - Alcohol-Induced Mood Disorder (new code as of 10/01/96) | AD46: 291.89
B47: 291.3 - Alcohol-Induced Induced Psychotic Disorder, WithHallucinations | AB47: 15 | AC47: 291.89 - Alcohol-Induced Sexual Dysfunction (new code as of 10/01/96) | AD47: 291.89
B48: 291.5 - Alcohol-Induced Psychotic Disorder, With Delusions | AB48: 16 | AC48: 291.89 - Alcohol-Induced Sleep Disorder (10.01.1996-10.01.2005) | AD48: 291.89
B49: 291.81 - Alcohol Withdrawal (new code as of 10/01/96) | AB49: 17 | AC49: 291.9 - Alcohol-Related Disorder NOS | AD49: 291.9
B50: 291.82 - Alcohol-Induced Sleep Disorder (new code as of 10.01.2005) | AB50: 18 | AC50: 292.0 - Amphetamine Withdrawal | AD50: 292.0
B51: 291.89 - Alcohol-Induced Anxiety Disorder (new code as of 10/01/96) | AB51: 19 | AC51: 292.0 - Cocaine Withdrawal | AD51: 292.0
B52: 291.89 - Alcohol-Induced Mood Disorder (new code as of 10/01/96) | AB52: 20 | AC52: 292.0 - Nicotine Withdrawal | AD52: 292.0
B53: 291.89 - Alcohol-Induced Sexual Dysfunction (new code as of 10/01/96) | AB53: 21 | AC53: 292.0 - Opioid Withdrawal | AD53: 292.0
B54: 291.89 - Alcohol-Induced Sleep Disorder (10.01.1996-10.01.2005) | AB54: 22 | AC54: 292.0 - Other (or Unknown) Substance Withdrawal | AD54: 292.0
B55: 291.9 - Alcohol-Related Disorder NOS | AB55: 23 | AC55: 292.0 - Sedative, Hypnotic, or Anxiolytic Withdrawal | AD55: 292.0
B56: 292.0 - Amphetamine Withdrawal | AB56: 24 | AC56: 292.11 - Amphetamine-Induced Psychotic Disorder, WithDelusions | AD56: 292.11
B57: 292.0 - Cocaine Withdrawal | AB57: 25 | AC57: 292.11 - Cannabis-Induced Psychotic Disorder, With Delusions | AD57: 292.11
B58: 292.0 - Nicotine Withdrawal | AB58: 26 | AC58: 292.11 - Cocaine-Induced Psychotic Disorder, With Delusions | AD58: 292.11
B59: 292.0 - Opioid Withdrawal | AB59: 27 | AC59: 292.11 - Hallucinogen-Induced Psychotic Disorder, WithDelusions | AD59: 292.11
B60: 292.0 - Other (or Unknown) Substance Withdrawal | AB60: 28 | AC60: 292.11 - Inhalant-Induced Psychotic Disorder, With Delusions | AD60: 292.11
B61: 292.0 - Sedative, Hypnotic, or Anxiolytic Withdrawal | AB61: 29 | AC61: 292.11 - Opioid-Induced Psychotic Disorder, With Delusions | AD61: 292.11
B62: 292.11 - Amphetamine-Induced Psychotic Disorder, WithDelusions | AB62: 30 | AC62: 292.11 - Other (or Unknown) Substance Induced Psychotic Disorder, With Delusions | AD62: 292.11
B63: 292.11 - Cannabis-Induced Psychotic Disorder, With Delusions | AB63: 31 | AC63: 292.11 - Phencyclidine-Induced Psychotic Disorder, WithDelusions | AD63: 292.11
B64: 292.11 - Cocaine-Induced Psychotic Disorder, With Delusions | AB64: 32 | AC64: 292.11 - Sedative, Hypnotic, or Anxiolytic-Induced Psychotic Disorder, With Delusions | AD64: 292.11
B65: 292.11 - Hallucinogen-Induced Psychotic Disorder, WithDelusions | AB65: 33 | AC65: 292.12 - Amphetamine-Induced Psychotic Disorder, WithHallucinations | AD65: 292.12
B66: 292.11 - Inhalant-Induced Psychotic Disorder, With Delusions | AB66: 34 | AC66: 292.12 - Cannabis-Induced Psychotic Disorder, WithHallucinations | AD66: 292.12
B67: 292.11 - Opioid-Induced Psychotic Disorder, With Delusions | AB67: 35 | AC67: 292.12 - Cocaine-Induced Psychotic Disorder, WithHallucinations | AD67: 292.12
B68: 292.11 - Other (or Unknown) Substance Induced Psychotic Disorder, With Delusions | AB68: 36 | AC68: 292.12 - Hallucinogen-Induced Psychotic Disorder, WithHallucinations | AD68: 292.12
B69: 292.11 - Phencyclidine-Induced Psychotic Disorder, WithDelusions | AB69: 37 | AC69: 292.12 - Inhalant-Induced Psychotic Disorder, WithHallucinations | AD69: 292.12
B70: 292.11 - Sedative, Hypnotic, or Anxiolytic-Induced Psychotic Disorder, With Delusions | AB70: 38 | AC70: 292.12 - Opioid-Induced Psychotic Disorder, WithHallucinations | AD70: 292.12
B71: 292.12 - Amphetamine-Induced Psychotic Disorder, WithHallucinations | AB71: 39 | AC71: 292.12 - Other (or Unknown) Substance-Induced Psychotic Disorder, With Hallucinations | AD71: 292.12
B72: 292.12 - Cannabis-Induced Psychotic Disorder, WithHallucinations | AB72: 40 | AC72: 292.12 - Phencyclidine-Induced Psychotic Disorder, WithHallucinations | AD72: 292.12
B73: 292.12 - Cocaine-Induced Psychotic Disorder, WithHallucinations | AB73: 41 | AC73: 292.12 - Sedative, Hypnotic, or Anxiolytic-Induced Psychotic Disorder, With Hallucinations | AD73: 292.12
B74: 292.12 - Hallucinogen-Induced Psychotic Disorder, WithHallucinations | AB74: 42 | AC74: 292.81 - Amphetamine Intoxication Delirium | AD74: 292.81
B75: 292.12 - Inhalant-Induced Psychotic Disorder, WithHallucinations | AB75: 43 | AC75: 292.81 - Cannabis Intoxication Delirium | AD75: 292.81
B76: 292.12 - Opioid-Induced Psychotic Disorder, WithHallucinations | AB76: 44 | AC76: 292.81 - Cocaine Intoxication Delirium | AD76: 292.81
B77: 292.12 - Other (or Unknown) Substance-Induced Psychotic Disorder, With Hallucinations | AB77: 45 | AC77: 292.81 - Hallucinogen Intoxication Delirium | AD77: 292.81
B78: 292.12 - Phencyclidine-Induced Psychotic Disorder, WithHallucinations | AB78: 46 | AC78: 292.81 - Inhalant Intoxication Delirium | AD78: 292.81
B79: 292.12 - Sedative, Hypnotic, or Anxiolytic-Induced Psychotic Disorder, With Hallucinations | AB79: 47 | AC79: 292.81 - Opioid Intoxication Delirium | AD79: 292.81
B80: 292.81 - Amphetamine Intoxication Delirium | AB80: 48 | AC80: 292.81 - Other (or Unknown) Intoxication Delirium | AD80: 292.81
B81: 292.81 - Cannabis Intoxication Delirium | AB81: 49 | AC81: 292.81 - Phencyclidine Intoxication Delirium | AD81: 292.81
B82: 292.81 - Cocaine Intoxication Delirium | AB82: 50 | AC82: 292.81 - Sedative, Hypnotic, or Anxiolytic Intoxication Delirium | AD82: 292.81
B83: 292.81 - Hallucinogen Intoxication Delirium | AB83: 51 | AC83: 292.81 - Sedative, Hypnotic, or Anxiolytic Withdrawal Delirium | AD83: 292.81
B84: 292.81 - Inhalant Intoxication Delirium | AB84: 52 | AC84: 292.82 - Inhalant-Induced Persisting Dementia | AD84: 292.82
B85: 292.81 - Opioid Intoxication Delirium | AB85: 53 | AC85: 292.82 - Other (or Unknown) Substance-Induced Persisting Dementia | AD85: 292.82
B86: 292.81 - Other (or Unknown) Intoxication Delirium | AB86: 54 | AC86: 292.82 - Sedative, Hypnotic, or Anxiolytic-Induced Persisting Dementia | AD86: 292.82
B87: 292.81 - Phencyclidine Intoxication Delirium | AB87: 55 | AC87: 292.83 - Other (or Unknown) Substance-Induced Persisting Amnestic Disorder | AD87: 292.83
B88: 292.81 - Sedative, Hypnotic, or Anxiolytic Intoxication Delirium | AB88: 56 | AC88: 292.83 - Sedative, Hypnotic, or Anxiolytic-Induced Persisting Amnestic Disorder | AD88: 292.83
B89: 292.81 - Sedative, Hypnotic, or Anxiolytic Withdrawal Delirium | AB89: 57 | AC89: 292.84 - Amphetamine-Induced Mood Disorder | AD89: 292.84
B90: 292.82 - Inhalant-Induced Persisting Dementia | AB90: 58 | AC90: 292.84 - Cocaine-Induced Mood Disorder | AD90: 292.84
B91: 292.82 - Other (or Unknown) Substance-Induced Persisting Dementia | AB91: 59 | AC91: 292.84 - Hallucinogen-Induced Mood Disorder | AD91: 292.84
B92: 292.82 - Sedative, Hypnotic, or Anxiolytic-Induced Persisting Dementia | AB92: 60 | AC92: 292.84 - Inhalant-Induced Mood Disorder | AD92: 292.84
B93: 292.83 - Other (or Unknown) Substance-Induced Persisting Amnestic Disorder | AB93: 61 | AC93: 292.84 - Opioid-Induced Mood Disorder | AD93: 292.84
B94: 292.83 - Sedative, Hypnotic, or Anxiolytic-Induced Persisting Amnestic Disorder | AB94: 62 | AC94: 292.84 - Other (or Unknown) Substance-Induced Mood Disorder | AD94: 292.84
B95: 292.84 - Amphetamine-Induced Mood Disorder | AB95: 63 | AC95: 292.84 - Phencyclidine-Induced Mood Disorder | AD95: 292.84
B96: 292.84 - Cocaine-Induced Mood Disorder | AB96: 64 | AC96: 292.84 - Sedative, Hypnotic, or Anxiolytic-Induced Mood Disorder | AD96: 292.84
B97: 292.84 - Hallucinogen-Induced Mood Disorder | AB97: 65 | AC97: 292.85 - Amphetamine-Induced Sleep Disorder (new code as of 10.01.2005) | AD97: 292.85
B98: 292.84 - Inhalant-Induced Mood Disorder | AB98: 66 | AC98: 292.85 - Caffeine-Induced Sleep Disorder (new code as of 10.01.2005) | AD98: 292.85
B99: 292.84 - Opioid-Induced Mood Disorder | AB99: 67 | AC99: 292.85 - Cocaine-Induced Sleep Disorder (new code as of 10.01.2005) | AD99: 292.85
B100: 292.84 - Other (or Unknown) Substance-Induced Mood Disorder | AB100: 68 | AC100: 292.85 - Opioid-Induced Sleep Disorder (new code as of 10.01.2005) | AD100: 292.85
B101: 292.84 - Phencyclidine-Induced Mood Disorder | AB101: 69 | AC101: 292.85 - Other (or Unknown) Substance-Induced Sleep Disorder (new code as of 10.01.2005) | AD101: 292.85
B102: 292.84 - Sedative, Hypnotic, or Anxiolytic-Induced Mood Disorder | AB102: 70 | AC102: 292.85 - Sedative, Hypnotic, or Anxiolytic-Induced Sleep Disorder (new code as of 10.01.2005) | AD102: 292.85
B103: 292.85 - Amphetamine-Induced Sleep Disorder (new code as of 10.01.2005) | AB103: 71 | AC103: 292.89 - Amphetamine-Induced Anxiety Disorder | AD103: 292.89
B104: 292.85 - Caffeine-Induced Sleep Disorder (new code as of 10.01.2005) | AB104: 72 | AC104: 292.89 - Amphetamine-Induced Sexual Dysfunction | AD104: 292.89
B105: 292.85 - Cocaine-Induced Sleep Disorder (new code as of 10.01.2005) | AB105: 73 | AC105: 292.89 - Amphetamine-Induced Sleep Disorder (before 10.01.2005) | AD105: 292.89
B106: 292.85 - Opioid-Induced Sleep Disorder (new code as of 10.01.2005) | AB106: 74 | AC106: 292.89 - Amphetamine Intoxication | AD106: 292.89
B107: 292.85 - Other (or Unknown) Substance-Induced Sleep Disorder (new code as of 10.01.2005) | AB107: 75 | AC107: 292.89 - Caffeine-Induced Anxiety Disorder | AD107: 292.89
B108: 292.85 - Sedative, Hypnotic, or Anxiolytic-Induced Sleep Disorder (new code as of 10.01.2005) | AB108: 76 | AC108: 292.89 - Caffeine-Induced Sleep Disorder (before 10.01.2005) | AD108: 292.89
B109: 292.89 - Amphetamine-Induced Anxiety Disorder | AB109: 77 | AC109: 292.89 - Cannabis-Induced Anxiety Disorder | AD109: 292.89
B110: 292.89 - Amphetamine-Induced Sexual Dysfunction | AB110: 78 | AC110: 292.89 - Cannabis Intoxication | AD110: 292.89
B111: 292.89 - Amphetamine-Induced Sleep Disorder (before 10.01.2005) | AB111: 79 | AC111: 292.89 - Cocaine-Induced Anxiety Disorder | AD111: 292.89
B112: 292.89 - Amphetamine Intoxication | AB112: 80 | AC112: 292.89 - Cocaine-Induced Sexual Dysfunction | AD112: 292.89
B113: 292.89 - Caffeine-Induced Anxiety Disorder | AB113: 81 | AC113: 292.89 - Cocaine-Induced Sleep Disorder (before 10.01.2005) | AD113: 292.89
B114: 292.89 - Caffeine-Induced Sleep Disorder (before 10.01.2005) | AB114: 82 | AC114: 292.89 - Cocaine Intoxication | AD114: 292.89
B115: 292.89 - Cannabis-Induced Anxiety Disorder | AB115: 83 | AC115: 292.89 - Hallucinogen-Induced Anxiety Disorder | AD115: 292.89
B116: 292.89 - Cannabis Intoxication | AB116: 84 | AC116: 292.89 - Hallucinogen Intoxication | AD116: 292.89
B117: 292.89 - Cocaine-Induced Anxiety Disorder | AB117: 85 | AC117: 292.89 - Hallucinogen Persisting Perception Disorder | AD117: 292.89
B118: 292.89 - Cocaine-Induced Sexual Dysfunction | AB118: 86 | AC118: 292.89 - Inhalant-Induced Anxiety Disorder | AD118: 292.89
B119: 292.89 - Cocaine-Induced Sleep Disorder (before 10.01.2005) | AB119: 87 | AC119: 292.89 - Inhalant Intoxication | AD119: 292.89
B120: 292.89 - Cocaine Intoxication | AB120: 88 | AC120: 292.89 - Opioid-Induced Sexual Dysfunctiona> | AD120: 292.89
B121: 292.89 - Hallucinogen-Induced Anxiety Disorder | AB121: 89 | AC121: 292.89 - Opioid-Induced Sleep Disorder (before 10.01.2005) | AD121: 292.89
B122: 292.89 - Hallucinogen Intoxication | AB122: 90 | AC122: 292.89 - Opioid Intoxication | AD122: 292.89
B123: 292.89 - Hallucinogen Persisting Perception Disorder | AB123: 91 | AC123: 292.89 - Other (or Unknown) Substance-Induced Anxiety Disorder | AD123: 292.89
B124: 292.89 - Inhalant-Induced Anxiety Disorder | AB124: 92 | AC124: 292.89 - Other (or Unknown) Substance-Induced Sexual Dysfunction | AD124: 292.89
B125: 292.89 - Inhalant Intoxication | AB125: 93 | AC125: 292.89 - Other (or Unknown) Substance-Induced Sleep Disorder (before 10.01.2005) | AD125: 292.89
B126: 292.89 - Opioid-Induced Sexual Dysfunctiona> | AB126: 94 | AC126: 292.89 - Other (or Unknown) Substance Intoxication | AD126: 292.89
B127: 292.89 - Opioid-Induced Sleep Disorder (before 10.01.2005) | AB127: 95 | AC127: 292.89 - Phencyclidine-Induced Anxiety Disorder | AD127: 292.89
B128: 292.89 - Opioid Intoxication | AB128: 96 | AC128: 292.89 - Phencyclidine Intoxication | AD128: 292.89
B129: 292.89 - Other (or Unknown) Substance-Induced Anxiety Disorder | AB129: 97 | AC129: 292.89 - Sedative, Hypnotic, or Anxiolytic-Induced Anxiety Disorder | AD129: 292.89
B130: 292.89 - Other (or Unknown) Substance-Induced Sexual Dysfunction | AB130: 98 | AC130: 292.89 - Sedative, Hypnotic, or Anxiolytic-Induced Sexual Dysfunction | AD130: 292.89
B131: 292.89 - Other (or Unknown) Substance-Induced Sleep Disorder (before 10.01.2005) | AB131: 99 | AC131: 292.89 - Sedative, Hypnotic, or Anxiolytic-Induced Sleep Disorder (before 10.01.2005) | AD131: 292.89
B132: 292.89 - Other (or Unknown) Substance Intoxication | AB132: 100 | AC132: 292.89 - Sedative, Hypnotic, or Anxiolytic Intoxication | AD132: 292.89
B133: 292.89 - Phencyclidine-Induced Anxiety Disorder | AB133: 101 | AC133: 292.9 - Amphetamine-Related Disorder NOS | AD133: 292.9
B134: 292.89 - Phencyclidine Intoxication | AB134: 102 | AC134: 292.9 - Caffeine-Related Disorder NOS | AD134: 292.9
B135: 292.89 - Sedative, Hypnotic, or Anxiolytic-Induced Anxiety Disorder | AB135: 103 | AC135: 292.9 - Cannabis-Related Disorder NOS | AD135: 292.9
B136: 292.89 - Sedative, Hypnotic, or Anxiolytic-Induced Sexual Dysfunction | AB136: 104 | AC136: 292.9 - Cocaine-Related Disorder NOS | AD136: 292.9
B137: 292.89 - Sedative, Hypnotic, or Anxiolytic-Induced Sleep Disorder (before 10.01.2005) | AB137: 105 | AC137: 292.9 - Hallucinogen-Related Disorder NOS | AD137: 292.9
B138: 292.89 - Sedative, Hypnotic, or Anxiolytic Intoxication | AB138: 106 | AC138: 292.9 - Inhalant-Related Disorder NOS | AD138: 292.9
B139: 292.9 - Amphetamine-Related Disorder NOS | AB139: 107 | AC139: 292.9 - Nicotine-Related Disorder NOS | AD139: 292.9
B140: 292.9 - Caffeine-Related Disorder NOS | AB140: 108 | AC140: 292.9 - Opioid-Related Disorder NOS | AD140: 292.9
B141: 292.9 - Cannabis-Related Disorder NOS | AB141: 109 | AC141: 292.9 - Other (or Unknown) Substance-Related Disorder NOS | AD141: 292.9
B142: 292.9 - Cocaine-Related Disorder NOS | AB142: 110 | AC142: 292.9 - Phencyclidine-Related Disorder NOS | AD142: 292.9
B143: 292.9 - Hallucinogen-Related Disorder NOS | AB143: 111 | AC143: 292.9 - Sedative, Hypnotic, or Anxiolytic-Related DisorderNOS | AD143: 292.9
B144: 292.9 - Inhalant-Related Disorder NOS | AB144: 112 | AC144: 293.0 - Delirium Due to...[Indicate the General Medical Condition] | AD144: 293.0
B145: 292.9 - Nicotine-Related Disorder NOS | AB145: 113 | AC145: 293.81 - Psychotic Disorder Due to...[Indicate the General Medical Condition], With Delusions | AD145: 293.81
B146: 292.9 - Opioid-Related Disorder NOS | AB146: 114 | AC146: 293.82 - Psychotic Disorder Due to...[Indicate the General Medical Condition] , With Hallucinations | AD146: 293.82
B147: 292.9 - Other (or Unknown) Substance-Related Disorder NOS | AB147: 115 | AC147: 293.83 - Mood Disorder Due to...[Indicate the General Medical Condition] | AD147: 293.83
B148: 292.9 - Phencyclidine-Related Disorder NOS | AB148: 116 | AC148: 293.84 - Anxiety Disorder Due to... (new code as of 10/01/96) [Indicate the General Medical Condition] | AD148: 293.84
B149: 292.9 - Sedative, Hypnotic, or Anxiolytic-Related DisorderNOS | AB149: 117 | AC149: 293.89 - Catatonic Disorder Due to...[Indicate the General Medical Condition] | AD149: 293.89
B150: 293.0 - Delirium Due to...[Indicate the General Medical Condition] | AB150: 118 | AC150: 293.9 - Mental Disorder NOS Due to...[Indicate the General Medical Condition] | AD150: 293.9
B151: 293.81 - Psychotic Disorder Due to...[Indicate the General Medical Condition], With Delusions | AB151: 119 | AC151: 294.0 - Amnestic Disorder Due to...[Indicate the General Medical Condition], Without Behavioral Disturbance | AD151: 294.0
B152: 293.82 - Psychotic Disorder Due to...[Indicate the General Medical Condition] , With Hallucinations | AB152: 120 | AC152: 294.10 - Dementia Due to...[Indicate the General Medical Condition], Without Behavioral Disturbance | AD152: 294.10
B153: 293.83 - Mood Disorder Due to...[Indicate the General Medical Condition] | AB153: 121 | AC153: 294.10 - Dementia of the Alzheimer's Type, With Early Onset, Without Behavioral Disturbance | AD153: 294.10
B154: 293.84 - Anxiety Disorder Due to... (new code as of 10/01/96) [Indicate the General Medical Condition] | AB154: 122 | AC154: 294.10 - Dementia of the Alzheimer's Type, With Late Onset, Without Behavioral Distrubance | AD154: 294.10
B155: 293.89 - Catatonic Disorder Due to...[Indicate the General Medical Condition] | AB155: 123 | AC155: 294.11 - Dementia Due to...[Indicate the General Medical Condition], With Behavioral Disturbance | AD155: 294.11
B156: 293.9 - Mental Disorder NOS Due to...[Indicate the General Medical Condition] | AB156: 124 | AC156: 294.11 - Dementia of the Alzheimer's Type, With Early Onset, With Behavioral Disturbance | AD156: 294.11
B157: 294.0 - Amnestic Disorder Due to...[Indicate the General Medical Condition], Without Behavioral Disturbance | AB157: 125 | AC157: 294.11 - Dementia of the Alzheimer's Type, With Late Onset, With Behavioral Disturbance | AD157: 294.11
B158: 294.10 - Dementia Due to...[Indicate the General Medical Condition], Without Behavioral Disturbance | AB158: 126 | AC158: 294.1x - Dementia Due to Creutzfeldt-Jakob Disease | AD158: 294.1x
B159: 294.10 - Dementia of the Alzheimer's Type, With Early Onset, Without Behavioral Disturbance | AB159: 127 | AC159: 294.1x - Dementia Due to Head Trauma | AD159: 294.1x
B160: 294.10 - Dementia of the Alzheimer's Type, With Late Onset, Without Behavioral Distrubance | AB160: 128 | AC160: 294.1x - Dementia Due to HIV Disease | AD160: 294.1x
B161: 294.11 - Dementia Due to...[Indicate the General Medical Condition], With Behavioral Disturbance | AB161: 129 | AC161: 294.1x - Dementia Due to Huntington's Disease | AD161: 294.1x
B162: 294.11 - Dementia of the Alzheimer's Type, With Early Onset, With Behavioral Disturbance | AB162: 130 | AC162: 294.1x - Dementia Due to Parkinson's Disease | AD162: 294.1x
B163: 294.11 - Dementia of the Alzheimer's Type, With Late Onset, With Behavioral Disturbance | AB163: 131 | AC163: 294.1x - Dementia Due to Pick's Disease | AD163: 294.1x
B164: 294.1x - Dementia Due to Creutzfeldt-Jakob Disease | AB164: 132 | AC164: 294.1x - Dementia Due to...[Indicate the General Medical Condition not listed above] (also code the general medical condition on Axis III) | AD164: 294.1x
B165: 294.1x - Dementia Due to Head Trauma | AB165: 133 | AC165: 294.8 - Amnestic Disorder NOS | AD165: 294.8
B166: 294.1x - Dementia Due to HIV Disease | AB166: 134 | AC166: 294.8 - Dementia NOS | AD166: 294.8
B167: 294.1x - Dementia Due to Huntington's Disease | AB167: 135 | AC167: 294.9 - Cognitive Disorder NOS | AD167: 294.9
B168: 294.1x - Dementia Due to Parkinson's Disease | AB168: 136 | AC168: 294.9 - Cognitive Disorder (new code as of 10/01/96) | AD168: 294.9
B169: 294.1x - Dementia Due to Pick's Disease | AB169: 137 | AC169: 295.10 - Schizophrenia, Disorganized Type | AD169: 295.10
B170: 294.1x - Dementia Due to...[Indicate the General Medical Condition not listed above] (also code the general medical condition on Axis III) | AB170: 138 | AC170: 295.20 - Schizophrenia, Catatonic Type | AD170: 295.20
B171: 294.8 - Amnestic Disorder NOS | AB171: 139 | AC171: 295.30 - Schizophrenia, Paranoid Type | AD171: 295.30
B172: 294.8 - Dementia NOS | AB172: 140 | AC172: 295.40 - Schizophreniform Disorder | AD172: 295.40
B173: 294.9 - Cognitive Disorder NOS | AB173: 141 | AC173: 295.60 - Schizophrenia, Residual Type | AD173: 295.60
B174: 294.9 - Cognitive Disorder (new code as of 10/01/96) | AB174: 142 | AC174: 295.70 - Schizoaffective Disorder | AD174: 295.70
B175: 295.10 - Schizophrenia, Disorganized Type | AB175: 143 | AC175: 295.90 - Schizophrenia, Undifferentiated Type | AD175: 295.90
B176: 295.20 - Schizophrenia, Catatonic Type | AB176: 144 | AC176: 296.00 - Bipolar I Disorder, Single Manic Episode, Unspecified | AD176: 296.00
B177: 295.30 - Schizophrenia, Paranoid Type | AB177: 145 | AC177: 296.01 - Bipolar I Disorder, Single Manic Episode, Mild | AD177: 296.01
B178: 295.40 - Schizophreniform Disorder | AB178: 146 | AC178: 296.02 - Bipolar I Disorder, Single Manic Episode, Moderate | AD178: 296.02
B179: 295.60 - Schizophrenia, Residual Type | AB179: 147 | AC179: 296.03 - Bipolar I Disorder, Single Manic Episode, Severe Without Psychotic Features | AD179: 296.03
B180: 295.70 - Schizoaffective Disorder | AB180: 148 | AC180: 296.04 - Bipolar I Disorder, Single Manic Episode, Severe With Psychotic Features | AD180: 296.04
B181: 295.90 - Schizophrenia, Undifferentiated Type | AB181: 149 | AC181: 296.05 - Bipolar I Disorder, Single Manic Episode, In Partial Remission | AD181: 296.05
B182: 296.00 - Bipolar I Disorder, Single Manic Episode, Unspecified | AB182: 150 | AC182: 296.06 - Bipolar I Disorder, Single Manic Episode, In Full Remission | AD182: 296.06
B183: 296.01 - Bipolar I Disorder, Single Manic Episode, Mild | AB183: 151 | AC183: 296.20 - Major Depressive Disorder, Single Episode, Unspecified | AD183: 296.20
B184: 296.02 - Bipolar I Disorder, Single Manic Episode, Moderate | AB184: 152 | AC184: 296.21 - Major Depressive Disorder, Single Episode, Mild | AD184: 296.21
B185: 296.03 - Bipolar I Disorder, Single Manic Episode, Severe Without Psychotic Features | AB185: 153 | AC185: 296.22 - Major Depressive Disorder, Single Episode, Moderate | AD185: 296.22
B186: 296.04 - Bipolar I Disorder, Single Manic Episode, Severe With Psychotic Features | AB186: 154 | AC186: 296.23 - Major Depressive Disorder, Single Episode, Severe Without Psychotic Features | AD186: 296.23
B187: 296.05 - Bipolar I Disorder, Single Manic Episode, In Partial Remission | AB187: 155 | AC187: 296.24 - Major Depressive Disorder, Single Episode, Severe With Psychotic Features | AD187: 296.24
B188: 296.06 - Bipolar I Disorder, Single Manic Episode, In Full Remission | AB188: 156 | AC188: 296.25 - Major Depressive Disorder, Single Episode, In Partial Remission | AD188: 296.25
B189: 296.20 - Major Depressive Disorder, Single Episode, Unspecified | AB189: 157 | AC189: 296.26 - Major Depressive Disorder, Single Episode, In Full Remission | AD189: 296.26
B190: 296.21 - Major Depressive Disorder, Single Episode, Mild | AB190: 158 | AC190: 296.30 - Major Depressive Disorder, Recurrent, Unspecified | AD190: 296.30
B191: 296.22 - Major Depressive Disorder, Single Episode, Moderate | AB191: 159 | AC191: 296.31 - Major Depressive Disorder, Recurrent, Mild | AD191: 296.31
B192: 296.23 - Major Depressive Disorder, Single Episode, Severe Without Psychotic Features | AB192: 160 | AC192: 296.32 - Major Depressive Disorder, Recurrent, Moderate | AD192: 296.32
B193: 296.24 - Major Depressive Disorder, Single Episode, Severe With Psychotic Features | AB193: 161 | AC193: 296.33 - Major Depressive Disorder, Recurrent, Severe Without Psychotic Features | AD193: 296.33
B194: 296.25 - Major Depressive Disorder, Single Episode, In Partial Remission | AB194: 162 | AC194: 296.34 - Major Depressive Disorder, Recurrent, Severe With Psychotic Features | AD194: 296.34
B195: 296.26 - Major Depressive Disorder, Single Episode, In Full Remission | AB195: 163 | AC195: 296.35 - Major Depressive Disorder, Recurrent, In Partial Remission | AD195: 296.35
B196: 296.30 - Major Depressive Disorder, Recurrent, Unspecified | AB196: 164 | AC196: 296.36 - Major Depressive Disorder, Recurrent, In Full Remission | AD196: 296.36
B197: 296.31 - Major Depressive Disorder, Recurrent, Mild | AB197: 165 | AC197: 296.40 - Bipolar I Disorder, Most Recent Episode Hypomanic | AD197: 296.40
B198: 296.32 - Major Depressive Disorder, Recurrent, Moderate | AB198: 166 | AC198: 296.40 - Bipolar I Disorder, Most Recent Episode Manic, Unspecified | AD198: 296.40
B199: 296.33 - Major Depressive Disorder, Recurrent, Severe Without Psychotic Features | AB199: 167 | AC199: 296.41 - Bipolar I Disorder, Most Recent Episode Manic, Mild | AD199: 296.41
B200: 296.34 - Major Depressive Disorder, Recurrent, Severe With Psychotic Features | AB200: 168 | AC200: 296.42 - Bipolar I Disorder, Most Recent Episode Manic, Moderate | AD200: 296.42
B201: 296.35 - Major Depressive Disorder, Recurrent, In Partial Remission | AB201: 169 | AC201: 296.43 - Bipolar I Disorder, Most Recent Episode Manic, Severe Without Psychotic Features | AD201: 296.43
B202: 296.36 - Major Depressive Disorder, Recurrent, In Full Remission | AB202: 170 | AC202: 296.44 - Bipolar I Disorder, Most Recent Episode Manic, Severe With Psychotic Features | AD202: 296.44
B203: 296.40 - Bipolar I Disorder, Most Recent Episode Hypomanic | AB203: 171 | AC203: 296.45 - Bipolar I Disorder, Most Recent Episode Manic, In Partial Remission | AD203: 296.45
B204: 296.40 - Bipolar I Disorder, Most Recent Episode Manic, Unspecified | AB204: 172 | AC204: 296.46 - Bipolar I Disorder, Most Recent Episode Manic, In Full Remission | AD204: 296.46
B205: 296.41 - Bipolar I Disorder, Most Recent Episode Manic, Mild | AB205: 173 | AC205: 296.50 - Bipolar I Disorder, Most Recent Episode Depressed, Unspecified | AD205: 296.50
B206: 296.42 - Bipolar I Disorder, Most Recent Episode Manic, Moderate | AB206: 174 | AC206: 296.51 - Bipolar I Disorder, Most Recent Episode Depressed, Mild | AD206: 296.51
B207: 296.43 - Bipolar I Disorder, Most Recent Episode Manic, Severe Without Psychotic Features | AB207: 175 | AC207: 296.52 - Bipolar I Disorder, Most Recent Episode Depressed, Moderate | AD207: 296.52
B208: 296.44 - Bipolar I Disorder, Most Recent Episode Manic, Severe With Psychotic Features | AB208: 176 | AC208: 296.53 - Bipolar I Disorder, Most Recent Episode Depressed, Severe Without Psychotic Features | AD208: 296.53
... 251 more rows

Sheet DASS
B1: Depression, Anxiety and Stress Scale
B2: Please read each statement and circle a number 0, 1, 2 or 3 which indicates how much the statement applied to you over the past week. There are no right or wrong answers. Do not spend too much time on any statement.
B3: The rating scale is as follows:
B4: 0 Did not apply to me at all
B5: 1 Applied to me to some degree, or some of the time
B6: 2 Applied to me to a considerable degree, or a good part of time
B7: 3 Applied to me very much, or most of the time
A10: N | B10: Item | G10: Score T1 | H10: Score T2 | I10: Dimension
A11: 1 | B11: I found it hard to wind down. | G11: ='Quest T1'!N26 -> 2 | H11: ='Quest T2'!N11 -> 1 | I11: Stress
A12: 2 | B12: I was aware of dryness of my mouth. | G12: ='Quest T1'!N27 -> 1 | H12: ='Quest T2'!N12 -> 0 | I12: Anxiety
A13: 3 | B13: I couldn’t seem to experience any positive feeling at all. | G13: ='Quest T1'!N28 -> 0 | H13: ='Quest T2'!N13 -> 0 | I13: Depression
A14: 4 | B14: I experienced breathing difficulty (eg, excessively rapid breathing, Breathlessness in the absence of physical exertion). | G14: ='Quest T1'!N29 -> 0 | H14: ='Quest T2'!N14 -> 0 | I14: Anxiety
A15: 5 | B15: I found it difficult to work up the initiative to do things. | G15: ='Quest T1'!N30 -> 0 | H15: ='Quest T2'!N15 -> 0 | I15: Depression
A16: 6 | B16: I tended to over-react to situations. | G16: ='Quest T1'!N31 -> 1 | H16: ='Quest T2'!N16 -> 1 | I16: Stress
A17: 7 | B17: I experienced trembling (e.g., in the hands). | G17: ='Quest T1'!N32 -> 0 | H17: ='Quest T2'!N17 -> 0 | I17: Anxiety
A18: 8 | B18: I felt that I was using a lot of nervous energy. | G18: ='Quest T1'!N33 -> 2 | H18: ='Quest T2'!N18 -> 1 | I18: Stress
A19: 9 | B19: I was worried about situations in which I might panic and make a fool of myself. | G19: ='Quest T1'!N34 -> 2 | H19: ='Quest T2'!N19 -> 2 | I19: Anxiety
A20: 10 | B20: I felt that I had nothing to look forward to. | G20: ='Quest T1'!N35 -> 0 | H20: ='Quest T2'!N20 -> 0 | I20: Depression
A21: 11 | B21: I found myself getting agitated. | G21: ='Quest T1'!N36 -> 1 | H21: ='Quest T2'!N21 -> 1 | I21: Stress
A22: 12 | B22: I found it difficult to relax. | G22: ='Quest T1'!N37 -> 2 | H22: ='Quest T2'!N22 -> 1 | I22: Stress
A23: 13 | B23: I felt down-hearted and blue. | G23: ='Quest T1'!N38 -> 1 | H23: ='Quest T2'!N23 -> 1 | I23: Depression
A24: 14 | B24: I was intolerant of anything that kept me from getting on with what I was doing. | G24: ='Quest T1'!N39 -> 1 | H24: ='Quest T2'!N24 -> 0 | I24: Stress
A25: 15 | B25: I felt I was close to panic. | G25: ='Quest T1'!N40 -> 1 | H25: ='Quest T2'!N25 -> 1 | I25: Anxiety
A26: 16 | B26: I was unable to become enthusiastic about anything. | G26: ='Quest T1'!N41 -> 0 | H26: ='Quest T2'!N26 -> 0 | I26: Depression
A27: 17 | B27: I felt I wasn’t worth much as a person. | G27: ='Quest T1'!N42 -> 0 | H27: ='Quest T2'!N27 -> 0 | I27: Depression
A28: 18 | B28: I felt that I was rather touchy. | G28: ='Quest T1'!N43 -> 1 | H28: ='Quest T2'!N28 -> 1 | I28: Stress
A29: 19 | B29: I was aware of the action of my heart in the absence of physical exertion (e.g. sense of heart increase, heart missing a beat). | G29: ='Quest T1'!N44 -> 1 | H29: ='Quest T2'!N29 -> 0 | I29: Anxiety
A30: 20 | B30: I felt scared without any good reason. | G30: ='Quest T1'!N45 -> 1 | H30: ='Quest T2'!N30 -> 1 | I30: Anxiety
A31: 21 | B31: I felt that life was meaningless. | G31: ='Quest T1'!N46 -> 0 | H31: ='Quest T2'!N31 -> 0 | I31: Depression
C33: T1 | E33: T2 | K33: Confidence level
C34: Sum | D34: Percentile | E34: Sum | F34: Percentile | G34: d | H34: Sdiff | I34: RCI | J34: d/SD | K34: Two-tailed | L34: One-tailed
B35: Depression | C35: =SUM(G13,G15,G20,G23,G26,G27,G31) -> 1 | D35: =VLOOKUP(C35,C77:G122,2) -> 43 | E35: =SUM(H13,H15,H20,H23,H26,H27,H31) -> 1 | F35: =VLOOKUP(E35,C77:G122,2) -> 43 | G35: =E35-C35 -> 0 | H35: =SQRT(2*(K76*SQRT(1-L76))^2) -> 2.932019884 | I35: =G35/H35 -> 0 | J35: =G35/K76 -> 0 | K35: =IF(ABS(I35)>0.84,(1-((1-_xlfn.NORM.S.DIST(ABS(I35),TRUE))*2)),"no change") -> no change | L35: =IF(ABS(I35)>0.84,_xlfn.NORM.S.DIST(ABS(I35),TRUE),"no change") -> no change
B36: Anxiety | C36: =SUM(G12,G14,G17,G19,G25,G29,G30) -> 6 | D36: =VLOOKUP(C36,C77:G122,3) -> 92 | E36: =SUM(H12,H14,H17,H19,H25,H29,H30) -> 4 | F36: =VLOOKUP(E36,C77:G122,3) -> 86 | G36: =E36-C36 -> -2 | H36: =SQRT(2*(K77*SQRT(1-L77))^2) -> 1.934444365 | I36: =G36/H36 -> -1.033888612 | J36: =G36/K77 -> -0.6779661017 | K36: =IF(ABS(I36)>0.84,(1-((1-_xlfn.NORM.S.DIST(ABS(I36),TRUE))*2)),"no change") -> 0.6988117608 | L36: =IF(ABS(I36)>0.84,_xlfn.NORM.S.DIST(ABS(I36),TRUE),"no change") -> 0.8494058804
B37: Stress | C37: =SUM(G11,G16,G18,G21,G22,G24,G28) -> 10 | D37: =VLOOKUP(C37,C77:G122,4) -> 89 | E37: =SUM(H11,H16,H18,H21,H22,H24,H28) -> 6 | F37: =VLOOKUP(E37,C77:G122,4) -> 69 | G37: =E37-C37 -> -4 | H37: =SQRT(2*(K78*SQRT(1-L78))^2) -> 2.568532655 | I37: =G37/H37 -> -1.557309381 | J37: =G37/K78 -> -0.9523809524 | K37: =IF(ABS(I37)>0.84,(1-((1-_xlfn.NORM.S.DIST(ABS(I37),TRUE))*2)),"no change") -> 0.8806029509 | L37: =IF(ABS(I37)>0.84,_xlfn.NORM.S.DIST(ABS(I37),TRUE),"no change") -> 0.9403014754
B38: Total Score | C38: =SUM(G11:G31) -> 17 | D38: =VLOOKUP(C38,C77:G122,5) -> 85 | E38: =SUM(H11:H31) -> 11 | F38: =VLOOKUP(E38,C77:G122,5) -> 69 | G38: =E38-C38 -> -6 | H38: =SQRT(2*(K79*SQRT(1-L79))^2) -> 7.318685292 | I38: =G38/H38 -> -0.8198193748 | J38: =G38/K79 -> -0.6211180124 | K38: =IF(ABS(I38)>0.84,(1-((1-_xlfn.NORM.S.DIST(ABS(I38),TRUE))*2)),"no change") -> no change | L38: =IF(ABS(I38)>0.84,_xlfn.NORM.S.DIST(ABS(I38),TRUE),"no change") -> no change
I74: Henry & Crawford, 2005
C75: Normes | I75: Norms | J75: M | K75: SD | L75: rxx
C76: Percentiles | I76: Depression | J76: 2.83 | K76: 3.87 | L76: 0.713
C77: Raw score | D77: Depression | E77: Anxiety | F77: Stress | G77: Total | I77: Anxiété | J77: 1.88 | K77: 2.95 | L77: 0.785
C78: 0 | D78: 34 | E78: 44 | F78: 15 | G78: 9 | I78: Stress | J78: 4.73 | K78: 4.2 | L78: 0.813
C79: 1 | D79: 43 | E79: 54 | F79: 20 | G79: 12 | I79: Total | J79: 9.43 | K79: 9.66 | L79: 0.713
C80: 2 | D80: 58 | E80: 69 | F80: 30 | G80: 19
C81: 3 | D81: 68 | E81: 79 | F81: 41 | G81: 27
C82: 4 | D82: 75 | E82: 86 | F82: 51 | G82: 33
C83: 5 | D83: 81 | E83: 89 | F83: 60 | G83: 40
C84: 6 | D84: 85 | E84: 92 | F84: 69 | G84: 46
C85: 7 | D85: 88 | E85: 94 | F85: 77 | G85: 51
C86: 8 | D86: 91 | E86: 95 | F86: 82 | G86: 57
C87: 9 | D87: 92 | E87: 96 | F87: 86 | G87: 61
C88: 10 | D88: 93 | E88: 97 | F88: 89 | G88: 65
C89: 11 | D89: 95 | E89: 97 | F89: 92 | G89: 69
C90: 12 | D90: 96 | E90: 98 | F90: 93 | G90: 73
C91: 13 | D91: 97 | E91: 99 | F91: 95 | G91: 76
C92: 14 | D92: 97 | E92: 99 | F92: 96 | G92: 79
C93: 15 | D93: 98 | E93: 99 | F93: 97 | G93: 81
C94: 16 | D94: 98 | E94: 99 | F94: 97 | G94: 83
C95: 17 | D95: 99 | E95: >99 | F95: 98 | G95: 85
C96: 18 | D96: >99 | E96: >99 | F96: 99 | G96: 87
C97: 19 | D97: >99 | E97: >99 | F97: 99 | G97: 88
C98: 20 | D98: >99 | E98: >99 | F98: >99 | G98: 89
C99: 21 | D99: >99 | E99: >99 | F99: >99 | G99: 90
C100: 22 | G100: 91
C101: 23 | G101: 91
C102: 24 | G102: 92
C103: 25 | G103: 93
C104: 26 | G104: 94
C105: 27 | G105: 94
C106: 28 | G106: 95
C107: 29 | G107: 95
C108: 30 | G108: 95
C109: 31 | G109: 95
C110: 32 | G110: 96
C111: 33 | G111: 96
C112: 34 | G112: 96
C113: 35 | G113: 97
C114: 36 | G114: 97
C115: 37 | G115: 97
C116: 38 | G116: 98
C117: 39 | G117: 98
C118: 40 | G118: 98
C119: 41 | G119: 98
C120: 42 | G120: 98
C121: 43 | G121: 99
C122: 44 | G122: >99

Sheet REQ
A1: Revised Regulation of Emotions Questionnaire
A2: We all experience many different feelings or emotions. For example, different things in our lives make us happy, sad, angry, etc.
A3: The following questionnaire asks you about how often you do certain things in response to your emotions. You do not have to think about specific emotions but just how often you generally do the things listed below. | E3: Never=1 | F3: Seldom=2 | G3: Often=3 | H3: Very often=4 | I3: Always=5
A5: Please tick the box corresponding to the answer that fits best. We all respond to our emotions in different ways so there are no right or wrong answers.
A7: Item | E7: Score T1 | F7: Score T2 | G7: Dimension | I7: Strategies
A8: 1. I talk to someone about how I feel | E8: ='Quest T1'!N51 -> 3 | F8: ='Quest T2'!N36 -> 3 | G8: Functional - External | I8: expression of feelings
A9: 2. I take my feelings out on others verbally (e.g., shouting, arguing). | E9: ='Quest T1'!N52 -> 2 | F9: ='Quest T2'!N37 -> 2 | G9: Dysfunctional - External | I9: verbal assault
A10: 3. I seek physical contact from friends of family (e.g., a hug, hold hands). | E10: ='Quest T1'!N53 -> 2 | F10: ='Quest T2'!N38 -> 1 | G10: Functional - External | I10: physical contact
A11: 4. I reviews (rethink) my thoughts or beliefs. | E11: ='Quest T1'!N54 -> 3 | F11: ='Quest T2'!N39 -> 4 | G11: Functional - Internal | I11: positive re-appraisal
A12: 5. I harm or punish myself in some way. | E12: ='Quest T1'!N55 -> 2 | F12: ='Quest T2'!N40 -> 1 | G12: Dysfunctional - Internal | I12: self-harm
A13: 6. I do something energetic (e.g., play sport, go for a walk). | E13: ='Quest T1'!N56 -> 2 | F13: ='Quest T2'!N41 -> 1 | G13: Functional - External | I13: exercise
A14: 7. I dwell on my thoughts and feelings (e.g., It goes round and round in my head and I can’t stop it). | E14: ='Quest T1'!N57 -> 4 | F14: ='Quest T2'!N42 -> 3 | G14: Dysfunctional - Internal | I14: rumination
A15: 8. I ask others for advice. | E15: ='Quest T1'!N58 -> 3 | F15: ='Quest T2'!N43 -> 3 | G15: Functional - External | I15: advice seeking
A16: 9. I review (rethink) my goals or plans. | E16: ='Quest T1'!N59 -> 2 | F16: ='Quest T2'!N44 -> 2 | G16: Functional - Internal | I16: modification of goals
A17: 10. I take my feelings out on others physically (e.g., fighting, lashing out). | E17: ='Quest T1'!N60 -> 1 | F17: ='Quest T2'!N45 -> 1 | G17: Dysfunctional - External | I17: physical assault
A18: 11. I put the situation into perspective. | E18: ='Quest T1'!N61 -> 3 | F18: ='Quest T2'!N46 -> 2 | G18: Functional - Internal | I18: perspective
A19: 12. I concentrate on a pleasant activity. | E19: ='Quest T1'!N62 -> 1 | F19: ='Quest T2'!N47 -> 2 | G19: Functional - Internal | I19: concentration
A20: 13. I try to make others feel bad (e.g., being rude, ignoring them). | E20: ='Quest T1'!N63 -> 2 | F20: ='Quest T2'!N48 -> 1 | G20: Dysfunctional - External | I20: making others feel bad
A21: 14. I think about people better off and make myself feel worse. | E21: ='Quest T1'!N64 -> 2 | F21: ='Quest T2'!N49 -> 1 | G21: Dysfunctional - Internal | I21: negative social comparison
A22: 15. I keep the feeling locked up inside. | E22: ='Quest T1'!N65 -> 2 | F22: ='Quest T2'!N50 -> 2 | G22: Dysfunctional - Internal | I22: repression
A23: 16. I plan what I could do better next time. | E23: ='Quest T1'!N66 -> 3 | F23: ='Quest T2'!N51 -> 3 | G23: Functional - Internal | I23: planning
A24: 17. I bully other people (e.g. saying nasty things to them, hitting them) | E24: ='Quest T1'!N67 -> 1 | F24: ='Quest T2'!N52 -> 1 | G24: Dysfunctional - External | I24: bullying
A25: 18. I take my feelings out on objects around me (e.g., deliberately causing damage to my house, school or outdoor things). | E25: ='Quest T1'!N68 -> 1 | F25: ='Quest T2'!N53 -> 1 | G25: Dysfunctional - External | I25: lashing out at objects
A26: 19. Things feel unreal (e.g., I feel strange, things around me feel strange, I daydream). | E26: ='Quest T1'!N69 -> 1 | F26: ='Quest T2'!N54 -> 1 | G26: Dysfunctional - Internal | I26: de-realisation
A27: 20. I telephone friends or family. | E27: ='Quest T1'!N70 -> 2 | F27: ='Quest T2'!N55 -> 2 | G27: Functional - External | I27: new item 1
A28: 21. I go out and do something nice (e.g., cinema, shopping, go for a meal, meet people). | E28: ='Quest T1'!N71 -> 3 | F28: ='Quest T2'!N56 -> 3 | G28: Functional - External | I28: new item 2
B30: T1 | E30: T2 | L30: Confidence level
B31: Mean | C31: Sum | D31: Percentile | E31: Mean | F31: Sum | G31: Percentile | H31: d | I31: Sdiff | J31: RCI | K31: d/SD | L31: Two-tailed | M31: One-tailed
A32: Functional - Internal | B32: =AVERAGE(E11,E16,E18,E19,E23) -> 2.4 | C32: =SUM(E11,E16,E18,E19,E23) -> 12 | D32: =NORMDIST($B$32,$B$115,$C$115,TRUE)*100 -> 24.19636522 | E32: =AVERAGE(F11,F16,F18,F19,F23) -> 2.6 | F32: =SUM(F11,F16,F18,F19,F23) -> 13 | G32: =NORMDIST($E$32,$B$115,$C$115,TRUE)*100 -> 33.93324374 | H32: =E32-B32 -> 0.2 | I32: =SQRT(2*(C115*SQRT(1-D115))^2) -> 0.7 | J32: =H32/I32 -> 0.2857142857 | K32: =H32/C115 -> 0.2857142857 | L32: =IF(ABS(J32)>0.84,(1-((1-_xlfn.NORM.S.DIST(ABS(J32),TRUE))*2)),"no change") -> no change | M32: =IF(ABS(J32)>0.84,_xlfn.NORM.S.DIST(ABS(J32),TRUE),"no change") -> no change
A33: Functional - External | B33: =AVERAGE(E8,E10,E13,E15,E27,E28) -> 2.5 | C33: =SUM(E8,E10,E13,E15,E27,E28) -> 15 | D33: =NORMDIST($B$33,$B$116,$C$116,TRUE)*100 -> 33.80753685 | E33: =AVERAGE(F8,F10,F13,F15,F27,F28) -> 2.166666667 | F33: =SUM(F8,F10,F13,F15,F27,F28) -> 13 | G33: =NORMDIST($E$33,$B$116,$C$116,TRUE)*100 -> 20.05488375 | H33: =E33-B33 -> -0.3333333333 | I33: =SQRT(2*(C116*SQRT(1-D116))^2) -> 0.79 | J33: =H33/I33 -> -0.4219409283 | K33: =H33/C116 -> -0.4219409283 | L33: =IF(ABS(J33)>0.84,(1-((1-_xlfn.NORM.S.DIST(ABS(J33),TRUE))*2)),"no change") -> no change | M33: =IF(ABS(J33)>0.84,_xlfn.NORM.S.DIST(ABS(J33),TRUE),"no change") -> no change
A34: Dysfunctional - Internal | B34: =AVERAGE(E12,E14,E21,E22,E26) -> 2.2 | C34: =SUM(E12,E14,E21,E22,E26) -> 11 | D34: =NORMDIST($B$34,$B$117,$C$117,TRUE)*100 -> 57.36655876 | E34: =AVERAGE(F12,F14,F21,F22,F26) -> 1.6 | F34: =SUM(F12,F14,F21,F22,F26) -> 8 | G34: =NORMDIST($E$34,$B$117,$C$117,TRUE)*100 -> 25.09737743 | H34: =E34-B34 -> -0.6 | I34: =SQRT(2*(C117*SQRT(1-D117))^2) -> 0.7 | J34: =H34/I34 -> -0.8571428571 | K34: =H34/C117 -> -0.8571428571 | L34: =IF(ABS(J34)>0.84,(1-((1-_xlfn.NORM.S.DIST(ABS(J34),TRUE))*2)),"no change") -> 0.6086340617 | M34: =IF(ABS(J34)>0.84,_xlfn.NORM.S.DIST(ABS(J34),TRUE),"no change") -> 0.8043170308
A35: Dysfunctional - External | B35: =AVERAGE(E9,E17,E20,E24,E25) -> 1.4 | C35: =SUM(E9,E17,E20,E24,E25) -> 7 | D35: =NORMDIST($B$35,$B$118,$C$118,TRUE)*100 -> 38.85811868 | E35: =AVERAGE(F9,F17,F20,F24,F25) -> 1.2 | F35: =SUM(F9,F17,F20,F24,F25) -> 6 | G35: =NORMDIST($E$35,$B$118,$C$118,TRUE)*100 -> 25.45058491 | H35: =E35-B35 -> -0.2 | I35: =SQRT(2*(C118*SQRT(1-D118))^2) -> 0.53 | J35: =H35/I35 -> -0.3773584906 | K35: =H35/C118 -> -0.3773584906 | L35: =IF(ABS(J35)>0.84,(1-((1-_xlfn.NORM.S.DIST(ABS(J35),TRUE))*2)),"no change") -> no change | M35: =IF(ABS(J35)>0.84,_xlfn.NORM.S.DIST(ABS(J35),TRUE),"no change") -> no change
A114: Normes (Phillips & Power, 2007, p.152) | B114: M | C114: SD | D114: rxx
A115: Functional - Internal | B115: 2.89 | C115: 0.7 | D115: 0.5
A116: Functional - External | B116: 2.83 | C116: 0.79 | D116: 0.5
A117: Dysfunctional - Internal | B117: 2.07 | C117: 0.7 | D117: 0.5
A118: Dysfunctional - External | B118: 1.55 | C118: 0.53 | D118: 0.5
B153: Fonctionnel interne | H153: Fonctionnel externe | P153: Dysfonctionnel interne | X153: Dysfonctionnel externe
D154: x | E154: densité | J154: x | K154: densité | R154: x | S154: densité | Z154: x | AA154: densité
B155: -30 | C155: =B155*$C$115/10 -> -2.1 | D155: =C155+$B$115 -> 0.79 | E155: =NORMDIST(D155,$B$115,$C$115,FALSE) -> 0.006331212017 | F155: 1 | H155: -30 | I155: =H155*$C$116/10 -> -2.37 | J155: =I155+$B$116 -> 0.46 | K155: =NORMDIST(J155,$B$116,$C$116,FALSE) -> 0.005609934699 | L155: 1 | P155: -30 | Q155: =P155*$C$117/10 -> -2.1 | R155: =Q155+$B$117 -> -0.03 | S155: =NORMDIST(R155,$B$117,$C$117,FALSE) -> 0.006331212017 | T155: 1 | X155: -30 | Y155: =X155*$C$118/10 -> -1.59 | Z155: =Y155+$B$118 -> -0.04 | AA155: =NORMDIST(Z155,$B$118,$C$118,FALSE) -> 0.008361978136 | AB155: 1
B156: =B155+0.5 -> -29.5 | C156: -2.065 | D156: 0.825 | E156: 0.00734662989 | F156: 2 | H156: =H155+0.5 -> -29.5 | I156: -2.3305 | J156: 0.4995 | K156: 0.006509672054 | L156: 2 | P156: =P155+0.5 -> -29.5 | Q156: -2.065 | R156: 0.005 | S156: 0.00734662989 | T156: 2 | X156: =X155+0.5 -> -29.5 | Y156: -1.5635 | Z156: -0.0135 | AA156: 0.009703096081 | AB156: 2
B157: =B156+0.5 -> -29 | C157: -2.03 | D157: 0.86 | E157: 0.008503617743 | F157: 3 | H157: =H156+0.5 -> -29 | I157: -2.291 | J157: 0.539 | K157: 0.007534851164 | L157: 3 | P157: =P156+0.5 -> -29 | Q157: -2.03 | R157: 0.04 | S157: 0.008503617743 | T157: 3 | X157: =X156+0.5 -> -29 | Y157: -1.537 | Z157: 0.013 | AA157: 0.01123119324 | AB157: 3
B158: -28.5 | C158: -1.995 | D158: 0.895 | E158: 0.009818238129 | F158: 4 | H158: -28.5 | I158: -2.2515 | J158: 0.5785 | K158: 0.008699704672 | L158: 4 | P158: -28.5 | Q158: -1.995 | R158: 0.075 | S158: 0.009818238129 | T158: 4 | X158: -28.5 | Y158: -1.5105 | Z158: 0.0395 | AA158: 0.01296748432 | AB158: 4
B159: -28 | C159: -1.96 | D159: 0.93 | E159: 0.01130778798 | F159: 5 | H159: -28 | I159: -2.212 | J159: 0.618 | K159: 0.01001955897 | L159: 5 | P159: -28 | Q159: -1.96 | R159: 0.11 | S159: 0.01130778798 | T159: 5 | X159: -28 | Y159: -1.484 | Z159: 0.066 | AA159: 0.01493481431 | AB159: 5
B160: -27.5 | C160: -1.925 | D160: 0.965 | E160: 0.01299080357 | F160: 6 | H160: -27.5 | I160: -2.1725 | J160: 0.6575 | K160: 0.01151083861 | L160: 6 | P160: -27.5 | Q160: -1.925 | R160: 0.145 | S160: 0.01299080357 | T160: 6 | X160: -27.5 | Y160: -1.4575 | Z160: 0.0925 | AA160: 0.0171576651 | AB160: 6
B161: -27 | C161: -1.89 | D161: 1 | E161: 0.01488704973 | F161: 7 | H161: -27 | I161: -2.133 | J161: 0.697 | K161: 0.01319105673 | L161: 7 | P161: -27 | Q161: -1.89 | R161: 0.18 | S161: 0.01488704973 | T161: 7 | X161: -27 | Y161: -1.431 | Z161: 0.119 | AA161: 0.01966214116 | AB161: 7
B162: -26.5 | C162: -1.855 | D162: 1.035 | E162: 0.01701749087 | F162: 8 | H162: -26.5 | I162: -2.0935 | J162: 0.7365 | K162: 0.01507878938 | L162: 8 | P162: -26.5 | Q162: -1.855 | R162: 0.215 | S162: 0.01701749087 | T162: 8 | X162: -26.5 | Y162: -1.4045 | Z162: 0.1455 | AA162: 0.02247593134 | AB162: 8
B163: -26 | C163: -1.82 | D163: 1.07 | E163: 0.01940424176 | F163: 9 | H163: -26 | I163: -2.054 | J163: 0.776 | K163: 0.01719363194 | L163: 9 | P163: -26 | Q163: -1.82 | R163: 0.25 | S163: 0.01940424176 | T163: 9 | X163: -26 | Y163: -1.378 | Z163: 0.172 | AA163: 0.02562824384 | AB163: 9
B164: -25.5 | C164: -1.785 | D164: 1.105 | E164: 0.02207049591 | F164: 10 | H164: -25.5 | I164: -2.0145 | J164: 0.8155 | K164: 0.01955613561 | L164: 10 | P164: -25.5 | Q164: -1.785 | R164: 0.285 | S164: 0.02207049591 | T164: 10 | X164: -25.5 | Y164: -1.3515 | Z164: 0.1985 | AA164: 0.02914971157 | AB164: 10
B165: -25 | C165: -1.75 | D165: 1.14 | E165: 0.02504042928 | F165: 11 | H165: -25 | I165: -1.975 | J165: 0.855 | K165: 0.02218772214 | L165: 11 | P165: -25 | Q165: -1.75 | R165: 0.32 | S165: 0.02504042928 | T165: 11 | X165: -25 | Y165: -1.325 | Z165: 0.225 | AA165: 0.03307226508 | AB165: 11
B166: -24.5 | C166: -1.715 | D166: 1.175 | E166: 0.0283390777 | F166: 12 | H166: -24.5 | I166: -1.9355 | J166: 0.8945 | K166: 0.02511057518 | L166: 12 | P166: -24.5 | Q166: -1.715 | R166: 0.355 | S166: 0.0283390777 | T166: 12 | X166: -24.5 | Y166: -1.2985 | Z166: 0.2515 | AA166: 0.03742897055 | AB166: 12
B167: -24 | C167: -1.68 | D167: 1.21 | E167: 0.03199218614 | F167: 13 | H167: -24 | I167: -1.896 | J167: 0.934 | K167: 0.0283475067 | L167: 13 | P167: -24 | Q167: -1.68 | R167: 0.39 | S167: 0.03199218614 | T167: 13 | X167: -24 | Y167: -1.272 | Z167: 0.278 | AA167: 0.04225383074 | AB167: 13
B168: -23.5 | C168: -1.645 | D168: 1.245 | E168: 0.03602602845 | F168: 14 | H168: -23.5 | I168: -1.8565 | J168: 0.9735 | K168: 0.03192179736 | L168: 14 | P168: -23.5 | Q168: -1.645 | R168: 0.425 | S168: 0.03602602845 | T168: 14 | X168: -23.5 | Y168: -1.2455 | Z168: 0.3045 | AA168: 0.04758154701 | AB168: 14
B169: -23 | C169: -1.61 | D169: 1.28 | E169: 0.04046719677 | F169: 15 | H169: -23 | I169: -1.817 | J169: 1.013 | K169: 0.0358570098 | L169: 15 | P169: -23 | Q169: -1.61 | R169: 0.46 | S169: 0.04046719677 | T169: 15 | X169: -23 | Y169: -1.219 | Z169: 0.331 | AA169: 0.05344724102 | AB169: 15
B170: -22.5 | C170: -1.575 | D170: 1.315 | E170: 0.04534235977 | F170: 16 | H170: -22.5 | I170: -1.7775 | J170: 1.0525 | K170: 0.04017677448 | L170: 16 | P170: -22.5 | Q170: -1.575 | R170: 0.495 | S170: 0.04534235977 | T170: 16 | X170: -22.5 | Y170: -1.1925 | Z170: 0.3575 | AA170: 0.05988613554 | AB170: 16
B171: -22 | C171: -1.54 | D171: 1.35 | E171: 0.05067798978 | F171: 17 | H171: -22 | I171: -1.738 | J171: 1.092 | K171: 0.04490454791 | L171: 17 | P171: -22 | Q171: -1.54 | R171: 0.53 | S171: 0.05067798978 | T171: 17 | X171: -22 | Y171: -1.166 | Z171: 0.384 | AA171: 0.06693319405 | AB171: 17
B172: -21.5 | C172: -1.505 | D172: 1.385 | E172: 0.05650005941 | F172: 18 | H172: -21.5 | I172: -1.6985 | J172: 1.1315 | K172: 0.05006334378 | L172: 18 | P172: -21.5 | Q172: -1.505 | R172: 0.565 | S172: 0.05650005941 | T172: 18 | X172: -21.5 | Y172: -1.1395 | Z172: 0.4105 | AA172: 0.07462271998 | AB172: 18
B173: -21 | C173: -1.47 | D173: 1.42 | E173: 0.06283370854 | F173: 19 | H173: -21 | I173: -1.659 | J173: 1.171 | K173: 0.05567543795 | L173: 19 | P173: -21 | Q173: -1.47 | R173: 0.6 | S173: 0.06283370854 | T173: 19 | X173: -21 | Y173: -1.113 | Z173: 0.437 | AA173: 0.08298791694 | AB173: 19
B174: -20.5 | C174: -1.435 | D174: 1.455 | E174: 0.06970288368 | F174: 20 | H174: -20.5 | I174: -1.6195 | J174: 1.2105 | K174: 0.06176204883 | L174: 20 | P174: -20.5 | Q174: -1.435 | R174: 0.635 | S174: 0.06970288368 | T174: 20 | X174: -20.5 | Y174: -1.0865 | Z174: 0.4635 | AA174: 0.09206041241 | AB174: 20
B175: -20 | C175: -1.4 | D175: 1.49 | E175: 0.07712995216 | F175: 21 | H175: -20 | I175: -1.58 | J175: 1.25 | K175: 0.06834299559 | L175: 21 | P175: -20 | Q175: -1.4 | R175: 0.67 | S175: 0.07712995216 | T175: 21 | X175: -20 | Y175: -1.06 | Z175: 0.49 | AA175: 0.1018697481 | AB175: 21
B176: -19.5 | C176: -1.365 | D176: 1.525 | E176: 0.08513529438 | F176: 22 | H176: -19.5 | I176: -1.5405 | J176: 1.2895 | K176: 0.0754363368 | L176: 22 | P176: -19.5 | Q176: -1.365 | R176: 0.705 | S176: 0.08513529438 | T176: 22 | X176: -19.5 | Y176: -1.0335 | Z176: 0.5165 | AA176: 0.1124428416 | AB176: 22
B177: -19 | C177: -1.33 | D177: 1.56 | E177: 0.09373687825 | F177: 23 | H177: -19 | I177: -1.501 | J177: 1.329 | K177: 0.08305799339 | L177: 23 | P177: -19 | Q177: -1.33 | R177: 0.74 | S177: 0.09373687825 | T177: 23 | X177: -19 | Y177: -1.007 | Z177: 0.543 | AA177: 0.1238034241 | AB177: 23
B178: -18.5 | C178: -1.295 | D178: 1.595 | E178: 0.1029498205 | F178: 24 | H178: -18.5 | I178: -1.4615 | J178: 1.3685 | K178: 0.09122135992 | L178: 24 | P178: -18.5 | Q178: -1.295 | R178: 0.775 | S178: 0.1029498205 | T178: 24 | X178: -18.5 | Y178: -0.9805 | Z178: 0.5695 | AA178: 0.135971461 | AB178: 24
B179: -18 | C179: -1.26 | D179: 1.63 | E179: 0.1127859404 | F179: 25 | H179: -18 | I179: -1.422 | J179: 1.408 | K179: 0.09993690924 | L179: 25 | P179: -18 | Q179: -1.26 | R179: 0.81 | S179: 0.1127859404 | T179: 25 | X179: -18 | Y179: -0.954 | Z179: 0.596 | AA179: 0.1489625628 | AB179: 25
B180: -17.5 | C180: -1.225 | D180: 1.665 | E180: 0.1232533126 | F180: 26 | H180: -17.5 | I180: -1.3825 | J180: 1.4475 | K180: 0.109211796 | L180: 26 | P180: -17.5 | Q180: -1.225 | R180: 0.845 | S180: 0.1232533126 | T180: 26 | X180: -17.5 | Y180: -0.9275 | Z180: 0.6225 | AA180: 0.162787394 | AB180: 26
B181: -17 | C181: -1.19 | D181: 1.7 | E181: 0.1343558248 | F181: 27 | H181: -17 | I181: -1.343 | J181: 1.487 | K181: 0.119049465 | L181: 27 | P181: -17 | Q181: -1.19 | R181: 0.88 | S181: 0.1343558248 | T181: 27 | X181: -17 | Y181: -0.901 | Z181: 0.649 | AA181: 0.1774510894 | AB181: 27
B182: -16.5 | C182: -1.155 | D182: 1.735 | E182: 0.1460927494 | F182: 28 | H182: -16.5 | I182: -1.3035 | J182: 1.5265 | K182: 0.1294492716 | L182: 28 | P182: -16.5 | Q182: -1.155 | R182: 0.915 | S182: 0.1460927494 | T182: 28 | X182: -16.5 | Y182: -0.8745 | Z182: 0.6755 | AA182: 0.1929526879 | AB182: 28
B183: -16 | C183: -1.12 | D183: 1.77 | E183: 0.1584583353 | F183: 29 | H183: -16 | I183: -1.264 | J183: 1.566 | K183: 0.1404061198 | L183: 29 | P183: -16 | Q183: -1.12 | R183: 0.95 | S183: 0.1584583353 | T183: 29 | X183: -16 | Y183: -0.848 | Z183: 0.702 | AA183: 0.2092845937 | AB183: 29
B184: -15.5 | C184: -1.085 | D184: 1.805 | E184: 0.1714414296 | F184: 30 | H184: -15.5 | I184: -1.2245 | J184: 1.6055 | K184: 0.1519101275 | L184: 30 | P184: -15.5 | Q184: -1.085 | R184: 0.985 | S184: 0.1714414296 | T184: 30 | X184: -15.5 | Y184: -0.8215 | Z184: 0.7285 | AA184: 0.2264320768 | AB184: 30
B185: -15 | C185: -1.05 | D185: 1.84 | E185: 0.1850251367 | F185: 31 | H185: -15 | I185: -1.185 | J185: 1.645 | K185: 0.1639463236 | L185: 31 | P185: -15 | Q185: -1.05 | R185: 1.02 | S185: 0.1850251367 | T185: 31 | X185: -15 | Y185: -0.795 | Z185: 0.755 | AA185: 0.244372822 | AB185: 31
B186: -14.5 | C186: -1.015 | D186: 1.875 | E186: 0.1991865235 | F186: 32 | H186: -14.5 | I186: -1.1455 | J186: 1.6845 | K186: 0.1764943879 | L186: 32 | P186: -14.5 | Q186: -1.015 | R186: 1.055 | S186: 0.1991865235 | T186: 32 | X186: -14.5 | Y186: -0.7685 | Z186: 0.7815 | AA186: 0.2630765405 | AB186: 32
B187: -14 | C187: =B187*$C$115/10 -> -0.98 | D187: =C187+$B$115 -> 1.91 | E187: =NORMDIST(D187,$B$115,$C$115,FALSE) -> 0.2138963795 | F187: 33 | H187: -14 | I187: =H187*$C$116/10 -> -1.106 | J187: =I187+$B$116 -> 1.724 | K187: =NORMDIST(J187,$B$116,$C$116,FALSE) -> 0.1895284375 | L187: 33 | P187: -14 | Q187: =P187*$C$117/10 -> -0.98 | R187: =Q187+$B$117 -> 1.09 | S187: =NORMDIST(R187,$B$117,$C$117,FALSE) -> 0.2138963795 | T187: 33 | X187: -14 | Y187: =X187*$C$118/10 -> -0.742 | Z187: =Y187+$B$118 -> 0.808 | AA187: =NORMDIST(Z187,$B$118,$C$118,FALSE) -> 0.2825046521 | AB187: 33
B188: -13.5 | C188: -0.945 | D188: 1.945 | E188: 0.2291190391 | F188: 34 | H188: -13.5 | I188: -1.0665 | J188: 1.7635 | K188: 0.2030168701 | L188: 34 | P188: -13.5 | Q188: -0.945 | R188: 1.125 | S188: 0.2291190391 | T188: 34 | X188: -13.5 | Y188: -0.7155 | Z188: 0.8345 | AA188: 0.3026100516 | AB188: 34
B189: -13 | C189: -0.91 | D189: 1.98 | E189: 0.2448122744 | F189: 35 | H189: -13 | I189: -1.027 | J189: 1.803 | K189: 0.2169222684 | L189: 35 | P189: -13 | Q189: -0.91 | R189: 1.16 | S189: 0.2448122744 | T189: 35 | X189: -13 | Y189: -0.689 | Z189: 0.861 | AA189: 0.3233369661 | AB189: 35
B190: -12.5 | C190: -0.875 | D190: 2.015 | E190: 0.2609272648 | F190: 36 | H190: -12.5 | I190: -0.9875 | J190: 1.8425 | K190: 0.2312013739 | L190: 36 | P190: -12.5 | Q190: -0.875 | R190: 1.195 | S190: 0.2609272648 | T190: 36 | X190: -12.5 | Y190: -0.6625 | Z190: 0.8875 | AA190: 0.3446209158 | AB190: 36
B191: -12 | C191: -0.84 | D191: 2.05 | E191: 0.27740865 | F191: 37 | H191: -12 | I191: -0.948 | J191: 1.882 | K191: 0.2458051329 | L191: 37 | P191: -12 | Q191: -0.84 | R191: 1.23 | S191: 0.27740865 | T191: 37 | X191: -12 | Y191: -0.636 | Z191: 0.914 | AA191: 0.366388783 | AB191: 37
B192: -11.5 | C192: -0.805 | D192: 2.085 | E192: 0.2941946696 | F192: 38 | H192: -11.5 | I192: -0.9085 | J192: 1.9215 | K192: 0.2606788212 | L192: 38 | P192: -11.5 | Q192: -0.805 | R192: 1.265 | S192: 0.2941946696 | T192: 38 | X192: -11.5 | Y192: -0.6095 | Z192: 0.9405 | AA192: 0.3885589976 | AB192: 38
B193: -11 | C193: -0.77 | D193: 2.12 | E193: 0.3112173958 | F193: 39 | H193: -11 | I193: -0.869 | J193: 1.961 | K193: 0.2757622494 | L193: 39 | P193: -11 | Q193: -0.77 | R193: 1.3 | S193: 0.3112173958 | T193: 39 | X193: -11 | Y193: -0.583 | Z193: 0.967 | AA193: 0.4110418435 | AB193: 39
B194: -10.5 | C194: -0.735 | D194: 2.155 | E194: 0.3284030581 | F194: 40 | H194: -10.5 | I194: -0.8295 | J194: 2.0005 | K194: 0.2909900515 | L194: 40 | P194: -10.5 | Q194: -0.735 | R194: 1.335 | S194: 0.3284030581 | T194: 40 | X194: -10.5 | Y194: -0.5565 | Z194: 0.9935 | AA194: 0.4337398881 | AB194: 40
B195: -10 | C195: -0.7 | D195: 2.19 | E195: 0.3456724636 | F195: 41 | H195: -10 | I195: -0.79 | J195: 2.04 | K195: 0.3062920564 | L195: 41 | P195: -10 | Q195: -0.7 | R195: 1.37 | S195: 0.3456724636 | T195: 41 | X195: -10 | Y195: -0.53 | Z195: 1.02 | AA195: 0.4565485368 | AB195: 41
B196: -9.5 | C196: -0.665 | D196: 2.225 | E196: 0.3629415092 | F196: 42 | H196: -9.5 | I196: -0.7505 | J196: 2.0795 | K196: 0.3215937424 | L196: 42 | P196: -9.5 | Q196: -0.665 | R196: 1.405 | S196: 0.3629415092 | T196: 42 | X196: -9.5 | Y196: -0.5035 | Z196: 1.0465 | AA196: 0.4793567103 | AB196: 42
B197: -9 | C197: -0.63 | D197: 2.26 | E197: 0.3801217856 | F197: 43 | H197: -9 | I197: -0.711 | J197: 2.119 | K197: 0.336816772 | L197: 43 | P197: -9 | Q197: -0.63 | R197: 1.44 | S197: 0.3801217856 | T197: 43 | X197: -9 | Y197: -0.477 | Z197: 1.073 | AA197: 0.5020476413 | AB197: 43
B198: -8.5 | C198: -0.595 | D198: 2.295 | E198: 0.3971212659 | F198: 44 | H198: -8.5 | I198: -0.6715 | J198: 2.1585 | K198: 0.3518796027 | L198: 44 | P198: -8.5 | Q198: -0.595 | R198: 1.475 | S198: 0.3971212659 | T198: 44 | X198: -8.5 | Y198: -0.4505 | Z198: 1.0995 | AA198: 0.5244997852 | AB198: 44
B199: -8 | C199: -0.56 | D199: 2.33 | E199: 0.4138450754 | F199: 45 | H199: -8 | I199: -0.632 | J199: 2.198 | K199: 0.3666981681 | L199: 45 | P199: -8 | Q199: -0.56 | R199: 1.51 | S199: 0.4138450754 | T199: 45 | X199: -8 | Y199: -0.424 | Z199: 1.126 | AA199: 0.5465878354 | AB199: 45
B200: -7.5 | C200: -0.525 | D200: 2.365 | E200: 0.4301963316 | F200: 46 | H200: -7.5 | I200: -0.5925 | J200: 2.2375 | K200: 0.381186623 | L200: 46 | P200: -7.5 | Q200: -0.525 | R200: 1.545 | S200: 0.4301963316 | T200: 46 | X200: -7.5 | Y200: -0.3975 | Z200: 1.1525 | AA200: 0.5681838343 | AB200: 46
B201: -7 | C201: -0.49 | D201: 2.4 | E201: 0.4460770477 | F201: 47 | H201: -7 | I201: -0.553 | J201: 2.277 | K201: 0.3952581435 | L201: 47 | P201: -7 | Q201: -0.49 | R201: 1.58 | S201: 0.4460770477 | T201: 47 | X201: -7 | Y201: -0.371 | Z201: 1.179 | AA201: 0.5891583648 | AB201: 47
B202: -6.5 | C202: -0.455 | D202: 2.435 | E202: 0.4613890852 | F202: 48 | H202: -6.5 | I202: -0.5135 | J202: 2.3165 | K202: 0.4088257717 | L202: 48 | P202: -6.5 | Q202: -0.455 | R202: 1.615 | S202: 0.4613890852 | T202: 48 | X202: -6.5 | Y202: -0.3445 | Z202: 1.2055 | AA202: 0.6093818107 | AB202: 48
B203: -6 | C203: -0.42 | D203: 2.47 | E203: 0.476035147 | F203: 49 | H203: -6 | I203: -0.474 | J203: 2.356 | K203: 0.4218032948 | L203: 49 | P203: -6 | Q203: -0.42 | R203: 1.65 | S203: 0.476035147 | T203: 49 | X203: -6 | Y203: -0.318 | Z203: 1.232 | AA203: 0.6287256658 | AB203: 49
B204: -5.5 | C204: -0.385 | D204: 2.505 | E204: 0.4899197929 | F204: 50 | H204: -5.5 | I204: -0.4345 | J204: 2.3955 | K204: 0.4341061456 | L204: 50 | P204: -5.5 | Q204: -0.385 | R204: 1.685 | S204: 0.4899197929 | T204: 50 | X204: -5.5 | Y204: -0.2915 | Z204: 1.2585 | AA204: 0.6470638774 | AB204: 50
B205: -5 | C205: -0.35 | D205: 2.54 | E205: 0.5029504668 | F205: 51 | H205: -5 | I205: -0.395 | J205: 2.435 | K205: 0.4456523124 | L205: 51 | P205: -5 | Q205: -0.35 | R205: 1.72 | S205: 0.5029504668 | T205: 51 | X205: -5 | Y205: -0.265 | Z205: 1.285 | AA205: 0.6642742014 | AB205: 51
B206: -4.5 | C206: -0.315 | D206: 2.575 | E206: 0.5150385178 | F206: 52 | H206: -4.5 | I206: -0.3555 | J206: 2.4745 | K206: 0.4563632436 | L206: 52 | P206: -4.5 | Q206: -0.315 | R206: 1.755 | S206: 0.5150385178 | T206: 52 | X206: -4.5 | Y206: -0.2385 | Z206: 1.3115 | AA206: 0.6802395518 | AB206: 52
B207: -4 | C207: -0.28 | D207: 2.61 | E207: 0.5261002004 | F207: 53 | H207: -4 | I207: -0.316 | J207: 2.514 | K207: 0.4661647346 | L207: 53 | P207: -4 | Q207: -0.28 | R207: 1.79 | S207: 0.5261002004 | T207: 53 | X207: -4 | Y207: -0.212 | Z207: 1.338 | AA207: 0.6948493213 | AB207: 53
B208: -3.5 | C208: -0.245 | D208: 2.645 | E208: 0.5360576385 | F208: 54 | H208: -3.5 | I208: -0.2765 | J208: 2.5535 | K208: 0.4749877809 | L208: 54 | P208: -3.5 | Q208: -0.245 | R208: 1.825 | S208: 0.5360576385 | T208: 54 | X208: -3.5 | Y208: -0.1855 | Z208: 1.3645 | AA208: 0.7080006546 | AB208: 54
B209: -3 | C209: -0.21 | D209: 2.68 | E209: 0.5448397364 | F209: 55 | H209: -3 | I209: -0.237 | J209: 2.593 | K209: 0.4827693867 | L209: 55 | P209: -3 | Q209: -0.21 | R209: 1.86 | S209: 0.5448397364 | T209: 55 | X209: -3 | Y209: -0.159 | Z209: 1.391 | AA209: 0.7195996518 | AB209: 55
B210: -2.5 | C210: -0.175 | D210: 2.715 | E210: 0.552383024 | F210: 56 | H210: -2.5 | I210: -0.1975 | J210: 2.6325 | K210: 0.4894533124 | L210: 56 | P210: -2.5 | Q210: -0.175 | R210: 1.895 | S210: 0.552383024 | T210: 56 | X210: -2.5 | Y210: -0.1325 | Z210: 1.4175 | AA210: 0.7295624845 | AB210: 56
B211: -2 | C211: -0.14 | D211: 2.75 | E211: 0.55863242 | F211: 57 | H211: -2 | I211: -0.158 | J211: 2.672 | K211: 0.4949907519 | L211: 57 | P211: -2 | Q211: -0.14 | R211: 1.93 | S211: 0.55863242 | T211: 57 | X211: -2 | Y211: -0.106 | Z211: 1.444 | AA211: 0.7378164037 | AB211: 57
B212: -1.5 | C212: -0.105 | D212: 2.785 | E212: 0.5635419013 | F212: 58 | H212: -1.5 | I212: -0.1185 | J212: 2.7115 | K212: 0.4993409252 | L212: 58 | P212: -1.5 | Q212: -0.105 | R212: 1.965 | S212: 0.5635419013 | T212: 58 | X212: -1.5 | Y212: -0.0795 | Z212: 1.4705 | AA212: 0.7443006244 | AB212: 58
B213: -1 | C213: -0.07 | D213: 2.82 | E213: 0.5670750678 | F213: 59 | H213: -1 | I213: -0.079 | J213: 2.751 | K213: 0.5024715791 | L213: 59 | P213: -1 | Q213: -0.07 | R213: 2 | S213: 0.5670750678 | T213: 59 | X213: -1 | Y213: -0.053 | Z213: 1.497 | AA213: 0.7489670707 | AB213: 59
B214: -0.5 | C214: -0.035 | D214: 2.855 | E214: 0.5692055916 | F214: 60 | H214: -0.5 | I214: -0.0395 | J214: 2.7905 | K214: 0.5043593849 | L214: 60 | P214: -0.5 | Q214: -0.035 | R214: 2.035 | S214: 0.5692055916 | T214: 60 | X214: -0.5 | Y214: -0.0265 | Z214: 1.5235 | AA214: 0.75178097 | AB214: 60
B215: 0 | C215: 0 | D215: 2.89 | E215: 0.5699175434 | F215: 61 | H215: 0 | I215: 0 | J215: 2.83 | K215: 0.5049902284 | L215: 61 | P215: 0 | Q215: 0 | R215: 2.07 | S215: 0.5699175434 | T215: 61 | X215: 0 | Y215: 0 | Z215: 1.55 | AA215: 0.7527212838 | AB215: 61
B216: 0.5 | C216: 0.035 | D216: 2.925 | E216: 0.5692055916 | F216: 62 | H216: 0.5 | I216: 0.0395 | J216: 2.8695 | K216: 0.5043593849 | L216: 62 | P216: 0.5 | Q216: 0.035 | R216: 2.105 | S216: 0.5692055916 | T216: 62 | X216: 0.5 | Y216: 0.0265 | Z216: 1.5765 | AA216: 0.75178097 | AB216: 62
B217: 1 | C217: 0.07 | D217: 2.96 | E217: 0.5670750678 | F217: 63 | H217: 1 | I217: 0.079 | J217: 2.909 | K217: 0.5024715791 | L217: 63 | P217: 1 | Q217: 0.07 | R217: 2.14 | S217: 0.5670750678 | T217: 63 | X217: 1 | Y217: 0.053 | Z217: 1.603 | AA217: 0.7489670707 | AB217: 63
B218: 1.5 | C218: 0.105 | D218: 2.995 | E218: 0.5635419013 | F218: 64 | H218: 1.5 | I218: 0.1185 | J218: 2.9485 | K218: 0.4993409252 | L218: 64 | P218: 1.5 | Q218: 0.105 | R218: 2.175 | S218: 0.5635419013 | T218: 64 | X218: 1.5 | Y218: 0.0795 | Z218: 1.6295 | AA218: 0.7443006244 | AB218: 64
B219: 2 | C219: =B219*$C$115/10 -> 0.14 | D219: =C219+$B$115 -> 3.03 | E219: =NORMDIST(D219,$B$115,$C$115,FALSE) -> 0.55863242 | F219: 65 | H219: 2 | I219: =H219*$C$116/10 -> 0.158 | J219: =I219+$B$116 -> 2.988 | K219: =NORMDIST(J219,$B$116,$C$116,FALSE) -> 0.4949907519 | L219: 65 | P219: 2 | Q219: =P219*$C$117/10 -> 0.14 | R219: =Q219+$B$117 -> 2.21 | S219: =NORMDIST(R219,$B$117,$C$117,FALSE) -> 0.55863242 | T219: 65 | X219: 2 | Y219: =X219*$C$118/10 -> 0.106 | Z219: =Y219+$B$118 -> 1.656 | AA219: =NORMDIST(Z219,$B$118,$C$118,FALSE) -> 0.7378164037 | AB219: 65
B220: 2.5 | C220: 0.175 | D220: 3.065 | E220: 0.552383024 | F220: 66 | H220: 2.5 | I220: 0.1975 | J220: 3.0275 | K220: 0.4894533124 | L220: 66 | P220: 2.5 | Q220: 0.175 | R220: 2.245 | S220: 0.552383024 | T220: 66 | X220: 2.5 | Y220: 0.1325 | Z220: 1.6825 | AA220: 0.7295624845 | AB220: 66
B221: =B220+0.5 -> 3 | C221: 0.21 | D221: 3.1 | E221: 0.5448397364 | F221: 67 | H221: =H220+0.5 -> 3 | I221: 0.237 | J221: 3.067 | K221: 0.4827693867 | L221: 67 | P221: =P220+0.5 -> 3 | Q221: 0.21 | R221: 2.28 | S221: 0.5448397364 | T221: 67 | X221: =X220+0.5 -> 3 | Y221: 0.159 | Z221: 1.709 | AA221: 0.7195996518 | AB221: 67
B222: =B221+0.5 -> 3.5 | C222: 0.245 | D222: 3.135 | E222: 0.5360576385 | F222: 68 | H222: =H221+0.5 -> 3.5 | I222: 0.2765 | J222: 3.1065 | K222: 0.4749877809 | L222: 68 | P222: =P221+0.5 -> 3.5 | Q222: 0.245 | R222: 2.315 | S222: 0.5360576385 | T222: 68 | X222: =X221+0.5 -> 3.5 | Y222: 0.1855 | Z222: 1.7355 | AA222: 0.7080006546 | AB222: 68
B223: =B222+0.5 -> 4 | C223: 0.28 | D223: 3.17 | E223: 0.5261002004 | F223: 69 | H223: =H222+0.5 -> 4 | I223: 0.316 | J223: 3.146 | K223: 0.4661647346 | L223: 69 | P223: =P222+0.5 -> 4 | Q223: 0.28 | R223: 2.35 | S223: 0.5261002004 | T223: 69 | X223: =X222+0.5 -> 4 | Y223: 0.212 | Z223: 1.762 | AA223: 0.6948493213 | AB223: 69
B224: =B223+0.5 -> 4.5 | C224: 0.315 | D224: 3.205 | E224: 0.5150385178 | F224: 70 | H224: =H223+0.5 -> 4.5 | I224: 0.3555 | J224: 3.1855 | K224: 0.4563632436 | L224: 70 | P224: =P223+0.5 -> 4.5 | Q224: 0.315 | R224: 2.385 | S224: 0.5150385178 | T224: 70 | X224: =X223+0.5 -> 4.5 | Y224: 0.2385 | Z224: 1.7885 | AA224: 0.6802395518 | AB224: 70
B225: 5 | C225: 0.35 | D225: 3.24 | E225: 0.5029504668 | F225: 71 | H225: 5 | I225: 0.395 | J225: 3.225 | K225: 0.4456523124 | L225: 71 | P225: 5 | Q225: 0.35 | R225: 2.42 | S225: 0.5029504668 | T225: 71 | X225: 5 | Y225: 0.265 | Z225: 1.815 | AA225: 0.6642742014 | AB225: 71
B226: 5.5 | C226: 0.385 | D226: 3.275 | E226: 0.4899197929 | F226: 72 | H226: 5.5 | I226: 0.4345 | J226: 3.2645 | K226: 0.4341061456 | L226: 72 | P226: 5.5 | Q226: 0.385 | R226: 2.455 | S226: 0.4899197929 | T226: 72 | X226: 5.5 | Y226: 0.2915 | Z226: 1.8415 | AA226: 0.6470638774 | AB226: 72
B227: 6 | C227: 0.42 | D227: 3.31 | E227: 0.476035147 | F227: 73 | H227: 6 | I227: 0.474 | J227: 3.304 | K227: 0.4218032948 | L227: 73 | P227: 6 | Q227: 0.42 | R227: 2.49 | S227: 0.476035147 | T227: 73 | X227: 6 | Y227: 0.318 | Z227: 1.868 | AA227: 0.6287256658 | AB227: 73
B228: 6.5 | C228: 0.455 | D228: 3.345 | E228: 0.4613890852 | F228: 74 | H228: 6.5 | I228: 0.5135 | J228: 3.3435 | K228: 0.4088257717 | L228: 74 | P228: 6.5 | Q228: 0.455 | R228: 2.525 | S228: 0.4613890852 | T228: 74 | X228: 6.5 | Y228: 0.3445 | Z228: 1.8945 | AA228: 0.6093818107 | AB228: 74
B229: 7 | C229: 0.49 | D229: 3.38 | E229: 0.4460770477 | F229: 75 | H229: 7 | I229: 0.553 | J229: 3.383 | K229: 0.3952581435 | L229: 75 | P229: 7 | Q229: 0.49 | R229: 2.56 | S229: 0.4460770477 | T229: 75 | X229: 7 | Y229: 0.371 | Z229: 1.921 | AA229: 0.5891583648 | AB229: 75
B230: 7.5 | C230: 0.525 | D230: 3.415 | E230: 0.4301963316 | F230: 76 | H230: 7.5 | I230: 0.5925 | J230: 3.4225 | K230: 0.381186623 | L230: 76 | P230: 7.5 | Q230: 0.525 | R230: 2.595 | S230: 0.4301963316 | T230: 76 | X230: 7.5 | Y230: 0.3975 | Z230: 1.9475 | AA230: 0.5681838343 | AB230: 76
B231: 8 | C231: 0.56 | D231: 3.45 | E231: 0.4138450754 | F231: 77 | H231: 8 | I231: 0.632 | J231: 3.462 | K231: 0.3666981681 | L231: 77 | P231: 8 | Q231: 0.56 | R231: 2.63 | S231: 0.4138450754 | T231: 77 | X231: 8 | Y231: 0.424 | Z231: 1.974 | AA231: 0.5465878354 | AB231: 77
B232: 8.5 | C232: 0.595 | D232: 3.485 | E232: 0.3971212659 | F232: 78 | H232: 8.5 | I232: 0.6715 | J232: 3.5015 | K232: 0.3518796027 | L232: 78 | P232: 8.5 | Q232: 0.595 | R232: 2.665 | S232: 0.3971212659 | T232: 78 | X232: 8.5 | Y232: 0.4505 | Z232: 2.0005 | AA232: 0.5244997852 | AB232: 78
B233: 9 | C233: 0.63 | D233: 3.52 | E233: 0.3801217856 | F233: 79 | H233: 9 | I233: 0.711 | J233: 3.541 | K233: 0.336816772 | L233: 79 | P233: 9 | Q233: 0.63 | R233: 2.7 | S233: 0.3801217856 | T233: 79 | X233: 9 | Y233: 0.477 | Z233: 2.027 | AA233: 0.5020476413 | AB233: 79
B234: 9.5 | C234: 0.665 | D234: 3.555 | E234: 0.3629415092 | F234: 80 | H234: 9.5 | I234: 0.7505 | J234: 3.5805 | K234: 0.3215937424 | L234: 80 | P234: 9.5 | Q234: 0.665 | R234: 2.735 | S234: 0.3629415092 | T234: 80 | X234: 9.5 | Y234: 0.5035 | Z234: 2.0535 | AA234: 0.4793567103 | AB234: 80
B235: 10 | C235: 0.7 | D235: 3.59 | E235: 0.3456724636 | F235: 81 | H235: 10 | I235: 0.79 | J235: 3.62 | K235: 0.3062920564 | L235: 81 | P235: 10 | Q235: 0.7 | R235: 2.77 | S235: 0.3456724636 | T235: 81 | X235: 10 | Y235: 0.53 | Z235: 2.08 | AA235: 0.4565485368 | AB235: 81
B236: 10.5 | C236: 0.735 | D236: 3.625 | E236: 0.3284030581 | F236: 82 | H236: 10.5 | I236: 0.8295 | J236: 3.6595 | K236: 0.2909900515 | L236: 82 | P236: 10.5 | Q236: 0.735 | R236: 2.805 | S236: 0.3284030581 | T236: 82 | X236: 10.5 | Y236: 0.5565 | Z236: 2.1065 | AA236: 0.4337398881 | AB236: 82
B237: 11 | C237: 0.77 | D237: 3.66 | E237: 0.3112173958 | F237: 83 | H237: 11 | I237: 0.869 | J237: 3.699 | K237: 0.2757622494 | L237: 83 | P237: 11 | Q237: 0.77 | R237: 2.84 | S237: 0.3112173958 | T237: 83 | X237: 11 | Y237: 0.583 | Z237: 2.133 | AA237: 0.4110418435 | AB237: 83
B238: 11.5 | C238: 0.805 | D238: 3.695 | E238: 0.2941946696 | F238: 84 | H238: 11.5 | I238: 0.9085 | J238: 3.7385 | K238: 0.2606788212 | L238: 84 | P238: 11.5 | Q238: 0.805 | R238: 2.875 | S238: 0.2941946696 | T238: 84 | X238: 11.5 | Y238: 0.6095 | Z238: 2.1595 | AA238: 0.3885589976 | AB238: 84
B239: =B238+0.5 -> 12 | C239: 0.84 | D239: 3.73 | E239: 0.27740865 | F239: 85 | H239: =H238+0.5 -> 12 | I239: 0.948 | J239: 3.778 | K239: 0.2458051329 | L239: 85 | P239: =P238+0.5 -> 12 | Q239: 0.84 | R239: 2.91 | S239: 0.27740865 | T239: 85 | X239: =X238+0.5 -> 12 | Y239: 0.636 | Z239: 2.186 | AA239: 0.366388783 | AB239: 85
B240: =B239+0.5 -> 12.5 | C240: 0.875 | D240: 3.765 | E240: 0.2609272648 | F240: 86 | H240: =H239+0.5 -> 12.5 | I240: 0.9875 | J240: 3.8175 | K240: 0.2312013739 | L240: 86 | P240: =P239+0.5 -> 12.5 | Q240: 0.875 | R240: 2.945 | S240: 0.2609272648 | T240: 86 | X240: =X239+0.5 -> 12.5 | Y240: 0.6625 | Z240: 2.2125 | AA240: 0.3446209158 | AB240: 86
B241: 13 | C241: 0.91 | D241: 3.8 | E241: 0.2448122744 | F241: 87 | H241: 13 | I241: 1.027 | J241: 3.857 | K241: 0.2169222684 | L241: 87 | P241: 13 | Q241: 0.91 | R241: 2.98 | S241: 0.2448122744 | T241: 87 | X241: 13 | Y241: 0.689 | Z241: 2.239 | AA241: 0.3233369661 | AB241: 87
B242: 13.5 | C242: 0.945 | D242: 3.835 | E242: 0.2291190391 | F242: 88 | H242: 13.5 | I242: 1.0665 | J242: 3.8965 | K242: 0.2030168701 | L242: 88 | P242: 13.5 | Q242: 0.945 | R242: 3.015 | S242: 0.2291190391 | T242: 88 | X242: 13.5 | Y242: 0.7155 | Z242: 2.2655 | AA242: 0.3026100516 | AB242: 88
B243: 14 | C243: 0.98 | D243: 3.87 | E243: 0.2138963795 | F243: 89 | H243: 14 | I243: 1.106 | J243: 3.936 | K243: 0.1895284375 | L243: 89 | P243: 14 | Q243: 0.98 | R243: 3.05 | S243: 0.2138963795 | T243: 89 | X243: 14 | Y243: 0.742 | Z243: 2.292 | AA243: 0.2825046521 | AB243: 89
B244: 14.5 | C244: 1.015 | D244: 3.905 | E244: 0.1991865235 | F244: 90 | H244: 14.5 | I244: 1.1455 | J244: 3.9755 | K244: 0.1764943879 | L244: 90 | P244: 14.5 | Q244: 1.015 | R244: 3.085 | S244: 0.1991865235 | T244: 90 | X244: 14.5 | Y244: 0.7685 | Z244: 2.3185 | AA244: 0.2630765405 | AB244: 90
B245: 15 | C245: 1.05 | D245: 3.94 | E245: 0.1850251367 | F245: 91 | H245: 15 | I245: 1.185 | J245: 4.015 | K245: 0.1639463236 | L245: 91 | P245: 15 | Q245: 1.05 | R245: 3.12 | S245: 0.1850251367 | T245: 91 | X245: 15 | Y245: 0.795 | Z245: 2.345 | AA245: 0.244372822 | AB245: 91
B246: 15.5 | C246: 1.085 | D246: 3.975 | E246: 0.1714414296 | F246: 92 | H246: 15.5 | I246: 1.2245 | J246: 4.0545 | K246: 0.1519101275 | L246: 92 | P246: 15.5 | Q246: 1.085 | R246: 3.155 | S246: 0.1714414296 | T246: 92 | X246: 15.5 | Y246: 0.8215 | Z246: 2.3715 | AA246: 0.2264320768 | AB246: 92
B247: 16 | C247: 1.12 | D247: 4.01 | E247: 0.1584583353 | F247: 93 | H247: 16 | I247: 1.264 | J247: 4.094 | K247: 0.1404061198 | L247: 93 | P247: 16 | Q247: 1.12 | R247: 3.19 | S247: 0.1584583353 | T247: 93 | X247: 16 | Y247: 0.848 | Z247: 2.398 | AA247: 0.2092845937 | AB247: 93
B248: 16.5 | C248: 1.155 | D248: 4.045 | E248: 0.1460927494 | F248: 94 | H248: 16.5 | I248: 1.3035 | J248: 4.1335 | K248: 0.1294492716 | L248: 94 | P248: 16.5 | Q248: 1.155 | R248: 3.225 | S248: 0.1460927494 | T248: 94 | X248: 16.5 | Y248: 0.8745 | Z248: 2.4245 | AA248: 0.1929526879 | AB248: 94
B249: 17 | C249: 1.19 | D249: 4.08 | E249: 0.1343558248 | F249: 95 | H249: 17 | I249: 1.343 | J249: 4.173 | K249: 0.119049465 | L249: 95 | P249: 17 | Q249: 1.19 | R249: 3.26 | S249: 0.1343558248 | T249: 95 | X249: 17 | Y249: 0.901 | Z249: 2.451 | AA249: 0.1774510894 | AB249: 95
B250: 17.5 | C250: 1.225 | D250: 4.115 | E250: 0.1232533126 | F250: 96 | H250: 17.5 | I250: 1.3825 | J250: 4.2125 | K250: 0.109211796 | L250: 96 | P250: 17.5 | Q250: 1.225 | R250: 3.295 | S250: 0.1232533126 | T250: 96 | X250: 17.5 | Y250: 0.9275 | Z250: 2.4775 | AA250: 0.162787394 | AB250: 96
B251: 18 | C251: =B251*$C$115/10 -> 1.26 | D251: =C251+$B$115 -> 4.15 | E251: =NORMDIST(D251,$B$115,$C$115,FALSE) -> 0.1127859404 | F251: 97 | H251: 18 | I251: =H251*$C$116/10 -> 1.422 | J251: =I251+$B$116 -> 4.252 | K251: =NORMDIST(J251,$B$116,$C$116,FALSE) -> 0.09993690924 | L251: 97 | P251: 18 | Q251: =P251*$C$117/10 -> 1.26 | R251: =Q251+$B$117 -> 3.33 | S251: =NORMDIST(R251,$B$117,$C$117,FALSE) -> 0.1127859404 | T251: 97 | X251: 18 | Y251: =X251*$C$118/10 -> 0.954 | Z251: =Y251+$B$118 -> 2.504 | AA251: =NORMDIST(Z251,$B$118,$C$118,FALSE) -> 0.1489625628 | AB251: 97
B252: 18.5 | C252: 1.295 | D252: 4.185 | E252: 0.1029498205 | F252: 98 | H252: 18.5 | I252: 1.4615 | J252: 4.2915 | K252: 0.09122135992 | L252: 98 | P252: 18.5 | Q252: 1.295 | R252: 3.365 | S252: 0.1029498205 | T252: 98 | X252: 18.5 | Y252: 0.9805 | Z252: 2.5305 | AA252: 0.135971461 | AB252: 98
B253: 19 | C253: 1.33 | D253: 4.22 | E253: 0.09373687825 | F253: 99 | H253: 19 | I253: 1.501 | J253: 4.331 | K253: 0.08305799339 | L253: 99 | P253: 19 | Q253: 1.33 | R253: 3.4 | S253: 0.09373687825 | T253: 99 | X253: 19 | Y253: 1.007 | Z253: 2.557 | AA253: 0.1238034241 | AB253: 99
B254: 19.5 | C254: 1.365 | D254: 4.255 | E254: 0.08513529438 | F254: 100 | H254: 19.5 | I254: 1.5405 | J254: 4.3705 | K254: 0.0754363368 | L254: 100 | P254: 19.5 | Q254: 1.365 | R254: 3.435 | S254: 0.08513529438 | T254: 100 | X254: 19.5 | Y254: 1.0335 | Z254: 2.5835 | AA254: 0.1124428416 | AB254: 100
B255: 20 | C255: 1.4 | D255: 4.29 | E255: 0.07712995216 | F255: 101 | H255: 20 | I255: 1.58 | J255: 4.41 | K255: 0.06834299559 | L255: 101 | P255: 20 | Q255: 1.4 | R255: 3.47 | S255: 0.07712995216 | T255: 101 | X255: 20 | Y255: 1.06 | Z255: 2.61 | AA255: 0.1018697481 | AB255: 101
B256: 20.5 | C256: 1.435 | D256: 4.325 | E256: 0.06970288368 | F256: 102 | H256: 20.5 | I256: 1.6195 | J256: 4.4495 | K256: 0.06176204883 | L256: 102 | P256: 20.5 | Q256: 1.435 | R256: 3.505 | S256: 0.06970288368 | T256: 102 | X256: 20.5 | Y256: 1.0865 | Z256: 2.6365 | AA256: 0.09206041241 | AB256: 102
B257: 21 | C257: 1.47 | D257: 4.36 | E257: 0.06283370854 | F257: 103 | H257: 21 | I257: 1.659 | J257: 4.489 | K257: 0.05567543795 | L257: 103 | P257: 21 | Q257: 1.47 | R257: 3.54 | S257: 0.06283370854 | T257: 103 | X257: 21 | Y257: 1.113 | Z257: 2.663 | AA257: 0.08298791694 | AB257: 103
B258: 21.5 | C258: 1.505 | D258: 4.395 | E258: 0.05650005941 | F258: 104 | H258: 21.5 | I258: 1.6985 | J258: 4.5285 | K258: 0.05006334378 | L258: 104 | P258: 21.5 | Q258: 1.505 | R258: 3.575 | S258: 0.05650005941 | T258: 104 | X258: 21.5 | Y258: 1.1395 | Z258: 2.6895 | AA258: 0.07462271998 | AB258: 104
B259: 22 | C259: 1.54 | D259: 4.43 | E259: 0.05067798978 | F259: 105 | H259: 22 | I259: 1.738 | J259: 4.568 | K259: 0.04490454791 | L259: 105 | P259: 22 | Q259: 1.54 | R259: 3.61 | S259: 0.05067798978 | T259: 105 | X259: 22 | Y259: 1.166 | Z259: 2.716 | AA259: 0.06693319405 | AB259: 105
B260: 22.5 | C260: 1.575 | D260: 4.465 | E260: 0.04534235977 | F260: 106 | H260: 22.5 | I260: 1.7775 | J260: 4.6075 | K260: 0.04017677448 | L260: 106 | P260: 22.5 | Q260: 1.575 | R260: 3.645 | S260: 0.04534235977 | T260: 106 | X260: 22.5 | Y260: 1.1925 | Z260: 2.7425 | AA260: 0.05988613554 | AB260: 106
B261: 23 | C261: 1.61 | D261: 4.5 | E261: 0.04046719677 | F261: 107 | H261: 23 | I261: 1.817 | J261: 4.647 | K261: 0.0358570098 | L261: 107 | P261: 23 | Q261: 1.61 | R261: 3.68 | S261: 0.04046719677 | T261: 107 | X261: 23 | Y261: 1.219 | Z261: 2.769 | AA261: 0.05344724102 | AB261: 107
B262: 23.5 | C262: 1.645 | D262: 4.535 | E262: 0.03602602845 | F262: 108 | H262: 23.5 | I262: 1.8565 | J262: 4.6865 | K262: 0.03192179736 | L262: 108 | P262: 23.5 | Q262: 1.645 | R262: 3.715 | S262: 0.03602602845 | T262: 108 | X262: 23.5 | Y262: 1.2455 | Z262: 2.7955 | AA262: 0.04758154701 | AB262: 108
B263: 24 | C263: 1.68 | D263: 4.57 | E263: 0.03199218614 | F263: 109 | H263: 24 | I263: 1.896 | J263: 4.726 | K263: 0.0283475067 | L263: 109 | P263: 24 | Q263: 1.68 | R263: 3.75 | S263: 0.03199218614 | T263: 109 | X263: 24 | Y263: 1.272 | Z263: 2.822 | AA263: 0.04225383074 | AB263: 109
B264: 24.5 | C264: 1.715 | D264: 4.605 | E264: 0.0283390777 | F264: 110 | H264: 24.5 | I264: 1.9355 | J264: 4.7655 | K264: 0.02511057518 | L264: 110 | P264: 24.5 | Q264: 1.715 | R264: 3.785 | S264: 0.0283390777 | T264: 110 | X264: 24.5 | Y264: 1.2985 | Z264: 2.8485 | AA264: 0.03742897055 | AB264: 110
B265: 25 | C265: 1.75 | D265: 4.64 | E265: 0.02504042928 | F265: 111 | H265: 25 | I265: 1.975 | J265: 4.805 | K265: 0.02218772214 | L265: 111 | P265: 25 | Q265: 1.75 | R265: 3.82 | S265: 0.02504042928 | T265: 111 | X265: 25 | Y265: 1.325 | Z265: 2.875 | AA265: 0.03307226508 | AB265: 111
B266: 25.5 | C266: 1.785 | D266: 4.675 | E266: 0.02207049591 | F266: 112 | H266: 25.5 | I266: 2.0145 | J266: 4.8445 | K266: 0.01955613561 | L266: 112 | P266: 25.5 | Q266: 1.785 | R266: 3.855 | S266: 0.02207049591 | T266: 112 | X266: 25.5 | Y266: 1.3515 | Z266: 2.9015 | AA266: 0.02914971157 | AB266: 112
B267: 26 | C267: 1.82 | D267: 4.71 | E267: 0.01940424176 | F267: 113 | H267: 26 | I267: 2.054 | J267: 4.884 | K267: 0.01719363194 | L267: 113 | P267: 26 | Q267: 1.82 | R267: 3.89 | S267: 0.01940424176 | T267: 113 | X267: 26 | Y267: 1.378 | Z267: 2.928 | AA267: 0.02562824384 | AB267: 113
B268: 26.5 | C268: 1.855 | D268: 4.745 | E268: 0.01701749087 | F268: 114 | H268: 26.5 | I268: 2.0935 | J268: 4.9235 | K268: 0.01507878938 | L268: 114 | P268: 26.5 | Q268: 1.855 | R268: 3.925 | S268: 0.01701749087 | T268: 114 | X268: 26.5 | Y268: 1.4045 | Z268: 2.9545 | AA268: 0.02247593134 | AB268: 114
B269: 27 | C269: 1.89 | D269: 4.78 | E269: 0.01488704973 | F269: 115 | H269: 27 | I269: 2.133 | J269: 4.963 | K269: 0.01319105673 | L269: 115 | P269: 27 | Q269: 1.89 | R269: 3.96 | S269: 0.01488704973 | T269: 115 | X269: 27 | Y269: 1.431 | Z269: 2.981 | AA269: 0.01966214116 | AB269: 115
B270: 27.5 | C270: 1.925 | D270: 4.815 | E270: 0.01299080357 | F270: 116 | H270: 27.5 | I270: 2.1725 | J270: 5.0025 | K270: 0.01151083861 | L270: 116 | P270: 27.5 | Q270: 1.925 | R270: 3.995 | S270: 0.01299080357 | T270: 116 | X270: 27.5 | Y270: 1.4575 | Z270: 3.0075 | AA270: 0.0171576651 | AB270: 116
B271: 28 | C271: 1.96 | D271: 4.85 | E271: 0.01130778798 | F271: 117 | H271: 28 | I271: 2.212 | J271: 5.042 | K271: 0.01001955897 | L271: 117 | P271: 28 | Q271: 1.96 | R271: 4.03 | S271: 0.01130778798 | T271: 117 | X271: 28 | Y271: 1.484 | Z271: 3.034 | AA271: 0.01493481431 | AB271: 117
B272: 28.5 | C272: 1.995 | D272: 4.885 | E272: 0.009818238129 | F272: 118 | H272: 28.5 | I272: 2.2515 | J272: 5.0815 | K272: 0.008699704672 | L272: 118 | P272: 28.5 | Q272: 1.995 | R272: 4.065 | S272: 0.009818238129 | T272: 118 | X272: 28.5 | Y272: 1.5105 | Z272: 3.0605 | AA272: 0.01296748432 | AB272: 118
B273: 29 | C273: 2.03 | D273: 4.92 | E273: 0.008503617743 | F273: 119 | H273: 29 | I273: 2.291 | J273: 5.121 | K273: 0.007534851164 | L273: 119 | P273: 29 | Q273: 2.03 | R273: 4.1 | S273: 0.008503617743 | T273: 119 | X273: 29 | Y273: 1.537 | Z273: 3.087 | AA273: 0.01123119324 | AB273: 119
B274: 29.5 | C274: 2.065 | D274: 4.955 | E274: 0.00734662989 | F274: 120 | H274: 29.5 | I274: 2.3305 | J274: 5.1605 | K274: 0.006509672054 | L274: 120 | P274: 29.5 | Q274: 2.065 | R274: 4.135 | S274: 0.00734662989 | T274: 120 | X274: 29.5 | Y274: 1.5635 | Z274: 3.1135 | AA274: 0.009703096081 | AB274: 120
B275: 30 | C275: 2.1 | D275: 4.99 | E275: 0.006331212017 | F275: 121 | H275: 30 | I275: 2.37 | J275: 5.2 | K275: 0.005609934699 | L275: 121 | P275: 30 | Q275: 2.1 | R275: 4.17 | S275: 0.006331212017 | T275: 121 | X275: 30 | Y275: 1.59 | Z275: 3.14 | AA275: 0.008361978136 | AB275: 121
B281: Marque | C281: x | D281: y | H281: Marque | I281: x | J281: y | P281: Marque | Q281: x | R281: y | X281: Marque | Y281: x | Z281: y
B282: T1 | C282: =VLOOKUP($B$32,D155:G275,3,TRUE) -> 46 | D282: =VLOOKUP($B$32,D155:E275,2,TRUE) -> 0.4301963316 | H282: T1 | I282: =VLOOKUP($B$33,J155:M275,3,TRUE) -> 52 | J282: =VLOOKUP($B$33,J155:K275,2,TRUE) -> 0.4563632436 | P282: T1 | Q282: =VLOOKUP($B$34,R155:U275,3,TRUE) -> 64 | R282: =VLOOKUP($B$34,R155:S275,2,TRUE) -> 0.5635419013 | X282: T1 | Y282: =VLOOKUP($B$35,Z155:AC275,3,TRUE) -> 55 | Z282: =VLOOKUP($B$35,Z155:AA275,2,TRUE) -> 0.7195996518
B283: T2 | C283: =VLOOKUP($E$32,D155:G275,3,TRUE) -> 52 | D283: =VLOOKUP($E$32,D155:E275,2,TRUE) -> 0.5150385178 | H283: T2 | I283: =VLOOKUP($E$33,J155:M275,3,TRUE) -> 44 | J283: =VLOOKUP($E$33,J155:K275,2,TRUE) -> 0.3518796027 | P283: T2 | Q283: =VLOOKUP($E$34,R155:U275,3,TRUE) -> 47 | R283: =VLOOKUP($E$34,R155:S275,2,TRUE) -> 0.4460770477 | X283: T2 | Y283: =VLOOKUP($E$35,Z155:AC275,3,TRUE) -> 47 | Z283: =VLOOKUP($E$35,Z155:AA275,2,TRUE) -> 0.5891583648
B285: Moyenne norme | C285: x | D285: y | H285: Moyenne norme | I285: x | J285: y | P285: Moyenne norme | Q285: x | R285: y | X285: Moyenne norme | Y285: x | Z285: y
B288: Ecart sup | C288: x | D288: y | H288: Ecart sup | I288: x | J288: y | P288: Ecart sup | Q288: x | R288: y | X288: Ecart sup | Y288: x | Z288: y
C289: 71 | D289: 0 | I289: 71 | J289: 0 | Q289: 71 | R289: 0 | Y289: 71 | Z289: 0
C290: 71 | D290: =VLOOKUP(5,B155:F275,4,TRUE) -> 0.5029504668 | I290: 71 | J290: =VLOOKUP(5,H155:L275,4,TRUE) -> 0.4456523124 | Q290: 71 | R290: =VLOOKUP(5,P155:T275,4,TRUE) -> 0.5029504668 | Y290: 71 | Z290: =VLOOKUP(5,X155:AB275,4,TRUE) -> 0.6642742014
B291: Ecart inf | C291: x | D291: y | H291: Ecart inf | I291: x | J291: y | P291: Ecart inf | Q291: x | R291: y | X291: Ecart inf | Y291: x | Z291: y
C292: 51 | D292: 0 | I292: 51 | J292: 0 | Q292: 51 | R292: 0 | Y292: 51 | Z292: 0
C293: 51 | D293: =VLOOKUP(-5,B155:F275,4,TRUE) -> 0.5029504668 | I293: 51 | J293: =VLOOKUP(-5,H155:L275,4,TRUE) -> 0.4456523124 | Q293: 51 | R293: =VLOOKUP(-5,P155:T275,4,TRUE) -> 0.5029504668 | Y293: 51 | Z293: =VLOOKUP(-5,X155:AB275,4,TRUE) -> 0.6642742014
B294: Ecart 2 sup | C294: x | D294: y | H294: Ecart 2 sup | I294: x | J294: y | P294: Ecart 2 sup | Q294: x | R294: y | X294: Ecart 2 sup | Y294: x | Z294: y
C295: 91 | D295: 0 | I295: 91 | J295: 0 | Q295: 91 | R295: 0 | Y295: 91 | Z295: 0
C296: 91 | D296: =VLOOKUP(15,B155:F275,4,TRUE) -> 0.1850251367 | I296: 91 | J296: =VLOOKUP(15,H155:L275,4,TRUE) -> 0.1639463236 | Q296: 91 | R296: =VLOOKUP(15,P155:T275,4,TRUE) -> 0.1850251367 | Y296: 91 | Z296: =VLOOKUP(15,X155:AB275,4,TRUE) -> 0.244372822
B297: Ecart 2 inf | C297: x | D297: y | H297: Ecart 2 inf | I297: x | J297: y | P297: Ecart 2 inf | Q297: x | R297: y | X297: Ecart 2 inf | Y297: x | Z297: y
C298: 31 | D298: 0 | I298: 31 | J298: 0 | Q298: 31 | R298: 0 | Y298: 31 | Z298: 0
C299: 31 | D299: =VLOOKUP(-15,B155:G275,4,TRUE) -> 0.1850251367 | I299: 31 | J299: =VLOOKUP(-15,H155:M275,4,TRUE) -> 0.1639463236 | Q299: 31 | R299: =VLOOKUP(-15,P155:U275,4,TRUE) -> 0.1850251367 | Y299: 31 | Z299: =VLOOKUP(-15,X155:AC275,4,TRUE) -> 0.244372822

Sheet MEAQ
A1: Multidimensional Experiential Avoidance Questionnaire
B3: 1 | C3: 2 | D3: 3 | E3: 4 | F3: 5 | G3: 6
B4: Strongly disagree | C4: Moderately disagree | D4: Slightly disagree | E4: Slightly agree | F4: Moderatly agree | G4: Strongly agree
A7: Item | H7: Score T1 R | I7: Score T2 | J7: Dimension
A8: 1-I won’t do something if I think it will make me uncomfortable. | H8: ='Quest T1'!N76 -> 6 | I8: ='Quest T2'!N61 -> 2 | J8: Behavioral avoidance
A9: 2-If I could magically remove all of my painful memories, I would. | H9: ='Quest T1'!N77 -> 6 | I9: ='Quest T2'!N62 -> 5 | J9: Distress aversion
A10: 3-When something upsetting comes up, I try very hard to stop thinking about it. | H10: ='Quest T1'!N78 -> 1 | I10: ='Quest T2'!N63 -> 1 | J10: Distraction suppression
A11: 4-I sometimes have difficulty identifying how I feel. | H11: ='Quest T1'!N79 -> 4 | I11: ='Quest T2'!N64 -> 2 | J11: Repression and denial
A12: 5-I tend to put off unpleasant things that need to get done. | H12: ='Quest T1'!N80 -> 2 | I12: ='Quest T2'!N65 -> 1 | J12: Procrastination
A13: 6-People should face their fears. | H13: ='Quest T1'!N81 -> 4 | I13: ='Quest T2'!N66 -> 5 | J13: Distress endurance
A14: 7-Happiness means never feeling any pain or disappointment. | H14: ='Quest T1'!N82 -> 1 | I14: ='Quest T2'!N67 -> 1 | J14: Distress aversion
A15: 8-I avoid activities if there is even a small possibility of getting hurt. | H15: ='Quest T1'!N83 -> 2 | I15: ='Quest T2'!N68 -> 2 | J15: Behavioral avoidance
A16: 9-When negative thoughts come up, I try to fill my head with something else. | H16: ='Quest T1'!N84 -> 4 | I16: ='Quest T2'!N69 -> 2 | J16: Distraction suppression
A17: 10-At times, people have told me I’m in denial. | H17: ='Quest T1'!N85 -> 1 | I17: ='Quest T2'!N70 -> 1 | J17: Repression and denial
A18: 11-I sometimes procrastinate to avoid facing challenges. | H18: ='Quest T1'!N86 -> 2 | I18: ='Quest T2'!N71 -> 2 | J18: Procrastination
A19: 12-Even when I feel uncomfortable, I don’t give up working toward things I value. | H19: ='Quest T1'!N87 -> 5 | I19: ='Quest T2'!N72 -> 5 | J19: Distress endurance
A20: 13-When I am hurting, I would do anything to feel better. | H20: ='Quest T1'!N88 -> 2 | I20: ='Quest T2'!N73 -> 4 | J20: Distress aversion
A21: 14-I rarely do something if there is a chance that it will upset me. | H21: ='Quest T1'!N89 -> 2 | I21: ='Quest T2'!N74 -> 3 | J21: Behavioral avoidance
A22: 15-I usually try to distract myself when I feel something painful. | H22: ='Quest T1'!N90 -> 2 | I22: ='Quest T2'!N75 -> 2 | J22: Distraction suppression
A23: 16-I am able to « turn off » my emotions when I don’t want to feel. | H23: ='Quest T1'!N91 -> 1 | I23: ='Quest T2'!N76 -> 1 | J23: Repression and denial
A24: 17-When I have something important to do I find myself doing a lot of other things instead. | H24: ='Quest T1'!N92 -> 2 | I24: ='Quest T2'!N77 -> 2 | J24: Procrastination
A25: 18-I am willing to put up with pain and discomfort to get what I want. | H25: ='Quest T1'!N93 -> 5 | I25: ='Quest T2'!N78 -> 3 | J25: Distress endurance
A26: 19-Happiness involves getting rid of negative thoughts. | H26: ='Quest T1'!N94 -> 4 | I26: ='Quest T2'!N79 -> 4 | J26: Distress aversion
A27: 20-I work hard to avoid situations that might bring up unpleasant thoughts and feelings in me. | H27: ='Quest T1'!N95 -> 6 | I27: ='Quest T2'!N80 -> 3 | J27: Behavioral avoidance
A28: 21-I don’t realize I’m anxious until other people tell me. | H28: ='Quest T1'!N96 -> 1 | I28: ='Quest T2'!N81 -> 1 | J28: Repression and denial
A29: 22-When upsetting memories come up, I try to focus on other things. | H29: ='Quest T1'!N97 -> 4 | I29: ='Quest T2'!N82 -> 2 | J29: Distraction suppression
A30: 23-I am in touch with my emotions. | H30: ='Quest T1'!N98 -> 4 | I30: ='Quest T2'!N83 -> 2 | J30: Repression and denial
A31: 24-I am willing to suffer for the things that matter to me. | H31: ='Quest T1'!N99 -> 6 | I31: ='Quest T2'!N84 -> 4 | J31: Distress endurance
A32: 25-One of my big goals is to be free from painful emotions. | H32: ='Quest T1'!N100 -> 2 | I32: ='Quest T2'!N85 -> 1 | J32: Distress aversion
A33: 26-I prefer to stick to what I am comfortable with, rather than try new activities. | H33: ='Quest T1'!N101 -> 3 | I33: ='Quest T2'!N86 -> 1 | J33: Behavioral avoidance
A34: 27-I work hard to keep out upsetting feelings. | H34: ='Quest T1'!N102 -> 4 | I34: ='Quest T2'!N87 -> 3 | J34: Distraction suppression
A35: 28-People have said that I don’t own up to my problems. | H35: ='Quest T1'!N103 -> 2 | I35: ='Quest T2'!N88 -> 1 | J35: Repression and denial
A36: 29-Fear or anxiety won’t stop me from doing something important. | H36: ='Quest T1'!N104 -> 1 | I36: ='Quest T2'!N89 -> 1 | J36: Distress endurance
A37: 30-I try to deal with problems right away. | H37: ='Quest T1'!N105 -> 5 | I37: ='Quest T2'!N90 -> 4 | J37: Procrastination
A38: 31-I’d do anything to feel less stressed. | H38: ='Quest T1'!N106 -> 6 | I38: ='Quest T2'!N91 -> 5 | J38: Distress aversion
A39: 32-If I have any doubts about doing something, I just won’t do it. | H39: ='Quest T1'!N107 -> 2 | I39: ='Quest T2'!N92 -> 2 | J39: Behavioral avoidance
A40: 33-When unpleasant memories come to me, I try to put them out of my mind. | H40: ='Quest T1'!N108 -> 3 | I40: ='Quest T2'!N93 -> 2 | J40: Distraction suppression
A41: 34-In this day and age people should not have to suffer. | H41: ='Quest T1'!N109 -> 1 | I41: ='Quest T2'!N94 -> 2 | J41: Distress aversion
A42: 35-Others have told me that I suppress my feelings. | H42: ='Quest T1'!N110 -> 1 | I42: ='Quest T2'!N95 -> 1 | J42: Repression and denial
A43: 36-I try to put off unpleasant tasks for as long as possible. | H43: ='Quest T1'!N111 -> 2 | I43: ='Quest T2'!N96 -> 2 | J43: Procrastination
A44: 37-When I am hurting, I still do what needs to be done. | H44: ='Quest T1'!N112 -> 5 | I44: ='Quest T2'!N97 -> 5 | J44: Distress endurance
A45: 38-My life would be great if I never felt anxious. | H45: ='Quest T1'!N113 -> 5 | I45: ='Quest T2'!N98 -> 5 | J45: Distress aversion
A46: 39-If I am starting to feel trapped, I leave the situation immediately. | H46: ='Quest T1'!N114 -> 4 | I46: ='Quest T2'!N99 -> 2 | J46: Behavioral avoidance
A47: 40-When a negative thought comes up, I immediately try to think of something else. | H47: ='Quest T1'!N115 -> 4 | I47: ='Quest T2'!N100 -> 2 | J47: Distraction suppression
A48: 41-It’s hard for me to know what I’m feeling. | H48: ='Quest T1'!N116 -> 3 | I48: ='Quest T2'!N101 -> 4 | J48: Repression and denial
A49: 42-I won’t do something until I absolutely have to. | H49: ='Quest T1'!N117 -> 1 | I49: ='Quest T2'!N102 -> 1 | J49: Procrastination
A50: 43-I don’t let pain and discomfort stop me from getting what I want. | H50: ='Quest T1'!N118 -> 5 | I50: ='Quest T2'!N103 -> 2 | J50: Distress endurance
A51: 44-I would give up a lot not to feel bad. | H51: ='Quest T1'!N119 -> 2 | I51: ='Quest T2'!N104 -> 2 | J51: Distress aversion
A52: 45-I go out of my way to avoid uncomfortable situations. | H52: ='Quest T1'!N120 -> 4 | I52: ='Quest T2'!N105 -> 3 | J52: Behavioral avoidance
A53: 46-I can numb my feelings when they are too intense. | H53: ='Quest T1'!N121 -> 1 | I53: ='Quest T2'!N106 -> 1 | J53: Repression and denial
A54: 47-Why do today what you can put off until tomorrow. | H54: ='Quest T1'!N122 -> 1 | I54: ='Quest T2'!N107 -> 1 | J54: Procrastination
A55: 48-I am willing to put up with sadness to get what I want. | H55: ='Quest T1'!N123 -> 3 | I55: ='Quest T2'!N108 -> 4 | J55: Distress endurance
A56: 49-Some people have told me that I “hide my head in the sand ». | H56: ='Quest T1'!N124 -> 1 | I56: ='Quest T2'!N109 -> 1 | J56: Repression and denial
A57: 50-Pain always leads to suffering. | H57: ='Quest T1'!N125 -> 2 | I57: ='Quest T2'!N110 -> 3 | J57: Distress aversion
A58: 51-If I am in a slightly uncomfortable situation, I try to leave right away. | H58: ='Quest T1'!N126 -> 1 | I58: ='Quest T2'!N111 -> 1 | J58: Behavioral avoidance
A59: 52-It takes me awhile to realize when I’m feeling bad. | H59: ='Quest T1'!N127 -> 3 | I59: ='Quest T2'!N112 -> 2 | J59: Repression and denial
A60: 53-I continue working toward my goals even if I have doubts. | H60: ='Quest T1'!N128 -> 4 | I60: ='Quest T2'!N113 -> 4 | J60: Distress endurance
A61: 54-I wish I could get rid of all of my negative emotions. | H61: ='Quest T1'!N129 -> 5 | I61: ='Quest T2'!N114 -> 4 | J61: Distress aversion
A62: 55-I avoid situations if there is a chance that I’ll feel nervous. | H62: ='Quest T1'!N130 -> 3 | I62: ='Quest T2'!N115 -> 3 | J62: Behavioral avoidance
A63: 56-I feel disconnected from my emotions. | H63: ='Quest T1'!N131 -> 1 | I63: ='Quest T2'!N116 -> 1 | J63: Repression and denial
A64: 57-I don’t let gloomy thoughts stop me from doing what I want. | H64: ='Quest T1'!N132 -> 5 | I64: ='Quest T2'!N117 -> 6 | J64: Distress endurance
A65: 58-The key to a good life is never feeling any pain. | H65: ='Quest T1'!N133 -> 1 | I65: ='Quest T2'!N118 -> 1 | J65: Distress aversion
A66: 59-I’m quick to leave any situation that makes me feel uneasy. | H66: ='Quest T1'!N134 -> 2 | I66: ='Quest T2'!N119 -> 1 | J66: Behavioral avoidance
A67: 60-People have told me that I’m not aware of my problems. | H67: ='Quest T1'!N135 -> 1 | I67: ='Quest T2'!N120 -> 1 | J67: Repression and denial
A68: 61-I hope to live without any sadness and disappointment. | H68: ='Quest T1'!N136 -> 3 | I68: ='Quest T2'!N121 -> 2 | J68: Distress aversion
A69: 62-When working on something important, I won’t quit even if things get difficult. | H69: ='Quest T1'!N137 -> 6 | I69: ='Quest T2'!N122 -> 6 | J69: Distress endurance
B71: T1 | E71: T2 | L71: Confidence level
B72: Sum | C72: Men | D72: Percentile | E72: Sum | F72: Men | G72: Percentile | H72: d | I72: Sdiff | J72: RCI | K72: d/SD | L72: Two-tailed | M72: One-tailed
A73: Behavioral avoidance | B73: =H8+H15+H21+H27+H33+H39+H46+H52+H58+H62+H66 -> 35 | C73: =B73/11 -> 3.181818182 | D73: =NORMDIST(B73,$I$163,$J$163,TRUE)*100 -> 52.29810668 | E73: =I8+I15+I21+I27+I33+I39+I46+I52+I58+I62+I66 -> 23 | F73: =E73/11 -> 2.090909091 | G73: =NORMDIST(E73,$I$163,$J$163,TRUE)*100 -> 13.6736225 | H73: =E73-B73 -> -12 | I73: =SQRT(2*(J163*SQRT(1-K163))^2) -> 10.41 | J73: =H73/I73 -> -1.152737752 | K73: =H73/J163 -> -1.152737752 | L73: =IF(ABS(J73)>0.84,(1-((1-_xlfn.NORM.S.DIST(ABS(J73),TRUE))*2)),"no change") -> 0.750981959 | M73: =IF(ABS(J73)>0.84,_xlfn.NORM.S.DIST(ABS(J73),TRUE),"no change") -> 0.8754909795
A74: Distress aversion | B74: =H9+H14+H20+H26+H32+H38+H41+H45+H51+H57+H61+H65+H68 -> 40 | C74: =B74/13 -> 3.076923077 | D74: =NORMDIST(B74,$I$164,$J$164,TRUE)*100 -> 44.5181613 | E74: =I9+I14+I20+I26+I32+I38+I41+I45+I51+I57+I61+I65+I68 -> 39 | F74: =E74/13 -> 3 | G74: =NORMDIST(E74,$I$164,$J$164,TRUE)*100 -> 41.23956346 | H74: -1 | I74: 11.97 | J74: =H74/I74 -> -0.08354218881 | K74: -0.08354218881 | L74: =IF(ABS(J74)>0.84,(1-((1-_xlfn.NORM.S.DIST(ABS(J74),TRUE))*2)),"no change") -> no change | M74: =IF(ABS(J74)>0.84,_xlfn.NORM.S.DIST(ABS(J74),TRUE),"no change") -> no change
A75: Procrastination | B75: =H12+H18+H24+(7-H37)+H43+H49+H54 -> 12 | C75: =B75/7 -> 1.714285714 | D75: =NORMDIST(B75,$I$165,$J$165,TRUE)*100 -> 8.115936797 | E75: =I12+I18+I24+(7-I37)+I43+I49+I54 -> 12 | F75: =E75/7 -> 1.714285714 | G75: =NORMDIST(E75,$I$165,$J$165,TRUE)*100 -> 8.115936797 | H75: 0 | I75: 7.45 | J75: 0 | K75: 0 | L75: no change | M75: no change
A76: Distraction and suppression | B76: =H10+H16+H22+H29+H34+H40+H47 -> 22 | C76: =B76/7 -> 3.142857143 | D76: =NORMDIST(B76,$I$166,$J$166,TRUE)*100 -> 29.0066147 | E76: =I10+I16+I22+I29+I34+I40+I47 -> 14 | F76: =E76/7 -> 2 | G76: =NORMDIST(E76,$I$166,$J$166,TRUE)*100 -> 3.844719091 | H76: -8 | I76: 6.58 | J76: -1.215805471 | K76: -1.215805471 | L76: 0.7759409658 | M76: 0.8879704829
A77: Repression and denial | B77: =H11+H17+H23+H28+(7-H30)+H35+H42+H48+H53+H56+H59+H63+H67 -> 23 | C77: =B77/13 -> 1.769230769 | D77: =NORMDIST(B77,$I$167,$J$167,TRUE)*100 -> 22.01793178 | E77: =I11+I17+I23+I28+(7-I30)+I35+I42+I48+I53+I56+I59+I63+I67 -> 22 | F77: =E77/13 -> 1.692307692 | G77: =NORMDIST(E77,$I$167,$J$167,TRUE)*100 -> 19.36735929 | H77: -1 | I77: 10.77 | J77: -0.09285051068 | K77: -0.09285051068 | L77: no change | M77: no change
A78: Distress endurance | B78: =H13+H19+H25+H31+H36+H44+H50+H55+H60+H64+H69 -> 49 | C78: =B78/11 -> 4.454545455 | D78: =NORMDIST(B78,$I$168,$J$168,TRUE)*100 -> 59.37004643 | E78: =I13+I19+I25+I31+I36+I44+I50+I55+I60+I64+I69 -> 45 | F78: =E78/11 -> 4.090909091 | G78: =NORMDIST(E78,$I$168,$J$168,TRUE)*100 -> 39.46039968 | H78: -4 | I78: 7.93 | J78: -0.5044136192 | K78: -0.5044136192 | L78: no change | M78: no change
A79: TOTAL | B79: =B73+B74+B75+B76+B77+(77-B78) -> 160 | C79: - | D79: =NORMDIST(B79,$I$169,$J$169,TRUE)*100 -> 26.33533361 | E79: =E73+E74+E75+E76+E77+(77-E78) -> 142 | F79: - | G79: =NORMDIST(E79,$I$169,$J$169,TRUE)*100 -> 13.92700961 | H79: -18 | I79: 39.95 | J79: -0.450563204 | K79: -0.450563204 | L79: no change | M79: no change
A81: Norms (Adults, Students, Psychiatric population) | B81: Adults
B160: Norms | I160: Norme utilisée
B161: Adults (N=201) | D161: Students (N=667) | F161: Psychiatric population (N=466) | I161: =IF($B$81="Adults",B161,IF($B$81="Students",D161,IF($B$81="Psychiatric population",F161))) -> Adults (N=201) | J161: =IF($B$81="Adults",C161,IF($B$81="Students",E161,IF($B$81="Psychiatric population",G161))) -> 0
B162: M | C162: SD | D162: M | E162: SD | F162: M | G162: SD | I162: M | J162: SD | K162: rxx
B163: 34.4 | C163: 10.41 | D163: 36.26 | E163: 8.7 | F163: 42.36 | G163: 11.13 | I163: 34.4 | J163: 10.41 | K163: 0.5
B164: 41.65 | C164: 11.97 | D164: 43.24 | E164: 11.46 | F164: 50.47 | G164: 12.63 | I164: 41.65 | J164: 11.97 | K164: 0.5
B165: 22.41 | C165: 7.45 | D165: 25.04 | E165: 6.61 | F165: 26.62 | G165: 7 | I165: 22.41 | J165: 7.45 | K165: 0.5
B166: 25.64 | C166: 6.58 | D166: 26.02 | E166: 6.35 | F166: 28.79 | G166: 7.55 | I166: 25.64 | J166: 6.58 | K166: 0.5
B167: 31.31 | C167: 10.77 | D167: 34.02 | E167: 10.6 | F167: 37.82 | G167: 12.33 | I167: 31.31 | J167: 10.77 | K167: 0.5
B168: 47.12 | C168: 7.93 | D168: 46.51 | E168: 7.66 | F168: 43.21 | G168: 9.57 | I168: 47.12 | J168: 7.93 | K168: 0.5
B169: 185.29 | C169: 39.95 | D169: 195.08 | E169: 34.46 | F169: 224.61 | G169: 39.94 | I169: 185.29 | J169: 39.95 | K169: 0.5
E272: Dimension 1 | K272: Dimension 2 | Q272: Dimension3 | W272: Dimension4 | AC272: Dimension 5 | AI272: Dimension 6 | AO272: Dimension 7
E273: =$A$73 -> Behavioral avoidance | K273: =$A$74 -> Distress aversion | Q273: =$A$75 -> Procrastination | W273: =$A$76 -> Distraction and suppression | AC273: =$A$77 -> Repression and denial | AI273: =$A$78 -> Distress endurance | AO273: =$A$79 -> TOTAL
E274: T1 | F274: =$B$73 -> 35 | K274: T1 | L274: =$B$74 -> 40 | Q274: T1 | R274: =$B$75 -> 12 | W274: T1 | X274: =$B$76 -> 22 | AC274: T1 | AD274: =$B$77 -> 23 | AI274: T1 | AJ274: =$B$78 -> 49 | AO274: T1 | AP274: =$B$79 -> 160
E275: T2 | F275: =$E$73 -> 23 | K275: T2 | L275: =$E$74 -> 39 | Q275: T2 | R275: =$E$75 -> 12 | W275: T2 | X275: =$E$76 -> 14 | AC275: T2 | AD275: =$E$77 -> 22 | AI275: T2 | AJ275: =$E$78 -> 45 | AO275: T2 | AP275: =$E$79 -> 142
E276: norme M | F276: =$I$163 -> 34.4 | K276: norme M | L276: =$I$164 -> 41.65 | Q276: norme M | R276: =$I$165 -> 22.41 | W276: norme M | X276: =$I$166 -> 25.64 | AC276: norme M | AD276: =$I$167 -> 31.31 | AI276: norme M | AJ276: =$I$168 -> 47.12 | AO276: norme M | AP276: =$I$169 -> 185.29
E277: norme SD | F277: =$J$163 -> 10.41 | K277: norme SD | L277: =$J$164 -> 11.97 | Q277: norme SD | R277: =$J$165 -> 7.45 | W277: norme SD | X277: =$J$166 -> 6.58 | AC277: norme SD | AD277: =$J$167 -> 10.77 | AI277: norme SD | AJ277: =$J$168 -> 7.93 | AO277: norme SD | AP277: =$J$169 -> 39.95
G278: x | H278: densité | M278: x | N278: densité | S278: x | T278: densité | Y278: x | Z278: densité | AE278: x | AF278: densité | AK278: x | AL278: densité | AQ278: x | AR278: densité
E279: -30 | F279: =E279*F$277/10 -> -31.23 | G279: =F279+F$276 -> 3.17 | H279: =NORMDIST(G279,F$276,F$277,FALSE) -> 0.0004257299147 | I279: 1 | K279: -30 | L279: =K279*L$277/10 -> -35.91 | M279: =L279+L$276 -> 5.74 | N279: =NORMDIST(M279,L$276,L$277,FALSE) -> 0.0003702463168 | O279: 1 | Q279: -30 | R279: =Q279*R$277/10 -> -22.35 | S279: =R279+R$276 -> 0.06 | T279: =NORMDIST(S279,R$276,R$277,FALSE) -> 0.0005948789815 | U279: 1 | W279: -30 | X279: =W279*X$277/10 -> -19.74 | Y279: =X279+X$276 -> 5.9 | Z279: =NORMDIST(Y279,X$276,X$277,FALSE) -> 0.0006735331933 | AA279: 1 | AC279: -30 | AD279: =AC279*AD$277/10 -> -32.31 | AE279: =AD279+AD$276 -> -1 | AF279: =NORMDIST(AE279,AD$276,AD$277,FALSE) -> 0.0004114993883 | AG279: 1 | AI279: -30 | AJ279: =AI279*AJ$277/10 -> -23.79 | AK279: =AJ279+AJ$276 -> 23.33 | AL279: =NORMDIST(AK279,AJ$276,AJ$277,FALSE) -> 0.0005588711743 | AM279: 1 | AO279: -30 | AP279: =AO279*AP$277/10 -> -119.85 | AQ279: =AP279+AP$276 -> 65.44 | AR279: =NORMDIST(AQ279,AP$276,AP$277,FALSE) -> 0.0001109348789 | AS279: 1
E280: =E279+0.5 -> -29.5 | F280: =E280*F$277/10 -> -30.7095 | G280: =F280+F$276 -> 3.6905 | H280: 0.0004940096948 | I280: 2 | K280: =K279+0.5 -> -29.5 | L280: =K280*L$277/10 -> -35.3115 | M280: =L280+L$276 -> 6.3385 | N280: 0.000429627479 | O280: 2 | Q280: =Q279+0.5 -> -29.5 | R280: =Q280*R$277/10 -> -21.9775 | S280: =R280+R$276 -> 0.4325 | T280: 0.0006902873722 | U280: 2 | W280: =W279+0.5 -> -29.5 | X280: =W280*X$277/10 -> -19.411 | Y280: =X280+X$276 -> 6.229 | Z280: 0.0007815563713 | AA280: 2 | AC280: =AC279+0.5 -> -29.5 | AD280: =AC280*AD$277/10 -> -31.7715 | AE280: =AD280+AD$276 -> -0.4615 | AF280: 0.0004774968359 | AG280: 2 | AI280: =AI279+0.5 -> -29.5 | AJ280: =AI280*AJ$277/10 -> -23.3935 | AK280: =AJ280+AJ$276 -> 23.7265 | AL280: 0.00064850453 | AM280: 2 | AO280: =AO279+0.5 -> -29.5 | AP280: =AO280*AP$277/10 -> -117.8525 | AQ280: =AP280+AP$276 -> 67.4375 | AR280: 0.0001287269317 | AS280: 2
E281: =E280+0.5 -> -29 | F281: -30.189 | G281: 4.211 | H281: 0.0005718090701 | I281: 3 | K281: =K280+0.5 -> -29 | L281: -34.713 | M281: 6.937 | N281: 0.0004972875873 | O281: 3 | Q281: =Q280+0.5 -> -29 | R281: -21.605 | S281: 0.805 | T281: 0.0007989976402 | U281: 3 | W281: =W280+0.5 -> -29 | X281: -19.082 | Y281: 6.558 | Z281: 0.0009046401854 | AA281: 3 | AC281: =AC280+0.5 -> -29 | AD281: -31.233 | AE281: 0.077 | AF281: 0.000552695675 | AG281: 3 | AI281: =AI280+0.5 -> -29 | AJ281: -22.997 | AK281: 24.123 | AL281: 0.0007506346053 | AM281: 3 | AO281: =AO280+0.5 -> -29 | AP281: -115.855 | AQ281: 69.435 | AR281: 0.0001489995599 | AS281: 3
E282: -28.5 | F282: -29.6685 | G282: 4.7315 | H282: 0.0006602081355 | I282: 4 | K282: -28.5 | L282: -34.1145 | M282: 7.5355 | N282: 0.0005741659725 | O282: 4 | Q282: -28.5 | R282: -21.2325 | S282: 1.1775 | T282: 0.0009225190189 | U282: 4 | W282: -28.5 | X282: -18.753 | Y282: 6.887 | Z282: 0.001044493418 | AA282: 4 | AC282: -28.5 | AD282: -30.6945 | AE282: 0.6155 | AF282: 0.000638139897 | AG282: 4 | AI282: -28.5 | AJ282: -22.6005 | AK282: 24.5195 | AL282: 0.00086667928 | AM282: 4 | AO282: -28.5 | AP282: -113.8575 | AQ282: 71.4325 | AR282: 0.00017203421 | AS282: 4
E283: -28 | F283: -29.148 | G283: 5.252 | H283: 0.0007603699888 | I283: 5 | K283: -28 | L283: -33.516 | M283: 8.134 | N283: 0.0006612741506 | O283: 5 | Q283: -28 | R283: -20.86 | S283: 1.55 | T283: 0.001062476723 | U283: 5 | W283: -28 | X283: -18.424 | Y283: 7.216 | Z283: 0.001202956168 | AA283: 5 | AC283: -28 | AD283: -30.156 | AE283: 1.154 | AF283: 0.0007349537217 | AG283: 5 | AI283: -28 | AJ283: -22.204 | AK283: 24.916 | AL283: 0.0009981653951 | AM283: 5 | AO283: -28 | AP283: -111.86 | AQ283: 73.43 | AR283: 0.000198133957 | AS283: 5
E284: -27.5 | F284: -28.6275 | G284: 5.7725 | H284: 0.0008735410664 | I284: 6 | K284: -27.5 | L284: -32.9175 | M284: 8.7325 | N284: 0.0007596961154 | O284: 6 | Q284: -27.5 | R284: -20.4875 | S284: 1.9225 | T284: 0.001220612416 | U284: 6 | W284: -27.5 | X284: -18.095 | Y284: 7.545 | Z284: 0.00138200038 | AA284: 6 | AC284: -27.5 | AD284: -29.6175 | AE284: 1.6925 | AF284: 0.0008443419222 | AG284: 6 | AI284: -27.5 | AJ284: -21.8075 | AK284: 25.3125 | AL284: 0.001146729193 | AM284: 6 | AO284: -27.5 | AP284: -109.8625 | AQ284: 75.4275 | AR284: 0.000227623592 | AS284: 6
E285: -27 | F285: -28.107 | G285: 6.293 | H285: 0.001001050414 | I285: 7 | K285: -27 | L285: -32.319 | M285: 9.331 | N285: 0.0008705877038 | O285: 7 | Q285: -27 | R285: -20.115 | S285: 2.295 | T285: 0.001398783197 | U285: 7 | W285: -27 | X285: -17.766 | Y285: 7.874 | Z285: 0.001583728695 | AA285: 7 | AC285: -27 | AD285: -29.079 | AE285: 2.231 | AF285: 0.0009675891193 | AG285: 7 | AI285: -27 | AJ285: -21.411 | AK285: 25.709 | AL285: 0.001314115361 | AM285: 7 | AO285: -27 | AP285: -107.865 | AQ285: 77.425 | AR285: 0.0002608494322 | AS285: 7
E286: -26.5 | F286: -27.5865 | G286: 6.8135 | H286: 0.001144307743 | I286: 8 | K286: -26.5 | L286: -31.7205 | M286: 9.9295 | N286: 0.0009951749046 | O286: 8 | Q286: -26.5 | R286: -19.7425 | S286: 2.6675 | T286: 0.001598958874 | U286: 8 | W286: -26.5 | X286: -17.437 | Y286: 8.203 | Z286: 0.001810371369 | AA286: 8 | AC286: -26.5 | AD286: -28.5405 | AE286: 2.7695 | AF286: 0.001106057902 | AG286: 8 | AI286: -26.5 | AJ286: -21.0145 | AK286: 26.1055 | AL286: 0.001502174478 | AM286: 8 | AO286: -26.5 | AP286: -105.8675 | AQ286: 79.4225 | AR286: 0.0002981788137 | AS286: 8
E287: -26 | F287: -27.066 | G287: 7.334 | H287: 0.001304800119 | I287: 9 | K287: -26 | L287: -31.122 | M287: 10.528 | N287: 0.00113475098 | O287: 9 | Q287: -26 | R287: -19.37 | S287: 3.04 | T287: 0.001823217347 | U287: 9 | W287: -26 | X287: -17.108 | Y287: 8.532 | Z287: 0.002064281039 | AA287: 9 | AC287: -26 | AD287: -28.002 | AE287: 3.308 | AF287: 0.00126118563 | AG287: 9 | AI287: -26 | AJ287: -20.618 | AK287: 26.502 | AL287: 0.001712858668 | AM287: 9 | AO287: -26 | AP287: -103.87 | AQ287: 81.42 | AR287: 0.0003399992299 | AS287: 9
E288: -25.5 | F288: -26.5455 | G288: 7.8545 | H288: 0.001484087141 | I288: 10 | K288: -25.5 | L288: -30.5235 | M288: 11.1265 | N288: 0.001290672275 | O288: 10 | Q288: -25.5 | R288: -18.9975 | S288: 3.4125 | T288: 0.00207373787 | U288: 10 | W288: -25.5 | X288: -16.779 | Y288: 8.861 | Z288: 0.002347925096 | AA288: 10 | AC288: -25.5 | AD288: -27.4635 | AE288: 3.8465 | AF288: 0.001434479771 | AG288: 10 | AI288: -25.5 | AJ288: -20.2215 | AK288: 26.8985 | AL288: 0.001948215275 | AM288: 10 | AO288: -25.5 | AP288: -101.8725 | AQ288: 83.4175 | AR288: 0.0003867170747 | AS288: 10
E289: -25 | F289: -26.025 | G289: 8.375 | H289: 0.001683794476 | I289: 11 | K289: -25 | L289: -29.925 | M289: 11.725 | N289: 0.001464352589 | O289: 11 | Q289: -25 | R289: -18.625 | S289: 3.785 | T289: 0.002352792013 | U289: 11 | W289: -25 | X289: -16.45 | Y289: 9.19 | Z289: 0.002663875455 | AA289: 11 | AC289: -25 | AD289: -26.925 | AE289: 4.385 | AF289: 0.001627511652 | AG289: 11 | AI289: -25 | AJ289: -19.825 | AK289: 27.295 | AL289: 0.002210378372 | AM289: 11 | AO289: -25 | AP289: -99.875 | AQ289: 85.415 | AR289: 0.0004387559573 | AS289: 11
E290: -24.5 | F290: -25.5045 | G290: 8.8955 | H290: 0.001905605609 | I290: 12 | K290: -24.5 | L290: -29.3265 | M290: 12.3235 | N290: 0.001657256006 | O290: 12 | Q290: -24.5 | R290: -18.2525 | S290: 4.1575 | T290: 0.002662732133 | U290: 12 | W290: -24.5 | X290: -16.121 | Y290: 9.519 | Z290: 0.0030147955 | AA290: 12 | AC290: -24.5 | AD290: -26.3865 | AE290: 4.9235 | AF290: 0.001841908486 | AG290: 12 | AI290: -24.5 | AJ290: -19.4285 | AK290: 27.6915 | AL290: 0.002501557931 | AM290: 12 | AO290: -24.5 | AP290: -97.8775 | AQ290: 87.4125 | AR290: 0.000496554553 | AS290: 12
E291: -24 | F291: -24.984 | G291: 9.416 | H291: 0.002151251709 | I291: 13 | K291: -24 | L291: -28.728 | M291: 12.922 | N291: 0.001870888078 | O291: 13 | Q291: -24 | R291: -17.88 | S291: 4.53 | T291: 0.003005977221 | U291: 13 | W291: -24 | X291: -15.792 | Y291: 9.848 | Z291: 0.003403424057 | AA291: 13 | AC291: -24 | AD291: -25.848 | AE291: 5.462 | AF291: 0.002079343574 | AG291: 13 | AI291: -24 | AJ291: -19.032 | AK291: 28.088 | AL291: 0.002824026519 | AM291: 13 | AO291: -24 | AP291: -95.88 | AQ291: 89.41 | AR291: 0.0005605639623 | AS291: 13
E292: -23.5 | F292: -24.4635 | G292: 9.9365 | H292: 0.002422499512 | I292: 14 | K292: -23.5 | L292: -28.1295 | M292: 13.5205 | N292: 0.002106785289 | O292: 14 | Q292: -23.5 | R292: -17.5075 | S292: 4.9025 | T292: 0.003384995962 | U292: 14 | W292: -23.5 | X292: -15.463 | Y292: 10.177 | Z292: 0.003832556218 | AA292: 14 | AC292: -23.5 | AD292: -25.3095 | AE292: 6.0005 | AF292: 0.002341524598 | AG292: 14 | AI292: -23.5 | AJ292: -18.6355 | AK292: 28.4845 | AL292: 0.003180103394 | AM292: 14 | AO292: -23.5 | AP292: -93.8825 | AQ292: 91.4075 | AR292: 0.0006312445536 | AS292: 14
E293: -23 | F293: -23.943 | G293: 10.457 | H293: 0.002721137151 | I293: 15 | K293: -23 | L293: -27.531 | M293: 14.119 | N293: 0.002366502735 | O293: 15 | Q293: -23 | R293: -17.135 | S293: 5.275 | T293: 0.003802286945 | U293: 15 | W293: -23 | X293: -15.134 | Y293: 10.506 | Z293: 0.004305020933 | AA293: 15 | AC293: -23 | AD293: -24.771 | AE293: 6.539 | AF293: 0.00263017992 | AG293: 15 | AI293: -23 | AJ293: -18.239 | AK293: 28.881 | AL293: 0.003572135907 | AM293: 15 | AO293: -23 | AP293: -91.885 | AQ293: 93.405 | AR293: 0.0007090622714 | AS293: 15
E294: -22.5 | F294: -23.4225 | G294: 10.9775 | H294: 0.003048957909 | I294: 16 | K294: -22.5 | L294: -26.9325 | M294: 14.7175 | N294: 0.002651599986 | O294: 16 | Q294: -22.5 | R294: -16.7625 | S294: 5.6475 | T294: 0.004260355951 | U294: 16 | W294: -22.5 | X294: -14.805 | Y294: 10.835 | Z294: 0.004823655294 | AA294: 16 | AC294: -22.5 | AD294: -24.2325 | AE294: 7.0775 | AF294: 0.002947042882 | AG294: 16 | AI294: -22.5 | AJ294: -17.8425 | AK294: 29.2775 | AL294: 0.004002478163 | AM294: 16 | AO294: -22.5 | AP294: -89.8875 | AQ294: 95.4025 | AR294: 0.0007944844014 | AS294: 16
E295: -22 | F295: -22.902 | G295: 11.498 | H295: 0.003407741868 | I295: 17 | K295: -22 | L295: -26.334 | M295: 15.316 | N295: 0.002963625133 | O295: 17 | Q295: -22 | R295: -16.39 | S295: 6.02 | T295: 0.004761690315 | U295: 17 | W295: -22 | X295: -14.476 | Y295: 11.164 | Z295: 0.005391275509 | AA295: 17 | AC295: -22 | AD295: -23.694 | AE295: 7.616 | AF295: 0.003293834062 | AG295: 17 | AI295: -22 | AJ295: -17.446 | AK295: 29.674 | AL295: 0.004473466942 | AM295: 17 | AO295: -22 | AP295: -87.89 | AQ295: 97.4 | AR295: 0.0008879747896 | AS295: 17
E296: -21.5 | F296: -22.3815 | G296: 12.0185 | H296: 0.003799235503 | I296: 18 | K296: -21.5 | L296: -25.7355 | M296: 15.9145 | N296: 0.003304097042 | O296: 18 | Q296: -21.5 | R296: -16.0175 | S296: 6.3925 | T296: 0.005308730415 | U296: 18 | W296: -21.5 | X296: -14.147 | Y296: 11.493 | Z296: 0.006010644618 | AA296: 18 | AC296: -21.5 | AD296: -23.1555 | AE296: 8.1545 | AF296: 0.003672241559 | AG296: 18 | AI296: -21.5 | AJ296: -17.0495 | AK296: 30.0705 | AL296: 0.004987394904 | AM296: 18 | AO296: -21.5 | AP296: -85.8925 | AQ296: 99.3975 | AR296: 0.0009899885254 | AS296: 18
E297: -21 | F297: -21.861 | G297: 12.539 | H297: 0.004225129297 | I297: 19 | K297: -21 | L297: -25.137 | M297: 16.513 | N297: 0.00367448588 | O297: 19 | Q297: -21 | R297: -15.645 | S297: 6.765 | T297: 0.005903838387 | U297: 19 | W297: -21 | X297: -13.818 | Y297: 11.822 | Z297: 0.006684437079 | AA297: 19 | AC297: -21 | AD297: -22.617 | AE297: 8.693 | AF297: 0.004083899348 | AG297: 19 | AI297: -21 | AJ297: -16.653 | AK297: 30.467 | AL297: 0.005546481208 | AM297: 19 | AO297: -21 | AP297: -83.895 | AQ297: 101.395 | AR297: 0.001100966107 | AS297: 19
E298: -20.5 | F298: -21.3405 | G298: 13.0595 | H298: 0.004687033485 | I298: 20 | K298: -20.5 | L298: -24.5385 | M298: 17.1115 | N298: 0.004076192028 | O298: 20 | Q298: -20.5 | R298: -15.2725 | S298: 7.1375 | T298: 0.006549264239 | U298: 20 | W298: -20.5 | X298: -13.489 | Y298: 12.151 | Z298: 0.007415200392 | AA298: 20 | AC298: -20.5 | AD298: -22.0785 | AE298: 9.2315 | AF298: 0.004530363842 | AG298: 20 | AI298: -20.5 | AJ298: -16.2565 | AK298: 30.8635 | AL298: 0.00615283967 | AM298: 20 | AO298: -20.5 | AP298: -81.8975 | AQ298: 103.3925 | AR298: 0.001221327123 | AS298: 20
E299: -20 | F299: -20.82 | G299: 13.58 | H299: 0.005186452115 | I299: 21 | K299: -20 | L299: -23.94 | M299: 17.71 | N299: 0.004510523518 | O299: 21 | Q299: -20 | R299: -14.9 | S299: 7.51 | T299: 0.007247109599 | U299: 21 | W299: -20 | X299: -13.16 | Y299: 12.48 | Z299: 0.00820531406 | AA299: 21 | AC299: -20 | AD299: -21.54 | AE299: 9.77 | AF299: 0.005013088813 | AG299: 21 | AI299: -20 | AJ299: -15.86 | AK299: 31.26 | AL299: 0.006808444705 | AM299: 21 | AO299: -20 | AP299: -79.9 | AQ299: 105.39 | AR299: 0.001351463492 | AS299: 21
E300: -19.5 | F300: -20.2995 | G300: 14.1005 | H300: 0.005724755626 | I300: 22 | K300: -19.5 | L300: -23.3415 | M300: 18.3085 | N300: 0.004978672186 | O300: 22 | Q300: -19.5 | R300: -14.5275 | S300: 7.8825 | T300: 0.007999289405 | U300: 22 | W300: -19.5 | X300: -12.831 | Y300: 12.809 | Z300: 0.009056946211 | AA300: 22 | AC300: -19.5 | AD300: -21.0015 | AE300: 10.3085 | AF300: 0.005533398892 | AG300: 22 | AI300: -19.5 | AJ300: -15.4635 | AK300: 31.6565 | AL300: 0.007515095343 | AM300: 22 | AO300: -19.5 | AP300: -77.9025 | AQ300: 107.3875 | AR300: 0.001491732317 | AS300: 22
E301: -19 | F301: -19.779 | G301: 14.621 | H301: 0.006303152236 | I301: 23 | K301: -19 | L301: -22.743 | M301: 18.907 | N301: 0.005481688787 | O301: 23 | Q301: -19 | R301: -14.155 | S301: 8.255 | T301: 0.008807491916 | U301: 23 | W301: -19 | X301: -12.502 | Y301: 13.138 | Z301: 0.009972008324 | AA301: 23 | AC301: -19 | AD301: -20.463 | AE301: 10.847 | AF301: 0.00609246191 | AG301: 23 | AI301: -19 | AJ301: -15.067 | AK301: 32.053 | AL301: 0.008274377651 | AM301: 23 | AO301: -19 | AP301: -75.905 | AQ301: 109.385 | AR301: 0.00164244843 | AS301: 23
E302: -18.5 | F302: -19.2585 | G302: 15.1415 | H302: 0.006922658438 | I302: 24 | K302: -18.5 | L302: -22.1445 | M302: 19.5055 | N302: 0.006020457338 | O302: 24 | Q302: -18.5 | R302: -13.7825 | S302: 8.6275 | T302: 0.009673137495 | U302: 24 | W302: -18.5 | X302: -12.173 | Y302: 13.467 | Z302: 0.01095210856 | AA302: 24 | AC302: -18.5 | AD302: -19.9245 | AE302: 11.3855 | AF302: 0.006691260384 | AG302: 24 | AI302: -18.5 | AJ302: -14.6705 | AK302: 32.4495 | AL302: 0.00908762602 | AM302: 24 | AO302: -18.5 | AP302: -73.9075 | AQ302: 111.3825 | AR302: 0.001803876704 | AS302: 24
E303: -18 | F303: -18.738 | G303: 15.662 | H303: 0.007584069001 | I303: 25 | K303: -18 | L303: -21.546 | M303: 20.104 | N303: 0.006595669031 | O303: 25 | Q303: -18 | R303: -13.41 | S303: 9 | T303: 0.01059733668 | U303: 25 | W303: -18 | X303: -11.844 | Y303: 13.796 | Z303: 0.0119985043 | AA303: 25 | AC303: -18 | AD303: -19.386 | AE303: 11.924 | AF303: 0.007330562516 | AG303: 25 | AI303: -18 | AJ303: -14.274 | AK303: 32.846 | AL303: 0.009955883771 | AM303: 25 | AO303: -18 | AP303: -71.91 | AQ303: 113.38 | AR303: 0.001976224238 | AS303: 25
E304: -17.5 | F304: -18.2175 | G304: 16.1825 | H304: 0.008287926881 | I304: 26 | K304: -17.5 | L304: -20.9475 | M304: 20.7025 | N304: 0.007207796059 | O304: 26 | Q304: -17.5 | R304: -13.0375 | S304: 9.3725 | T304: 0.01158084816 | U304: 26 | W304: -17.5 | X304: -11.515 | Y304: 14.125 | Z304: 0.01311205453 | AA304: 26 | AC304: -17.5 | AD304: -18.8475 | AE304: 12.4625 | AF304: 0.008010893113 | AG304: 26 | AI304: -17.5 | AJ304: -13.8775 | AK304: 33.2425 | AL304: 0.01087986366 | AM304: 26 | AO304: -17.5 | AP304: -69.9125 | AQ304: 115.3775 | AR304: 0.002159632511 | AS304: 26
E305: -17 | F305: -17.697 | G305: 16.703 | H305: 0.009034493504 | I305: 27 | K305: -17 | L305: -20.349 | M305: 21.301 | N305: 0.007857065779 | O305: 27 | Q305: -17 | R305: -12.665 | S305: 9.745 | T305: 0.01262403723 | U305: 27 | W305: -17 | X305: -11.186 | Y305: 14.454 | Z305: 0.01429317285 | AA305: 27 | AC305: -17 | AD305: -18.309 | AE305: 13.001 | AF305: 0.008732504863 | AG305: 27 | AI305: -17 | AJ305: -13.481 | AK305: 33.639 | AL305: 0.01185990887 | AM305: 27 | AO305: -17 | AP305: -67.915 | AQ305: 117.375 | AR305: 0.002354169646 | AS305: 27
E306: -16.5 | F306: -17.1765 | G306: 17.2235 | H306: 0.009823719939 | I306: 28 | K306: -16.5 | L306: -19.7505 | M306: 21.8995 | N306: 0.008543435636 | O306: 28 | Q306: -16.5 | R306: -12.2925 | S306: 10.1175 | T306: 0.01372683551 | U306: 28 | W306: -16.5 | X306: -10.857 | Y306: 14.783 | Z306: 0.01554178185 | AA306: 28 | AC306: -16.5 | AD306: -17.7705 | AE306: 13.5395 | AF306: 0.00949535047 | AG306: 28 | AI306: -16.5 | AJ306: -13.0845 | AK306: 34.0355 | AL306: 0.01289595518 | AM306: 28 | AO306: -16.5 | AP306: -65.9175 | AQ306: 119.3725 | AR306: 0.002559822893 | AS306: 28
E307: -16 | F307: -16.656 | G307: 17.744 | H307: 0.01065521947 | I307: 29 | K307: -16 | L307: -19.152 | M307: 22.498 | N307: 0.009266569313 | O307: 29 | Q307: -16 | R307: -11.92 | S307: 10.49 | T307: 0.01488870264 | U307: 29 | W307: -16 | X307: -10.528 | Y307: 15.112 | Z307: 0.01685726971 | AA307: 29 | AC307: -16 | AD307: -17.232 | AE307: 14.078 | AF307: 0.01029905614 | AG307: 29 | AI307: -16 | AJ307: -12.688 | AK307: 34.432 | AL307: 0.01398749492 | AM307: 29 | AO307: -16 | AP307: -63.92 | AQ307: 121.37 | AR307: 0.002776491481 | AS307: 29
E308: -15.5 | F308: -16.1355 | G308: 18.2645 | H308: 0.01152824214 | I308: 30 | K308: -15.5 | L308: -18.5535 | M308: 23.0965 | N308: 0.01002581459 | O308: 30 | Q308: -15.5 | R308: -11.5475 | S308: 10.8625 | T308: 0.0161085907 | U308: 30 | W308: -15.5 | X308: -10.199 | Y308: 15.441 | Z308: 0.01823844995 | AA308: 30 | AC308: -15.5 | AD308: -16.6935 | AE308: 14.6165 | AF308: 0.011142897 | AG308: 30 | AI308: -15.5 | AJ308: -12.2915 | AK308: 34.8285 | AL308: 0.01513354359 | AM308: 30 | AO308: -15.5 | AP308: -61.9225 | AQ308: 123.3675 | AR308: 0.003003979992 | AS308: 30
E309: -15 | F309: -15.615 | G309: 18.785 | H309: 0.01244165184 | I309: 31 | K309: -15 | L309: -17.955 | M309: 23.695 | N309: 0.01082018343 | O309: 31 | Q309: -15 | R309: -11.175 | S309: 11.235 | T309: 0.01738491217 | U309: 31 | W309: -15 | X309: -9.87 | Y309: 15.77 | Z309: 0.01968352518 | AA309: 31 | AC309: -15 | AD309: -16.155 | AE309: 15.155 | AF309: 0.0120257749 | AG309: 31 | AI309: -15 | AJ309: -11.895 | AK309: 35.225 | AL309: 0.01633260979 | AM309: 31 | AO309: -15 | AP309: -59.925 | AQ309: 125.365 | AR309: 0.003241992382 | AS309: 31
E310: -14.5 | F310: -15.0945 | G310: 19.3055 | H310: 0.01339390648 | I310: 32 | K310: -14.5 | L310: -17.3565 | M310: 24.2935 | N310: 0.01164833471 | O310: 32 | Q310: -14.5 | R310: -10.8025 | S310: 11.6075 | T310: 0.01871551227 | U310: 32 | W310: -14.5 | X310: -9.541 | Y310: 16.099 | Z310: 0.02119005569 | AA310: 32 | AC310: -14.5 | AD310: -15.6165 | AE310: 15.6935 | AF310: 0.0129461993 | AG310: 32 | AI310: -14.5 | AJ310: -11.4985 | AK310: 35.6215 | AL310: 0.01758266916 | AM310: 32 | AO310: -14.5 | AP310: -57.9275 | AQ310: 127.3625 | AR310: 0.00349012682 | AS310: 32
E311: -14 | F311: -14.574 | G311: 19.826 | H311: =NORMDIST(G311,F$276,F$277,FALSE) -> 0.01438304185 | I311: 33 | K311: -14 | L311: -16.758 | M311: 24.892 | N311: =NORMDIST(M311,L$276,L$277,FALSE) -> 0.0125085602 | O311: 33 | Q311: -14 | R311: -10.43 | S311: 11.98 | T311: =NORMDIST(S311,R$276,R$277,FALSE) -> 0.02009764639 | U311: 33 | W311: -14 | X311: -9.212 | Y311: 16.428 | Z311: =NORMDIST(Y311,X$276,X$277,FALSE) -> 0.02275493399 | AA311: 33 | AC311: -14 | AD311: -15.078 | AE311: 16.232 | AF311: =NORMDIST(AE311,AD$276,AD$277,FALSE) -> 0.01390227165 | AG311: 33 | AI311: -14 | AJ311: -11.102 | AK311: 36.018 | AL311: =NORMDIST(AK311,AJ$276,AJ$277,FALSE) -> 0.01888114321 | AM311: 33 | AO311: -14 | AP311: -55.93 | AQ311: 129.36 | AR311: =NORMDIST(AQ311,AP$276,AP$277,FALSE) -> 0.00374787148 | AS311: 33
E312: -13.5 | F312: -14.0535 | G312: 20.3465 | H312: 0.01540665969 | I312: 34 | K312: -13.5 | L312: -16.1595 | M312: 25.4905 | N312: 0.01339877421 | O312: 34 | Q312: -13.5 | R312: -10.0575 | S312: 12.3525 | T312: 0.0215279634 | U312: 34 | W312: -13.5 | X312: -8.883 | Y312: 16.757 | Z312: 0.02437436586 | AA312: 34 | AC312: -13.5 | AD312: -14.5395 | AE312: 16.7705 | AF312: 0.01489167385 | AG312: 34 | AI312: -13.5 | AJ312: -10.7055 | AK312: 36.4145 | AL312: 0.02022488365 | AM312: 34 | AO312: -13.5 | AP312: -53.9325 | AQ312: 131.3575 | AR312: 0.004014601435 | AS312: 34
E313: -13 | F313: -13.533 | G313: 20.867 | H313: 0.01646192047 | I313: 35 | K313: -13 | L313: -15.561 | M313: 26.089 | N313: 0.01431650727 | O313: 35 | Q313: -13 | R313: -9.685 | S313: 12.725 | T313: 0.02300249558 | U313: 35 | W313: -13 | X313: -8.554 | Y313: 17.086 | Z313: 0.02604385897 | AA313: 35 | AC313: -13 | AD313: -14.001 | AE313: 17.309 | AF313: 0.01591166129 | AG313: 35 | AI313: -13 | AJ313: -10.309 | AK313: 36.811 | AL313: 0.02161016293 | AM313: 35 | AO313: -13 | AP313: -51.935 | AQ313: 133.355 | AR313: 0.004289576772 | AS313: 35
E314: -12.5 | F314: -13.0125 | G314: 21.3875 | H314: 0.01754554134 | I314: 36 | K314: -12.5 | L314: -14.9625 | M314: 26.6875 | N314: 0.01525890438 | O314: 36 | Q314: -12.5 | R314: -9.3125 | S314: 13.0975 | T314: 0.02451665576 | U314: 36 | W314: -12.5 | X314: -8.225 | Y314: 17.415 | Z314: 0.02775821966 | AA314: 36 | AC314: -12.5 | AD314: -13.4625 | AE314: 17.8475 | AF314: 0.01695906085 | AG314: 36 | AI314: -12.5 | AJ314: -9.9125 | AK314: 37.2075 | AL314: 0.02303267155 | AM314: 36 | AO314: -12.5 | AP314: -49.9375 | AQ314: 135.3525 | AR314: 0.004571942062 | AS314: 36
E315: -12 | F315: -12.492 | G315: 21.908 | H315: 0.01865379971 | I315: 37 | K315: -12 | L315: -14.364 | M315: 27.286 | N315: 0.01622272807 | O315: 37 | Q315: -12 | R315: -8.94 | S315: 13.47 | T315: 0.02606524228 | U315: 37 | W315: -12 | X315: -7.896 | Y315: 17.744 | Z315: 0.02951155851 | AA315: 37 | AC315: -12 | AD315: -12.924 | AE315: 18.386 | AF315: 0.01803027437 | AG315: 37 | AI315: -12 | AJ315: -9.516 | AK315: 37.604 | AL315: 0.0244875227 | AM315: 37 | AO315: -12 | AP315: -47.94 | AQ315: 137.35 | AR315: 0.004860727284 | AS315: 37
E316: -11.5 | F316: -11.9715 | G316: 22.4285 | H316: 0.01978254262 | I316: 38 | K316: -11.5 | L316: -13.7655 | M316: 27.8845 | N316: 0.01720436664 | O316: 38 | Q316: -11.5 | R316: -8.5675 | S316: 13.8425 | T316: 0.02764245218 | U316: 38 | W316: -11.5 | X316: -7.567 | Y316: 18.073 | Z316: 0.03129730528 | AA316: 38 | AC316: -11.5 | AD316: -12.3855 | AE316: 18.9245 | AF316: 0.01912128772 | AG316: 38 | AI316: -11.5 | AJ316: -9.1195 | AK316: 38.0005 | AL316: 0.02596926466 | AM316: 38 | AO316: -11.5 | AP316: -45.9425 | AQ316: 139.3475 | AR316: 0.005154850281 | AS316: 38
E317: -11 | F317: -11.451 | G317: 22.949 | H317: 0.0209272024 | I317: 39 | K317: -11 | L317: -13.167 | M317: 28.483 | N317: 0.01819984771 | O317: 39 | Q317: -11 | R317: -8.195 | S317: 14.215 | T317: 0.02924190296 | U317: 39 | W317: -11 | X317: -7.238 | Y317: 18.402 | Z317: 0.03310823359 | AA317: 39 | AC317: -11 | AD317: -11.847 | AE317: 19.463 | AF317: 0.02022768589 | AG317: 39 | AI317: -11 | AJ317: -8.723 | AK317: 38.397 | AL317: 0.02747190127 | AM317: 39 | AO317: -11 | AP317: -43.945 | AQ317: 141.345 | AR317: 0.005453120827 | AS317: 39
E318: -10.5 | F318: -10.9305 | G318: 23.4695 | H318: 0.02208281851 | I318: 40 | K318: -10.5 | L318: -12.5685 | M318: 29.0815 | N318: 0.0192048572 | O318: 40 | Q318: -10.5 | R318: -7.8225 | S318: 14.5875 | T318: 0.03085666318 | U318: 40 | W318: -10.5 | X318: -6.909 | Y318: 18.731 | Z318: 0.03493649554 | AA318: 40 | AC318: -10.5 | AD318: -11.3085 | AE318: 20.0015 | AF318: 0.02134467416 | AG318: 40 | AI318: -10.5 | AJ318: -8.3265 | AK318: 38.7935 | AL318: 0.02898892064 | AM318: 40 | AO318: -10.5 | AP318: -41.9475 | AQ318: 143.3425 | AR318: 0.005754246325 | AS318: 40
E319: -10 | F319: -10.41 | G319: 23.99 | H319: 0.02324406576 | I319: 41 | K319: -10 | L319: -11.97 | M319: 29.68 | N319: 0.02021476395 | O319: 41 | Q319: -10 | R319: -7.45 | S319: 14.96 | T319: 0.03247929188 | U319: 41 | W319: -10 | X319: -6.58 | Y319: 19.06 | Z319: 0.03677366634 | AA319: 41 | AC319: -10 | AD319: -10.77 | AE319: 20.54 | AF319: 0.02246710534 | AG319: 41 | AI319: -10 | AJ319: -7.93 | AK319: 39.19 | AL319: 0.03051333222 | AM319: 41 | AO319: -10 | AP319: -39.95 | AQ319: 145.34 | AR319: 0.006056839162 | AS319: 41
E320: -9.5 | F320: -9.8895 | G320: 24.5105 | H320: 0.02440528881 | I320: 42 | K320: -9.5 | L320: -11.3715 | M320: 30.2785 | N320: 0.02122464966 | O320: 42 | Q320: -9.5 | R320: -7.0775 | S320: 15.3325 | T320: 0.03410188677 | U320: 42 | W320: -9.5 | X320: -6.251 | Y320: 19.389 | Z320: 0.03861079886 | AA320: 42 | AC320: -9.5 | AD320: -10.2315 | AE320: 21.0785 | AF320: 0.02358951314 | AG320: 42 | AI320: -9.5 | AJ320: -7.5335 | AK320: 39.5865 | AL320: 0.03203771204 | AM320: 42 | AO320: -9.5 | AP320: -37.9525 | AQ320: 147.3375 | AR320: 0.006359425694 | AS320: 42
E321: -9 | F321: -9.369 | G321: 25.031 | H321: 0.02556054274 | I321: 43 | K321: -9 | L321: -10.773 | M321: 30.877 | N321: 0.02222934419 | O321: 43 | Q321: -9 | R321: -6.705 | S321: 15.705 | T321: 0.03571614093 | U321: 43 | W321: -9 | X321: -5.922 | Y321: 19.718 | Z321: 0.04043848783 | AA321: 43 | AC321: -9 | AD321: -9.693 | AE321: 21.617 | AF321: 0.02470615134 | AG321: 43 | AI321: -9 | AJ321: -7.137 | AK321: 39.983 | AL321: 0.03355425598 | AM321: 43 | AO321: -9 | AP321: -35.955 | AQ321: 149.335 | AR321: 0.006660456818 | AS321: 43
E322: -8.5 | F322: -8.8485 | G322: 25.5515 | H322: 0.0267036394 | I322: 44 | K322: -8.5 | L322: -10.1745 | M322: 31.4755 | N322: 0.02322346584 | O322: 44 | Q322: -8.5 | R322: -6.3325 | S322: 16.0775 | T322: 0.03731340753 | U322: 44 | W322: -8.5 | X322: -5.593 | Y322: 20.047 | Z322: 0.04224694318 | AA322: 44 | AC322: -8.5 | AD322: -9.1545 | AE322: 22.1555 | AF322: 0.02581103864 | AG322: 44 | AI322: -8.5 | AJ322: -6.7405 | AK322: 40.3795 | AL322: 0.03505484062 | AM322: 44 | AO322: -8.5 | AP322: -33.9575 | AQ322: 151.3325 | AR322: 0.006958320053 | AS322: 44
E323: -8 | F323: -8.328 | G323: 26.072 | H323: 0.02782819911 | I323: 45 | K323: -8 | L323: -9.576 | M323: 32.074 | N323: 0.0242014664 | O323: 45 | Q323: -8 | R323: -5.96 | S323: 16.45 | T323: 0.03888477218 | U323: 45 | W323: -8 | X323: -5.264 | Y323: 20.376 | Z323: 0.04402607185 | AA323: 45 | AC323: -8 | AD323: -8.616 | AE323: 22.694 | AF323: 0.02689800861 | AG323: 45 | AI323: -8 | AJ323: -6.344 | AK323: 40.776 | AL323: 0.03653109114 | AM323: 45 | AO323: -8 | AP323: -31.96 | AQ323: 153.33 | AR323: 0.00725135301 | AS323: 45
E324: -7.5 | F324: -7.8075 | G324: 26.5925 | H324: 0.02892770722 | I324: 46 | K324: -7.5 | L324: -8.9775 | M324: 32.6725 | N324: 0.02515768021 | O324: 46 | Q324: -7.5 | R324: -5.5875 | S324: 16.8225 | T324: 0.04042113183 | U324: 46 | W324: -7.5 | X324: -4.935 | Y324: 20.705 | Z324: 0.0457655672 | AA324: 46 | AC324: -7.5 | AD324: -8.0775 | AE324: 23.2325 | AF324: 0.02796076436 | AG324: 46 | AI324: -7.5 | AJ324: -5.9475 | AK324: 41.1725 | AL324: 0.03797445551 | AM324: 46 | AO324: -7.5 | AP324: -29.9625 | AQ324: 155.3275 | AR324: 0.007537858127 | AS324: 46
E325: -7 | F325: -7.287 | G325: 27.113 | H325: 0.02999557477 | I325: 47 | K325: -7 | L325: -8.379 | M325: 33.271 | N325: 0.02608637706 | O325: 47 | Q325: -7 | R325: -5.215 | S325: 17.195 | T325: 0.04191327965 | U325: 47 | W325: -7 | X325: -4.606 | Y325: 21.034 | Z325: 0.04745500507 | AA325: 47 | AC325: -7 | AD325: -7.539 | AE325: 23.771 | AF325: 0.02899293717 | AG325: 47 | AI325: -7 | AJ325: -5.551 | AK325: 41.569 | AL325: 0.03937628416 | AM325: 47 | AO325: -7 | AP325: -27.965 | AQ325: 157.325 | AR325: 0.007816118482 | AS325: 47
E326: -6.5 | F326: -6.7665 | G326: 27.6335 | H326: 0.03102520266 | I326: 48 | K326: -6.5 | L326: -7.7805 | M326: 33.8695 | N326: 0.02698181785 | O326: 48 | Q326: -6.5 | R326: -4.8425 | S326: 17.5675 | T326: 0.04335199459 | U326: 48 | W326: -6.5 | X326: -4.277 | Y326: 21.363 | Z326: 0.04908394524 | AA326: 48 | AC326: -6.5 | AD326: -7.0005 | AE326: 24.3095 | AF326: 0.02998814853 | AG326: 48 | AI326: -6.5 | AJ326: -5.1545 | AK326: 41.9655 | AL326: 0.04072791421 | AM326: 48 | AO326: -6.5 | AP326: -25.9675 | AQ326: 159.3225 | AR326: 0.00808441451 | AS326: 48
E327: -6 | F327: -6.246 | G327: 28.154 | H327: 0.03201004831 | I327: 49 | K327: -6 | L327: -7.182 | M327: 34.468 | N327: 0.02783831269 | O327: 49 | Q327: -6 | R327: -4.47 | S327: 17.94 | T327: 0.04472813462 | U327: 49 | W327: -6 | X327: -3.948 | Y327: 21.692 | Z327: 0.05064203691 | AA327: 49 | AC327: -6 | AD327: -6.462 | AE327: 24.848 | AF327: 0.03094007455 | AG327: 49 | AI327: -6 | AJ327: -4.758 | AK327: 42.362 | AL327: 0.04202075699 | AM327: 49 | AO327: -6 | AP327: -23.97 | AQ327: 161.32 | AR327: 0.008341041374 | AS327: 49
E328: -5.5 | F328: -5.7255 | G328: 28.6745 | H328: 0.03294369405 | I328: 50 | K328: -5.5 | L328: -6.5835 | M328: 35.0665 | N328: 0.02865028029 | O328: 50 | Q328: -5.5 | R328: -4.0975 | S328: 18.3125 | T328: 0.04603273222 | U328: 50 | W328: -5.5 | X328: -3.619 | Y328: 22.021 | Z328: 0.0521191269 | AA328: 50 | AC328: -5.5 | AD328: -5.9235 | AE328: 25.3865 | AF328: 0.03184251207 | AG328: 50 | AI328: -5.5 | AJ328: -4.3615 | AK328: 42.7585 | AL328: 0.04324638777 | AM328: 50 | AO328: -5.5 | AP328: -21.9725 | AQ328: 163.3175 | AR328: 0.008584326784 | AS328: 50
E329: -5 | F329: -5.205 | G329: 29.195 | H329: 0.03381991612 | I329: 51 | K329: -5 | L329: -5.985 | M329: 35.665 | N329: 0.029412308 | O329: 51 | Q329: -5 | R329: -3.725 | S329: 18.685 | T329: 0.04725709084 | U329: 51 | W329: -5 | X329: -3.29 | Y329: 22.35 | Z329: 0.05350536881 | AA329: 51 | AC329: -5 | AD329: -5.385 | AE329: 25.925 | AF329: 0.03268944538 | AG329: 51 | AI329: -5 | AJ329: -3.965 | AK329: 43.155 | AL329: 0.04439663641 | AM329: 51 | AO329: -5 | AP329: -19.975 | AQ329: 165.315 | AR329: 0.00881264898 | AS329: 51
E330: -4.5 | F330: -4.6845 | G330: 29.7155 | H330: 0.03463275336 | I330: 52 | K330: -4.5 | L330: -5.3865 | M330: 36.2635 | N330: 0.03011921157 | O330: 52 | Q330: -4.5 | R330: -3.3525 | S330: 19.0575 | T330: 0.04839288087 | U330: 52 | W330: -4.5 | X330: -2.961 | Y330: 22.679 | Z330: 0.05479133168 | AA330: 52 | AC330: -4.5 | AD330: -4.8465 | AE330: 26.4635 | AF330: 0.03347511258 | AG330: 52 | AI330: -4.5 | AJ330: -3.5685 | AK330: 43.5515 | AL330: 0.04546367749 | AM330: 52 | AO330: -4.5 | AP330: -17.9775 | AQ330: 167.3125 | AR330: 0.00902445463 | AS330: 52
E331: -4 | F331: -4.164 | G331: 30.236 | H331: 0.03537657448 | I331: 53 | K331: -4 | L331: -4.788 | M331: 36.862 | N331: 0.03076609359 | O331: 53 | Q331: -4 | R331: -2.98 | S331: 19.43 | T331: 0.0494322336 | U331: 53 | W331: -4 | X331: -2.632 | Y331: 23.008 | Z331: 0.05596810643 | AA331: 53 | AC331: -4 | AD331: -4.308 | AE331: 27.002 | AF331: 0.03419407059 | AG331: 53 | AI331: -4 | AJ331: -3.172 | AK331: 43.948 | AL331: 0.04644011858 | AM331: 53 | AO331: -4 | AP331: -15.98 | AQ331: 169.31 | AR331: 0.009218276353 | AS331: 53
E332: -3.5 | F332: -3.6435 | G332: 30.7565 | H332: 0.03604614284 | I332: 54 | K332: -3.5 | L332: -4.1895 | M332: 37.4605 | N332: 0.03134839991 | O332: 54 | Q332: -3.5 | R332: -2.6075 | S332: 19.8025 | T332: 0.0503678318 | U332: 54 | W332: -3.5 | X332: -2.303 | Y332: 23.337 | Z332: 0.05702740835 | AA332: 54 | AC332: -3.5 | AD332: -3.7695 | AE332: 27.5405 | AF332: 0.03484125784 | AG332: 54 | AI332: -3.5 | AJ332: -2.7755 | AK332: 44.3445 | AL332: 0.04731908536 | AM332: 54 | AO332: -3.5 | AP332: -13.9825 | AQ332: 171.3075 | AR332: 0.00939274961 | AS332: 54
E333: -3 | F333: -3.123 | G333: 31.277 | H333: 0.03663667776 | I333: 55 | K333: -3 | L333: -3.591 | M333: 38.059 | N333: 0.03186197289 | O333: 55 | Q333: -3 | R333: -2.235 | S333: 20.175 | T333: 0.05119299536 | U333: 55 | W333: -3 | X333: -1.974 | Y333: 23.666 | Z333: 0.05796167408 | AA333: 55 | AC333: -3 | AD333: -3.231 | AE333: 28.079 | AF333: 0.03541205343 | AG333: 55 | AI333: -3 | AJ333: -2.379 | AK333: 44.741 | AL333: 0.04809430208 | AM333: 55 | AO333: -3 | AP333: -11.985 | AQ333: 173.305 | AR333: 0.009546628672 | AS333: 55
E334: -2.5 | F334: -2.6025 | G334: 31.7975 | H334: 0.03714391132 | I334: 56 | K334: -2.5 | L334: -2.9925 | M334: 38.6575 | N334: 0.03230310082 | O334: 56 | Q334: -2.5 | R334: -1.8625 | S334: 20.5475 | T334: 0.05190176064 | U334: 56 | W334: -2.5 | X334: -1.645 | Y334: 23.995 | Z334: 0.05876415149 | AA334: 56 | AC334: -2.5 | AD334: -2.6925 | AE334: 28.6175 | AF334: 0.03590233211 | AG334: 56 | AI334: -2.5 | AJ334: -1.9825 | AK334: 45.1375 | AL334: 0.04876016605 | AM334: 56 | AO334: -2.5 | AP334: -9.9875 | AQ334: 175.3025 | AR334: 0.009678801422 | AS334: 56
E335: -2 | F335: -2.082 | G335: 32.318 | H335: 0.03756413967 | I335: 57 | K335: -2 | L335: -2.394 | M335: 39.256 | N335: 0.03266856257 | O335: 57 | Q335: -2 | R335: -1.49 | S335: 20.92 | T335: 0.05248895221 | U335: 57 | W335: -2 | X335: -1.316 | Y335: 24.324 | Z335: 0.05942898085 | AA335: 57 | AC335: -2 | AD335: -2.154 | AE335: 29.156 | AF335: 0.03630851383 | AG335: 57 | AI335: -2 | AJ335: -1.586 | AK335: 45.534 | AL335: 0.04931181513 | AM335: 57 | AO335: -2 | AP335: -7.99 | AQ335: 177.3 | AR335: 0.009788302728 | AS335: 57
E336: -1.5 | F336: -1.5615 | G336: 32.8385 | H336: 0.0378942681 | I336: 58 | K336: -1.5 | L336: -1.7955 | M336: 39.8545 | N336: 0.03295566674 | O336: 58 | Q336: -1.5 | R336: -1.1175 | S336: 21.2925 | T336: 0.05295024576 | U336: 58 | W336: -1.5 | X336: -0.987 | Y336: 24.653 | Z336: 0.0599512661 | AA336: 58 | AC336: -1.5 | AD336: -1.6155 | AE336: 29.6945 | AF336: 0.03662760733 | AG336: 58 | AI336: -1.5 | AJ336: -1.1895 | AK336: 45.9305 | AL336: 0.04974518675 | AM336: 58 | AO336: -1.5 | AP336: -5.9925 | AQ336: 179.2975 | AR336: 0.00987432618 | AS336: 58
E337: -1 | F337: -1.041 | G337: 33.359 | H337: 0.03813184894 | I337: 59 | K337: -1 | L337: -1.197 | M337: 40.453 | N337: 0.03316228467 | O337: 59 | Q337: -1 | R337: -0.745 | S337: 21.665 | T337: 0.05328222114 | U337: 59 | W337: -1 | X337: -0.658 | Y337: 24.982 | Z337: 0.06032713487 | AA337: 59 | AC337: -1 | AD337: -1.077 | AE337: 30.233 | AF337: 0.03685724675 | AG337: 59 | AI337: -1 | AJ337: -0.793 | AK337: 46.327 | AL337: 0.05005706778 | AM337: 59 | AO337: -1 | AP337: -3.995 | AQ337: 181.295 | AR337: 0.009936233979 | AS337: 59
E338: -0.5 | F338: -0.5205 | G338: 33.8795 | H338: 0.03827511182 | I338: 60 | K338: -0.5 | L338: -0.5985 | M338: 41.0515 | N338: 0.0332868767 | O338: 60 | Q338: -0.5 | R338: -0.3725 | S338: 22.0375 | T338: 0.05348240458 | U338: 60 | W338: -0.5 | X338: -0.329 | Y338: 25.311 | Z338: 0.06055378634 | AA338: 60 | AC338: -0.5 | AD338: -0.5385 | AE338: 30.7715 | AF338: 0.0369957209 | AG338: 60 | AI338: -0.5 | AJ338: -0.3965 | AK338: 46.7235 | AL338: 0.05024513419 | AM338: 60 | AO338: -0.5 | AP338: -1.9975 | AQ338: 183.2925 | AR338: 0.009973564808 | AS338: 60
E339: 0 | F339: 0 | G339: 34.4 | H339: 0.03832298563 | I339: 61 | K339: 0 | L339: 0 | M339: 41.65 | N339: 0.03332851131 | O339: 61 | Q339: 0 | R339: 0 | S339: 22.41 | T339: 0.05354929938 | U339: 61 | W339: 0 | X339: 0 | Y339: 25.64 | Z339: 0.0606295259 | AA339: 61 | AC339: 0 | AD339: 0 | AE339: 31.31 | AF339: 0.03704199447 | AG339: 61 | AI339: 0 | AJ339: 0 | AK339: 47.12 | AL339: 0.05030797987 | AM339: 61 | AO339: 0 | AP339: 0 | AQ339: 185.29 | AR339: 0.009986039559 | AS339: 61
E340: 0.5 | F340: 0.5205 | G340: 34.9205 | H340: 0.03827511182 | I340: 62 | K340: 0.5 | L340: 0.5985 | M340: 42.2485 | N340: 0.0332868767 | O340: 62 | Q340: 0.5 | R340: 0.3725 | S340: 22.7825 | T340: 0.05348240458 | U340: 62 | W340: 0.5 | X340: 0.329 | Y340: 25.969 | Z340: 0.06055378634 | AA340: 62 | AC340: 0.5 | AD340: 0.5385 | AE340: 31.8485 | AF340: 0.0369957209 | AG340: 62 | AI340: 0.5 | AJ340: 0.3965 | AK340: 47.5165 | AL340: 0.05024513419 | AM340: 62 | AO340: 0.5 | AP340: 1.9975 | AQ340: 187.2875 | AR340: 0.009973564808 | AS340: 62
E341: 1 | F341: 1.041 | G341: 35.441 | H341: 0.03813184894 | I341: 63 | K341: 1 | L341: 1.197 | M341: 42.847 | N341: 0.03316228467 | O341: 63 | Q341: 1 | R341: 0.745 | S341: 23.155 | T341: 0.05328222114 | U341: 63 | W341: 1 | X341: 0.658 | Y341: 26.298 | Z341: 0.06032713487 | AA341: 63 | AC341: 1 | AD341: 1.077 | AE341: 32.387 | AF341: 0.03685724675 | AG341: 63 | AI341: 1 | AJ341: 0.793 | AK341: 47.913 | AL341: 0.05005706778 | AM341: 63 | AO341: 1 | AP341: 3.995 | AQ341: 189.285 | AR341: 0.009936233979 | AS341: 63
E342: 1.5 | F342: 1.5615 | G342: 35.9615 | H342: 0.0378942681 | I342: 64 | K342: 1.5 | L342: 1.7955 | M342: 43.4455 | N342: 0.03295566674 | O342: 64 | Q342: 1.5 | R342: 1.1175 | S342: 23.5275 | T342: 0.05295024576 | U342: 64 | W342: 1.5 | X342: 0.987 | Y342: 26.627 | Z342: 0.0599512661 | AA342: 64 | AC342: 1.5 | AD342: 1.6155 | AE342: 32.9255 | AF342: 0.03662760733 | AG342: 64 | AI342: 1.5 | AJ342: 1.1895 | AK342: 48.3095 | AL342: 0.04974518675 | AM342: 64 | AO342: 1.5 | AP342: 5.9925 | AQ342: 191.2825 | AR342: 0.00987432618 | AS342: 64
E343: 2 | F343: 2.082 | G343: 36.482 | H343: =NORMDIST(G343,F$276,F$277,FALSE) -> 0.03756413967 | I343: 65 | K343: 2 | L343: 2.394 | M343: 44.044 | N343: =NORMDIST(M343,L$276,L$277,FALSE) -> 0.03266856257 | O343: 65 | Q343: 2 | R343: 1.49 | S343: 23.9 | T343: =NORMDIST(S343,R$276,R$277,FALSE) -> 0.05248895221 | U343: 65 | W343: 2 | X343: 1.316 | Y343: 26.956 | Z343: =NORMDIST(Y343,X$276,X$277,FALSE) -> 0.05942898085 | AA343: 65 | AC343: 2 | AD343: 2.154 | AE343: 33.464 | AF343: =NORMDIST(AE343,AD$276,AD$277,FALSE) -> 0.03630851383 | AG343: 65 | AI343: 2 | AJ343: 1.586 | AK343: 48.706 | AL343: =NORMDIST(AK343,AJ$276,AJ$277,FALSE) -> 0.04931181513 | AM343: 65 | AO343: 2 | AP343: 7.99 | AQ343: 193.28 | AR343: =NORMDIST(AQ343,AP$276,AP$277,FALSE) -> 0.009788302728 | AS343: 65
E344: 2.5 | F344: =E344*F$277/10 -> 2.6025 | G344: =F344+F$276 -> 37.0025 | H344: 0.03714391132 | I344: 66 | K344: 2.5 | L344: =K344*L$277/10 -> 2.9925 | M344: =L344+L$276 -> 44.6425 | N344: 0.03230310082 | O344: 66 | Q344: 2.5 | R344: =Q344*R$277/10 -> 1.8625 | S344: =R344+R$276 -> 24.2725 | T344: 0.05190176064 | U344: 66 | W344: 2.5 | X344: =W344*X$277/10 -> 1.645 | Y344: =X344+X$276 -> 27.285 | Z344: 0.05876415149 | AA344: 66 | AC344: 2.5 | AD344: =AC344*AD$277/10 -> 2.6925 | AE344: =AD344+AD$276 -> 34.0025 | AF344: 0.03590233211 | AG344: 66 | AI344: 2.5 | AJ344: =AI344*AJ$277/10 -> 1.9825 | AK344: =AJ344+AJ$276 -> 49.1025 | AL344: 0.04876016605 | AM344: 66 | AO344: 2.5 | AP344: =AO344*AP$277/10 -> 9.9875 | AQ344: =AP344+AP$276 -> 195.2775 | AR344: 0.009678801422 | AS344: 66
E345: =E344+0.5 -> 3 | F345: 3.123 | G345: 37.523 | H345: 0.03663667776 | I345: 67 | K345: =K344+0.5 -> 3 | L345: 3.591 | M345: 45.241 | N345: 0.03186197289 | O345: 67 | Q345: =Q344+0.5 -> 3 | R345: 2.235 | S345: 24.645 | T345: 0.05119299536 | U345: 67 | W345: =W344+0.5 -> 3 | X345: 1.974 | Y345: 27.614 | Z345: 0.05796167408 | AA345: 67 | AC345: =AC344+0.5 -> 3 | AD345: 3.231 | AE345: 34.541 | AF345: 0.03541205343 | AG345: 67 | AI345: =AI344+0.5 -> 3 | AJ345: 2.379 | AK345: 49.499 | AL345: 0.04809430208 | AM345: 67 | AO345: =AO344+0.5 -> 3 | AP345: 11.985 | AQ345: 197.275 | AR345: 0.009546628672 | AS345: 67
E346: =E345+0.5 -> 3.5 | F346: 3.6435 | G346: 38.0435 | H346: 0.03604614284 | I346: 68 | K346: =K345+0.5 -> 3.5 | L346: 4.1895 | M346: 45.8395 | N346: 0.03134839991 | O346: 68 | Q346: =Q345+0.5 -> 3.5 | R346: 2.6075 | S346: 25.0175 | T346: 0.0503678318 | U346: 68 | W346: =W345+0.5 -> 3.5 | X346: 2.303 | Y346: 27.943 | Z346: 0.05702740835 | AA346: 68 | AC346: =AC345+0.5 -> 3.5 | AD346: 3.7695 | AE346: 35.0795 | AF346: 0.03484125784 | AG346: 68 | AI346: =AI345+0.5 -> 3.5 | AJ346: 2.7755 | AK346: 49.8955 | AL346: 0.04731908536 | AM346: 68 | AO346: =AO345+0.5 -> 3.5 | AP346: 13.9825 | AQ346: 199.2725 | AR346: 0.00939274961 | AS346: 68
E347: =E346+0.5 -> 4 | F347: 4.164 | G347: 38.564 | H347: 0.03537657448 | I347: 69 | K347: =K346+0.5 -> 4 | L347: 4.788 | M347: 46.438 | N347: 0.03076609359 | O347: 69 | Q347: =Q346+0.5 -> 4 | R347: 2.98 | S347: 25.39 | T347: 0.0494322336 | U347: 69 | W347: =W346+0.5 -> 4 | X347: 2.632 | Y347: 28.272 | Z347: 0.05596810643 | AA347: 69 | AC347: =AC346+0.5 -> 4 | AD347: 4.308 | AE347: 35.618 | AF347: 0.03419407059 | AG347: 69 | AI347: =AI346+0.5 -> 4 | AJ347: 3.172 | AK347: 50.292 | AL347: 0.04644011858 | AM347: 69 | AO347: =AO346+0.5 -> 4 | AP347: 15.98 | AQ347: 201.27 | AR347: 0.009218276353 | AS347: 69
E348: =E347+0.5 -> 4.5 | F348: 4.6845 | G348: 39.0845 | H348: 0.03463275336 | I348: 70 | K348: =K347+0.5 -> 4.5 | L348: 5.3865 | M348: 47.0365 | N348: 0.03011921157 | O348: 70 | Q348: =Q347+0.5 -> 4.5 | R348: 3.3525 | S348: 25.7625 | T348: 0.04839288087 | U348: 70 | W348: =W347+0.5 -> 4.5 | X348: 2.961 | Y348: 28.601 | Z348: 0.05479133168 | AA348: 70 | AC348: =AC347+0.5 -> 4.5 | AD348: 4.8465 | AE348: 36.1565 | AF348: 0.03347511258 | AG348: 70 | AI348: =AI347+0.5 -> 4.5 | AJ348: 3.5685 | AK348: 50.6885 | AL348: 0.04546367749 | AM348: 70 | AO348: =AO347+0.5 -> 4.5 | AP348: 17.9775 | AQ348: 203.2675 | AR348: 0.00902445463 | AS348: 70
E349: 5 | F349: 5.205 | G349: 39.605 | H349: 0.03381991612 | I349: 71 | K349: 5 | L349: 5.985 | M349: 47.635 | N349: 0.029412308 | O349: 71 | Q349: 5 | R349: 3.725 | S349: 26.135 | T349: 0.04725709084 | U349: 71 | W349: 5 | X349: 3.29 | Y349: 28.93 | Z349: 0.05350536881 | AA349: 71 | AC349: 5 | AD349: 5.385 | AE349: 36.695 | AF349: 0.03268944538 | AG349: 71 | AI349: 5 | AJ349: 3.965 | AK349: 51.085 | AL349: 0.04439663641 | AM349: 71 | AO349: 5 | AP349: 19.975 | AQ349: 205.265 | AR349: 0.00881264898 | AS349: 71
E350: 5.5 | F350: 5.7255 | G350: 40.1255 | H350: 0.03294369405 | I350: 72 | K350: 5.5 | L350: 6.5835 | M350: 48.2335 | N350: 0.02865028029 | O350: 72 | Q350: 5.5 | R350: 4.0975 | S350: 26.5075 | T350: 0.04603273222 | U350: 72 | W350: 5.5 | X350: 3.619 | Y350: 29.259 | Z350: 0.0521191269 | AA350: 72 | AC350: 5.5 | AD350: 5.9235 | AE350: 37.2335 | AF350: 0.03184251207 | AG350: 72 | AI350: 5.5 | AJ350: 4.3615 | AK350: 51.4815 | AL350: 0.04324638777 | AM350: 72 | AO350: 5.5 | AP350: 21.9725 | AQ350: 207.2625 | AR350: 0.008584326784 | AS350: 72
E351: 6 | F351: 6.246 | G351: 40.646 | H351: 0.03201004831 | I351: 73 | K351: 6 | L351: 7.182 | M351: 48.832 | N351: 0.02783831269 | O351: 73 | Q351: 6 | R351: 4.47 | S351: 26.88 | T351: 0.04472813462 | U351: 73 | W351: 6 | X351: 3.948 | Y351: 29.588 | Z351: 0.05064203691 | AA351: 73 | AC351: 6 | AD351: 6.462 | AE351: 37.772 | AF351: 0.03094007455 | AG351: 73 | AI351: 6 | AJ351: 4.758 | AK351: 51.878 | AL351: 0.04202075699 | AM351: 73 | AO351: 6 | AP351: 23.97 | AQ351: 209.26 | AR351: 0.008341041374 | AS351: 73
E352: 6.5 | F352: 6.7665 | G352: 41.1665 | H352: 0.03102520266 | I352: 74 | K352: 6.5 | L352: 7.7805 | M352: 49.4305 | N352: 0.02698181785 | O352: 74 | Q352: 6.5 | R352: 4.8425 | S352: 27.2525 | T352: 0.04335199459 | U352: 74 | W352: 6.5 | X352: 4.277 | Y352: 29.917 | Z352: 0.04908394524 | AA352: 74 | AC352: 6.5 | AD352: 7.0005 | AE352: 38.3105 | AF352: 0.02998814853 | AG352: 74 | AI352: 6.5 | AJ352: 5.1545 | AK352: 52.2745 | AL352: 0.04072791421 | AM352: 74 | AO352: 6.5 | AP352: 25.9675 | AQ352: 211.2575 | AR352: 0.00808441451 | AS352: 74
E353: 7 | F353: 7.287 | G353: 41.687 | H353: 0.02999557477 | I353: 75 | K353: 7 | L353: 8.379 | M353: 50.029 | N353: 0.02608637706 | O353: 75 | Q353: 7 | R353: 5.215 | S353: 27.625 | T353: 0.04191327965 | U353: 75 | W353: 7 | X353: 4.606 | Y353: 30.246 | Z353: 0.04745500507 | AA353: 75 | AC353: 7 | AD353: 7.539 | AE353: 38.849 | AF353: 0.02899293717 | AG353: 75 | AI353: 7 | AJ353: 5.551 | AK353: 52.671 | AL353: 0.03937628416 | AM353: 75 | AO353: 7 | AP353: 27.965 | AQ353: 213.255 | AR353: 0.007816118482 | AS353: 75
E354: 7.5 | F354: 7.8075 | G354: 42.2075 | H354: 0.02892770722 | I354: 76 | K354: 7.5 | L354: 8.9775 | M354: 50.6275 | N354: 0.02515768021 | O354: 76 | Q354: 7.5 | R354: 5.5875 | S354: 27.9975 | T354: 0.04042113183 | U354: 76 | W354: 7.5 | X354: 4.935 | Y354: 30.575 | Z354: 0.0457655672 | AA354: 76 | AC354: 7.5 | AD354: 8.0775 | AE354: 39.3875 | AF354: 0.02796076436 | AG354: 76 | AI354: 7.5 | AJ354: 5.9475 | AK354: 53.0675 | AL354: 0.03797445551 | AM354: 76 | AO354: 7.5 | AP354: 29.9625 | AQ354: 215.2525 | AR354: 0.007537858127 | AS354: 76
E355: 8 | F355: 8.328 | G355: 42.728 | H355: 0.02782819911 | I355: 77 | K355: 8 | L355: 9.576 | M355: 51.226 | N355: 0.0242014664 | O355: 77 | Q355: 8 | R355: 5.96 | S355: 28.37 | T355: 0.03888477218 | U355: 77 | W355: 8 | X355: 5.264 | Y355: 30.904 | Z355: 0.04402607185 | AA355: 77 | AC355: 8 | AD355: 8.616 | AE355: 39.926 | AF355: 0.02689800861 | AG355: 77 | AI355: 8 | AJ355: 6.344 | AK355: 53.464 | AL355: 0.03653109114 | AM355: 77 | AO355: 8 | AP355: 31.96 | AQ355: 217.25 | AR355: 0.00725135301 | AS355: 77
E356: 8.5 | F356: 8.8485 | G356: 43.2485 | H356: 0.0267036394 | I356: 78 | K356: 8.5 | L356: 10.1745 | M356: 51.8245 | N356: 0.02322346584 | O356: 78 | Q356: 8.5 | R356: 6.3325 | S356: 28.7425 | T356: 0.03731340753 | U356: 78 | W356: 8.5 | X356: 5.593 | Y356: 31.233 | Z356: 0.04224694318 | AA356: 78 | AC356: 8.5 | AD356: 9.1545 | AE356: 40.4645 | AF356: 0.02581103864 | AG356: 78 | AI356: 8.5 | AJ356: 6.7405 | AK356: 53.8605 | AL356: 0.03505484062 | AM356: 78 | AO356: 8.5 | AP356: 33.9575 | AQ356: 219.2475 | AR356: 0.006958320053 | AS356: 78
E357: 9 | F357: 9.369 | G357: 43.769 | H357: 0.02556054274 | I357: 79 | K357: 9 | L357: 10.773 | M357: 52.423 | N357: 0.02222934419 | O357: 79 | Q357: 9 | R357: 6.705 | S357: 29.115 | T357: 0.03571614093 | U357: 79 | W357: 9 | X357: 5.922 | Y357: 31.562 | Z357: 0.04043848783 | AA357: 79 | AC357: 9 | AD357: 9.693 | AE357: 41.003 | AF357: 0.02470615134 | AG357: 79 | AI357: 9 | AJ357: 7.137 | AK357: 54.257 | AL357: 0.03355425598 | AM357: 79 | AO357: 9 | AP357: 35.955 | AQ357: 221.245 | AR357: 0.006660456818 | AS357: 79
E358: 9.5 | F358: 9.8895 | G358: 44.2895 | H358: 0.02440528881 | I358: 80 | K358: 9.5 | L358: 11.3715 | M358: 53.0215 | N358: 0.02122464966 | O358: 80 | Q358: 9.5 | R358: 7.0775 | S358: 29.4875 | T358: 0.03410188677 | U358: 80 | W358: 9.5 | X358: 6.251 | Y358: 31.891 | Z358: 0.03861079886 | AA358: 80 | AC358: 9.5 | AD358: 10.2315 | AE358: 41.5415 | AF358: 0.02358951314 | AG358: 80 | AI358: 9.5 | AJ358: 7.5335 | AK358: 54.6535 | AL358: 0.03203771204 | AM358: 80 | AO358: 9.5 | AP358: 37.9525 | AQ358: 223.2425 | AR358: 0.006359425694 | AS358: 80
E359: 10 | F359: 10.41 | G359: 44.81 | H359: 0.02324406576 | I359: 81 | K359: 10 | L359: 11.97 | M359: 53.62 | N359: 0.02021476395 | O359: 81 | Q359: 10 | R359: 7.45 | S359: 29.86 | T359: 0.03247929188 | U359: 81 | W359: 10 | X359: 6.58 | Y359: 32.22 | Z359: 0.03677366634 | AA359: 81 | AC359: 10 | AD359: 10.77 | AE359: 42.08 | AF359: 0.02246710534 | AG359: 81 | AI359: 10 | AJ359: 7.93 | AK359: 55.05 | AL359: 0.03051333222 | AM359: 81 | AO359: 10 | AP359: 39.95 | AQ359: 225.24 | AR359: 0.006056839162 | AS359: 81
E360: 10.5 | F360: 10.9305 | G360: 45.3305 | H360: 0.02208281851 | I360: 82 | K360: 10.5 | L360: 12.5685 | M360: 54.2185 | N360: 0.0192048572 | O360: 82 | Q360: 10.5 | R360: 7.8225 | S360: 30.2325 | T360: 0.03085666318 | U360: 82 | W360: 10.5 | X360: 6.909 | Y360: 32.549 | Z360: 0.03493649554 | AA360: 82 | AC360: 10.5 | AD360: 11.3085 | AE360: 42.6185 | AF360: 0.02134467416 | AG360: 82 | AI360: 10.5 | AJ360: 8.3265 | AK360: 55.4465 | AL360: 0.02898892064 | AM360: 82 | AO360: 10.5 | AP360: 41.9475 | AQ360: 227.2375 | AR360: 0.005754246325 | AS360: 82
E361: 11 | F361: 11.451 | G361: 45.851 | H361: 0.0209272024 | I361: 83 | K361: 11 | L361: 13.167 | M361: 54.817 | N361: 0.01819984771 | O361: 83 | Q361: 11 | R361: 8.195 | S361: 30.605 | T361: 0.02924190296 | U361: 83 | W361: 11 | X361: 7.238 | Y361: 32.878 | Z361: 0.03310823359 | AA361: 83 | AC361: 11 | AD361: 11.847 | AE361: 43.157 | AF361: 0.02022768589 | AG361: 83 | AI361: 11 | AJ361: 8.723 | AK361: 55.843 | AL361: 0.02747190127 | AM361: 83 | AO361: 11 | AP361: 43.945 | AQ361: 229.235 | AR361: 0.005453120827 | AS361: 83
E362: 11.5 | F362: 11.9715 | G362: 46.3715 | H362: 0.01978254262 | I362: 84 | K362: 11.5 | L362: 13.7655 | M362: 55.4155 | N362: 0.01720436664 | O362: 84 | Q362: 11.5 | R362: 8.5675 | S362: 30.9775 | T362: 0.02764245218 | U362: 84 | W362: 11.5 | X362: 7.567 | Y362: 33.207 | Z362: 0.03129730528 | AA362: 84 | AC362: 11.5 | AD362: 12.3855 | AE362: 43.6955 | AF362: 0.01912128772 | AG362: 84 | AI362: 11.5 | AJ362: 9.1195 | AK362: 56.2395 | AL362: 0.02596926466 | AM362: 84 | AO362: 11.5 | AP362: 45.9425 | AQ362: 231.2325 | AR362: 0.005154850281 | AS362: 84
E363: =E362+0.5 -> 12 | F363: 12.492 | G363: 46.892 | H363: 0.01865379971 | I363: 85 | K363: =K362+0.5 -> 12 | L363: 14.364 | M363: 56.014 | N363: 0.01622272807 | O363: 85 | Q363: =Q362+0.5 -> 12 | R363: 8.94 | S363: 31.35 | T363: 0.02606524228 | U363: 85 | W363: =W362+0.5 -> 12 | X363: 7.896 | Y363: 33.536 | Z363: 0.02951155851 | AA363: 85 | AC363: =AC362+0.5 -> 12 | AD363: 12.924 | AE363: 44.234 | AF363: 0.01803027437 | AG363: 85 | AI363: =AI362+0.5 -> 12 | AJ363: 9.516 | AK363: 56.636 | AL363: 0.0244875227 | AM363: 85 | AO363: =AO362+0.5 -> 12 | AP363: 47.94 | AQ363: 233.23 | AR363: 0.004860727284 | AS363: 85
E364: =E363+0.5 -> 12.5 | F364: 13.0125 | G364: 47.4125 | H364: 0.01754554134 | I364: 86 | K364: =K363+0.5 -> 12.5 | L364: 14.9625 | M364: 56.6125 | N364: 0.01525890438 | O364: 86 | Q364: =Q363+0.5 -> 12.5 | R364: 9.3125 | S364: 31.7225 | T364: 0.02451665576 | U364: 86 | W364: =W363+0.5 -> 12.5 | X364: 8.225 | Y364: 33.865 | Z364: 0.02775821966 | AA364: 86 | AC364: =AC363+0.5 -> 12.5 | AD364: 13.4625 | AE364: 44.7725 | AF364: 0.01695906085 | AG364: 86 | AI364: =AI363+0.5 -> 12.5 | AJ364: 9.9125 | AK364: 57.0325 | AL364: 0.02303267155 | AM364: 86 | AO364: =AO363+0.5 -> 12.5 | AP364: 49.9375 | AQ364: 235.2275 | AR364: 0.004571942062 | AS364: 86
E365: 13 | F365: 13.533 | G365: 47.933 | H365: 0.01646192047 | I365: 87 | K365: 13 | L365: 15.561 | M365: 57.211 | N365: 0.01431650727 | O365: 87 | Q365: 13 | R365: 9.685 | S365: 32.095 | T365: 0.02300249558 | U365: 87 | W365: 13 | X365: 8.554 | Y365: 34.194 | Z365: 0.02604385897 | AA365: 87 | AC365: 13 | AD365: 14.001 | AE365: 45.311 | AF365: 0.01591166129 | AG365: 87 | AI365: 13 | AJ365: 10.309 | AK365: 57.429 | AL365: 0.02161016293 | AM365: 87 | AO365: 13 | AP365: 51.935 | AQ365: 237.225 | AR365: 0.004289576772 | AS365: 87
E366: 13.5 | F366: 14.0535 | G366: 48.4535 | H366: 0.01540665969 | I366: 88 | K366: 13.5 | L366: 16.1595 | M366: 57.8095 | N366: 0.01339877421 | O366: 88 | Q366: 13.5 | R366: 10.0575 | S366: 32.4675 | T366: 0.0215279634 | U366: 88 | W366: 13.5 | X366: 8.883 | Y366: 34.523 | Z366: 0.02437436586 | AA366: 88 | AC366: 13.5 | AD366: 14.5395 | AE366: 45.8495 | AF366: 0.01489167385 | AG366: 88 | AI366: 13.5 | AJ366: 10.7055 | AK366: 57.8255 | AL366: 0.02022488365 | AM366: 88 | AO366: 13.5 | AP366: 53.9325 | AQ366: 239.2225 | AR366: 0.004014601435 | AS366: 88
E367: 14 | F367: 14.574 | G367: 48.974 | H367: 0.01438304185 | I367: 89 | K367: 14 | L367: 16.758 | M367: 58.408 | N367: 0.0125085602 | O367: 89 | Q367: 14 | R367: 10.43 | S367: 32.84 | T367: 0.02009764639 | U367: 89 | W367: 14 | X367: 9.212 | Y367: 34.852 | Z367: 0.02275493399 | AA367: 89 | AC367: 14 | AD367: 15.078 | AE367: 46.388 | AF367: 0.01390227165 | AG367: 89 | AI367: 14 | AJ367: 11.102 | AK367: 58.222 | AL367: 0.01888114321 | AM367: 89 | AO367: 14 | AP367: 55.93 | AQ367: 241.22 | AR367: 0.00374787148 | AS367: 89
E368: 14.5 | F368: 15.0945 | G368: 49.4945 | H368: 0.01339390648 | I368: 90 | K368: 14.5 | L368: 17.3565 | M368: 59.0065 | N368: 0.01164833471 | O368: 90 | Q368: 14.5 | R368: 10.8025 | S368: 33.2125 | T368: 0.01871551227 | U368: 90 | W368: 14.5 | X368: 9.541 | Y368: 35.181 | Z368: 0.02119005569 | AA368: 90 | AC368: 14.5 | AD368: 15.6165 | AE368: 46.9265 | AF368: 0.0129461993 | AG368: 90 | AI368: 14.5 | AJ368: 11.4985 | AK368: 58.6185 | AL368: 0.01758266916 | AM368: 90 | AO368: 14.5 | AP368: 57.9275 | AQ368: 243.2175 | AR368: 0.00349012682 | AS368: 90
E369: 15 | F369: 15.615 | G369: 50.015 | H369: 0.01244165184 | I369: 91 | K369: 15 | L369: 17.955 | M369: 59.605 | N369: 0.01082018343 | O369: 91 | Q369: 15 | R369: 11.175 | S369: 33.585 | T369: 0.01738491217 | U369: 91 | W369: 15 | X369: 9.87 | Y369: 35.51 | Z369: 0.01968352518 | AA369: 91 | AC369: 15 | AD369: 16.155 | AE369: 47.465 | AF369: 0.0120257749 | AG369: 91 | AI369: 15 | AJ369: 11.895 | AK369: 59.015 | AL369: 0.01633260979 | AM369: 91 | AO369: 15 | AP369: 59.925 | AQ369: 245.215 | AR369: 0.003241992382 | AS369: 91
E370: 15.5 | F370: 16.1355 | G370: 50.5355 | H370: 0.01152824214 | I370: 92 | K370: 15.5 | L370: 18.5535 | M370: 60.2035 | N370: 0.01002581459 | O370: 92 | Q370: 15.5 | R370: 11.5475 | S370: 33.9575 | T370: 0.0161085907 | U370: 92 | W370: 15.5 | X370: 10.199 | Y370: 35.839 | Z370: 0.01823844995 | AA370: 92 | AC370: 15.5 | AD370: 16.6935 | AE370: 48.0035 | AF370: 0.011142897 | AG370: 92 | AI370: 15.5 | AJ370: 12.2915 | AK370: 59.4115 | AL370: 0.01513354359 | AM370: 92 | AO370: 15.5 | AP370: 61.9225 | AQ370: 247.2125 | AR370: 0.003003979992 | AS370: 92
E371: 16 | F371: 16.656 | G371: 51.056 | H371: 0.01065521947 | I371: 93 | K371: 16 | L371: 19.152 | M371: 60.802 | N371: 0.009266569313 | O371: 93 | Q371: 16 | R371: 11.92 | S371: 34.33 | T371: 0.01488870264 | U371: 93 | W371: 16 | X371: 10.528 | Y371: 36.168 | Z371: 0.01685726971 | AA371: 93 | AC371: 16 | AD371: 17.232 | AE371: 48.542 | AF371: 0.01029905614 | AG371: 93 | AI371: 16 | AJ371: 12.688 | AK371: 59.808 | AL371: 0.01398749492 | AM371: 93 | AO371: 16 | AP371: 63.92 | AQ371: 249.21 | AR371: 0.002776491481 | AS371: 93
E372: 16.5 | F372: 17.1765 | G372: 51.5765 | H372: 0.009823719939 | I372: 94 | K372: 16.5 | L372: 19.7505 | M372: 61.4005 | N372: 0.008543435636 | O372: 94 | Q372: 16.5 | R372: 12.2925 | S372: 34.7025 | T372: 0.01372683551 | U372: 94 | W372: 16.5 | X372: 10.857 | Y372: 36.497 | Z372: 0.01554178185 | AA372: 94 | AC372: 16.5 | AD372: 17.7705 | AE372: 49.0805 | AF372: 0.00949535047 | AG372: 94 | AI372: 16.5 | AJ372: 13.0845 | AK372: 60.2045 | AL372: 0.01289595518 | AM372: 94 | AO372: 16.5 | AP372: 65.9175 | AQ372: 251.2075 | AR372: 0.002559822893 | AS372: 94
E373: 17 | F373: 17.697 | G373: 52.097 | H373: 0.009034493504 | I373: 95 | K373: 17 | L373: 20.349 | M373: 61.999 | N373: 0.007857065779 | O373: 95 | Q373: 17 | R373: 12.665 | S373: 35.075 | T373: 0.01262403723 | U373: 95 | W373: 17 | X373: 11.186 | Y373: 36.826 | Z373: 0.01429317285 | AA373: 95 | AC373: 17 | AD373: 18.309 | AE373: 49.619 | AF373: 0.008732504863 | AG373: 95 | AI373: 17 | AJ373: 13.481 | AK373: 60.601 | AL373: 0.01185990887 | AM373: 95 | AO373: 17 | AP373: 67.915 | AQ373: 253.205 | AR373: 0.002354169646 | AS373: 95
E374: 17.5 | F374: 18.2175 | G374: 52.6175 | H374: 0.008287926881 | I374: 96 | K374: 17.5 | L374: 20.9475 | M374: 62.5975 | N374: 0.007207796059 | O374: 96 | Q374: 17.5 | R374: 13.0375 | S374: 35.4475 | T374: 0.01158084816 | U374: 96 | W374: 17.5 | X374: 11.515 | Y374: 37.155 | Z374: 0.01311205453 | AA374: 96 | AC374: 17.5 | AD374: 18.8475 | AE374: 50.1575 | AF374: 0.008010893113 | AG374: 96 | AI374: 17.5 | AJ374: 13.8775 | AK374: 60.9975 | AL374: 0.01087986366 | AM374: 96 | AO374: 17.5 | AP374: 69.9125 | AQ374: 255.2025 | AR374: 0.002159632511 | AS374: 96
E375: 18 | F375: 18.738 | G375: 53.138 | H375: =NORMDIST(G375,F$276,F$277,FALSE) -> 0.007584069001 | I375: 97 | K375: 18 | L375: 21.546 | M375: 63.196 | N375: =NORMDIST(M375,L$276,L$277,FALSE) -> 0.006595669031 | O375: 97 | Q375: 18 | R375: 13.41 | S375: 35.82 | T375: =NORMDIST(S375,R$276,R$277,FALSE) -> 0.01059733668 | U375: 97 | W375: 18 | X375: 11.844 | Y375: 37.484 | Z375: =NORMDIST(Y375,X$276,X$277,FALSE) -> 0.0119985043 | AA375: 97 | AC375: 18 | AD375: 19.386 | AE375: 50.696 | AF375: =NORMDIST(AE375,AD$276,AD$277,FALSE) -> 0.007330562516 | AG375: 97 | AI375: 18 | AJ375: 14.274 | AK375: 61.394 | AL375: =NORMDIST(AK375,AJ$276,AJ$277,FALSE) -> 0.009955883771 | AM375: 97 | AO375: 18 | AP375: 71.91 | AQ375: 257.2 | AR375: =NORMDIST(AQ375,AP$276,AP$277,FALSE) -> 0.001976224238 | AS375: 97
E376: 18.5 | F376: 19.2585 | G376: 53.6585 | H376: 0.006922658438 | I376: 98 | K376: 18.5 | L376: 22.1445 | M376: 63.7945 | N376: 0.006020457338 | O376: 98 | Q376: 18.5 | R376: 13.7825 | S376: 36.1925 | T376: 0.009673137495 | U376: 98 | W376: 18.5 | X376: 12.173 | Y376: 37.813 | Z376: 0.01095210856 | AA376: 98 | AC376: 18.5 | AD376: 19.9245 | AE376: 51.2345 | AF376: 0.006691260384 | AG376: 98 | AI376: 18.5 | AJ376: 14.6705 | AK376: 61.7905 | AL376: 0.00908762602 | AM376: 98 | AO376: 18.5 | AP376: 73.9075 | AQ376: 259.1975 | AR376: 0.001803876704 | AS376: 98
E377: 19 | F377: 19.779 | G377: 54.179 | H377: 0.006303152236 | I377: 99 | K377: 19 | L377: 22.743 | M377: 64.393 | N377: 0.005481688787 | O377: 99 | Q377: 19 | R377: 14.155 | S377: 36.565 | T377: 0.008807491916 | U377: 99 | W377: 19 | X377: 12.502 | Y377: 38.142 | Z377: 0.009972008324 | AA377: 99 | AC377: 19 | AD377: 20.463 | AE377: 51.773 | AF377: 0.00609246191 | AG377: 99 | AI377: 19 | AJ377: 15.067 | AK377: 62.187 | AL377: 0.008274377651 | AM377: 99 | AO377: 19 | AP377: 75.905 | AQ377: 261.195 | AR377: 0.00164244843 | AS377: 99
E378: 19.5 | F378: 20.2995 | G378: 54.6995 | H378: 0.005724755626 | I378: 100 | K378: 19.5 | L378: 23.3415 | M378: 64.9915 | N378: 0.004978672186 | O378: 100 | Q378: 19.5 | R378: 14.5275 | S378: 36.9375 | T378: 0.007999289405 | U378: 100 | W378: 19.5 | X378: 12.831 | Y378: 38.471 | Z378: 0.009056946211 | AA378: 100 | AC378: 19.5 | AD378: 21.0015 | AE378: 52.3115 | AF378: 0.005533398892 | AG378: 100 | AI378: 19.5 | AJ378: 15.4635 | AK378: 62.5835 | AL378: 0.007515095343 | AM378: 100 | AO378: 19.5 | AP378: 77.9025 | AQ378: 263.1925 | AR378: 0.001491732317 | AS378: 100
E379: 20 | F379: 20.82 | G379: 55.22 | H379: 0.005186452115 | I379: 101 | K379: 20 | L379: 23.94 | M379: 65.59 | N379: 0.004510523518 | O379: 101 | Q379: 20 | R379: 14.9 | S379: 37.31 | T379: 0.007247109599 | U379: 101 | W379: 20 | X379: 13.16 | Y379: 38.8 | Z379: 0.00820531406 | AA379: 101 | AC379: 20 | AD379: 21.54 | AE379: 52.85 | AF379: 0.005013088813 | AG379: 101 | AI379: 20 | AJ379: 15.86 | AK379: 62.98 | AL379: 0.006808444705 | AM379: 101 | AO379: 20 | AP379: 79.9 | AQ379: 265.19 | AR379: 0.001351463492 | AS379: 101
E380: 20.5 | F380: 21.3405 | G380: 55.7405 | H380: 0.004687033485 | I380: 102 | K380: 20.5 | L380: 24.5385 | M380: 66.1885 | N380: 0.004076192028 | O380: 102 | Q380: 20.5 | R380: 15.2725 | S380: 37.6825 | T380: 0.006549264239 | U380: 102 | W380: 20.5 | X380: 13.489 | Y380: 39.129 | Z380: 0.007415200392 | AA380: 102 | AC380: 20.5 | AD380: 22.0785 | AE380: 53.3885 | AF380: 0.004530363842 | AG380: 102 | AI380: 20.5 | AJ380: 16.2565 | AK380: 63.3765 | AL380: 0.00615283967 | AM380: 102 | AO380: 20.5 | AP380: 81.8975 | AQ380: 267.1875 | AR380: 0.001221327123 | AS380: 102
E381: 21 | F381: 21.861 | G381: 56.261 | H381: 0.004225129297 | I381: 103 | K381: 21 | L381: 25.137 | M381: 66.787 | N381: 0.00367448588 | O381: 103 | Q381: 21 | R381: 15.645 | S381: 38.055 | T381: 0.005903838387 | U381: 103 | W381: 21 | X381: 13.818 | Y381: 39.458 | Z381: 0.006684437079 | AA381: 103 | AC381: 21 | AD381: 22.617 | AE381: 53.927 | AF381: 0.004083899348 | AG381: 103 | AI381: 21 | AJ381: 16.653 | AK381: 63.773 | AL381: 0.005546481208 | AM381: 103 | AO381: 21 | AP381: 83.895 | AQ381: 269.185 | AR381: 0.001100966107 | AS381: 103
E382: 21.5 | F382: 22.3815 | G382: 56.7815 | H382: 0.003799235503 | I382: 104 | K382: 21.5 | L382: 25.7355 | M382: 67.3855 | N382: 0.003304097042 | O382: 104 | Q382: 21.5 | R382: 16.0175 | S382: 38.4275 | T382: 0.005308730415 | U382: 104 | W382: 21.5 | X382: 14.147 | Y382: 39.787 | Z382: 0.006010644618 | AA382: 104 | AC382: 21.5 | AD382: 23.1555 | AE382: 54.4655 | AF382: 0.003672241559 | AG382: 104 | AI382: 21.5 | AJ382: 17.0495 | AK382: 64.1695 | AL382: 0.004987394904 | AM382: 104 | AO382: 21.5 | AP382: 85.8925 | AQ382: 271.1825 | AR382: 0.0009899885254 | AS382: 104
E383: 22 | F383: 22.902 | G383: 57.302 | H383: 0.003407741868 | I383: 105 | K383: 22 | L383: 26.334 | M383: 67.984 | N383: 0.002963625133 | O383: 105 | Q383: 22 | R383: 16.39 | S383: 38.8 | T383: 0.004761690315 | U383: 105 | W383: 22 | X383: 14.476 | Y383: 40.116 | Z383: 0.005391275509 | AA383: 105 | AC383: 22 | AD383: 23.694 | AE383: 55.004 | AF383: 0.003293834062 | AG383: 105 | AI383: 22 | AJ383: 17.446 | AK383: 64.566 | AL383: 0.004473466942 | AM383: 105 | AO383: 22 | AP383: 87.89 | AQ383: 273.18 | AR383: 0.0008879747896 | AS383: 105
E384: 22.5 | F384: 23.4225 | G384: 57.8225 | H384: 0.003048957909 | I384: 106 | K384: 22.5 | L384: 26.9325 | M384: 68.5825 | N384: 0.002651599986 | O384: 106 | Q384: 22.5 | R384: 16.7625 | S384: 39.1725 | T384: 0.004260355951 | U384: 106 | W384: 22.5 | X384: 14.805 | Y384: 40.445 | Z384: 0.004823655294 | AA384: 106 | AC384: 22.5 | AD384: 24.2325 | AE384: 55.5425 | AF384: 0.002947042882 | AG384: 106 | AI384: 22.5 | AJ384: 17.8425 | AK384: 64.9625 | AL384: 0.004002478163 | AM384: 106 | AO384: 22.5 | AP384: 89.8875 | AQ384: 275.1775 | AR384: 0.0007944844014 | AS384: 106
E385: 23 | F385: 23.943 | G385: 58.343 | H385: 0.002721137151 | I385: 107 | K385: 23 | L385: 27.531 | M385: 69.181 | N385: 0.002366502735 | O385: 107 | Q385: 23 | R385: 17.135 | S385: 39.545 | T385: 0.003802286945 | U385: 107 | W385: 23 | X385: 15.134 | Y385: 40.774 | Z385: 0.004305020933 | AA385: 107 | AC385: 23 | AD385: 24.771 | AE385: 56.081 | AF385: 0.00263017992 | AG385: 107 | AI385: 23 | AJ385: 18.239 | AK385: 65.359 | AL385: 0.003572135907 | AM385: 107 | AO385: 23 | AP385: 91.885 | AQ385: 277.175 | AR385: 0.0007090622714 | AS385: 107
... 30 more rows

Sheet IUS
A1: Intolerance to Uncertainty Scale
B3: Not at all characteristic of me (1) | C3: A few characteristic of me (2) | D3: Somewhat characteristic of me (3) | E3: Very characteristic of me (4) | F3: Entirely characteristic of me (5)
B4: Not at all characteristic of me | C4: A few characteristic of me | D4: Somewhat characteristic of me | E4: Very characteristic of me | F4: Entirely characteristic of me
A7: Item | H7: Score T1 | I7: Score T2
A8: 1. Uncertainty stops me from having a strong opinion. | H8: ='Quest T1'!N142 -> 3 | I8: ='Quest T2'!N127 -> 3
A9: 2. Being uncertain means that a person is disorganized. | H9: ='Quest T1'!N143 -> 1 | I9: ='Quest T2'!N128 -> 1
A10: 3. Uncertainty makes life intolerable. | H10: ='Quest T1'!N144 -> 2 | I10: ='Quest T2'!N129 -> 1
A11: 4. It’s unfair having no guarantees in life. | H11: ='Quest T1'!N145 -> 2 | I11: ='Quest T2'!N130 -> 1
A12: 5. My mind can’t be relaxed if I don’t know what will happen tomorrow. | H12: ='Quest T1'!N146 -> 1 | I12: ='Quest T2'!N131 -> 1
A13: 6. Uncertainty makes me uneasy, anxious, or stressed. | H13: ='Quest T1'!N147 -> 1 | I13: ='Quest T2'!N132 -> 1
A14: 7. Unforeseen events upset me greatly. | H14: ='Quest T1'!N148 -> 2 | I14: ='Quest T2'!N133 -> 1
A15: 8. It frustrates me not having all the information I need. | H15: ='Quest T1'!N149 -> 1 | I15: ='Quest T2'!N134 -> 1
A16: 9. Uncertainty keeps me from living a full life. | H16: ='Quest T1'!N150 -> 1 | I16: ='Quest T2'!N135 -> 1
A17: 10. One should always look ahead so as to avoid surprises. | H17: ='Quest T1'!N151 -> 1 | I17: ='Quest T2'!N136 -> 1
A18: 11. As mall unforeseen event can spoil everything, even with the best planning. | H18: ='Quest T1'!N152 -> 3 | I18: ='Quest T2'!N137 -> 4
A19: 12. When it’s time to act, uncertainty paralyses me. | H19: ='Quest T1'!N153 -> 1 | I19: ='Quest T2'!N138 -> 1
A20: 13. Being uncertain means that I am not first rate. | H20: ='Quest T1'!N154 -> 1 | I20: ='Quest T2'!N139 -> 1
A21: 14. When I am uncertain, I can’t go forward. | H21: ='Quest T1'!N155 -> 1 | I21: ='Quest T2'!N140 -> 1
A22: 15. When I am uncertain, I can’t function very well. | H22: ='Quest T1'!N156 -> 1 | I22: ='Quest T2'!N141 -> 1
A23: 16. Unlike me, others seem to know where they are going with their lives. | H23: ='Quest T1'!N157 -> 1 | I23: ='Quest T2'!N142 -> 1
A24: 17. Uncertainty makes me vulnerable, unhappy, or sad. | H24: ='Quest T1'!N158 -> 1 | I24: ='Quest T2'!N143 -> 1
A25: 18. I always want to know what the future has in store for me. | H25: ='Quest T1'!N159 -> 2 | I25: ='Quest T2'!N144 -> 1
A26: 19. I can’t stand being taken by surprise. | H26: ='Quest T1'!N160 -> 1 | I26: ='Quest T2'!N145 -> 2
A27: 20. The smallest doubt can stop me from acting. | H27: ='Quest T1'!N161 -> 1 | I27: ='Quest T2'!N146 -> 1
A28: 21. I should be able to organize everything in advance. | H28: ='Quest T1'!N162 -> 1 | I28: ='Quest T2'!N147 -> 2
A29: 22. Being uncertain means that I lack confidence. | H29: ='Quest T1'!N163 -> 1 | I29: ='Quest T2'!N148 -> 1
A30: 23. I think it’s unfair that other people seem to be sure about their future. | H30: ='Quest T1'!N164 -> 1 | I30: ='Quest T2'!N149 -> 1
A31: 24. Uncertainty keeps me from sleeping soundly. | H31: ='Quest T1'!N165 -> 1 | I31: ='Quest T2'!N150 -> 1
A32: 25. I must get away from all uncertain situations. | H32: ='Quest T1'!N166 -> 1 | I32: ='Quest T2'!N151 -> 1
A33: 26. The ambiguities in life stress me. | H33: ='Quest T1'!N167 -> 2 | I33: ='Quest T2'!N152 -> 1
A34: 27. I can’t stand being undecided about my future. | H34: ='Quest T1'!N168 -> 1 | I34: ='Quest T2'!N153 -> 2
B40: T1 | E40: T2 | L40: Confidence level
B41: Sum | C41: Mean | D41: Percentile | E41: Sum | F41: Mean | G41: Percentile | H41: d | I41: Sdiff | J41: RCI | K41: d/SD | L41: Two-tailed | M41: One-tailed
A42: TOTAL | B42: =SUM(H8:H34) -> 36 | C42: =AVERAGE(H8:H34) -> 1.333333333 | D42: =NORMDIST(B42,$F$70,$G$70,TRUE)*100 -> 30.73245687 | E42: =SUM(I8:I34) -> 35 | F42: =AVERAGE(I8:I34) -> 1.296296296 | G42: =NORMDIST(E42,$F$70,$G$70,TRUE)*100 -> 28.35208368 | H42: =E42-B42 -> -1 | I42: =SQRT(2*(G70*SQRT(1-H70))^2) -> 10.4560987 | J42: =H42/I42 -> -0.09563796487 | K42: =H42/G70 -> -0.06896551724 | L42: =IF(ABS(J42)>0.84,(1-((1-_xlfn.NORM.S.DIST(ABS(J42),TRUE))*2)),"no change") -> no change | M42: =IF(ABS(J42)>0.84,_xlfn.NORM.S.DIST(ABS(J42),TRUE),"no change") -> no change
F68: Norms (Buhr & Dugas, 2002)
F69: M | G69: SD | H69: rxx
F70: 43.3 | G70: 14.5 | H70: 0.74
E273: Dimension 1
E274: =A42 -> TOTAL
E275: T1 | F275: =B42 -> 36
E276: T2 | F276: =E42 -> 35
E277: norme M | F277: =F70 -> 43.3
E278: norme SD | F278: =G70 -> 14.5
G279: x | H279: densité
E280: -30 | F280: =E280*F$278/10 -> -43.5 | G280: =F280+F$277 -> -0.2 | H280: =NORMDIST(G280,F$277,F$278,FALSE) -> 0.0003056447181 | I280: 1
E281: =E280+0.5 -> -29.5 | F281: =E281*F$278/10 -> -42.775 | G281: =F281+F$277 -> 0.525 | H281: 0.0003546648912 | I281: 2
E282: =E281+0.5 -> -29 | F282: -42.05 | G282: 1.25 | H282: 0.0004105194772 | I282: 3
E283: -28.5 | F283: -41.325 | G283: 1.975 | H283: 0.0004739839097 | I283: 4
E284: -28 | F284: -40.6 | G284: 2.7 | H284: 0.0005458932126 | I284: 5
E285: -27.5 | F285: -39.875 | G285: 3.425 | H285: 0.0006271422415 | I285: 6
E286: -27 | F286: -39.15 | G286: 4.15 | H286: 0.0007186851596 | I286: 7
E287: -26.5 | F287: -38.425 | G287: 4.875 | H287: 0.0008215340419 | I287: 8
E288: -26 | F288: -37.7 | G288: 5.6 | H288: 0.0009367564989 | I288: 9
E289: -25.5 | F289: -36.975 | G289: 6.325 | H289: 0.001065472216 | I289: 10
E290: -25 | F290: -36.25 | G290: 7.05 | H290: 0.00120884831 | I290: 11
E291: -24.5 | F291: -35.525 | G291: 7.775 | H291: 0.001368093406 | I291: 12
E292: -24 | F292: -34.8 | G292: 8.5 | H292: 0.001544450365 | I292: 13
E293: -23.5 | F293: -34.075 | G293: 9.225 | H293: 0.00173918758 | I293: 14
E294: -23 | F294: -33.35 | G294: 9.95 | H294: 0.00195358881 | I294: 15
E295: -22.5 | F295: -32.625 | G295: 10.675 | H295: 0.002188941506 | I295: 16
E296: -22 | F296: -31.9 | G296: 11.4 | H296: 0.002446523645 | I296: 17
E297: -21.5 | F297: -31.175 | G297: 12.125 | H297: 0.002727589075 | I297: 18
E298: -21 | F298: -30.45 | G298: 12.85 | H298: 0.003033351447 | I298: 19
E299: -20.5 | F299: -29.725 | G299: 13.575 | H299: 0.003364966799 | I299: 20
E300: -20 | F300: -29 | G300: 14.3 | H300: 0.003723514932 | I300: 21
E301: -19.5 | F301: -28.275 | G301: 15.025 | H301: 0.004109979729 | I301: 22
E302: -19 | F302: -27.55 | G302: 15.75 | H302: 0.004525228605 | I302: 23
E303: -18.5 | F303: -26.825 | G303: 16.475 | H303: 0.004969991334 | I303: 24
E304: -18 | F304: -26.1 | G304: 17.2 | H304: 0.005444838504 | I304: 25
E305: -17.5 | F305: -25.375 | G305: 17.925 | H305: 0.005950159919 | I305: 26
E306: -17 | F306: -24.65 | G306: 18.65 | H306: 0.006486143267 | I306: 27
E307: -16.5 | F307: -23.925 | G307: 19.375 | H307: 0.007052753418 | I307: 28
E308: -16 | F308: -23.2 | G308: 20.1 | H308: 0.007649712737 | I308: 29
E309: -15.5 | F309: -22.475 | G309: 20.825 | H309: 0.008276482807 | I309: 30
E310: -15 | F310: -21.75 | G310: 21.55 | H310: 0.008932247977 | I310: 31
E311: -14.5 | F311: -21.025 | G311: 22.275 | H311: 0.009615901134 | I311: 32
E312: -14 | F312: -20.3 | G312: 23 | H312: =NORMDIST(G312,F$277,F$278,FALSE) -> 0.01032603211 | I312: 33
E313: -13.5 | F313: -19.575 | G313: 23.725 | H313: 0.01106091913 | I313: 34
E314: -13 | F314: -18.85 | G314: 24.45 | H314: 0.01181852359 | I314: 35
E315: -12.5 | F315: -18.125 | G315: 25.175 | H315: 0.01259648865 | I315: 36
E316: -12 | F316: -17.4 | G316: 25.9 | H316: 0.01339214172 | I316: 37
E317: -11.5 | F317: -16.675 | G317: 26.625 | H317: 0.01420250129 | I317: 38
E318: -11 | F318: -15.95 | G318: 27.35 | H318: 0.01502428807 | I318: 39
E319: -10.5 | F319: -15.225 | G319: 28.075 | H319: 0.01585394074 | I319: 40
E320: -10 | F320: -14.5 | G320: 28.8 | H320: 0.01668763617 | I320: 41
E321: -9.5 | F321: -13.775 | G321: 29.525 | H321: 0.01752131424 | I321: 42
E322: -9 | F322: -13.05 | G322: 30.25 | H322: 0.01835070689 | I322: 43
E323: -8.5 | F323: -12.325 | G323: 30.975 | H323: 0.01917137146 | I323: 44
E324: -8 | F324: -11.6 | G324: 31.7 | H324: 0.01997872778 | I324: 45
E325: -7.5 | F325: -10.875 | G325: 32.425 | H325: 0.02076809877 | I325: 46
E326: -7 | F326: -10.15 | G326: 33.15 | H326: 0.02153475403 | I326: 47
E327: -6.5 | F327: -9.425 | G327: 33.875 | H327: 0.02227395584 | I327: 48
E328: -6 | F328: -8.7 | G328: 34.6 | H328: 0.0229810071 | I328: 49
E329: -5.5 | F329: -7.975 | G329: 35.325 | H329: 0.02365130035 | I329: 50
E330: -5 | F330: -7.25 | G330: 36.05 | H330: 0.02428036736 | I330: 51
E331: -4.5 | F331: -6.525 | G331: 36.775 | H331: 0.02486392845 | I331: 52
E332: -4 | F332: -5.8 | G332: 37.5 | H332: 0.02539794071 | I332: 53
E333: -3.5 | F333: -5.075 | G333: 38.225 | H333: 0.02587864461 | I333: 54
E334: -3 | F334: -4.35 | G334: 38.95 | H334: 0.02630260796 | I334: 55
E335: -2.5 | F335: -3.625 | G335: 39.675 | H335: 0.02666676668 | I335: 56
E336: -2 | F336: -2.9 | G336: 40.4 | H336: 0.02696846165 | I336: 57
E337: -1.5 | F337: -2.175 | G337: 41.125 | H337: 0.0272054711 | I337: 58
E338: -1 | F338: -1.45 | G338: 41.85 | H338: 0.02737603776 | I338: 59
E339: -0.5 | F339: -0.725 | G339: 42.575 | H339: 0.02747889063 | I339: 60
E340: 0 | F340: 0 | G340: 43.3 | H340: 0.02751326072 | I340: 61
E341: 0.5 | F341: 0.725 | G341: 44.025 | H341: 0.02747889063 | I341: 62
E342: 1 | F342: 1.45 | G342: 44.75 | H342: 0.02737603776 | I342: 63
E343: 1.5 | F343: 2.175 | G343: 45.475 | H343: 0.0272054711 | I343: 64
E344: 2 | F344: 2.9 | G344: 46.2 | H344: =NORMDIST(G344,F$277,F$278,FALSE) -> 0.02696846165 | I344: 65
E345: 2.5 | F345: =E345*F$278/10 -> 3.625 | G345: =F345+F$277 -> 46.925 | H345: 0.02666676668 | I345: 66
E346: =E345+0.5 -> 3 | F346: 4.35 | G346: 47.65 | H346: 0.02630260796 | I346: 67
E347: =E346+0.5 -> 3.5 | F347: 5.075 | G347: 48.375 | H347: 0.02587864461 | I347: 68
E348: =E347+0.5 -> 4 | F348: 5.8 | G348: 49.1 | H348: 0.02539794071 | I348: 69
E349: =E348+0.5 -> 4.5 | F349: 6.525 | G349: 49.825 | H349: 0.02486392845 | I349: 70
E350: 5 | F350: 7.25 | G350: 50.55 | H350: 0.02428036736 | I350: 71
E351: 5.5 | F351: 7.975 | G351: 51.275 | H351: 0.02365130035 | I351: 72
E352: 6 | F352: 8.7 | G352: 52 | H352: 0.0229810071 | I352: 73
E353: 6.5 | F353: 9.425 | G353: 52.725 | H353: 0.02227395584 | I353: 74
E354: 7 | F354: 10.15 | G354: 53.45 | H354: 0.02153475403 | I354: 75
E355: 7.5 | F355: 10.875 | G355: 54.175 | H355: 0.02076809877 | I355: 76
E356: 8 | F356: 11.6 | G356: 54.9 | H356: 0.01997872778 | I356: 77
E357: 8.5 | F357: 12.325 | G357: 55.625 | H357: 0.01917137146 | I357: 78
E358: 9 | F358: 13.05 | G358: 56.35 | H358: 0.01835070689 | I358: 79
E359: 9.5 | F359: 13.775 | G359: 57.075 | H359: 0.01752131424 | I359: 80
E360: 10 | F360: 14.5 | G360: 57.8 | H360: 0.01668763617 | I360: 81
E361: 10.5 | F361: 15.225 | G361: 58.525 | H361: 0.01585394074 | I361: 82
E362: 11 | F362: 15.95 | G362: 59.25 | H362: 0.01502428807 | I362: 83
E363: 11.5 | F363: 16.675 | G363: 59.975 | H363: 0.01420250129 | I363: 84
E364: =E363+0.5 -> 12 | F364: 17.4 | G364: 60.7 | H364: 0.01339214172 | I364: 85
E365: =E364+0.5 -> 12.5 | F365: 18.125 | G365: 61.425 | H365: 0.01259648865 | I365: 86
E366: 13 | F366: 18.85 | G366: 62.15 | H366: 0.01181852359 | I366: 87
E367: 13.5 | F367: 19.575 | G367: 62.875 | H367: 0.01106091913 | I367: 88
E368: 14 | F368: 20.3 | G368: 63.6 | H368: 0.01032603211 | I368: 89
E369: 14.5 | F369: 21.025 | G369: 64.325 | H369: 0.009615901134 | I369: 90
E370: 15 | F370: 21.75 | G370: 65.05 | H370: 0.008932247977 | I370: 91
E371: 15.5 | F371: 22.475 | G371: 65.775 | H371: 0.008276482807 | I371: 92
E372: 16 | F372: 23.2 | G372: 66.5 | H372: 0.007649712737 | I372: 93
E373: 16.5 | F373: 23.925 | G373: 67.225 | H373: 0.007052753418 | I373: 94
E374: 17 | F374: 24.65 | G374: 67.95 | H374: 0.006486143267 | I374: 95
E375: 17.5 | F375: 25.375 | G375: 68.675 | H375: 0.005950159919 | I375: 96
E376: 18 | F376: 26.1 | G376: 69.4 | H376: =NORMDIST(G376,F$277,F$278,FALSE) -> 0.005444838504 | I376: 97
E377: 18.5 | F377: 26.825 | G377: 70.125 | H377: 0.004969991334 | I377: 98
E378: 19 | F378: 27.55 | G378: 70.85 | H378: 0.004525228605 | I378: 99
E379: 19.5 | F379: 28.275 | G379: 71.575 | H379: 0.004109979729 | I379: 100
E380: 20 | F380: 29 | G380: 72.3 | H380: 0.003723514932 | I380: 101
E381: 20.5 | F381: 29.725 | G381: 73.025 | H381: 0.003364966799 | I381: 102
E382: 21 | F382: 30.45 | G382: 73.75 | H382: 0.003033351447 | I382: 103
E383: 21.5 | F383: 31.175 | G383: 74.475 | H383: 0.002727589075 | I383: 104
E384: 22 | F384: 31.9 | G384: 75.2 | H384: 0.002446523645 | I384: 105
E385: 22.5 | F385: 32.625 | G385: 75.925 | H385: 0.002188941506 | I385: 106
E386: 23 | F386: 33.35 | G386: 76.65 | H386: 0.00195358881 | I386: 107
E387: 23.5 | F387: 34.075 | G387: 77.375 | H387: 0.00173918758 | I387: 108
E388: 24 | F388: 34.8 | G388: 78.1 | H388: 0.001544450365 | I388: 109
E389: 24.5 | F389: 35.525 | G389: 78.825 | H389: 0.001368093406 | I389: 110
E390: 25 | F390: 36.25 | G390: 79.55 | H390: 0.00120884831 | I390: 111
E391: 25.5 | F391: 36.975 | G391: 80.275 | H391: 0.001065472216 | I391: 112
E392: 26 | F392: 37.7 | G392: 81 | H392: 0.0009367564989 | I392: 113
E393: 26.5 | F393: 38.425 | G393: 81.725 | H393: 0.0008215340419 | I393: 114
E394: 27 | F394: 39.15 | G394: 82.45 | H394: 0.0007186851596 | I394: 115
E395: 27.5 | F395: 39.875 | G395: 83.175 | H395: 0.0006271422415 | I395: 116
E396: 28 | F396: 40.6 | G396: 83.9 | H396: 0.0005458932126 | I396: 117
E397: 28.5 | F397: 41.325 | G397: 84.625 | H397: 0.0004739839097 | I397: 118
E398: 29 | F398: 42.05 | G398: 85.35 | H398: 0.0004105194772 | I398: 119
E399: 29.5 | F399: 42.775 | G399: 86.075 | H399: 0.0003546648912 | I399: 120
E400: 30 | F400: 43.5 | G400: 86.8 | H400: 0.0003056447181 | I400: 121
E407: Marque | F407: x | G407: y
E408: T1 | F408: =VLOOKUP(F$275,G280:J400,3,TRUE) -> 50 | G408: =VLOOKUP(F$275,G280:H400,2,TRUE) -> 0.02365130035
E409: T2 | F409: =VLOOKUP(F$276,G280:J400,3,TRUE) -> 49 | G409: =VLOOKUP(F$276,G280:H400,2,TRUE) -> 0.0229810071
E411: Moyenne norme | F411: x | G411: y
E414: Ecart sup | F414: x | G414: y
F415: 71 | G415: 0
F416: 71 | G416: =VLOOKUP(5,E280:I400,4,TRUE) -> 0.02428036736
E417: Ecart inf | F417: x | G417: y
F418: 51 | G418: 0
F419: 51 | G419: =VLOOKUP(-5,E280:I400,4,TRUE) -> 0.02428036736
E420: Ecart 2 sup | F420: x | G420: y
F421: 91 | G421: 0
F422: 91 | G422: =VLOOKUP(15,E280:I400,4,TRUE) -> 0.008932247977
E423: Ecart 2 inf | F423: x | G423: y
F424: 31 | G424: 0
F425: 31 | G425: =VLOOKUP(-15,E280:J400,4,TRUE) -> 0.008932247977

Sheet MCQ
A1: Meta-Cognitions Questionnaire
D3: Do not agree | E3: Agree slightly | F3: Agree moderately | G3: Agree very much
D4: 1 | E4: 2 | F4: 3 | G4: 4
A7: N | B7: Item | I7: Score T1 | J7: Score T2 | K7: Dimensions
A8: 1 | B8: Worrying helps me to avoid problems in the future | I8: ='Quest T1'!N173 -> 3 | J8: ='Quest T2'!N158 -> 2 | K8: Positive worry beliefs
A9: 2 | B9: My worrying is dangerous for me | I9: ='Quest T1'!N174 -> 2 | J9: ='Quest T2'!N159 -> 2 | K9: Beliefs about uncontrollability and danger
A10: 3 | B10: I think a lot about my thoughts | I10: ='Quest T1'!N175 -> 1 | J10: ='Quest T2'!N160 -> 1 | K10: Cognitive self-consciousness
A11: 4 | B11: I could make myself sick with worrying | I11: ='Quest T1'!N176 -> 2 | J11: ='Quest T2'!N161 -> 2 | K11: Beliefs about uncontrollability and danger
A12: 5 | B12: I am aware of the way my mind works when I am thinking through a problem | I12: ='Quest T1'!N177 -> 1 | J12: ='Quest T2'!N162 -> 1 | K12: Cognitive self-consciousness
A13: 6 | B13: If I did not control a worrying thought, and then it happened, it would be my fault | I13: ='Quest T1'!N178 -> 4 | J13: ='Quest T2'!N163 -> 3 | K13: General negative beliefs (including responsibility, supersition and punishment)
A14: 7 | B14: I need to worry in order to remain organized | I14: ='Quest T1'!N179 -> 2 | J14: ='Quest T2'!N164 -> 2 | K14: Positive worry beliefs
A15: 8 | B15: I have little confidence in my memory for words and names | I15: ='Quest T1'!N180 -> 1 | J15: ='Quest T2'!N165 -> 3 | K15: Beliefs about cognitive competence
A16: 9 | B16: My worrying thoughts persist, no matter how I try to stop them | I16: ='Quest T1'!N181 -> 4 | J16: ='Quest T2'!N166 -> 2 | K16: Beliefs about uncontrollability and danger
A17: 10 | B17: Worrying helps me to get things sorted out in my mind | I17: ='Quest T1'!N182 -> 2 | J17: ='Quest T2'!N167 -> 2 | K17: Positive worry beliefs
A18: 11 | B18: I cannot ignore my worrying thoughts | I18: ='Quest T1'!N183 -> 4 | J18: ='Quest T2'!N168 -> 2 | K18: Beliefs about uncontrollability and danger
A19: 12 | B19: I monitor my thoughts | I19: ='Quest T1'!N184 -> 1 | J19: ='Quest T2'!N169 -> 1 | K19: Cognitive self-consciousness
A20: 13 | B20: I should be in control of my thoughts all of the time | I20: ='Quest T1'!N185 -> 2 | J20: ='Quest T2'!N170 -> 1 | K20: General negative beliefs (including responsibility, supersition and punishment)
A21: 14 | B21: My memory can mislead me at times | I21: ='Quest T1'!N186 -> 4 | J21: ='Quest T2'!N171 -> 2 | K21: Beliefs about cognitive competence
A22: 15 | B22: My worrying could make me go mad | I22: ='Quest T1'!N187 -> 2 | J22: ='Quest T2'!N172 -> 1 | K22: Beliefs about uncontrollability and danger
A23: 16 | B23: I am constantly aware of my thinking | I23: ='Quest T1'!N188 -> 1 | J23: ='Quest T2'!N173 -> 2 | K23: Cognitive self-consciousness
A24: 17 | B24: I have a poor memory | I24: ='Quest T1'!N189 -> 4 | J24: ='Quest T2'!N174 -> 1 | K24: Beliefs about cognitive competence
A25: 18 | B25: I pay close attention to the way my mind works | I25: ='Quest T1'!N190 -> 2 | J25: ='Quest T2'!N175 -> 2 | K25: Cognitive self-consciousness
A26: 19 | B26: Worrying helps me to cope | I26: ='Quest T1'!N191 -> 1 | J26: ='Quest T2'!N176 -> 2 | K26: Positive worry beliefs
A27: 20 | B27: Not being able to control my thoughts is a sign of weakness | I27: ='Quest T1'!N192 -> 2 | J27: ='Quest T2'!N177 -> 1 | K27: General negative beliefs (including responsibility, supersition and punishment)
A28: 21 | B28: If I could not control my thoughts, I would not be able to function | I28: ='Quest T1'!N193 -> 1 | J28: ='Quest T2'!N178 -> 1 | K28: General negative beliefs (including responsibility, supersition and punishment)
A29: 22 | B29: When I start worrying, I cannot stop | I29: ='Quest T1'!N194 -> 3 | J29: ='Quest T2'!N179 -> 1 | K29: Beliefs about uncontrollability and danger
A30: 23 | B30: I will be punished for not controlling certain thoughts | I30: ='Quest T1'!N195 -> 1 | J30: ='Quest T2'!N180 -> 2 | K30: General negative beliefs (including responsibility, supersition and punishment)
A31: 24 | B31: Worrying helps me to solve problems | I31: ='Quest T1'!N196 -> 1 | J31: ='Quest T2'!N181 -> 1 | K31: Positive worry beliefs
A32: 25 | B32: I have little confidence in my memory for places | I32: ='Quest T1'!N197 -> 1 | J32: ='Quest T2'!N182 -> 1 | K32: Beliefs about cognitive competence
A33: 26 | B33: It is bad to think certain thoughts | I33: ='Quest T1'!N198 -> 4 | J33: ='Quest T2'!N183 -> 2 | K33: General negative beliefs (including responsibility, supersition and punishment)
A34: 27 | B34: I do not trust my memory | I34: ='Quest T1'!N199 -> 4 | J34: ='Quest T2'!N184 -> 2 | K34: Beliefs about cognitive competence
A35: 28 | B35: I need to worry in order to work well | I35: ='Quest T1'!N200 -> 2 | J35: ='Quest T2'!N185 -> 2 | K35: Positive worry beliefs
A36: 29 | B36: I have little confidence in my memory for actions | I36: ='Quest T1'!N201 -> 1 | J36: ='Quest T2'!N186 -> 1 | K36: Beliefs about cognitive competence
A37: 30 | B37: I constantly examine my thoughts | I37: ='Quest T1'!N202 -> 1 | J37: ='Quest T2'!N187 -> 1 | K37: Cognitive self-consciousness
C39: T1 | F39: T2 | M39: Confidence level
C40: Sum | D40: Mean | E40: Percentile | F40: Sum | G40: Mean | H40: Percentile | I40: d | J40: Sdiff | K40: RCI | L40: d/SD | M40: Two-tailed | N40: One-tailed
B41: Positive worry beliefs | C41: =SUM(I8,I14,I17,I26,I31,I35) -> 11 | D41: =AVERAGE(I8,I14,I17,I26,I31,I35) -> 1.833333333 | E41: =NORMDIST(C41,L108,M108,TRUE)*100 -> 52.44857344 | F41: =SUM(J8,J14,J17,J26,J31,J35) -> 11 | G41: =AVERAGE(J8,J14,J17,J26,J31,J35) -> 1.833333333 | H41: =NORMDIST(F41,L108,M108,TRUE)*100 -> 52.44857344 | I41: =F41-C41 -> 0 | J41: =SQRT(2*(M108*SQRT(1-#REF!))^2) ->  | K41: =I41/J41 ->  | L41: =I41/M108 -> 0 | M41: =IF(ABS(K41)>0.84,(1-((1-_xlfn.NORM.S.DIST(ABS(K41),TRUE))*2)),"no change") ->  | N41: =IF(ABS(K41)>0.84,_xlfn.NORM.S.DIST(ABS(K41),TRUE),"no change") -> 
B42: Beliefs about uncontrollability and danger | C42: =SUM(I9,I11,I16,I18,I22,I29) -> 17 | D42: =AVERAGE(I9,I11,I16,I18,I22,I29) -> 2.833333333 | E42: 84.21505897 | F42: =SUM(J9,J11,J16,J18,J22,J29) -> 10 | G42: =AVERAGE(J9,J11,J16,J18,J22,J29) -> 1.666666667 | H42: 21.39129078 | I42: -7 | J42: =SQRT(2*(M109*SQRT(1-#REF!))^2) ->  | L42: -1.796253528
B43: Beliefs about cognitive competence | C43: =SUM(I15,I21,I24,I32,I34,I36) -> 15 | D43: =AVERAGE(I15,I21,I24,I32,I34,I36) -> 2.5 | E43: 86.2727364 | F43: =SUM(J15,J21,J24,J32,J34,J36) -> 10 | G43: =AVERAGE(J15,J21,J24,J32,J34,J36) -> 1.666666667 | H43: 41.87723752 | I43: -5 | J43: =SQRT(2*(M110*SQRT(1-#REF!))^2) ->  | L43: -1.297690112
B44: General negative beliefs (including responsibility, supersition and punishment) | C44: =SUM(I13,I20,I27,I28,I30,I33) -> 14 | D44: =AVERAGE(I13,I20,I27,I28,I30,I33) -> 2.333333333 | E44: 86.76998071 | F44: =SUM(J13,J20,J27,J28,J30,J33) -> 10 | G44: =AVERAGE(J13,J20,J27,J28,J30,J33) -> 1.666666667 | H44: 48.62381894 | I44: -4 | J44: =SQRT(2*(M111*SQRT(1-#REF!))^2) ->  | L44: -1.150086256
B45: Cognitive self-consciousness | C45: =SUM(I10,I12,I19,I23,I25,I37) -> 7 | D45: =AVERAGE(I10,I12,I19,I23,I25,I37) -> 1.166666667 | E45: 3.398307852 | F45: =SUM(J10,J12,J19,J23,J25,J37) -> 8 | G45: =AVERAGE(J10,J12,J19,J23,J25,J37) -> 1.333333333 | H45: 6.33816552 | I45: 1 | J45: =SQRT(2*(M112*SQRT(1-#REF!))^2) ->  | L45: 0.2982403817
B46: TOTAL | C46: =SUM(I8:I37) -> 64 | D46: =AVERAGE(I8:I37) -> 2.133333333 | E46: 70.80972825 | F46: =SUM(J8:J37) -> 49 | G46: =AVERAGE(J8:J37) -> 1.633333333 | H46: 21.26979439 | I46: -15 | J46: =SQRT(2*(M113*SQRT(1-#REF!))^2) ->  | L46: -1.344929615
K107: Norms (Wells, 2004) | L107: M | M107: SD | N107: rxx
K108: Positive worry beliefs | L108: 10.77 | M108: 3.745 | N108: 0.745
K109: Beliefs about uncontrollability and danger | L109: 13.09 | M109: 3.897 | N109: 0.641
K110: Beliefs about cognitive competence | L110: 10.79 | M110: 3.853 | N110: 0.717
K111: General negative beliefs (including responsibility, supersition and punishment) | L111: 10.12 | M111: 3.478 | N111: 0.581
K112: Cognitive self-consciousness | L112: 13.12 | M112: 3.353 | N112: 0.743
K113: TOTAL | L113: 57.89 | M113: 11.153 | N113: 0.746
E272: Dimension 1 | K272: Dimension 2 | Q272: Dimension3 | W272: Dimension4 | AC272: Dimension 5 | AI272: Dimension 6
E273: =B41 -> Positive worry beliefs | K273: =B42 -> Beliefs about uncontrollability and danger | Q273: =B43 -> Beliefs about cognitive competence | W273: =B44 -> General negative beliefs (including responsibility, supersition and punishment) | AC273: =B45 -> Cognitive self-consciousness | AI273: =B46 -> TOTAL
E274: T1 | F274: =C41 -> 11 | K274: T1 | L274: =C42 -> 17 | Q274: T1 | R274: =C43 -> 15 | W274: T1 | X274: =C44 -> 14 | AC274: T1 | AD274: =C45 -> 7 | AI274: T1 | AJ274: =C46 -> 64
E275: T2 | F275: =F41 -> 11 | K275: T2 | L275: =F42 -> 10 | Q275: T2 | R275: =F43 -> 10 | W275: T2 | X275: =F44 -> 10 | AC275: T2 | AD275: =F45 -> 8 | AI275: T2 | AJ275: =F46 -> 49
E276: norme M | F276: =L108 -> 10.77 | K276: norme M | L276: =L109 -> 13.09 | Q276: norme M | R276: =L110 -> 10.79 | W276: norme M | X276: =L111 -> 10.12 | AC276: norme M | AD276: =L112 -> 13.12 | AI276: norme M | AJ276: =L113 -> 57.89
E277: norme SD | F277: =M108 -> 3.745 | K277: norme SD | L277: =M109 -> 3.897 | Q277: norme SD | R277: =M110 -> 3.853 | W277: norme SD | X277: =M111 -> 3.478 | AC277: norme SD | AD277: =M112 -> 3.353 | AI277: norme SD | AJ277: =M113 -> 11.153
G278: x | H278: densité | M278: x | N278: densité | S278: x | T278: densité | Y278: x | Z278: densité | AE278: x | AF278: densité | AK278: x | AL278: densité
E279: -30 | F279: =E279*F$277/10 -> -11.235 | G279: =F279+F$276 -> -0.465 | H279: =NORMDIST(G279,F$276,F$277,FALSE) -> 0.001183404115 | I279: 1 | K279: -30 | L279: =K279*L$277/10 -> -11.691 | M279: =L279+L$276 -> 1.399 | N279: =NORMDIST(M279,L$276,L$277,FALSE) -> 0.001137246192 | O279: 1 | Q279: -30 | R279: =Q279*R$277/10 -> -11.559 | S279: =R279+R$276 -> -0.769 | T279: =NORMDIST(S279,R$276,R$277,FALSE) -> 0.001150233172 | U279: 1 | W279: -30 | X279: =W279*X$277/10 -> -10.434 | Y279: =X279+X$276 -> -0.314 | Z279: =NORMDIST(Y279,X$276,X$277,FALSE) -> 0.001274251987 | AA279: 1 | AC279: -30 | AD279: =AC279*AD$277/10 -> -10.059 | AE279: =AD279+AD$276 -> 3.061 | AF279: =NORMDIST(AE279,AD$276,AD$277,FALSE) -> 0.001321756162 | AG279: 1 | AI279: -30 | AJ279: =AI279*AJ$277/10 -> -33.459 | AK279: =AJ279+AJ$276 -> 24.431 | AL279: =NORMDIST(AK279,AJ$276,AJ$277,FALSE) -> 0.0003973682787 | AM279: 1
E280: =E279+0.5 -> -29.5 | F280: =E280*F$277/10 -> -11.04775 | G280: =F280+F$276 -> -0.27775 | H280: 0.001373201849 | I280: 2 | K280: =K279+0.5 -> -29.5 | L280: =K280*L$277/10 -> -11.49615 | M280: =L280+L$276 -> 1.59385 | N280: 0.001319640986 | O280: 2 | Q280: =Q279+0.5 -> -29.5 | R280: =Q280*R$277/10 -> -11.36635 | S280: =R280+R$276 -> -0.57635 | T280: 0.001334710855 | U280: 2 | W280: =W279+0.5 -> -29.5 | X280: =W280*X$277/10 -> -10.2601 | Y280: =X280+X$276 -> -0.1401 | Z280: 0.001478620162 | AA280: 2 | AC280: =AC279+0.5 -> -29.5 | AD280: =AC280*AD$277/10 -> -9.89135 | AE280: =AD280+AD$276 -> 3.22865 | AF280: 0.001533743192 | AG280: 2 | AI280: =AI279+0.5 -> -29.5 | AJ280: =AI280*AJ$277/10 -> -32.90135 | AK280: =AJ280+AJ$276 -> 24.98865 | AL280: 0.0004610993386 | AM280: 2
E281: =E280+0.5 -> -29 | F281: -10.8605 | G281: -0.0905 | H281: 0.00158946126 | I281: 3 | K281: =K280+0.5 -> -29 | L281: -11.3013 | M281: 1.7887 | N281: 0.001527465337 | O281: 3 | Q281: =Q280+0.5 -> -29 | R281: -11.1737 | S281: -0.3837 | T281: 0.001544908492 | U281: 3 | W281: =W280+0.5 -> -29 | X281: -10.0862 | Y281: 0.0338 | Z281: 0.001711481432 | AA281: 3 | AC281: =AC280+0.5 -> -29 | AD281: -9.7237 | AE281: 3.3963 | AF281: 0.001775285541 | AG281: 3 | AI281: =AI280+0.5 -> -29 | AJ281: -32.3437 | AK281: 25.5463 | AL281: 0.0005337158092 | AM281: 3
E282: -28.5 | F282: -10.67325 | G282: 0.09675 | H282: 0.001835184697 | I282: 4 | K282: -28.5 | L282: -11.10645 | M282: 1.98355 | N282: 0.001763604488 | O282: 4 | Q282: -28.5 | R282: -10.98105 | S282: -0.19105 | T282: 0.001783744275 | U282: 4 | W282: -28.5 | X282: -9.9123 | Y282: 0.2077 | Z282: 0.001976068629 | AA282: 4 | AC282: -28.5 | AD282: -9.55605 | AE282: 3.56395 | AF282: 0.002049736561 | AG282: 4 | AI282: -28.5 | AJ282: -31.78605 | AK282: 26.10395 | AL282: 0.0006162258308 | AM282: 4
E283: -28 | F283: -10.486 | G283: 0.284 | H283: 0.002113605229 | I283: 5 | K283: -28 | L283: -10.9116 | M283: 2.1784 | N283: 0.002031165405 | O283: 5 | Q283: -28 | R283: -10.7884 | S283: 0.0016 | T283: 0.00205436065 | U283: 5 | W283: -28 | X283: -9.7384 | Y283: 0.3816 | Z283: 0.00227586302 | AA283: 5 | AC283: -28 | AD283: -9.3884 | AE283: 3.7316 | AF283: 0.002360707302 | AG283: 5 | AI283: -28 | AJ283: -31.2284 | AK283: 26.6616 | AL283: 0.0007097150169 | AM283: 5
E284: -27.5 | F284: -10.29875 | G284: 0.47125 | H284: 0.002428187584 | I284: 6 | K284: -27.5 | L284: -10.71675 | M284: 2.37325 | N284: 0.002333477676 | O284: 6 | Q284: -27.5 | R284: -10.59575 | S284: 0.19425 | T284: 0.002360125228 | U284: 6 | W284: -27.5 | X284: -9.5645 | Y284: 0.5555 | Z284: 0.002614595314 | AA284: 6 | AC284: -27.5 | AD284: -9.22075 | AE284: 3.89925 | AF284: 0.002712067552 | AG284: 6 | AI284: -27.5 | AJ284: -30.67075 | AK284: 27.21925 | AL284: 0.0008153467678 | AM284: 6
E285: -27 | F285: -10.1115 | G285: 0.6585 | H285: 0.002782626119 | I285: 7 | K285: -27 | L285: -10.5219 | M285: 2.5681 | N285: 0.002674091561 | O285: 7 | Q285: -27 | R285: -10.4031 | S285: 0.3869 | T285: 0.002704628812 | U285: 7 | W285: -27 | X285: -9.3906 | Y285: 0.7294 | Z285: 0.002996243477 | AA285: 7 | AC285: -27 | AD285: -9.0531 | AE285: 4.0669 | AF285: 0.003107943577 | AG285: 7 | AI285: -27 | AJ285: -30.1131 | AK285: 27.7769 | AL285: 0.0009343615901 | AM285: 7
E286: -26.5 | F286: -9.92425 | G286: 0.84575 | H286: 0.003180839415 | I286: 8 | K286: -26.5 | L286: -10.32705 | M286: 2.76295 | N286: 0.003056772802 | O286: 8 | Q286: -26.5 | R286: -10.21045 | S286: 0.57955 | T286: 0.003091680147 | U286: 8 | W286: -26.5 | X286: -9.2167 | Y286: 0.9033 | Z286: 0.003425026914 | AA286: 8 | AC286: -26.5 | AD286: -8.88545 | AE286: 4.23455 | AF286: 0.003552712081 | AG286: 8 | AI286: -26.5 | AJ286: -29.55545 | AK286: 28.33455 | AL286: 0.001068075281 | AM286: 8
E287: -26 | F287: -9.737 | G287: 1.033 | H287: 0.003626961077 | I287: 9 | K287: -26 | L287: -10.1322 | M287: 2.9578 | N287: 0.003485493773 | O287: 9 | Q287: -26 | R287: -10.0178 | S287: 0.7722 | T287: 0.003525296972 | U287: 9 | W287: -26 | X287: -9.0428 | Y287: 1.0772 | Z287: 0.003905396559 | AA287: 9 | AC287: -26 | AD287: -8.7178 | AE287: 4.4022 | AF287: 0.00405098993 | AG287: 9 | AI287: -26 | AJ287: -28.9978 | AK287: 28.8922 | AL287: 0.001217875839 | AM287: 9
E288: -25.5 | F288: -9.54975 | G288: 1.22025 | H288: 0.004125326338 | I288: 10 | K288: -25.5 | L288: -9.93735 | M288: 3.15265 | N288: 0.003964420614 | O288: 10 | Q288: -25.5 | R288: -9.82515 | S288: 0.96485 | T288: 0.004009693001 | U288: 10 | W288: -25.5 | X288: -8.8689 | Y288: 1.2511 | Z288: 0.004442020453 | AA288: 10 | AC288: -25.5 | AD288: -8.55015 | AE288: 4.56985 | AF288: 0.004607619187 | AG288: 10 | AI288: -25.5 | AJ288: -28.44015 | AK288: 29.44985 | AL288: 0.001385218967 | AM288: 10
E289: -25 | F289: -9.3625 | G289: 1.4075 | H289: 0.00468045407 | I289: 11 | K289: -25 | L289: -9.7425 | M289: 3.3475 | N289: 0.004497895944 | O289: 11 | Q289: -25 | R289: -9.6325 | S289: 1.1575 | T289: 0.004549260445 | U289: 11 | W289: -25 | X289: -8.695 | Y289: 1.425 | Z289: 0.005039764374 | AA289: 11 | AC289: -25 | AD289: -8.3825 | AE289: 4.7375 | AF289: 0.005227647031 | AG289: 11 | AI289: -25 | AJ289: -27.8825 | AK289: 30.0075 | AL289: 0.001571622029 | AM289: 11
E290: -24.5 | F290: -9.17525 | G290: 1.59475 | H290: 0.00529702387 | I290: 12 | K290: -24.5 | L290: -9.54765 | M290: 3.54235 | N290: 0.005090416831 | O290: 12 | Q290: -24.5 | R290: -9.43985 | S290: 1.35015 | T290: 0.005148547727 | U290: 12 | W290: -24.5 | X290: -8.5211 | Y290: 1.5989 | Z290: 0.005703667163 | AA290: 12 | AC290: -24.5 | AD290: -8.21485 | AE290: 4.90515 | AF290: 0.005916300147 | AG290: 12 | AI290: -24.5 | AJ290: -27.32485 | AK290: 30.56515 | AL290: 0.001778656361 | AM290: 12
E291: -24 | F291: -8.988 | G291: 1.782 | H291: 0.005979847876 | I291: 13 | K291: -24 | L291: -9.3528 | M291: 3.7372 | N291: 0.005746607723 | O291: 13 | Q291: -24 | R291: -9.2472 | S291: 1.5428 | T291: 0.005812232104 | U291: 13 | W291: -24 | X291: -8.3472 | Y291: 1.7728 | Z291: 0.006438910378 | AA291: 13 | AC291: -24 | AD291: -8.0472 | AE291: 5.0728 | AF291: 0.006678953264 | AG291: 13 | AI291: -24 | AJ291: -26.7672 | AK291: 31.1228 | AL291: 0.002007937801 | AM291: 13
E292: -23.5 | F292: -8.80075 | G292: 1.96925 | H292: 0.006733837094 | I292: 14 | K292: -23.5 | L292: -9.15795 | M292: 3.93205 | N292: 0.006471188072 | O292: 14 | Q292: -23.5 | R292: -9.05455 | S292: 1.73545 | T292: 0.006545086923 | U292: 14 | W292: -23.5 | X292: -8.1733 | Y292: 1.9467 | Z292: 0.007250782034 | AA292: 14 | AC292: -23.5 | AD292: -7.87955 | AE292: 5.24045 | AF292: 0.007521091535 | AG292: 14 | AI292: -23.5 | AJ292: -26.20955 | AK292: 31.68045 | AL292: 0.002261115387 | AM292: 14
E293: -23 | F293: -8.6135 | G293: 2.1565 | H293: 0.007563962014 | I293: 15 | K293: -23 | L293: -8.9631 | M293: 4.1269 | N293: 0.007268934499 | O293: 15 | Q293: -23 | R293: -8.8619 | S293: 1.9281 | T293: 0.007351943354 | U293: 15 | W293: -23 | X293: -7.9994 | Y293: 2.1206 | Z293: 0.008144634198 | AA293: 15 | AC293: -23 | AD293: -7.7119 | AE293: 5.4081 | AF293: 0.00844826655 | AG293: 15 | AI293: -23 | AJ293: -25.6519 | AK293: 32.2381 | AL293: 0.002539858132 | AM293: 15
E294: -22.5 | F294: -8.42625 | G294: 2.34375 | H294: 0.008475207433 | I294: 16 | K294: -22.5 | L294: -8.76825 | M294: 4.32175 | N294: 0.008144637371 | O294: 16 | Q294: -22.5 | R294: -8.66925 | S294: 2.12075 | T294: 0.008237646467 | U294: 16 | W294: -22.5 | X294: -7.8255 | Y294: 2.2945 | Z294: 0.00912583434 | AA294: 16 | AC294: -22.5 | AD294: -7.54425 | AE294: 5.57575 | AF294: 0.00946604588 | AG294: 16 | AI294: -22.5 | AJ294: -25.09425 | AK294: 32.79575 | AL294: 0.002845839849 | AM294: 16
E295: -22 | F295: -8.239 | G295: 2.531 | H295: 0.009472521454 | I295: 17 | K295: -22 | L295: -8.5734 | M295: 4.5166 | N295: 0.009103051795 | O295: 17 | Q295: -22 | R295: -8.4766 | S295: 2.3134 | T295: 0.00920700567 | U295: 17 | W295: -22 | X295: -7.6516 | Y295: 2.4684 | Z295: 0.01019971042 | AA295: 17 | AC295: -22 | AD295: -7.3766 | AE295: 5.7434 | AF295: 0.01057995611 | AG295: 17 | AI295: -22 | AJ295: -24.5366 | AK295: 33.3534 | AL295: 0.003180722034 | AM295: 17
E296: -21.5 | F296: -8.05175 | G296: 2.71825 | H296: 0.01056075877 | I296: 18 | K296: -21.5 | L296: -8.37855 | M296: 4.71145 | N296: 0.01014884311 | O296: 18 | Q296: -21.5 | R296: -8.28395 | S296: 2.50605 | T296: 0.01026473958 | U296: 18 | W296: -21.5 | X296: -7.4777 | Y296: 2.6423 | Z296: 0.01137148982 | AA296: 18 | AC296: -21.5 | AD296: -7.20895 | AE296: 5.91105 | AF296: 0.0117954195 | AG296: 18 | AI296: -21.5 | AJ296: -23.97895 | AK296: 33.91105 | AL296: 0.003546134815 | AM296: 18
E297: -21 | F297: -7.8645 | G297: 2.9055 | H297: 0.01174461842 | I297: 19 | K297: -21 | L297: -8.1837 | M297: 4.9063 | N297: 0.01128652707 | O297: 19 | Q297: -21 | R297: -8.0913 | S297: 2.6987 | T297: 0.01141541552 | U297: 19 | W297: -21 | X297: -7.3038 | Y297: 2.8162 | Z297: 0.01264623231 | AA297: 19 | AC297: -21 | AD297: -7.0413 | AE297: 6.0787 | AF297: 0.01311768446 | AG297: 19 | AI297: -21 | AJ297: -23.4213 | AK297: 34.4687 | AL297: 0.003943656055 | AM297: 19
E298: -20.5 | F298: -7.67725 | G298: 3.09275 | H298: 0.01302857639 | I298: 20 | K298: -20.5 | L298: -7.98885 | M298: 5.10115 | N298: 0.01252040508 | O298: 20 | Q298: -20.5 | R298: -7.89865 | S298: 2.89135 | T298: 0.01266338401 | U298: 20 | W298: -20.5 | X298: -7.1299 | Y298: 2.9901 | Z298: 0.0140287575 | AA298: 20 | AC298: -20.5 | AD298: -6.87365 | AE298: 6.24635 | AF298: 0.01455175025 | AG298: 20 | AI298: -20.5 | AJ298: -22.86365 | AK298: 35.02635 | AL298: 0.004374788719 | AM298: 20
E299: -20 | F299: -7.49 | G299: 3.28 | H299: 0.01441681349 | I299: 21 | K299: -20 | L299: -7.794 | M299: 5.296 | N299: 0.01385449487 | O299: 21 | Q299: -20 | R299: -7.706 | S299: 3.084 | T299: 0.01401270867 | U299: 21 | W299: -20 | X299: -6.956 | Y299: 3.164 | Z299: 0.01552356714 | AA299: 21 | AC299: -20 | AD299: -6.706 | AE299: 6.414 | AF299: 0.01610228646 | AG299: 21 | AI299: -20 | AJ299: -22.306 | AK299: 35.584 | AL299: 0.004840936655 | AM299: 21
E300: -19.5 | F300: -7.30275 | G300: 3.46725 | H300: 0.01591313914 | I300: 22 | K300: -19.5 | L300: -7.59915 | M300: 5.49085 | N300: 0.01529245729 | O300: 22 | Q300: -19.5 | R300: -7.51335 | S300: 3.27665 | T300: 0.01546709215 | U300: 22 | W300: -19.5 | X300: -6.7821 | Y300: 3.3379 | Z300: 0.0171347631 | AA300: 22 | AC300: -19.5 | AD300: -6.53835 | AE300: 6.58165 | AF300: 0.01777354789 | AG300: 22 | AI300: -19.5 | AJ300: -21.74835 | AK300: 36.14165 | AL300: 0.005343379007 | AM300: 22
E301: -19 | F301: -7.1155 | G301: 3.6545 | H301: 0.01752091182 | I301: 23 | K301: -19 | L301: -7.4043 | M301: 5.6857 | N301: 0.01683751983 | O301: 23 | Q301: -19 | R301: -7.3207 | S301: 3.4693 | T301: 0.0170297988 | U301: 23 | W301: -19 | X301: -6.6082 | Y301: 3.5118 | Z301: 0.01886596169 | AA301: 23 | AC301: -19 | AD301: -6.3707 | AE301: 6.7493 | AF301: 0.01956928565 | AG301: 23 | AI301: -19 | AJ301: -21.1907 | AK301: 36.6993 | AL301: 0.005883243502 | AM301: 23
E302: -18.5 | F302: -6.92825 | G302: 3.84175 | H302: 0.0192429571 | I302: 24 | K302: -18.5 | L302: -7.20945 | M302: 5.88055 | N302: 0.01849239783 | O302: 24 | Q302: -18.5 | R302: -7.12805 | S302: 3.66195 | T302: 0.01870357496 | U302: 24 | W302: -18.5 | X302: -6.4343 | Y302: 3.6857 | Z302: 0.02072020539 | AA302: 24 | AC302: -18.5 | AD302: -6.20305 | AE302: 6.91695 | AF302: 0.02149265563 | AG302: 24 | AI302: -18.5 | AJ302: -20.63305 | AK302: 37.25695 | AL302: 0.006461478915 | AM302: 24
E303: -18 | F303: -6.741 | G303: 4.029 | H303: 0.02108148419 | I303: 25 | K303: -18 | L303: -7.0146 | M303: 6.0754 | N303: 0.02025921434 | O303: 25 | Q303: -18 | R303: -6.9354 | S303: 3.8546 | T303: 0.02049056795 | U303: 25 | W303: -18 | X303: -6.2604 | Y303: 3.8596 | Z303: 0.022699873 | AA303: 25 | AC303: -18 | AD303: -6.0354 | AE303: 7.0846 | AF303: 0.02354612535 | AG303: 25 | AI303: -18 | AJ303: -20.0754 | AK303: 37.8146 | AL303: 0.007078827069 | AM303: 25
E304: -17.5 | F304: -6.55375 | G304: 4.21625 | H304: 0.02303800236 | I304: 26 | K304: -17.5 | L304: -6.81975 | M304: 6.27025 | N304: 0.02213941977 | O304: 26 | Q304: -17.5 | R304: -6.74275 | S304: 4.04725 | T304: 0.0223922447 | U304: 26 | W304: -17.5 | X304: -6.0865 | Y304: 4.0335 | Z304: 0.02480658966 | AA304: 26 | AC304: -17.5 | AD304: -5.86775 | AE304: 7.25225 | AF304: 0.0257313805 | AG304: 26 | AI304: -17.5 | AJ304: -19.51775 | AK304: 38.37225 | AL304: 0.007735794748 | AM304: 26
E305: -17 | F305: -6.3665 | G305: 4.4035 | H305: 0.02511323828 | I305: 27 | K305: -17 | L305: -6.6249 | M305: 6.4651 | N305: 0.02413371244 | O305: 27 | Q305: -17 | R305: -6.5501 | S305: 4.2399 | T305: 0.02440931154 | U305: 27 | W305: -17 | X305: -5.9126 | Y305: 4.2074 | Z305: 0.02704113783 | AA305: 27 | AC305: -17 | AD305: -5.7001 | AE305: 7.4199 | AF305: 0.02804923274 | AG305: 27 | AI305: -17 | AJ305: -18.9601 | AK305: 38.9299 | AL305: 0.008432625964 | AM305: 27
E306: -16.5 | F306: -6.17925 | G306: 4.59075 | H306: 0.02730705596 | I306: 28 | K306: -16.5 | L306: -6.43005 | M306: 6.65995 | N306: 0.02624196165 | O306: 28 | Q306: -16.5 | R306: -6.35745 | S306: 4.43255 | T306: 0.02654163627 | U306: 28 | W306: -16.5 | X306: -5.7387 | Y306: 4.3813 | Z306: 0.02940337106 | AA306: 28 | AC306: -16.5 | AD306: -5.53245 | AE306: 7.58755 | AF306: 0.03049953014 | AG306: 28 | AI306: -16.5 | AJ306: -18.40245 | AK306: 39.48755 | AL306: 0.009169275044 | AM306: 28
E307: -16 | F307: -5.992 | G307: 4.778 | H307: 0.02961838042 | I307: 29 | K307: -16 | L307: -6.2352 | M307: 6.8548 | N307: 0.02846313438 | O307: 29 | Q307: -16 | R307: -6.1648 | S307: 4.6252 | T307: 0.02878817407 | U307: 29 | W307: -16 | X307: -5.5648 | Y307: 4.5552 | Z307: 0.03189213188 | AA307: 29 | AC307: -16 | AD307: -5.3648 | AE307: 7.7552 | AF307: 0.03308107208 | AG307: 29 | AI307: -16 | AJ307: -17.8448 | AK307: 40.0452 | AL307: 0.009945381035 | AM307: 29
E308: -15.5 | F308: -5.80475 | G308: 4.96525 | H308: 0.03204512702 | I308: 30 | K308: -15.5 | L308: -6.04035 | M308: 7.04965 | N308: 0.03079522728 | O308: 30 | Q308: -15.5 | R308: -5.97215 | S308: 4.81785 | T308: 0.0311468987 | U308: 30 | W308: -15.5 | X308: -5.3909 | Y308: 4.7291 | Z308: 0.03450517559 | AA308: 30 | AC308: -15.5 | AD308: -5.19715 | AE308: 7.92285 | AF308: 0.03579153018 | AG308: 30 | AI308: -15.5 | AJ308: -17.28715 | AK308: 40.60285 | AL308: 0.01076024394 | AM308: 30
E309: -15 | F309: -5.6175 | G309: 5.1525 | H309: 0.03458413769 | I309: 31 | K309: -15 | L309: -5.8455 | M309: 7.2445 | N309: 0.03323520546 | O309: 31 | Q309: -15 | R309: -5.7795 | S309: 5.0105 | T309: 0.03361474063 | U309: 31 | W309: -15 | X309: -5.217 | Y309: 4.903 | Z309: 0.03723910169 | AA309: 31 | AC309: -15 | AD309: -5.0295 | AE309: 8.0905 | AF309: 0.03862737717 | AG309: 31 | AI309: -15 | AJ309: -16.7295 | AK309: 41.1605 | AL309: 0.01161280334 | AM309: 31
E310: -14.5 | F310: -5.43025 | G310: 5.33975 | H310: 0.03723112589 | I310: 32 | K310: -14.5 | L310: -5.65065 | M310: 7.43935 | N310: 0.03577894956 | O310: 32 | Q310: -14.5 | R310: -5.58685 | S310: 5.20315 | T310: 0.03618753347 | U310: 32 | W310: -14.5 | X310: -5.0431 | Y310: 5.0769 | Z310: 0.04008929455 | AA310: 32 | AC310: -14.5 | AD310: -4.86185 | AE310: 8.25815 | AF310: 0.04158382536 | AG310: 32 | AI310: -14.5 | AJ310: -16.17185 | AK310: 41.71815 | AL310: 0.01250161987 | AM310: 32
E311: -14 | F311: -5.243 | G311: 5.527 | H311: =NORMDIST(G311,F$276,F$277,FALSE) -> 0.03998063168 | I311: 33 | K311: -14 | L311: -5.4558 | M311: 7.6342 | N311: =NORMDIST(M311,L$276,L$277,FALSE) -> 0.03842121263 | O311: 33 | Q311: -14 | R311: -5.3942 | S311: 5.3958 | T311: =NORMDIST(S311,R$276,R$277,FALSE) -> 0.03885997032 | U311: 33 | W311: -14 | X311: -4.8692 | Y311: 5.2508 | Z311: =NORMDIST(Y311,X$276,X$277,FALSE) -> 0.04304987511 | AA311: 33 | AC311: -14 | AD311: -4.6942 | AE311: 8.4258 | AF311: =NORMDIST(AE311,AD$276,AD$277,FALSE) -> 0.04465477651 | AG311: 33 | AI311: -14 | AJ311: -15.6142 | AK311: 42.2758 | AL311: =NORMDIST(AK311,AJ$276,AJ$277,FALSE) -> 0.01342486018 | AM311: 33
E312: -13.5 | F312: -5.05575 | G312: 5.71425 | H312: 0.04282598861 | I312: 34 | K312: -13.5 | L312: -5.26095 | M312: 7.82905 | N312: 0.04115558823 | O312: 34 | Q312: -13.5 | R312: -5.20155 | S312: 5.58845 | T312: 0.04162557159 | U312: 34 | W312: -13.5 | X312: -4.6953 | Y312: 5.4247 | Z312: 0.04611366514 | AA312: 34 | AC312: -13.5 | AD312: -4.52655 | AE312: 8.59345 | AF312: 0.04783278477 | AG312: 34 | AI312: -13.5 | AJ312: -15.05655 | AK312: 42.83345 | AL312: 0.01438028578 | AM312: 34
E313: -13 | F313: -4.8685 | G313: 5.9015 | H313: 0.04575930362 | I313: 35 | K313: -13 | L313: -5.0661 | M313: 8.0239 | N313: 0.04397449116 | O313: 35 | Q313: -13 | R313: -5.0089 | S313: 5.7811 | T313: 0.04447666547 | U313: 35 | W313: -13 | X313: -4.5214 | Y313: 5.5986 | Z313: 0.04927216563 | AA313: 35 | AC313: -13 | AD313: -4.3589 | AE313: 8.7611 | AF313: 0.05110903431 | AG313: 35 | AI313: -13 | AJ313: -14.4989 | AK313: 43.3911 | AL313: 0.01536524631 | AM313: 35
E314: -12.5 | F314: -4.68125 | G314: 6.08875 | H314: 0.04877145137 | I314: 36 | K314: -12.5 | L314: -4.87125 | M314: 8.21875 | N314: 0.04686915201 | O314: 36 | Q314: -12.5 | R314: -4.81625 | S314: 5.97375 | T314: 0.0474043824 | U314: 36 | W314: -12.5 | X314: -4.3475 | Y314: 5.7725 | Z314: 0.05251555072 | AA314: 36 | AC314: -12.5 | AD314: -4.19125 | AE314: 8.92875 | AF314: 0.05447333295 | AG314: 36 | AI314: -12.5 | AJ314: -13.94125 | AK314: 43.94875 | AL314: 0.01637667761 | AM314: 36
E315: -12 | F315: -4.494 | G315: 6.276 | H315: 0.05185208411 | I315: 37 | K315: -12 | L315: -4.6764 | M315: 8.4136 | N315: 0.04982962663 | O315: 37 | Q315: -12 | R315: -4.6236 | S315: 6.1664 | T315: 0.05039866467 | U315: 37 | W315: -12 | X315: -4.1736 | Y315: 5.9464 | Z315: 0.05583267826 | AA315: 37 | AC315: -12 | AD315: -4.0236 | AE315: 9.0964 | AF315: 0.05791412317 | AG315: 37 | AI315: -12 | AJ315: -13.3836 | AK315: 44.5064 | AL315: 0.01741110508 | AM315: 37
E316: -11.5 | F316: -4.30675 | G316: 6.46325 | H316: 0.05498965787 | I316: 38 | K316: -11.5 | L316: -4.48155 | M316: 8.60845 | N316: 0.05284482133 | O316: 38 | Q316: -11.5 | R316: -4.43095 | S316: 6.35905 | T316: 0.05344829191 | U316: 38 | W316: -11.5 | X316: -3.9997 | Y316: 6.1203 | Z316: 0.05921111809 | AA316: 38 | AC316: -11.5 | AD316: -3.85595 | AE316: 9.26405 | AF316: 0.0614185114 | AG316: 38 | AI316: -11.5 | AJ316: -12.82595 | AK316: 45.06405 | AL316: 0.01846465245 | AM316: 38
E317: -11 | F317: -4.1195 | G317: 6.6505 | H317: 0.05817147584 | I317: 39 | K317: -11 | L317: -4.2867 | M317: 8.8033 | N317: 0.05590253452 | O317: 39 | Q317: -11 | R317: -4.2383 | S317: 6.5517 | T317: 0.05654092319 | U317: 39 | W317: -11 | X317: -3.8258 | Y317: 6.2942 | Z317: 0.06263719869 | AA317: 39 | AC317: -11 | AD317: -3.6883 | AE317: 9.4317 | AF317: 0.06497231644 | AG317: 39 | AI317: -11 | AJ317: -12.2683 | AK317: 45.6217 | AL317: 0.01953305631 | AM317: 39
E318: -10.5 | F318: -3.93225 | G318: 6.83775 | H318: 0.06138374918 | I318: 40 | K318: -10.5 | L318: -4.09185 | M318: 8.99815 | N318: 0.05898951519 | O318: 40 | Q318: -10.5 | R318: -4.04565 | S318: 6.74435 | T318: 0.05966315616 | U318: 40 | W318: -10.5 | X318: -3.6519 | Y318: 6.4681 | Z318: 0.06609607265 | AA318: 40 | AC318: -10.5 | AD318: -3.52065 | AE318: 9.59935 | AF318: 0.06856013739 | AG318: 40 | AI318: -10.5 | AJ318: -11.71065 | AK318: 46.17935 | AL318: 0.0206116866 | AM318: 40
E319: -10 | F319: -3.745 | G319: 7.025 | H319: 0.06461167544 | I319: 41 | K319: -10 | L319: -3.897 | M319: 9.193 | N319: 0.06209153824 | O319: 41 | Q319: -10 | R319: -3.853 | S319: 6.937 | T319: 0.0628006033 | U319: 41 | W319: -10 | X319: -3.478 | Y319: 6.642 | Z319: 0.06957180118 | AA319: 41 | AC319: -10 | AD319: -3.353 | AE319: 9.767 | AF319: 0.07216544125 | AG319: 41 | AI319: -10 | AJ319: -11.153 | AK319: 46.737 | AL319: 0.0216955729 | AM319: 41
E320: -9.5 | F320: -3.55775 | G320: 7.21225 | H320: 0.06783953444 | I320: 42 | K320: -9.5 | L320: -3.70215 | M320: 9.38785 | N320: 0.06519349666 | O320: 42 | Q320: -9.5 | R320: -3.66035 | S320: 7.12965 | T320: 0.06593798507 | U320: 42 | W320: -9.5 | X320: -3.3041 | Y320: 6.8159 | Z320: 0.07304745729 | AA320: 42 | AC320: -9.5 | AD320: -3.18535 | AE320: 9.93465 | AF320: 0.07577066999 | AG320: 42 | AI320: -9.5 | AJ320: -10.59535 | AK320: 47.29465 | AL320: 0.02277943661 | AM320: 42
E321: -9 | F321: -3.3705 | G321: 7.3995 | H321: 0.07105080104 | I321: 43 | K321: -9 | L321: -3.5073 | M321: 9.5827 | N321: 0.06827950985 | O321: 43 | Q321: -9 | R321: -3.4677 | S321: 7.3223 | T321: 0.06905923953 | U321: 43 | W321: -9 | X321: -3.1302 | Y321: 6.9898 | Z321: 0.07650524724 | AA321: 43 | AC321: -9 | AD321: -3.0177 | AE321: 10.1023 | AF321: 0.07935736651 | AG321: 43 | AI321: -9 | AJ321: -10.0377 | AK321: 47.8523 | AL321: 0.02385772885 | AM321: 43
E322: -8.5 | F322: -3.18325 | G322: 7.58675 | H322: 0.074228274 | I322: 44 | K322: -8.5 | L322: -3.31245 | M322: 9.77755 | N322: 0.07133304751 | O322: 44 | Q322: -8.5 | R322: -3.27505 | S322: 7.51495 | T322: 0.07214764758 | U322: 44 | W322: -8.5 | X322: -2.9563 | Y322: 7.1637 | Z322: 0.07992664926 | AA322: 44 | AC322: -8.5 | AD322: -2.85005 | AE322: 10.26995 | AF322: 0.08290631856 | AG322: 44 | AI322: -8.5 | AJ322: -9.48005 | AK322: 48.40995 | AL322: 0.02492467373 | AM322: 44
E323: -8 | F323: -2.996 | G323: 7.774 | H323: 0.0773542197 | I323: 45 | K323: -8 | L323: -3.1176 | M323: 9.9724 | N323: 0.07433706768 | O323: 45 | Q323: -8 | R323: -3.0824 | S323: 7.7076 | T323: 0.07518597269 | U323: 45 | W323: -8 | X323: -2.7824 | Y323: 7.3376 | Z323: 0.08329256836 | AA323: 45 | AC323: -8 | AD323: -2.6824 | AE323: 10.4376 | AF323: 0.08639771928 | AG323: 45 | AI323: -8 | AJ323: -8.9224 | AK323: 48.9676 | AL323: 0.02597431658 | AM323: 45
E324: -7.5 | F324: -2.80875 | G324: 7.96125 | H324: 0.08041052928 | I324: 46 | K324: -7.5 | L324: -2.92275 | M324: 10.16725 | N324: 0.07727416786 | O324: 46 | Q324: -7.5 | R324: -2.88975 | S324: 7.90025 | T324: 0.07815661359 | U324: 46 | W324: -7.5 | X324: -2.6085 | Y324: 7.5115 | Z324: 0.08658350551 | AA324: 46 | AC324: -7.5 | AD324: -2.51475 | AE324: 10.60525 | AF324: 0.08981134272 | AG324: 46 | AI324: -7.5 | AJ324: -8.36475 | AK324: 49.52525 | AL324: 0.02700057672 | AM324: 46
E325: -7 | F325: -2.6215 | G325: 8.1485 | H325: 0.08337888741 | I325: 47 | K325: -7 | L325: -2.7279 | M325: 10.3621 | N325: 0.08012674708 | O325: 47 | Q325: -7 | R325: -2.6971 | S325: 8.0929 | T325: 0.08104176833 | U325: 47 | W325: -7 | X325: -2.4346 | Y325: 7.6854 | Z325: 0.08977973932 | AA325: 47 | AC325: -7 | AD325: -2.3471 | AE325: 10.7729 | AF325: 0.09312673229 | AG325: 47 | AI325: -7 | AJ325: -7.8071 | AK325: 50.0829 | AL325: 0.02799730417 | AM325: 47
E326: -6.5 | F326: -2.43425 | G326: 8.33575 | H326: 0.08624095051 | I326: 48 | K326: -6.5 | L326: -2.53305 | M326: 10.55695 | N326: 0.08287717723 | O326: 48 | Q326: -6.5 | R326: -2.50445 | S326: 8.28555 | T326: 0.08382360749 | U326: 48 | W326: -6.5 | X326: -2.2607 | Y326: 7.8593 | Z326: 0.09286151802 | AA326: 48 | AC326: -6.5 | AD326: -2.17945 | AE326: 10.94055 | AF326: 0.09632339984 | AG326: 48 | AI326: -6.5 | AJ326: -7.24945 | AK326: 50.64055 | AL326: 0.02895833943 | AM326: 48
E327: -6 | F327: -2.247 | G327: 8.523 | H327: 0.08897853215 | I327: 49 | K327: -6 | L327: -2.3382 | M327: 10.7518 | N327: 0.08550798124 | O327: 49 | Q327: -6 | R327: -2.3118 | S327: 8.4782 | T327: 0.08648445442 | U327: 49 | W327: -6 | X327: -2.0868 | Y327: 8.0332 | Z327: 0.09580925903 | AA327: 49 | AC327: -6 | AD327: -2.0118 | AE327: 11.1082 | AF327: 0.09938103277 | AG327: 49 | AI327: -6 | AJ327: -6.6918 | AK327: 51.1982 | AL327: 0.0298775758 | AM327: 49
E328: -5.5 | F328: -2.05975 | G328: 8.71025 | H328: 0.09157379306 | I328: 50 | K328: -5.5 | L328: -2.14335 | M328: 10.94665 | N328: 0.08800201566 | O328: 50 | Q328: -5.5 | R328: -2.11915 | S328: 8.67085 | T328: 0.0890069699 | U328: 50 | W328: -5.5 | X328: -1.9129 | Y328: 8.2071 | Z328: 0.0986037536 | AA328: 50 | AC328: -5.5 | AD328: -1.84415 | AE328: 11.27585 | AF328: 0.1022797062 | AG328: 50 | AI328: -5.5 | AJ328: -6.13415 | AK328: 51.75585 | AL328: 0.03074902313 | AM328: 50
E329: -5 | F329: -1.8725 | G329: 8.8975 | H329: 0.09400943305 | I329: 51 | K329: -5 | L329: -1.9485 | M329: 11.1415 | N329: 0.09034265506 | O329: 51 | Q329: -5 | R329: -1.9265 | S329: 8.8635 | T329: 0.09137433864 | U329: 51 | W329: -5 | X329: -1.739 | Y329: 8.381 | Z329: 0.1012263734 | AA329: 51 | AC329: -5 | AD329: -1.6765 | AE329: 11.4435 | AF329: 0.1050000975 | AG329: 51 | AI329: -5 | AJ329: -5.5765 | AK329: 52.3135 | AL329: 0.0315668723 | AM329: 51
E330: -4.5 | F330: -1.68525 | G330: 9.08475 | H330: 0.09626888183 | I330: 52 | K330: -4.5 | L330: -1.75365 | M330: 11.33635 | N330: 0.09251397548 | O330: 52 | Q330: -4.5 | R330: -1.73385 | S330: 9.05615 | T330: 0.09357045483 | U330: 52 | W330: -4.5 | X330: -1.5651 | Y330: 8.5549 | Z330: 0.1036592762 | AA330: 52 | AC330: -4.5 | AD330: -1.50885 | AE330: 11.61115 | AF330: 0.1075236989 | AG330: 52 | AI330: -4.5 | AJ330: -5.01885 | AK330: 52.87115 | AL330: 0.03232555926 | AM330: 52
E331: -4 | F331: -1.498 | G331: 9.272 | H331: 0.09833648606 | I331: 53 | K331: -4 | L331: -1.5588 | M331: 11.5312 | N331: 0.09450093413 | O331: 53 | Q331: -4 | R331: -1.5412 | S331: 9.2488 | T331: 0.09558010389 | U331: 53 | W331: -4 | X331: -1.3912 | Y331: 8.7288 | Z331: 0.1058856068 | AA331: 53 | AC331: -4 | AD331: -1.3412 | AE331: 11.7788 | AF331: 0.1098330272 | AG331: 53 | AI331: -4 | AJ331: -4.4612 | AK331: 53.4288 | AL331: 0.03301982788 | AM331: 53
E332: -3.5 | F332: -1.31075 | G332: 9.45925 | H332: 0.1001976894 | I332: 54 | K332: -3.5 | L332: -1.36395 | M332: 11.72605 | N332: 0.09628954245 | O332: 54 | Q332: -3.5 | R332: -1.34855 | S332: 9.44145 | T332: 0.09738913753 | U332: 54 | W332: -3.5 | X332: -1.2173 | Y332: 8.9027 | Z332: 0.1078896915 | AA332: 54 | AC332: -3.5 | AD332: -1.17355 | AE332: 11.94645 | AF332: 0.1119118243 | AG332: 54 | AI332: -3.5 | AJ332: -3.90355 | AK332: 53.98645 | AL332: 0.03364479036 | AM332: 54
E333: -3 | F333: -1.1235 | G333: 9.6465 | H333: 0.1018392031 | I333: 55 | K333: -3 | L333: -1.1691 | M333: 11.9209 | N333: 0.09786702988 | O333: 55 | Q333: -3 | R333: -1.1559 | S333: 9.6341 | T333: 0.09898463936 | U333: 55 | W333: -3 | X333: -1.0434 | Y333: 9.0766 | Z333: 0.1096572212 | AA333: 55 | AC333: -3 | AD333: -1.0059 | AE333: 12.1141 | AF333: 0.1137452477 | AG333: 55 | AI333: -3 | AJ333: -3.3459 | AK333: 54.5441 | AL333: 0.03419598453 | AM333: 55
E334: -2.5 | F334: -0.93625 | G334: 9.83375 | H334: 0.1032491634 | I334: 56 | K334: -2.5 | L334: -0.97425 | M334: 12.11575 | N334: 0.09922199559 | O334: 56 | Q334: -2.5 | R334: -0.96325 | S334: 9.82675 | T334: 0.1003550783 | U334: 56 | W334: -2.5 | X334: -0.8695 | Y334: 9.2505 | Z334: 0.1111754217 | AA334: 56 | AC334: -2.5 | AD334: -0.83825 | AE334: 12.28175 | AF334: 0.1153200468 | AG334: 56 | AI334: -2.5 | AJ334: -2.78825 | AK334: 55.10175 | AL334: 0.03466942677 | AM334: 56
E335: -2 | F335: -0.749 | G335: 10.021 | H335: 0.1044172748 | I335: 57 | K335: -2 | L335: -0.7794 | M335: 12.3106 | N335: 0.1003445455 | O335: 57 | Q335: -2 | R335: -0.7706 | S335: 10.0194 | T335: 0.1014904474 | U335: 57 | W335: -2 | X335: -0.6956 | Y335: 9.4244 | Z335: 0.112433207 | AA335: 57 | AC335: -2 | AD335: -0.6706 | AE335: 12.4494 | AF335: 0.1166247223 | AG335: 57 | AI335: -2 | AJ335: -2.2306 | AK335: 55.6594 | AL335: 0.03506166 | AM335: 57
E336: -1.5 | F336: -0.56175 | G336: 10.20825 | H336: 0.1053349348 | I336: 58 | K336: -1.5 | L336: -0.58455 | M336: 12.50545 | N336: 0.1012264129 | O336: 58 | Q336: -1.5 | R336: -0.57795 | S336: 10.21205 | T336: 0.1023823854 | U336: 58 | W336: -1.5 | X336: -0.5217 | Y336: 9.5983 | Z336: 0.1134213142 | AA336: 58 | AC336: -1.5 | AD336: -0.50295 | AE336: 12.61705 | AF336: 0.1176496662 | AG336: 58 | AI336: -1.5 | AJ336: -1.67295 | AK336: 56.21705 | AL336: 0.03536979565 | AM336: 58
E337: -1 | F337: -0.3745 | G337: 10.3955 | H337: 0.1059953398 | I337: 59 | K337: -1 | L337: -0.3897 | M337: 12.7003 | N337: 0.1018610591 | O337: 59 | Q337: -1 | R337: -0.3853 | S337: 10.4047 | T337: 0.1030242791 | U337: 59 | W337: -1 | X337: -0.3478 | Y337: 9.7722 | Z337: 0.1141324173 | AA337: 59 | AC337: -1 | AD337: -0.3353 | AE337: 12.7847 | AF337: 0.1183872793 | AG337: 59 | AI337: -1 | AJ337: -1.1153 | AK337: 56.7747 | AL337: 0.03559154913 | AM337: 59
E338: -0.5 | F338: -0.18725 | G338: 10.58275 | H338: 0.1063935685 | I338: 60 | K338: -0.5 | L338: -0.19485 | M338: 12.89515 | N338: 0.1022437552 | O338: 60 | Q338: -0.5 | R338: -0.19265 | S338: 10.59735 | T338: 0.1034113455 | U338: 60 | W338: -0.5 | X338: -0.1739 | Y338: 9.9461 | Z338: 0.1145612174 | AA338: 60 | AC338: -0.5 | AD338: -0.16765 | AE338: 12.95235 | AF338: 0.118832065 | AG338: 60 | AI338: -0.5 | AJ338: -0.55765 | AK338: 57.33235 | AL338: 0.03572526801 | AM338: 60
E339: 0 | F339: 0 | G339: 10.77 | H339: 0.1065266436 | I339: 61 | K339: 0 | L339: 0 | M339: 13.09 | N339: 0.1023716398 | O339: 61 | Q339: 0 | R339: 0 | S339: 10.79 | T339: 0.1035406905 | U339: 61 | W339: 0 | X339: 0 | Y339: 10.12 | Z339: 0.1147045085 | AA339: 61 | AC339: 0 | AD339: 0 | AE339: 13.12 | AF339: 0.118980698 | AG339: 61 | AI339: 0 | AJ339: 0 | AK339: 57.89 | AL339: 0.03576995252 | AM339: 61
E340: 0.5 | F340: 0.18725 | G340: 10.95725 | H340: 0.1063935685 | I340: 62 | K340: 0.5 | L340: 0.19485 | M340: 13.28485 | N340: 0.1022437552 | O340: 62 | Q340: 0.5 | R340: 0.19265 | S340: 10.98265 | T340: 0.1034113455 | U340: 62 | W340: 0.5 | X340: 0.1739 | Y340: 10.2939 | Z340: 0.1145612174 | AA340: 62 | AC340: 0.5 | AD340: 0.16765 | AE340: 13.28765 | AF340: 0.118832065 | AG340: 62 | AI340: 0.5 | AJ340: 0.55765 | AK340: 58.44765 | AL340: 0.03572526801 | AM340: 62
E341: 1 | F341: 0.3745 | G341: 11.1445 | H341: 0.1059953398 | I341: 63 | K341: 1 | L341: 0.3897 | M341: 13.4797 | N341: 0.1018610591 | O341: 63 | Q341: 1 | R341: 0.3853 | S341: 11.1753 | T341: 0.1030242791 | U341: 63 | W341: 1 | X341: 0.3478 | Y341: 10.4678 | Z341: 0.1141324173 | AA341: 63 | AC341: 1 | AD341: 0.3353 | AE341: 13.4553 | AF341: 0.1183872793 | AG341: 63 | AI341: 1 | AJ341: 1.1153 | AK341: 59.0053 | AL341: 0.03559154913 | AM341: 63
E342: 1.5 | F342: 0.56175 | G342: 11.33175 | H342: 0.1053349348 | I342: 64 | K342: 1.5 | L342: 0.58455 | M342: 13.67455 | N342: 0.1012264129 | O342: 64 | Q342: 1.5 | R342: 0.57795 | S342: 11.36795 | T342: 0.1023823854 | U342: 64 | W342: 1.5 | X342: 0.5217 | Y342: 10.6417 | Z342: 0.1134213142 | AA342: 64 | AC342: 1.5 | AD342: 0.50295 | AE342: 13.62295 | AF342: 0.1176496662 | AG342: 64 | AI342: 1.5 | AJ342: 1.67295 | AK342: 59.56295 | AL342: 0.03536979565 | AM342: 64
E343: 2 | F343: 0.749 | G343: 11.519 | H343: =NORMDIST(G343,F$276,F$277,FALSE) -> 0.1044172748 | I343: 65 | K343: 2 | L343: 0.7794 | M343: 13.8694 | N343: =NORMDIST(M343,L$276,L$277,FALSE) -> 0.1003445455 | O343: 65 | Q343: 2 | R343: 0.7706 | S343: 11.5606 | T343: =NORMDIST(S343,R$276,R$277,FALSE) -> 0.1014904474 | U343: 65 | W343: 2 | X343: 0.6956 | Y343: 10.8156 | Z343: =NORMDIST(Y343,X$276,X$277,FALSE) -> 0.112433207 | AA343: 65 | AC343: 2 | AD343: 0.6706 | AE343: 13.7906 | AF343: =NORMDIST(AE343,AD$276,AD$277,FALSE) -> 0.1166247223 | AG343: 65 | AI343: 2 | AJ343: 2.2306 | AK343: 60.1206 | AL343: =NORMDIST(AK343,AJ$276,AJ$277,FALSE) -> 0.03506166 | AM343: 65
E344: 2.5 | F344: =E344*F$277/10 -> 0.93625 | G344: =F344+F$276 -> 11.70625 | H344: 0.1032491634 | I344: 66 | K344: 2.5 | L344: =K344*L$277/10 -> 0.97425 | M344: =L344+L$276 -> 14.06425 | N344: 0.09922199559 | O344: 66 | Q344: 2.5 | R344: =Q344*R$277/10 -> 0.96325 | S344: =R344+R$276 -> 11.75325 | T344: 0.1003550783 | U344: 66 | W344: 2.5 | X344: =W344*X$277/10 -> 0.8695 | Y344: =X344+X$276 -> 10.9895 | Z344: 0.1111754217 | AA344: 66 | AC344: 2.5 | AD344: =AC344*AD$277/10 -> 0.83825 | AE344: =AD344+AD$276 -> 13.95825 | AF344: 0.1153200468 | AG344: 66 | AI344: 2.5 | AJ344: =AI344*AJ$277/10 -> 2.78825 | AK344: =AJ344+AJ$276 -> 60.67825 | AL344: 0.03466942677 | AM344: 66
E345: =E344+0.5 -> 3 | F345: 1.1235 | G345: 11.8935 | H345: 0.1018392031 | I345: 67 | K345: =K344+0.5 -> 3 | L345: 1.1691 | M345: 14.2591 | N345: 0.09786702988 | O345: 67 | Q345: =Q344+0.5 -> 3 | R345: 1.1559 | S345: 11.9459 | T345: 0.09898463936 | U345: 67 | W345: =W344+0.5 -> 3 | X345: 1.0434 | Y345: 11.1634 | Z345: 0.1096572212 | AA345: 67 | AC345: =AC344+0.5 -> 3 | AD345: 1.0059 | AE345: 14.1259 | AF345: 0.1137452477 | AG345: 67 | AI345: =AI344+0.5 -> 3 | AJ345: 3.3459 | AK345: 61.2359 | AL345: 0.03419598453 | AM345: 67
E346: =E345+0.5 -> 3.5 | F346: 1.31075 | G346: 12.08075 | H346: 0.1001976894 | I346: 68 | K346: =K345+0.5 -> 3.5 | L346: 1.36395 | M346: 14.45395 | N346: 0.09628954245 | O346: 68 | Q346: =Q345+0.5 -> 3.5 | R346: 1.34855 | S346: 12.13855 | T346: 0.09738913753 | U346: 68 | W346: =W345+0.5 -> 3.5 | X346: 1.2173 | Y346: 11.3373 | Z346: 0.1078896915 | AA346: 68 | AC346: =AC345+0.5 -> 3.5 | AD346: 1.17355 | AE346: 14.29355 | AF346: 0.1119118243 | AG346: 68 | AI346: =AI345+0.5 -> 3.5 | AJ346: 3.90355 | AK346: 61.79355 | AL346: 0.03364479036 | AM346: 68
E347: =E346+0.5 -> 4 | F347: 1.498 | G347: 12.268 | H347: 0.09833648606 | I347: 69 | K347: =K346+0.5 -> 4 | L347: 1.5588 | M347: 14.6488 | N347: 0.09450093413 | O347: 69 | Q347: =Q346+0.5 -> 4 | R347: 1.5412 | S347: 12.3312 | T347: 0.09558010389 | U347: 69 | W347: =W346+0.5 -> 4 | X347: 1.3912 | Y347: 11.5112 | Z347: 0.1058856068 | AA347: 69 | AC347: =AC346+0.5 -> 4 | AD347: 1.3412 | AE347: 14.4612 | AF347: 0.1098330272 | AG347: 69 | AI347: =AI346+0.5 -> 4 | AJ347: 4.4612 | AK347: 62.3512 | AL347: 0.03301982788 | AM347: 69
E348: =E347+0.5 -> 4.5 | F348: 1.68525 | G348: 12.45525 | H348: 0.09626888183 | I348: 70 | K348: =K347+0.5 -> 4.5 | L348: 1.75365 | M348: 14.84365 | N348: 0.09251397548 | O348: 70 | Q348: =Q347+0.5 -> 4.5 | R348: 1.73385 | S348: 12.52385 | T348: 0.09357045483 | U348: 70 | W348: =W347+0.5 -> 4.5 | X348: 1.5651 | Y348: 11.6851 | Z348: 0.1036592762 | AA348: 70 | AC348: =AC347+0.5 -> 4.5 | AD348: 1.50885 | AE348: 14.62885 | AF348: 0.1075236989 | AG348: 70 | AI348: =AI347+0.5 -> 4.5 | AJ348: 5.01885 | AK348: 62.90885 | AL348: 0.03232555926 | AM348: 70
E349: 5 | F349: 1.8725 | G349: 12.6425 | H349: 0.09400943305 | I349: 71 | K349: 5 | L349: 1.9485 | M349: 15.0385 | N349: 0.09034265506 | O349: 71 | Q349: 5 | R349: 1.9265 | S349: 12.7165 | T349: 0.09137433864 | U349: 71 | W349: 5 | X349: 1.739 | Y349: 11.859 | Z349: 0.1012263734 | AA349: 71 | AC349: 5 | AD349: 1.6765 | AE349: 14.7965 | AF349: 0.1050000975 | AG349: 71 | AI349: 5 | AJ349: 5.5765 | AK349: 63.4665 | AL349: 0.0315668723 | AM349: 71
E350: 5.5 | F350: 2.05975 | G350: 12.82975 | H350: 0.09157379306 | I350: 72 | K350: 5.5 | L350: 2.14335 | M350: 15.23335 | N350: 0.08800201566 | O350: 72 | Q350: 5.5 | R350: 2.11915 | S350: 12.90915 | T350: 0.0890069699 | U350: 72 | W350: 5.5 | X350: 1.9129 | Y350: 12.0329 | Z350: 0.0986037536 | AA350: 72 | AC350: 5.5 | AD350: 1.84415 | AE350: 14.96415 | AF350: 0.1022797062 | AG350: 72 | AI350: 5.5 | AJ350: 6.13415 | AK350: 64.02415 | AL350: 0.03074902313 | AM350: 72
E351: 6 | F351: 2.247 | G351: 13.017 | H351: 0.08897853215 | I351: 73 | K351: 6 | L351: 2.3382 | M351: 15.4282 | N351: 0.08550798124 | O351: 73 | Q351: 6 | R351: 2.3118 | S351: 13.1018 | T351: 0.08648445442 | U351: 73 | W351: 6 | X351: 2.0868 | Y351: 12.2068 | Z351: 0.09580925903 | AA351: 73 | AC351: 6 | AD351: 2.0118 | AE351: 15.1318 | AF351: 0.09938103277 | AG351: 73 | AI351: 6 | AJ351: 6.6918 | AK351: 64.5818 | AL351: 0.0298775758 | AM351: 73
E352: 6.5 | F352: 2.43425 | G352: 13.20425 | H352: 0.08624095051 | I352: 74 | K352: 6.5 | L352: 2.53305 | M352: 15.62305 | N352: 0.08287717723 | O352: 74 | Q352: 6.5 | R352: 2.50445 | S352: 13.29445 | T352: 0.08382360749 | U352: 74 | W352: 6.5 | X352: 2.2607 | Y352: 12.3807 | Z352: 0.09286151802 | AA352: 74 | AC352: 6.5 | AD352: 2.17945 | AE352: 15.29945 | AF352: 0.09632339984 | AG352: 74 | AI352: 6.5 | AJ352: 7.24945 | AK352: 65.13945 | AL352: 0.02895833943 | AM352: 74
E353: 7 | F353: 2.6215 | G353: 13.3915 | H353: 0.08337888741 | I353: 75 | K353: 7 | L353: 2.7279 | M353: 15.8179 | N353: 0.08012674708 | O353: 75 | Q353: 7 | R353: 2.6971 | S353: 13.4871 | T353: 0.08104176833 | U353: 75 | W353: 7 | X353: 2.4346 | Y353: 12.5546 | Z353: 0.08977973932 | AA353: 75 | AC353: 7 | AD353: 2.3471 | AE353: 15.4671 | AF353: 0.09312673229 | AG353: 75 | AI353: 7 | AJ353: 7.8071 | AK353: 65.6971 | AL353: 0.02799730417 | AM353: 75
E354: 7.5 | F354: 2.80875 | G354: 13.57875 | H354: 0.08041052928 | I354: 76 | K354: 7.5 | L354: 2.92275 | M354: 16.01275 | N354: 0.07727416786 | O354: 76 | Q354: 7.5 | R354: 2.88975 | S354: 13.67975 | T354: 0.07815661359 | U354: 76 | W354: 7.5 | X354: 2.6085 | Y354: 12.7285 | Z354: 0.08658350551 | AA354: 76 | AC354: 7.5 | AD354: 2.51475 | AE354: 15.63475 | AF354: 0.08981134272 | AG354: 76 | AI354: 7.5 | AJ354: 8.36475 | AK354: 66.25475 | AL354: 0.02700057672 | AM354: 76
E355: 8 | F355: 2.996 | G355: 13.766 | H355: 0.0773542197 | I355: 77 | K355: 8 | L355: 3.1176 | M355: 16.2076 | N355: 0.07433706768 | O355: 77 | Q355: 8 | R355: 3.0824 | S355: 13.8724 | T355: 0.07518597269 | U355: 77 | W355: 8 | X355: 2.7824 | Y355: 12.9024 | Z355: 0.08329256836 | AA355: 77 | AC355: 8 | AD355: 2.6824 | AE355: 15.8024 | AF355: 0.08639771928 | AG355: 77 | AI355: 8 | AJ355: 8.9224 | AK355: 66.8124 | AL355: 0.02597431658 | AM355: 77
E356: 8.5 | F356: 3.18325 | G356: 13.95325 | H356: 0.074228274 | I356: 78 | K356: 8.5 | L356: 3.31245 | M356: 16.40245 | N356: 0.07133304751 | O356: 78 | Q356: 8.5 | R356: 3.27505 | S356: 14.06505 | T356: 0.07214764758 | U356: 78 | W356: 8.5 | X356: 2.9563 | Y356: 13.0763 | Z356: 0.07992664926 | AA356: 78 | AC356: 8.5 | AD356: 2.85005 | AE356: 15.97005 | AF356: 0.08290631856 | AG356: 78 | AI356: 8.5 | AJ356: 9.48005 | AK356: 67.37005 | AL356: 0.02492467373 | AM356: 78
E357: 9 | F357: 3.3705 | G357: 14.1405 | H357: 0.07105080104 | I357: 79 | K357: 9 | L357: 3.5073 | M357: 16.5973 | N357: 0.06827950985 | O357: 79 | Q357: 9 | R357: 3.4677 | S357: 14.2577 | T357: 0.06905923953 | U357: 79 | W357: 9 | X357: 3.1302 | Y357: 13.2502 | Z357: 0.07650524724 | AA357: 79 | AC357: 9 | AD357: 3.0177 | AE357: 16.1377 | AF357: 0.07935736651 | AG357: 79 | AI357: 9 | AJ357: 10.0377 | AK357: 67.9277 | AL357: 0.02385772885 | AM357: 79
E358: 9.5 | F358: 3.55775 | G358: 14.32775 | H358: 0.06783953444 | I358: 80 | K358: 9.5 | L358: 3.70215 | M358: 16.79215 | N358: 0.06519349666 | O358: 80 | Q358: 9.5 | R358: 3.66035 | S358: 14.45035 | T358: 0.06593798507 | U358: 80 | W358: 9.5 | X358: 3.3041 | Y358: 13.4241 | Z358: 0.07304745729 | AA358: 80 | AC358: 9.5 | AD358: 3.18535 | AE358: 16.30535 | AF358: 0.07577066999 | AG358: 80 | AI358: 9.5 | AJ358: 10.59535 | AK358: 68.48535 | AL358: 0.02277943661 | AM358: 80
E359: 10 | F359: 3.745 | G359: 14.515 | H359: 0.06461167544 | I359: 81 | K359: 10 | L359: 3.897 | M359: 16.987 | N359: 0.06209153824 | O359: 81 | Q359: 10 | R359: 3.853 | S359: 14.643 | T359: 0.0628006033 | U359: 81 | W359: 10 | X359: 3.478 | Y359: 13.598 | Z359: 0.06957180118 | AA359: 81 | AC359: 10 | AD359: 3.353 | AE359: 16.473 | AF359: 0.07216544125 | AG359: 81 | AI359: 10 | AJ359: 11.153 | AK359: 69.043 | AL359: 0.0216955729 | AM359: 81
E360: 10.5 | F360: 3.93225 | G360: 14.70225 | H360: 0.06138374918 | I360: 82 | K360: 10.5 | L360: 4.09185 | M360: 17.18185 | N360: 0.05898951519 | O360: 82 | Q360: 10.5 | R360: 4.04565 | S360: 14.83565 | T360: 0.05966315616 | U360: 82 | W360: 10.5 | X360: 3.6519 | Y360: 13.7719 | Z360: 0.06609607265 | AA360: 82 | AC360: 10.5 | AD360: 3.52065 | AE360: 16.64065 | AF360: 0.06856013739 | AG360: 82 | AI360: 10.5 | AJ360: 11.71065 | AK360: 69.60065 | AL360: 0.0206116866 | AM360: 82
E361: 11 | F361: 4.1195 | G361: 14.8895 | H361: 0.05817147584 | I361: 83 | K361: 11 | L361: 4.2867 | M361: 17.3767 | N361: 0.05590253452 | O361: 83 | Q361: 11 | R361: 4.2383 | S361: 15.0283 | T361: 0.05654092319 | U361: 83 | W361: 11 | X361: 3.8258 | Y361: 13.9458 | Z361: 0.06263719869 | AA361: 83 | AC361: 11 | AD361: 3.6883 | AE361: 16.8083 | AF361: 0.06497231644 | AG361: 83 | AI361: 11 | AJ361: 12.2683 | AK361: 70.1583 | AL361: 0.01953305631 | AM361: 83
E362: 11.5 | F362: 4.30675 | G362: 15.07675 | H362: 0.05498965787 | I362: 84 | K362: 11.5 | L362: 4.48155 | M362: 17.57155 | N362: 0.05284482133 | O362: 84 | Q362: 11.5 | R362: 4.43095 | S362: 15.22095 | T362: 0.05344829191 | U362: 84 | W362: 11.5 | X362: 3.9997 | Y362: 14.1197 | Z362: 0.05921111809 | AA362: 84 | AC362: 11.5 | AD362: 3.85595 | AE362: 16.97595 | AF362: 0.0614185114 | AG362: 84 | AI362: 11.5 | AJ362: 12.82595 | AK362: 70.71595 | AL362: 0.01846465245 | AM362: 84
E363: =E362+0.5 -> 12 | F363: 4.494 | G363: 15.264 | H363: 0.05185208411 | I363: 85 | K363: =K362+0.5 -> 12 | L363: 4.6764 | M363: 17.7664 | N363: 0.04982962663 | O363: 85 | Q363: =Q362+0.5 -> 12 | R363: 4.6236 | S363: 15.4136 | T363: 0.05039866467 | U363: 85 | W363: =W362+0.5 -> 12 | X363: 4.1736 | Y363: 14.2936 | Z363: 0.05583267826 | AA363: 85 | AC363: =AC362+0.5 -> 12 | AD363: 4.0236 | AE363: 17.1436 | AF363: 0.05791412317 | AG363: 85 | AI363: =AI362+0.5 -> 12 | AJ363: 13.3836 | AK363: 71.2736 | AL363: 0.01741110508 | AM363: 85
E364: =E363+0.5 -> 12.5 | F364: 4.68125 | G364: 15.45125 | H364: 0.04877145137 | I364: 86 | K364: =K363+0.5 -> 12.5 | L364: 4.87125 | M364: 17.96125 | N364: 0.04686915201 | O364: 86 | Q364: =Q363+0.5 -> 12.5 | R364: 4.81625 | S364: 15.60625 | T364: 0.0474043824 | U364: 86 | W364: =W363+0.5 -> 12.5 | X364: 4.3475 | Y364: 14.4675 | Z364: 0.05251555072 | AA364: 86 | AC364: =AC363+0.5 -> 12.5 | AD364: 4.19125 | AE364: 17.31125 | AF364: 0.05447333295 | AG364: 86 | AI364: =AI363+0.5 -> 12.5 | AJ364: 13.94125 | AK364: 71.83125 | AL364: 0.01637667761 | AM364: 86
E365: 13 | F365: 4.8685 | G365: 15.6385 | H365: 0.04575930362 | I365: 87 | K365: 13 | L365: 5.0661 | M365: 18.1561 | N365: 0.04397449116 | O365: 87 | Q365: 13 | R365: 5.0089 | S365: 15.7989 | T365: 0.04447666547 | U365: 87 | W365: 13 | X365: 4.5214 | Y365: 14.6414 | Z365: 0.04927216563 | AA365: 87 | AC365: 13 | AD365: 4.3589 | AE365: 17.4789 | AF365: 0.05110903431 | AG365: 87 | AI365: 13 | AJ365: 14.4989 | AK365: 72.3889 | AL365: 0.01536524631 | AM365: 87
E366: 13.5 | F366: 5.05575 | G366: 15.82575 | H366: 0.04282598861 | I366: 88 | K366: 13.5 | L366: 5.26095 | M366: 18.35095 | N366: 0.04115558823 | O366: 88 | Q366: 13.5 | R366: 5.20155 | S366: 15.99155 | T366: 0.04162557159 | U366: 88 | W366: 13.5 | X366: 4.6953 | Y366: 14.8153 | Z366: 0.04611366514 | AA366: 88 | AC366: 13.5 | AD366: 4.52655 | AE366: 17.64655 | AF366: 0.04783278477 | AG366: 88 | AI366: 13.5 | AJ366: 15.05655 | AK366: 72.94655 | AL366: 0.01438028578 | AM366: 88
E367: 14 | F367: 5.243 | G367: 16.013 | H367: 0.03998063168 | I367: 89 | K367: 14 | L367: 5.4558 | M367: 18.5458 | N367: 0.03842121263 | O367: 89 | Q367: 14 | R367: 5.3942 | S367: 16.1842 | T367: 0.03885997032 | U367: 89 | W367: 14 | X367: 4.8692 | Y367: 14.9892 | Z367: 0.04304987511 | AA367: 89 | AC367: 14 | AD367: 4.6942 | AE367: 17.8142 | AF367: 0.04465477651 | AG367: 89 | AI367: 14 | AJ367: 15.6142 | AK367: 73.5042 | AL367: 0.01342486018 | AM367: 89
E368: 14.5 | F368: 5.43025 | G368: 16.20025 | H368: 0.03723112589 | I368: 90 | K368: 14.5 | L368: 5.65065 | M368: 18.74065 | N368: 0.03577894956 | O368: 90 | Q368: 14.5 | R368: 5.58685 | S368: 16.37685 | T368: 0.03618753347 | U368: 90 | W368: 14.5 | X368: 5.0431 | Y368: 15.1631 | Z368: 0.04008929455 | AA368: 90 | AC368: 14.5 | AD368: 4.86185 | AE368: 17.98185 | AF368: 0.04158382536 | AG368: 90 | AI368: 14.5 | AJ368: 16.17185 | AK368: 74.06185 | AL368: 0.01250161987 | AM368: 90
E369: 15 | F369: 5.6175 | G369: 16.3875 | H369: 0.03458413769 | I369: 91 | K369: 15 | L369: 5.8455 | M369: 18.9355 | N369: 0.03323520546 | O369: 91 | Q369: 15 | R369: 5.7795 | S369: 16.5695 | T369: 0.03361474063 | U369: 91 | W369: 15 | X369: 5.217 | Y369: 15.337 | Z369: 0.03723910169 | AA369: 91 | AC369: 15 | AD369: 5.0295 | AE369: 18.1495 | AF369: 0.03862737717 | AG369: 91 | AI369: 15 | AJ369: 16.7295 | AK369: 74.6195 | AL369: 0.01161280334 | AM369: 91
E370: 15.5 | F370: 5.80475 | G370: 16.57475 | H370: 0.03204512702 | I370: 92 | K370: 15.5 | L370: 6.04035 | M370: 19.13035 | N370: 0.03079522728 | O370: 92 | Q370: 15.5 | R370: 5.97215 | S370: 16.76215 | T370: 0.0311468987 | U370: 92 | W370: 15.5 | X370: 5.3909 | Y370: 15.5109 | Z370: 0.03450517559 | AA370: 92 | AC370: 15.5 | AD370: 5.19715 | AE370: 18.31715 | AF370: 0.03579153018 | AG370: 92 | AI370: 15.5 | AJ370: 17.28715 | AK370: 75.17715 | AL370: 0.01076024394 | AM370: 92
E371: 16 | F371: 5.992 | G371: 16.762 | H371: 0.02961838042 | I371: 93 | K371: 16 | L371: 6.2352 | M371: 19.3252 | N371: 0.02846313438 | O371: 93 | Q371: 16 | R371: 6.1648 | S371: 16.9548 | T371: 0.02878817407 | U371: 93 | W371: 16 | X371: 5.5648 | Y371: 15.6848 | Z371: 0.03189213188 | AA371: 93 | AC371: 16 | AD371: 5.3648 | AE371: 18.4848 | AF371: 0.03308107208 | AG371: 93 | AI371: 16 | AJ371: 17.8448 | AK371: 75.7348 | AL371: 0.009945381035 | AM371: 93
E372: 16.5 | F372: 6.17925 | G372: 16.94925 | H372: 0.02730705596 | I372: 94 | K372: 16.5 | L372: 6.43005 | M372: 19.52005 | N372: 0.02624196165 | O372: 94 | Q372: 16.5 | R372: 6.35745 | S372: 17.14745 | T372: 0.02654163627 | U372: 94 | W372: 16.5 | X372: 5.7387 | Y372: 15.8587 | Z372: 0.02940337106 | AA372: 94 | AC372: 16.5 | AD372: 5.53245 | AE372: 18.65245 | AF372: 0.03049953014 | AG372: 94 | AI372: 16.5 | AJ372: 18.40245 | AK372: 76.29245 | AL372: 0.009169275044 | AM372: 94
